Workbook

Sheet Covers
B5: Official Statistics Release
B6: Policy area: | C6: Children's homes inspections and outcomes
B7: Theme: | C7: Education, children’s services and skills
B8: Published on: | C8: 2012-09-27
B9: Coverage: | C9: England
B10: Period covered: | C10: 1 April 2012 - 30 June 2012
B11: Status: | C11: PROVISIONAL
B12: Issued by: | C12: Office for Standards in Education, Children's Services and Skills (Ofsted) Aviation House 125 Kingsway London WC2B 6SE
B16: Responsible director: | C16: John Goldup
B17: Statistician: | C17: Adam King
B18: Public enquiries: | C18: enquiries@ofsted.gov.uk
B19: Press enquiries: | C19: pressenquiries@ofsted.gov.uk
B20: Link to official statistics release web page: | C20: www.ofsted.gov.uk/resources/official-statistics-children%E2%80%99s-social-care-inspections-and-outcomes
B21: Publication medium: | C21: Ofsted website
B22: Publication frequency: | C22: Quarterly
B23: Next publication date: | C23: 2012-12-18
B26: © Crown copyright
B28: You may use and re-use this information (not including logos) free of charge in any format or medium, under the terms of the Open Government Licence.
B29: To view this licence, visit:
B30: http://www.nationalarchives.gov.uk/doc/open-government-licence/
B31: Or write to the Information Policy Team, The National Archives, Kew, London, TW9 4DU
B32: Or email:
B33: psi@nationalarchives.gsi.gov.uk

Sheet Contents
B1: Contents
B3: LINKS TO EACH TABLE
B6: Table 1: Number of children's homes inspections carried out between 1 April 2012 - 30 June 2012, by inspection type (provisional)
B7: Table 2: Overall effectiveness of children's homes at full inspections between 1 April 2012 - 30 June 2012 (provisional)
B8: Table 3a: Full inspection outcomes of children's homes (excluding secure children's homes - residential special schools caring for pupils for more than 295 days a year) inspected between 1 April 2012 - 30 June 2012 (provisional)
B9: Table 3b: Full inspection outcomes of secure children's homes inspected between 1 April 2012 - 30 June 2012 (provisional)
B10: Table 3c: Full inspection outcomes of residential special schools caring for pupils for more than 295 days per year inspected between 1 April 2012 - 30 June 2012 (provisional)
B11: Table 3d: Interim inspection outcomes of all children's homes inspected between 1 April 2012 - 30 June 2012 (provisional)
B12: Table 4: Overall effectiveness of children's homes inspected between 1 April 2012 - 30 June 2012 by region - local authority (provisional)
B13: Chart 1: Overall effectiveness of children's homes inspected between 1 April 2007 to 30 June 2012, by financial year (provisional)
B14: Chart 2: Overall effectiveness of children's homes inspected between 1 April 2007 - 30 June 2012, by quarter (provisional)
B15: Chart 3: Overall effectiveness of local authority run children's homes inspected between 1 April 2011 - 30 June 2012, by quarter (provisional)
B16: Chart 4: Overall effectiveness of private, voluntary - health authority run children's homes inspected between 1 April 2011 - 30 June 2012, by quarter (provisional)
B17: Map 1: Children's homes receiving a good or better overall effectiveness judgement at full inspection, by former Government Office Region, since 1 April 2012 (provisional)
B18: Map 2: Children's homes receiving a satisfactory or lower overall effectiveness judgement at full inspection, by former Government Office Region, since 1 April 2012 (provisional)
B19: Map 3: Local authority run children's homes receiving a good or better overall effectiveness judgement at full inspection, by former Government Office Region, since 1 April 2012 (provisional)
B20: Map 4: Private, voluntary - health authority run children's homes receiving a good or better overall effectiveness judgement at full inspection, by former Government Office Region, since 1 April 2012 (provisional)
B21: Map 5: Local authority run children's homes receiving an adequate or lower overall effectiveness judgement at full inspection, by former Government Office Region, since 1 April 2012 (provisional)
B22: Map 6: Private, voluntary - health authority run children's homes receiving an adequate or lower overall effectiveness judgement at full inspection, by former Government Office Region, since 1 April 2012 (provisional)

Sheet Ranges (hidden)
A1: 1 April 2011 - 30 June 2011 | B1: 1 July 2012 and 30 September 2012 | C1: 1 October - 31 December 2011 | D1: 1 January 2012 - 31 March 2012 | E1: OE:SC | F1: ="January 2012" -> January 2012 | G1: Month | H1: children's homes | I1: 1 April 2012 - 30 June 2012
A2: ="April 2011" -> April 2011 | B2: ="July 2012" -> July 2012 | C2: ="October 2011" -> October 2011 | D2: ="January 2012" -> January 2012 | E2: OE:EY | F2: ="February 2012" -> February 2012 | G2: Month | I2: ="April 2012" -> April 2012
A3: ="May 2011" -> May 2011 | B3: ="August 2012" -> August 2012 | C3: ="November 2011" -> November 2011 | D3: ="February 2012" -> February 2012 | E3: OE:SF | F3: ="March 2012" -> March 2012 | G3: Month | I3: ="May 2012" -> May 2012
A4: ="June 2011" -> June 2011 | B4: ="September 2012" -> September 2012 | C4: ="December 2011" -> December 2011 | D4: ="March 2012" -> March 2012 | E4: LM:EPCI | F4: ="April 2012" -> April 2012 | G4: Month | I4: ="June 2012" -> June 2012
F5: ="May 2012" -> May 2012 | G5: ="May 2011" -> May 2011 | H5: Month
A6: All | F6: ="June 2012" -> June 2012 | G6: ="June 2011" -> June 2011 | H6: Month
A7: 2011 January | F7: ="July 2012" -> July 2012 | G7: ="July 2011" -> July 2011 | H7: Month
A8: 2011 February | F8: ="August 2012" -> August 2012 | G8: ="August 2011" -> August 2011 | H8: Month
A9: 2011 March | F9: ="September 2012" -> September 2012 | G9: ="September 2011" -> September 2011 | H9: Month
F10: ="October 2012" -> October 2012 | G10: ="October 2011" -> October 2011 | H10: Month
F11: ="November 2012" -> November 2012 | G11: ="November 2011" -> November 2011 | H11: Month
C12: provision_table2 (now used for table 3) | F12: ="December 2012" -> December 2012 | G12: ="December 2011" -> December 2011 | H12: Month
A13: Children's home | B13: All | C13: Children's home
A14: Secure children's home | C14: Secure children's home
A15: Local authority fostering service | B15: Health Authority | C15: Local authority fostering service | G15: Children's home
A16: Independent fostering agency | B16: Local Authority | C16: Independent fostering agency | G16: Secure children's home
A17: Local authority private fostering service | B17: Private | C17: Local authority adoption service | G17: Residential special school (ch)
A18: Local authority adoption service | B18: Voluntary | C18: Voluntary adoption agency | G18: Local authority fostering service
A19: Voluntary adoption agency | C19: Residential family centre | G19: Independent fostering service
A20: Adoption support agency | C20: Residential special school | G20: Local authority adoption agency
A21: Residential family centre | C21: Boarding school | G21: Voluntary adoption agency
A22: Residential special school | C22: Further education college with residential accommodation | G22: Residential family centre
A23: Boarding school | G23: Residential special school
A24: Further education college with residential accommodation | G24: Boarding school
G25: Further education college with residential accommodation
G26: Adoption support agency
G27: Secure training centre
A29: All | B29: Amended LA's | C29: Periods
A30: Barking & Dagenham | B30: Barking & Dagenham | C30: =D1 -> 1 January 2012 - 31 March 2012 | D30: 4 | G30: Children's home
A31: Barnet | B31: Bath & North East Somerset | C31: =D2 -> January 2012 | D31: 1 | G31: Residential special school (>295 days/year)
A32: Barnsley | B32: Bedford Borough | C32: =D3 -> February 2012 | D32: 2 | G32: Secure children's home
A33: Bath & North East Somerset | B33: Brighton & Hove | C33: =D4 -> March 2012 | D33: 3
A34: Bedford Borough | B34: Derby city City | C34: 1 April 2012 - 30 June 2012 | D34: 4
A35: Bexley | B35: Hammersmith & Fulham | C35: ="April 2012" -> April 2012 | D35: 1 | G35: All
A36: Birmingham | B36: Isles of Scilly | C36: ="May 2012" -> May 2012 | D36: 2 | G36: Local authority
A37: Blackburn with Darwen | B37: Isle of Wight | C37: ="June 2012" -> June 2012 | D37: 3 | G37: Health authority
A38: Blackpool | B38: Leicester City | C38: =B1 -> 1 July 2012 and 30 September 2012 | D38: 4 | G38: Private/ voluntary
A39: Bolton | B39: Nottingham city | C39: =B2 -> July 2012 | D39: 1
A40: Bournemouth | B40: Redcar & Cleveland | C40: =B3 -> August 2012 | D40: 2
A41: Bracknell Forest | B41: Southend | C41: =B4 -> September 2012 | D41: 3
A42: Bradford | B42: St. Helens | C42: =C1 -> 1 October - 31 December 2011 | D42: 4
A43: Brent | B43: Telford & Wrekin | C43: =C2 -> October 2011 | D43: 1
A44: Brighton & Hove | C44: =C3 -> November 2011 | D44: 2
A45: Bristol | C45: =C4 -> December 2011 | D45: 3
A46: Bromley
A47: Buckinghamshire
A48: Bury
A49: Calderdale
A50: Cambridgeshire
A51: Camden
A52: Central Bedfordshire
A53: Cheshire East
A54: Cheshire West and Chester
A55: City of London
A56: Cornwall
A57: Coventry
A58: Croydon
A59: Cumbria
A60: Darlington
A61: Derby city
A62: Derbyshire
A63: Devon
A64: Doncaster
A65: Dorset
A66: Dudley
A67: Durham
A68: Ealing
A69: East Riding of Yorkshire
A70: East Sussex
A71: Enfield
A72: Essex
A73: Gateshead
A74: Gloucestershire
A75: Greenwich
A76: Hackney
A77: Halton
A78: Hammersmith & Fulham
A79: Hampshire
A80: Haringey
A81: Harrow
A82: Hartlepool
A83: Havering
A84: Herefordshire
A85: Hertfordshire
A86: Hillingdon
A87: Hounslow
A88: Isle of Wight
A89: Isles of Scilly
A90: Islington
A91: Kensington and Chelsea
A92: Kent
A93: Kingston upon Hull
A94: Kingston upon Thames
A95: Kirklees
A96: Knowsley
A97: Lambeth
A98: Lancashire
A99: Leeds
A100: Leicester City
A101: Leicestershire
A102: Lewisham
A103: Lincolnshire
A104: Liverpool
A105: Luton
A106: Manchester
A107: Medway
A108: Merton
A109: Middlesbrough
A110: Milton Keynes
A111: Newcastle upon Tyne
A112: Newham
A113: Norfolk
A114: North East Lincolnshire
A115: North Lincolnshire
A116: North Somerset
A117: North Tyneside
A118: North Yorkshire
A119: Northamptonshire
A120: Northumberland
A121: Nottingham city
A122: Nottinghamshire
A123: Oldham
A124: Oxfordshire
A125: Peterborough
A126: Plymouth
A127: Poole
A128: Portsmouth
A129: Reading
A130: Redbridge
A131: Redcar & Cleveland
A132: Richmond upon Thames
A133: Rochdale
A134: Rotherham
A135: Rutland
A136: Salford
A137: Sandwell
A138: Sefton
A139: Sheffield
A140: Shropshire
A141: Slough
A142: Solihull
A143: Somerset
A144: South Gloucestershire
A145: South Tyneside
A146: Southampton
A147: Southend
A148: Southwark
A149: St. Helens
A150: Staffordshire
A151: Stockport
A152: Stockton-on-Tees
A153: Stoke-on-Trent
A154: Suffolk
A155: Sunderland
A156: Surrey
A157: Sutton
A158: Swindon
A159: Tameside
A160: Telford & Wrekin
A161: Thurrock
A162: Torbay
A163: Tower Hamlets
A164: Trafford
A165: Wakefield
A166: Walsall
A167: Waltham Forest
A168: Wandsworth
A169: Warrington
A170: Warwickshire
A171: West Berkshire
A172: West Sussex
A173: Westminster
A174: Wigan
A175: Wiltshire
A176: Windsor and Maidenhead
A177: Wirral
A178: Wokingham
A179: Wolverhampton
A180: Worcestershire
A181: York
A182: Local authority not recorded

Sheet Table1_Data (hidden)
A1: Lookup | B1: LA | C1: Sector | D1: Event Type Group | E1: Corporate Inspected Provision Type Group Name | F1: Month | G1: Count
A2: AllAllFull inspectionChildren's Home1 | B2: All | C2: All | D2: Full inspection | E2: Children's Home | F2: 1 | G2: 58
A3: AllAllFull inspectionChildren's Home2 | B3: All | C3: All | D3: Full inspection | E3: Children's Home | F3: 2 | G3: 295
A4: AllAllFull inspectionChildren's Home3 | B4: All | C4: All | D4: Full inspection | E4: Children's Home | F4: 3 | G4: 169
A5: AllAllFull inspectionChildren's Home4 | B5: All | C5: All | D5: Full inspection | E5: Children's Home | F5: 4 | G5: 522
A6: AllAllFull inspectionResidential special school (>295 days/year)1 | B6: All | C6: All | D6: Full inspection | E6: Residential special school (>295 days/year) | F6: 1 | G6: 2
A7: AllAllFull inspectionResidential special school (>295 days/year)2 | B7: All | C7: All | D7: Full inspection | E7: Residential special school (>295 days/year) | F7: 2 | G7: 9
A8: AllAllFull inspectionResidential special school (>295 days/year)3 | B8: All | C8: All | D8: Full inspection | E8: Residential special school (>295 days/year) | F8: 3 | G8: 6
A9: AllAllFull inspectionResidential special school (>295 days/year)4 | B9: All | C9: All | D9: Full inspection | E9: Residential special school (>295 days/year) | F9: 4 | G9: 17
A10: AllAllFull inspectionSecure children's home1 | B10: All | C10: All | D10: Full inspection | E10: Secure children's home | F10: 1 | G10: 2
A11: AllAllFull inspectionSecure children's home2 | B11: All | C11: All | D11: Full inspection | E11: Secure children's home | F11: 2 | G11: 4
A12: AllAllFull inspectionSecure children's home3 | B12: All | C12: All | D12: Full inspection | E12: Secure children's home | F12: 3 | G12: 1
A13: AllAllFull inspectionSecure children's home4 | B13: All | C13: All | D13: Full inspection | E13: Secure children's home | F13: 4 | G13: 7
A14: AllAllInterim inspectionChildren's Home1 | B14: All | C14: All | D14: Interim inspection | E14: Children's Home | F14: 1 | G14: 4
A15: AllAllInterim inspectionChildren's Home2 | B15: All | C15: All | D15: Interim inspection | E15: Children's Home | F15: 2 | G15: 20
A16: AllAllInterim inspectionChildren's Home3 | B16: All | C16: All | D16: Interim inspection | E16: Children's Home | F16: 3 | G16: 18
A17: AllAllInterim inspectionChildren's Home4 | B17: All | C17: All | D17: Interim inspection | E17: Children's Home | F17: 4 | G17: 42
A18: AllAllInterim inspectionResidential special school (>295 days/year)3 | B18: All | C18: All | D18: Interim inspection | E18: Residential special school (>295 days/year) | F18: 3 | G18: 2
A19: AllAllInterim inspectionResidential special school (>295 days/year)4 | B19: All | C19: All | D19: Interim inspection | E19: Residential special school (>295 days/year) | F19: 4 | G19: 2
A20: AllAllInterim inspectionSecure children's home2 | B20: All | C20: All | D20: Interim inspection | E20: Secure children's home | F20: 2 | G20: 1
A21: AllAllInterim inspectionSecure children's home4 | B21: All | C21: All | D21: Interim inspection | E21: Secure children's home | F21: 4 | G21: 1
A22: AllHealth authorityFull inspectionChildren's Home2 | B22: All | C22: Health authority | D22: Full inspection | E22: Children's Home | F22: 2 | G22: 4
A23: AllHealth authorityFull inspectionChildren's Home3 | B23: All | C23: Health authority | D23: Full inspection | E23: Children's Home | F23: 3 | G23: 1
A24: AllHealth authorityFull inspectionChildren's Home4 | B24: All | C24: Health authority | D24: Full inspection | E24: Children's Home | F24: 4 | G24: 5
A25: AllLocal authorityFull inspectionChildren's Home1 | B25: All | C25: Local authority | D25: Full inspection | E25: Children's Home | F25: 1 | G25: 11
A26: AllLocal authorityFull inspectionChildren's Home2 | B26: All | C26: Local authority | D26: Full inspection | E26: Children's Home | F26: 2 | G26: 52
A27: AllLocal authorityFull inspectionChildren's Home3 | B27: All | C27: Local authority | D27: Full inspection | E27: Children's Home | F27: 3 | G27: 50
A28: AllLocal authorityFull inspectionChildren's Home4 | B28: All | C28: Local authority | D28: Full inspection | E28: Children's Home | F28: 4 | G28: 113
A29: AllLocal authorityFull inspectionSecure children's home1 | B29: All | C29: Local authority | D29: Full inspection | E29: Secure children's home | F29: 1 | G29: 2
A30: AllLocal authorityFull inspectionSecure children's home2 | B30: All | C30: Local authority | D30: Full inspection | E30: Secure children's home | F30: 2 | G30: 4
A31: AllLocal authorityFull inspectionSecure children's home3 | B31: All | C31: Local authority | D31: Full inspection | E31: Secure children's home | F31: 3 | G31: 1
A32: AllLocal authorityFull inspectionSecure children's home4 | B32: All | C32: Local authority | D32: Full inspection | E32: Secure children's home | F32: 4 | G32: 7
A33: AllLocal authorityInterim inspectionChildren's Home2 | B33: All | C33: Local authority | D33: Interim inspection | E33: Children's Home | F33: 2 | G33: 1
A34: AllLocal authorityInterim inspectionChildren's Home4 | B34: All | C34: Local authority | D34: Interim inspection | E34: Children's Home | F34: 4 | G34: 1
A35: AllPrivate/ VoluntaryFull inspectionChildren's Home1 | B35: All | C35: Private/ Voluntary | D35: Full inspection | E35: Children's Home | F35: 1 | G35: 47
A36: AllPrivate/ VoluntaryFull inspectionChildren's Home2 | B36: All | C36: Private/ Voluntary | D36: Full inspection | E36: Children's Home | F36: 2 | G36: 239
A37: AllPrivate/ VoluntaryFull inspectionChildren's Home3 | B37: All | C37: Private/ Voluntary | D37: Full inspection | E37: Children's Home | F37: 3 | G37: 118
A38: AllPrivate/ VoluntaryFull inspectionChildren's Home4 | B38: All | C38: Private/ Voluntary | D38: Full inspection | E38: Children's Home | F38: 4 | G38: 404
A39: AllPrivate/ VoluntaryFull inspectionResidential special school (>295 days/year)1 | B39: All | C39: Private/ Voluntary | D39: Full inspection | E39: Residential special school (>295 days/year) | F39: 1 | G39: 2
A40: AllPrivate/ VoluntaryFull inspectionResidential special school (>295 days/year)2 | B40: All | C40: Private/ Voluntary | D40: Full inspection | E40: Residential special school (>295 days/year) | F40: 2 | G40: 9
A41: AllPrivate/ VoluntaryFull inspectionResidential special school (>295 days/year)3 | B41: All | C41: Private/ Voluntary | D41: Full inspection | E41: Residential special school (>295 days/year) | F41: 3 | G41: 6
A42: AllPrivate/ VoluntaryFull inspectionResidential special school (>295 days/year)4 | B42: All | C42: Private/ Voluntary | D42: Full inspection | E42: Residential special school (>295 days/year) | F42: 4 | G42: 17
A43: AllPrivate/ VoluntaryInterim inspectionChildren's Home1 | B43: All | C43: Private/ Voluntary | D43: Interim inspection | E43: Children's Home | F43: 1 | G43: 4
A44: AllPrivate/ VoluntaryInterim inspectionChildren's Home2 | B44: All | C44: Private/ Voluntary | D44: Interim inspection | E44: Children's Home | F44: 2 | G44: 19
A45: AllPrivate/ VoluntaryInterim inspectionChildren's Home3 | B45: All | C45: Private/ Voluntary | D45: Interim inspection | E45: Children's Home | F45: 3 | G45: 18
A46: AllPrivate/ VoluntaryInterim inspectionChildren's Home4 | B46: All | C46: Private/ Voluntary | D46: Interim inspection | E46: Children's Home | F46: 4 | G46: 41
A47: AllPrivate/ VoluntaryInterim inspectionResidential special school (>295 days/year)3 | B47: All | C47: Private/ Voluntary | D47: Interim inspection | E47: Residential special school (>295 days/year) | F47: 3 | G47: 2
A48: AllPrivate/ VoluntaryInterim inspectionResidential special school (>295 days/year)4 | B48: All | C48: Private/ Voluntary | D48: Interim inspection | E48: Residential special school (>295 days/year) | F48: 4 | G48: 2
A49: AllPrivate/ VoluntaryInterim inspectionSecure children's home2 | B49: All | C49: Private/ Voluntary | D49: Interim inspection | E49: Secure children's home | F49: 2 | G49: 1
A50: AllPrivate/ VoluntaryInterim inspectionSecure children's home4 | B50: All | C50: Private/ Voluntary | D50: Interim inspection | E50: Secure children's home | F50: 4 | G50: 1
A51: Barking & DagenhamAllFull inspectionChildren's Home2 | B51: Barking & Dagenham | C51: All | D51: Full inspection | E51: Children's Home | F51: 2 | G51: 1
A52: Barking & DagenhamAllFull inspectionChildren's Home4 | B52: Barking & Dagenham | C52: All | D52: Full inspection | E52: Children's Home | F52: 4 | G52: 1
A53: Barking & DagenhamPrivate/ VoluntaryFull inspectionChildren's Home2 | B53: Barking & Dagenham | C53: All | D53: Full inspection | E53: Children's Home | F53: 2 | G53: 1
A54: Barking & DagenhamPrivate/ VoluntaryFull inspectionChildren's Home2 | B54: Barking & Dagenham | C54: Private/ Voluntary | D54: Full inspection | E54: Children's Home | F54: 2 | G54: 1
A55: Barking & DagenhamPrivate/ VoluntaryFull inspectionChildren's Home4 | B55: Barking & Dagenham | C55: Private/ Voluntary | D55: Full inspection | E55: Children's Home | F55: 4 | G55: 1
A56: Barking & DagenhamPrivate/ VoluntaryFull inspectionChildren's Home4 | B56: Barking & Dagenham | C56: All | D56: Full inspection | E56: Children's Home | F56: 4 | G56: 1
A57: BarnetAllFull inspectionChildren's Home2 | B57: Barnet | C57: All | D57: Full inspection | E57: Children's Home | F57: 2 | G57: 1
A58: BarnetAllFull inspectionChildren's Home4 | B58: Barnet | C58: All | D58: Full inspection | E58: Children's Home | F58: 4 | G58: 1
A59: BarnetPrivate/ VoluntaryFull inspectionChildren's Home2 | B59: Barnet | C59: All | D59: Full inspection | E59: Children's Home | F59: 2 | G59: 1
A60: BarnetPrivate/ VoluntaryFull inspectionChildren's Home2 | B60: Barnet | C60: Private/ Voluntary | D60: Full inspection | E60: Children's Home | F60: 2 | G60: 1
A61: BarnetPrivate/ VoluntaryFull inspectionChildren's Home4 | B61: Barnet | C61: Private/ Voluntary | D61: Full inspection | E61: Children's Home | F61: 4 | G61: 1
A62: BarnetPrivate/ VoluntaryFull inspectionChildren's Home4 | B62: Barnet | C62: All | D62: Full inspection | E62: Children's Home | F62: 4 | G62: 1
A63: BarnsleyAllFull inspectionChildren's Home3 | B63: Barnsley | C63: All | D63: Full inspection | E63: Children's Home | F63: 3 | G63: 4
A64: BarnsleyAllFull inspectionChildren's Home4 | B64: Barnsley | C64: All | D64: Full inspection | E64: Children's Home | F64: 4 | G64: 4
A65: BarnsleyPrivate/ VoluntaryFull inspectionChildren's Home3 | B65: Barnsley | C65: All | D65: Full inspection | E65: Children's Home | F65: 3 | G65: 4
A66: BarnsleyPrivate/ VoluntaryFull inspectionChildren's Home3 | B66: Barnsley | C66: Private/ Voluntary | D66: Full inspection | E66: Children's Home | F66: 3 | G66: 4
A67: BarnsleyPrivate/ VoluntaryFull inspectionChildren's Home4 | B67: Barnsley | C67: Private/ Voluntary | D67: Full inspection | E67: Children's Home | F67: 4 | G67: 4
A68: BarnsleyPrivate/ VoluntaryFull inspectionChildren's Home4 | B68: Barnsley | C68: All | D68: Full inspection | E68: Children's Home | F68: 4 | G68: 4
A69: BexleyAllFull inspectionChildren's Home2 | B69: Bexley | C69: All | D69: Full inspection | E69: Children's Home | F69: 2 | G69: 1
A70: BexleyAllFull inspectionChildren's Home3 | B70: Bexley | C70: All | D70: Full inspection | E70: Children's Home | F70: 3 | G70: 1
A71: BexleyAllFull inspectionChildren's Home4 | B71: Bexley | C71: All | D71: Full inspection | E71: Children's Home | F71: 4 | G71: 2
A72: BexleyPrivate/ VoluntaryFull inspectionChildren's Home2 | B72: Bexley | C72: All | D72: Full inspection | E72: Children's Home | F72: 2 | G72: 1
A73: BexleyPrivate/ VoluntaryFull inspectionChildren's Home2 | B73: Bexley | C73: Private/ Voluntary | D73: Full inspection | E73: Children's Home | F73: 2 | G73: 1
A74: BexleyPrivate/ VoluntaryFull inspectionChildren's Home3 | B74: Bexley | C74: Private/ Voluntary | D74: Full inspection | E74: Children's Home | F74: 3 | G74: 1
A75: BexleyPrivate/ VoluntaryFull inspectionChildren's Home3 | B75: Bexley | C75: All | D75: Full inspection | E75: Children's Home | F75: 3 | G75: 1
A76: BexleyPrivate/ VoluntaryFull inspectionChildren's Home4 | B76: Bexley | C76: All | D76: Full inspection | E76: Children's Home | F76: 4 | G76: 2
A77: BexleyPrivate/ VoluntaryFull inspectionChildren's Home4 | B77: Bexley | C77: Private/ Voluntary | D77: Full inspection | E77: Children's Home | F77: 4 | G77: 2
A78: BirminghamAllFull inspectionChildren's Home1 | B78: Birmingham | C78: All | D78: Full inspection | E78: Children's Home | F78: 1 | G78: 2
A79: BirminghamAllFull inspectionChildren's Home2 | B79: Birmingham | C79: All | D79: Full inspection | E79: Children's Home | F79: 2 | G79: 11
A80: BirminghamAllFull inspectionChildren's Home3 | B80: Birmingham | C80: All | D80: Full inspection | E80: Children's Home | F80: 3 | G80: 3
A81: BirminghamAllFull inspectionChildren's Home4 | B81: Birmingham | C81: All | D81: Full inspection | E81: Children's Home | F81: 4 | G81: 16
A82: BirminghamAllInterim inspectionChildren's Home2 | B82: Birmingham | C82: All | D82: Interim inspection | E82: Children's Home | F82: 2 | G82: 1
A83: BirminghamAllInterim inspectionChildren's Home4 | B83: Birmingham | C83: All | D83: Interim inspection | E83: Children's Home | F83: 4 | G83: 1
A84: BirminghamLocal authorityFull inspectionChildren's Home1 | B84: Birmingham | C84: Local authority | D84: Full inspection | E84: Children's Home | F84: 1 | G84: 1
A85: BirminghamLocal authorityFull inspectionChildren's Home1 | B85: Birmingham | C85: All | D85: Full inspection | E85: Children's Home | F85: 1 | G85: 1
A86: BirminghamLocal authorityFull inspectionChildren's Home2 | B86: Birmingham | C86: All | D86: Full inspection | E86: Children's Home | F86: 2 | G86: 2
A87: BirminghamLocal authorityFull inspectionChildren's Home2 | B87: Birmingham | C87: Local authority | D87: Full inspection | E87: Children's Home | F87: 2 | G87: 2
A88: BirminghamLocal authorityFull inspectionChildren's Home3 | B88: Birmingham | C88: Local authority | D88: Full inspection | E88: Children's Home | F88: 3 | G88: 1
A89: BirminghamLocal authorityFull inspectionChildren's Home3 | B89: Birmingham | C89: All | D89: Full inspection | E89: Children's Home | F89: 3 | G89: 1
A90: BirminghamLocal authorityFull inspectionChildren's Home4 | B90: Birmingham | C90: All | D90: Full inspection | E90: Children's Home | F90: 4 | G90: 4
A91: BirminghamLocal authorityFull inspectionChildren's Home4 | B91: Birmingham | C91: Local authority | D91: Full inspection | E91: Children's Home | F91: 4 | G91: 4
A92: BirminghamPrivate/ VoluntaryFull inspectionChildren's Home1 | B92: Birmingham | C92: Private/ Voluntary | D92: Full inspection | E92: Children's Home | F92: 1 | G92: 1
A93: BirminghamPrivate/ VoluntaryFull inspectionChildren's Home1 | B93: Birmingham | C93: All | D93: Full inspection | E93: Children's Home | F93: 1 | G93: 1
A94: BirminghamPrivate/ VoluntaryFull inspectionChildren's Home2 | B94: Birmingham | C94: All | D94: Full inspection | E94: Children's Home | F94: 2 | G94: 9
A95: BirminghamPrivate/ VoluntaryFull inspectionChildren's Home2 | B95: Birmingham | C95: Private/ Voluntary | D95: Full inspection | E95: Children's Home | F95: 2 | G95: 9
A96: BirminghamPrivate/ VoluntaryFull inspectionChildren's Home3 | B96: Birmingham | C96: Private/ Voluntary | D96: Full inspection | E96: Children's Home | F96: 3 | G96: 2
A97: BirminghamPrivate/ VoluntaryFull inspectionChildren's Home3 | B97: Birmingham | C97: All | D97: Full inspection | E97: Children's Home | F97: 3 | G97: 2
A98: BirminghamPrivate/ VoluntaryFull inspectionChildren's Home4 | B98: Birmingham | C98: All | D98: Full inspection | E98: Children's Home | F98: 4 | G98: 12
A99: BirminghamPrivate/ VoluntaryFull inspectionChildren's Home4 | B99: Birmingham | C99: Private/ Voluntary | D99: Full inspection | E99: Children's Home | F99: 4 | G99: 12
A100: BirminghamPrivate/ VoluntaryInterim inspectionChildren's Home2 | B100: Birmingham | C100: Private/ Voluntary | D100: Interim inspection | E100: Children's Home | F100: 2 | G100: 1
A101: BirminghamPrivate/ VoluntaryInterim inspectionChildren's Home2 | B101: Birmingham | C101: All | D101: Interim inspection | E101: Children's Home | F101: 2 | G101: 1
A102: BirminghamPrivate/ VoluntaryInterim inspectionChildren's Home4 | B102: Birmingham | C102: All | D102: Interim inspection | E102: Children's Home | F102: 4 | G102: 1
A103: BirminghamPrivate/ VoluntaryInterim inspectionChildren's Home4 | B103: Birmingham | C103: Private/ Voluntary | D103: Interim inspection | E103: Children's Home | F103: 4 | G103: 1
A104: Blackburn with DarwenAllFull inspectionChildren's Home2 | B104: Blackburn with Darwen | C104: All | D104: Full inspection | E104: Children's Home | F104: 2 | G104: 1
A105: Blackburn with DarwenAllFull inspectionChildren's Home4 | B105: Blackburn with Darwen | C105: All | D105: Full inspection | E105: Children's Home | F105: 4 | G105: 1
A106: Blackburn with DarwenPrivate/ VoluntaryFull inspectionChildren's Home2 | B106: Blackburn with Darwen | C106: Private/ Voluntary | D106: Full inspection | E106: Children's Home | F106: 2 | G106: 1
A107: Blackburn with DarwenPrivate/ VoluntaryFull inspectionChildren's Home2 | B107: Blackburn with Darwen | C107: All | D107: Full inspection | E107: Children's Home | F107: 2 | G107: 1
A108: Blackburn with DarwenPrivate/ VoluntaryFull inspectionChildren's Home4 | B108: Blackburn with Darwen | C108: All | D108: Full inspection | E108: Children's Home | F108: 4 | G108: 1
A109: Blackburn with DarwenPrivate/ VoluntaryFull inspectionChildren's Home4 | B109: Blackburn with Darwen | C109: Private/ Voluntary | D109: Full inspection | E109: Children's Home | F109: 4 | G109: 1
A110: BlackpoolAllFull inspectionChildren's Home1 | B110: Blackpool | C110: All | D110: Full inspection | E110: Children's Home | F110: 1 | G110: 1
A111: BlackpoolAllFull inspectionChildren's Home3 | B111: Blackpool | C111: All | D111: Full inspection | E111: Children's Home | F111: 3 | G111: 3
A112: BlackpoolAllFull inspectionChildren's Home4 | B112: Blackpool | C112: All | D112: Full inspection | E112: Children's Home | F112: 4 | G112: 4
A113: BlackpoolAllInterim inspectionChildren's Home1 | B113: Blackpool | C113: All | D113: Interim inspection | E113: Children's Home | F113: 1 | G113: 1
A114: BlackpoolAllInterim inspectionChildren's Home4 | B114: Blackpool | C114: All | D114: Interim inspection | E114: Children's Home | F114: 4 | G114: 1
A115: BlackpoolLocal authorityFull inspectionChildren's Home3 | B115: Blackpool | C115: Local authority | D115: Full inspection | E115: Children's Home | F115: 3 | G115: 1
A116: BlackpoolLocal authorityFull inspectionChildren's Home3 | B116: Blackpool | C116: All | D116: Full inspection | E116: Children's Home | F116: 3 | G116: 1
A117: BlackpoolLocal authorityFull inspectionChildren's Home4 | B117: Blackpool | C117: All | D117: Full inspection | E117: Children's Home | F117: 4 | G117: 1
A118: BlackpoolLocal authorityFull inspectionChildren's Home4 | B118: Blackpool | C118: Local authority | D118: Full inspection | E118: Children's Home | F118: 4 | G118: 1
A119: BlackpoolPrivate/ VoluntaryFull inspectionChildren's Home1 | B119: Blackpool | C119: Private/ Voluntary | D119: Full inspection | E119: Children's Home | F119: 1 | G119: 1
A120: BlackpoolPrivate/ VoluntaryFull inspectionChildren's Home1 | B120: Blackpool | C120: All | D120: Full inspection | E120: Children's Home | F120: 1 | G120: 1
A121: BlackpoolPrivate/ VoluntaryFull inspectionChildren's Home3 | B121: Blackpool | C121: All | D121: Full inspection | E121: Children's Home | F121: 3 | G121: 2
A122: BlackpoolPrivate/ VoluntaryFull inspectionChildren's Home3 | B122: Blackpool | C122: Private/ Voluntary | D122: Full inspection | E122: Children's Home | F122: 3 | G122: 2
A123: BlackpoolPrivate/ VoluntaryFull inspectionChildren's Home4 | B123: Blackpool | C123: Private/ Voluntary | D123: Full inspection | E123: Children's Home | F123: 4 | G123: 3
A124: BlackpoolPrivate/ VoluntaryFull inspectionChildren's Home4 | B124: Blackpool | C124: All | D124: Full inspection | E124: Children's Home | F124: 4 | G124: 3
A125: BlackpoolPrivate/ VoluntaryInterim inspectionChildren's Home1 | B125: Blackpool | C125: All | D125: Interim inspection | E125: Children's Home | F125: 1 | G125: 1
A126: BlackpoolPrivate/ VoluntaryInterim inspectionChildren's Home1 | B126: Blackpool | C126: Private/ Voluntary | D126: Interim inspection | E126: Children's Home | F126: 1 | G126: 1
A127: BlackpoolPrivate/ VoluntaryInterim inspectionChildren's Home4 | B127: Blackpool | C127: Private/ Voluntary | D127: Interim inspection | E127: Children's Home | F127: 4 | G127: 1
A128: BlackpoolPrivate/ VoluntaryInterim inspectionChildren's Home4 | B128: Blackpool | C128: All | D128: Interim inspection | E128: Children's Home | F128: 4 | G128: 1
A129: BoltonAllFull inspectionChildren's Home2 | B129: Bolton | C129: All | D129: Full inspection | E129: Children's Home | F129: 2 | G129: 2
A130: BoltonAllFull inspectionChildren's Home3 | B130: Bolton | C130: All | D130: Full inspection | E130: Children's Home | F130: 3 | G130: 2
A131: BoltonAllFull inspectionChildren's Home4 | B131: Bolton | C131: All | D131: Full inspection | E131: Children's Home | F131: 4 | G131: 4
A132: BoltonAllFull inspectionResidential special school (>295 days/year)3 | B132: Bolton | C132: All | D132: Full inspection | E132: Residential special school (>295 days/year) | F132: 3 | G132: 1
A133: BoltonAllFull inspectionResidential special school (>295 days/year)4 | B133: Bolton | C133: All | D133: Full inspection | E133: Residential special school (>295 days/year) | F133: 4 | G133: 1
A134: BoltonLocal authorityFull inspectionChildren's Home2 | B134: Bolton | C134: All | D134: Full inspection | E134: Children's Home | F134: 2 | G134: 1
A135: BoltonLocal authorityFull inspectionChildren's Home2 | B135: Bolton | C135: Local authority | D135: Full inspection | E135: Children's Home | F135: 2 | G135: 1
A136: BoltonLocal authorityFull inspectionChildren's Home4 | B136: Bolton | C136: Local authority | D136: Full inspection | E136: Children's Home | F136: 4 | G136: 1
A137: BoltonLocal authorityFull inspectionChildren's Home4 | B137: Bolton | C137: All | D137: Full inspection | E137: Children's Home | F137: 4 | G137: 1
A138: BoltonPrivate/ VoluntaryFull inspectionChildren's Home2 | B138: Bolton | C138: All | D138: Full inspection | E138: Children's Home | F138: 2 | G138: 1
A139: BoltonPrivate/ VoluntaryFull inspectionChildren's Home2 | B139: Bolton | C139: Private/ Voluntary | D139: Full inspection | E139: Children's Home | F139: 2 | G139: 1
A140: BoltonPrivate/ VoluntaryFull inspectionChildren's Home3 | B140: Bolton | C140: Private/ Voluntary | D140: Full inspection | E140: Children's Home | F140: 3 | G140: 2
A141: BoltonPrivate/ VoluntaryFull inspectionChildren's Home3 | B141: Bolton | C141: All | D141: Full inspection | E141: Children's Home | F141: 3 | G141: 2
A142: BoltonPrivate/ VoluntaryFull inspectionChildren's Home4 | B142: Bolton | C142: All | D142: Full inspection | E142: Children's Home | F142: 4 | G142: 3
A143: BoltonPrivate/ VoluntaryFull inspectionChildren's Home4 | B143: Bolton | C143: Private/ Voluntary | D143: Full inspection | E143: Children's Home | F143: 4 | G143: 3
A144: BoltonPrivate/ VoluntaryFull inspectionResidential special school (>295 days/year)3 | B144: Bolton | C144: Private/ Voluntary | D144: Full inspection | E144: Residential special school (>295 days/year) | F144: 3 | G144: 1
A145: BoltonPrivate/ VoluntaryFull inspectionResidential special school (>295 days/year)3 | B145: Bolton | C145: All | D145: Full inspection | E145: Residential special school (>295 days/year) | F145: 3 | G145: 1
A146: BoltonPrivate/ VoluntaryFull inspectionResidential special school (>295 days/year)4 | B146: Bolton | C146: All | D146: Full inspection | E146: Residential special school (>295 days/year) | F146: 4 | G146: 1
A147: BoltonPrivate/ VoluntaryFull inspectionResidential special school (>295 days/year)4 | B147: Bolton | C147: Private/ Voluntary | D147: Full inspection | E147: Residential special school (>295 days/year) | F147: 4 | G147: 1
A148: BournemouthAllFull inspectionChildren's Home2 | B148: Bournemouth | C148: All | D148: Full inspection | E148: Children's Home | F148: 2 | G148: 1
A149: BournemouthAllFull inspectionChildren's Home3 | B149: Bournemouth | C149: All | D149: Full inspection | E149: Children's Home | F149: 3 | G149: 1
A150: BournemouthAllFull inspectionChildren's Home4 | B150: Bournemouth | C150: All | D150: Full inspection | E150: Children's Home | F150: 4 | G150: 2
A151: BournemouthPrivate/ VoluntaryFull inspectionChildren's Home2 | B151: Bournemouth | C151: Private/ Voluntary | D151: Full inspection | E151: Children's Home | F151: 2 | G151: 1
A152: BournemouthPrivate/ VoluntaryFull inspectionChildren's Home2 | B152: Bournemouth | C152: All | D152: Full inspection | E152: Children's Home | F152: 2 | G152: 1
A153: BournemouthPrivate/ VoluntaryFull inspectionChildren's Home3 | B153: Bournemouth | C153: All | D153: Full inspection | E153: Children's Home | F153: 3 | G153: 1
A154: BournemouthPrivate/ VoluntaryFull inspectionChildren's Home3 | B154: Bournemouth | C154: Private/ Voluntary | D154: Full inspection | E154: Children's Home | F154: 3 | G154: 1
A155: BournemouthPrivate/ VoluntaryFull inspectionChildren's Home4 | B155: Bournemouth | C155: Private/ Voluntary | D155: Full inspection | E155: Children's Home | F155: 4 | G155: 2
A156: BournemouthPrivate/ VoluntaryFull inspectionChildren's Home4 | B156: Bournemouth | C156: All | D156: Full inspection | E156: Children's Home | F156: 4 | G156: 2
A157: Bracknell ForestAllFull inspectionChildren's Home3 | B157: Bracknell Forest | C157: All | D157: Full inspection | E157: Children's Home | F157: 3 | G157: 1
A158: Bracknell ForestAllFull inspectionChildren's Home4 | B158: Bracknell Forest | C158: All | D158: Full inspection | E158: Children's Home | F158: 4 | G158: 1
A159: Bracknell ForestPrivate/ VoluntaryFull inspectionChildren's Home3 | B159: Bracknell Forest | C159: All | D159: Full inspection | E159: Children's Home | F159: 3 | G159: 1
A160: Bracknell ForestPrivate/ VoluntaryFull inspectionChildren's Home3 | B160: Bracknell Forest | C160: Private/ Voluntary | D160: Full inspection | E160: Children's Home | F160: 3 | G160: 1
A161: Bracknell ForestPrivate/ VoluntaryFull inspectionChildren's Home4 | B161: Bracknell Forest | C161: Private/ Voluntary | D161: Full inspection | E161: Children's Home | F161: 4 | G161: 1
A162: Bracknell ForestPrivate/ VoluntaryFull inspectionChildren's Home4 | B162: Bracknell Forest | C162: All | D162: Full inspection | E162: Children's Home | F162: 4 | G162: 1
A163: BradfordAllFull inspectionChildren's Home2 | B163: Bradford | C163: All | D163: Full inspection | E163: Children's Home | F163: 2 | G163: 2
A164: BradfordAllFull inspectionChildren's Home3 | B164: Bradford | C164: All | D164: Full inspection | E164: Children's Home | F164: 3 | G164: 1
A165: BradfordAllFull inspectionChildren's Home4 | B165: Bradford | C165: All | D165: Full inspection | E165: Children's Home | F165: 4 | G165: 3
A166: BradfordLocal authorityFull inspectionChildren's Home2 | B166: Bradford | C166: All | D166: Full inspection | E166: Children's Home | F166: 2 | G166: 1
A167: BradfordLocal authorityFull inspectionChildren's Home2 | B167: Bradford | C167: Local authority | D167: Full inspection | E167: Children's Home | F167: 2 | G167: 1
A168: BradfordLocal authorityFull inspectionChildren's Home4 | B168: Bradford | C168: Local authority | D168: Full inspection | E168: Children's Home | F168: 4 | G168: 1
A169: BradfordLocal authorityFull inspectionChildren's Home4 | B169: Bradford | C169: All | D169: Full inspection | E169: Children's Home | F169: 4 | G169: 1
A170: BradfordPrivate/ VoluntaryFull inspectionChildren's Home2 | B170: Bradford | C170: All | D170: Full inspection | E170: Children's Home | F170: 2 | G170: 1
A171: BradfordPrivate/ VoluntaryFull inspectionChildren's Home2 | B171: Bradford | C171: Private/ Voluntary | D171: Full inspection | E171: Children's Home | F171: 2 | G171: 1
A172: BradfordPrivate/ VoluntaryFull inspectionChildren's Home3 | B172: Bradford | C172: Private/ Voluntary | D172: Full inspection | E172: Children's Home | F172: 3 | G172: 1
A173: BradfordPrivate/ VoluntaryFull inspectionChildren's Home3 | B173: Bradford | C173: All | D173: Full inspection | E173: Children's Home | F173: 3 | G173: 1
A174: BradfordPrivate/ VoluntaryFull inspectionChildren's Home4 | B174: Bradford | C174: All | D174: Full inspection | E174: Children's Home | F174: 4 | G174: 2
A175: BradfordPrivate/ VoluntaryFull inspectionChildren's Home4 | B175: Bradford | C175: Private/ Voluntary | D175: Full inspection | E175: Children's Home | F175: 4 | G175: 2
A176: BrentAllFull inspectionChildren's Home1 | B176: Brent | C176: All | D176: Full inspection | E176: Children's Home | F176: 1 | G176: 1
A177: BrentAllFull inspectionChildren's Home2 | B177: Brent | C177: All | D177: Full inspection | E177: Children's Home | F177: 2 | G177: 1
A178: BrentAllFull inspectionChildren's Home4 | B178: Brent | C178: All | D178: Full inspection | E178: Children's Home | F178: 4 | G178: 2
A179: BrentPrivate/ VoluntaryFull inspectionChildren's Home1 | B179: Brent | C179: Private/ Voluntary | D179: Full inspection | E179: Children's Home | F179: 1 | G179: 1
A180: BrentPrivate/ VoluntaryFull inspectionChildren's Home1 | B180: Brent | C180: All | D180: Full inspection | E180: Children's Home | F180: 1 | G180: 1
A181: BrentPrivate/ VoluntaryFull inspectionChildren's Home2 | B181: Brent | C181: All | D181: Full inspection | E181: Children's Home | F181: 2 | G181: 1
A182: BrentPrivate/ VoluntaryFull inspectionChildren's Home2 | B182: Brent | C182: Private/ Voluntary | D182: Full inspection | E182: Children's Home | F182: 2 | G182: 1
A183: BrentPrivate/ VoluntaryFull inspectionChildren's Home4 | B183: Brent | C183: Private/ Voluntary | D183: Full inspection | E183: Children's Home | F183: 4 | G183: 2
A184: BrentPrivate/ VoluntaryFull inspectionChildren's Home4 | B184: Brent | C184: All | D184: Full inspection | E184: Children's Home | F184: 4 | G184: 2
A185: Brighton & HoveAllFull inspectionChildren's Home3 | B185: Brighton & Hove | C185: All | D185: Full inspection | E185: Children's Home | F185: 3 | G185: 2
A186: Brighton & HoveAllFull inspectionChildren's Home4 | B186: Brighton & Hove | C186: All | D186: Full inspection | E186: Children's Home | F186: 4 | G186: 2
A187: Brighton & HoveAllFull inspectionResidential special school (>295 days/year)1 | B187: Brighton & Hove | C187: All | D187: Full inspection | E187: Residential special school (>295 days/year) | F187: 1 | G187: 1
A188: Brighton & HoveAllFull inspectionResidential special school (>295 days/year)4 | B188: Brighton & Hove | C188: All | D188: Full inspection | E188: Residential special school (>295 days/year) | F188: 4 | G188: 1
A189: Brighton & HoveLocal authorityFull inspectionChildren's Home3 | B189: Brighton & Hove | C189: All | D189: Full inspection | E189: Children's Home | F189: 3 | G189: 1
A190: Brighton & HoveLocal authorityFull inspectionChildren's Home3 | B190: Brighton & Hove | C190: Local authority | D190: Full inspection | E190: Children's Home | F190: 3 | G190: 1
A191: Brighton & HoveLocal authorityFull inspectionChildren's Home4 | B191: Brighton & Hove | C191: Local authority | D191: Full inspection | E191: Children's Home | F191: 4 | G191: 1
A192: Brighton & HoveLocal authorityFull inspectionChildren's Home4 | B192: Brighton & Hove | C192: All | D192: Full inspection | E192: Children's Home | F192: 4 | G192: 1
A193: Brighton & HovePrivate/ VoluntaryFull inspectionChildren's Home3 | B193: Brighton & Hove | C193: All | D193: Full inspection | E193: Children's Home | F193: 3 | G193: 1
A194: Brighton & HovePrivate/ VoluntaryFull inspectionChildren's Home3 | B194: Brighton & Hove | C194: Private/ Voluntary | D194: Full inspection | E194: Children's Home | F194: 3 | G194: 1
A195: Brighton & HovePrivate/ VoluntaryFull inspectionChildren's Home4 | B195: Brighton & Hove | C195: Private/ Voluntary | D195: Full inspection | E195: Children's Home | F195: 4 | G195: 1
A196: Brighton & HovePrivate/ VoluntaryFull inspectionChildren's Home4 | B196: Brighton & Hove | C196: All | D196: Full inspection | E196: Children's Home | F196: 4 | G196: 1
A197: Brighton & HovePrivate/ VoluntaryFull inspectionResidential special school (>295 days/year)1 | B197: Brighton & Hove | C197: All | D197: Full inspection | E197: Residential special school (>295 days/year) | F197: 1 | G197: 1
A198: Brighton & HovePrivate/ VoluntaryFull inspectionResidential special school (>295 days/year)1 | B198: Brighton & Hove | C198: Private/ Voluntary | D198: Full inspection | E198: Residential special school (>295 days/year) | F198: 1 | G198: 1
A199: Brighton & HovePrivate/ VoluntaryFull inspectionResidential special school (>295 days/year)4 | B199: Brighton & Hove | C199: Private/ Voluntary | D199: Full inspection | E199: Residential special school (>295 days/year) | F199: 4 | G199: 1
A200: Brighton & HovePrivate/ VoluntaryFull inspectionResidential special school (>295 days/year)4 | B200: Brighton & Hove | C200: All | D200: Full inspection | E200: Residential special school (>295 days/year) | F200: 4 | G200: 1
... 1452 more rows

Sheet Table2_Data (hidden)
A1: Table 2: Overall care outcome for children's social care providers between 01/04/2011 and 30/06/2011 (Provisional)
A2: Lookup | B2: Local authority | C2: Sector | D2: Corporate Inspected Provision Type Group Name | E2: Month | F2: Outstanding | G2: Good | H2: Adequate | I2: Satisfactory | J2: Inadequate
A3: AllAllBoarding School1 | B3: All | C3: All | D3: Boarding School | E3: 1 | F3: 1 | G3: 0 | H3: 0 | I3: 0 | J3: 0
A4: AllAllBoarding School2 | B4: All | C4: All | D4: Boarding School | E4: 2 | F4: 0 | G4: 1 | H4: 0 | I4: 1 | J4: 0
A5: AllAllBoarding School4 | B5: All | C5: All | D5: Boarding School | E5: 4 | F5: 1 | G5: 1 | H5: 0 | I5: 1 | J5: 0
A6: AllAllChildren's Home1 | B6: All | C6: All | D6: Children's Home | E6: 1 | F6: 4 | G6: 33 | H6: 15 | I6: 0 | J6: 6
A7: AllAllChildren's Home2 | B7: All | C7: All | D7: Children's Home | E7: 2 | F7: 20 | G7: 154 | H7: 93 | I7: 0 | J7: 28
A8: AllAllChildren's Home3 | B8: All | C8: All | D8: Children's Home | E8: 3 | F8: 21 | G8: 84 | H8: 57 | I8: 0 | J8: 7
A9: AllAllChildren's Home4 | B9: All | C9: All | D9: Children's Home | E9: 4 | F9: 45 | G9: 271 | H9: 165 | I9: 0 | J9: 41
A10: AllAllFurther Education College with Residential Accommodation1 | B10: All | C10: All | D10: Further Education College with Residential Accommodation | E10: 1 | F10: 0 | G10: 0 | H10: 0 | I10: 1 | J10: 0
A11: AllAllFurther Education College with Residential Accommodation2 | B11: All | C11: All | D11: Further Education College with Residential Accommodation | E11: 2 | F11: 0 | G11: 1 | H11: 0 | I11: 1 | J11: 0
A12: AllAllFurther Education College with Residential Accommodation3 | B12: All | C12: All | D12: Further Education College with Residential Accommodation | E12: 3 | F12: 0 | G12: 0 | H12: 0 | I12: 1 | J12: 0
A13: AllAllFurther Education College with Residential Accommodation4 | B13: All | C13: All | D13: Further Education College with Residential Accommodation | E13: 4 | F13: 0 | G13: 1 | H13: 0 | I13: 3 | J13: 0
A14: AllAllIndependent Fostering Provider2 | B14: All | C14: All | D14: Independent Fostering Provider | E14: 2 | F14: 1 | G14: 0 | H14: 0 | I14: 0 | J14: 0
A15: AllAllIndependent Fostering Provider3 | B15: All | C15: All | D15: Independent Fostering Provider | E15: 3 | F15: 1 | G15: 2 | H15: 1 | I15: 0 | J15: 0
A16: AllAllIndependent Fostering Provider4 | B16: All | C16: All | D16: Independent Fostering Provider | E16: 4 | F16: 2 | G16: 2 | H16: 1 | I16: 0 | J16: 0
A17: AllAllLocal Authority Fostering Service2 | B17: All | C17: All | D17: Local Authority Fostering Service | E17: 2 | F17: 0 | G17: 1 | H17: 2 | I17: 0 | J17: 0
A18: AllAllLocal Authority Fostering Service3 | B18: All | C18: All | D18: Local Authority Fostering Service | E18: 3 | F18: 0 | G18: 1 | H18: 1 | I18: 0 | J18: 0
A19: AllAllLocal Authority Fostering Service4 | B19: All | C19: All | D19: Local Authority Fostering Service | E19: 4 | F19: 0 | G19: 2 | H19: 3 | I19: 0 | J19: 0
A20: AllAllResidential Family Centre1 | B20: All | C20: All | D20: Residential Family Centre | E20: 1 | F20: 0 | G20: 1 | H20: 0 | I20: 0 | J20: 0
A21: AllAllResidential Family Centre3 | B21: All | C21: All | D21: Residential Family Centre | E21: 3 | F21: 1 | G21: 1 | H21: 0 | I21: 0 | J21: 0
A22: AllAllResidential Family Centre4 | B22: All | C22: All | D22: Residential Family Centre | E22: 4 | F22: 1 | G22: 2 | H22: 0 | I22: 0 | J22: 0
A23: AllAllResidential special school (>295 days/year)1 | B23: All | C23: All | D23: Residential special school (>295 days/year) | E23: 1 | F23: 0 | G23: 2 | H23: 0 | I23: 0 | J23: 0
A24: AllAllResidential special school (>295 days/year)2 | B24: All | C24: All | D24: Residential special school (>295 days/year) | E24: 2 | F24: 0 | G24: 4 | H24: 3 | I24: 0 | J24: 2
A25: AllAllResidential special school (>295 days/year)3 | B25: All | C25: All | D25: Residential special school (>295 days/year) | E25: 3 | F25: 1 | G25: 3 | H25: 2 | I25: 0 | J25: 0
A26: AllAllResidential special school (>295 days/year)4 | B26: All | C26: All | D26: Residential special school (>295 days/year) | E26: 4 | F26: 1 | G26: 9 | H26: 5 | I26: 0 | J26: 2
A27: AllAllResidential Special School1 | B27: All | C27: All | D27: Residential Special School | E27: 1 | F27: 1 | G27: 1 | H27: 0 | I27: 0 | J27: 0
A28: AllAllResidential Special School2 | B28: All | C28: All | D28: Residential Special School | E28: 2 | F28: 3 | G28: 4 | H28: 0 | I28: 1 | J28: 0
A29: AllAllResidential Special School3 | B29: All | C29: All | D29: Residential Special School | E29: 3 | F29: 2 | G29: 0 | H29: 0 | I29: 0 | J29: 0
A30: AllAllResidential Special School4 | B30: All | C30: All | D30: Residential Special School | E30: 4 | F30: 6 | G30: 5 | H30: 0 | I30: 1 | J30: 0
A31: AllAllSecure children's home1 | B31: All | C31: All | D31: Secure children's home | E31: 1 | F31: 1 | G31: 0 | H31: 1 | I31: 0 | J31: 0
A32: AllAllSecure children's home2 | B32: All | C32: All | D32: Secure children's home | E32: 2 | F32: 0 | G32: 4 | H32: 0 | I32: 0 | J32: 0
A33: AllAllSecure children's home3 | B33: All | C33: All | D33: Secure children's home | E33: 3 | F33: 0 | G33: 0 | H33: 1 | I33: 0 | J33: 0
A34: AllAllSecure children's home4 | B34: All | C34: All | D34: Secure children's home | E34: 4 | F34: 1 | G34: 4 | H34: 2 | I34: 0 | J34: 0
A35: AllHealth authorityChildren's Home2 | B35: All | C35: Health authority | D35: Children's Home | E35: 2 | F35: 0 | G35: 1 | H35: 3 | I35: 0 | J35: 0
A36: AllHealth authorityChildren's Home3 | B36: All | C36: Health authority | D36: Children's Home | E36: 3 | F36: 0 | G36: 1 | H36: 0 | I36: 0 | J36: 0
A37: AllHealth authorityChildren's Home4 | B37: All | C37: Health authority | D37: Children's Home | E37: 4 | F37: 0 | G37: 2 | H37: 3 | I37: 0 | J37: 0
A38: AllLocal authorityBoarding School2 | B38: All | C38: Local authority | D38: Boarding School | E38: 2 | F38: 0 | G38: 0 | H38: 0 | I38: 1 | J38: 0
A39: AllLocal authorityBoarding School4 | B39: All | C39: Local authority | D39: Boarding School | E39: 4 | F39: 0 | G39: 0 | H39: 0 | I39: 1 | J39: 0
A40: AllLocal authorityChildren's Home1 | B40: All | C40: Local authority | D40: Children's Home | E40: 1 | F40: 0 | G40: 6 | H40: 3 | I40: 0 | J40: 2
A41: AllLocal authorityChildren's Home2 | B41: All | C41: Local authority | D41: Children's Home | E41: 2 | F41: 3 | G41: 30 | H41: 14 | I41: 0 | J41: 5
A42: AllLocal authorityChildren's Home3 | B42: All | C42: Local authority | D42: Children's Home | E42: 3 | F42: 4 | G42: 21 | H42: 23 | I42: 0 | J42: 2
A43: AllLocal authorityChildren's Home4 | B43: All | C43: Local authority | D43: Children's Home | E43: 4 | F43: 7 | G43: 57 | H43: 40 | I43: 0 | J43: 9
A44: AllLocal authorityFurther Education College with Residential Accommodation2 | B44: All | C44: Local authority | D44: Further Education College with Residential Accommodation | E44: 2 | F44: 0 | G44: 1 | H44: 0 | I44: 0 | J44: 0
A45: AllLocal authorityFurther Education College with Residential Accommodation3 | B45: All | C45: Local authority | D45: Further Education College with Residential Accommodation | E45: 3 | F45: 0 | G45: 0 | H45: 0 | I45: 1 | J45: 0
A46: AllLocal authorityFurther Education College with Residential Accommodation4 | B46: All | C46: Local authority | D46: Further Education College with Residential Accommodation | E46: 4 | F46: 0 | G46: 1 | H46: 0 | I46: 1 | J46: 0
A47: AllLocal authorityLocal Authority Fostering Service2 | B47: All | C47: Local authority | D47: Local Authority Fostering Service | E47: 2 | F47: 0 | G47: 1 | H47: 2 | I47: 0 | J47: 0
A48: AllLocal authorityLocal Authority Fostering Service3 | B48: All | C48: Local authority | D48: Local Authority Fostering Service | E48: 3 | F48: 0 | G48: 1 | H48: 1 | I48: 0 | J48: 0
A49: AllLocal authorityLocal Authority Fostering Service4 | B49: All | C49: Local authority | D49: Local Authority Fostering Service | E49: 4 | F49: 0 | G49: 2 | H49: 3 | I49: 0 | J49: 0
A50: AllLocal authorityResidential Special School1 | B50: All | C50: Local authority | D50: Residential Special School | E50: 1 | F50: 1 | G50: 0 | H50: 0 | I50: 0 | J50: 0
A51: AllLocal authorityResidential Special School2 | B51: All | C51: Local authority | D51: Residential Special School | E51: 2 | F51: 2 | G51: 4 | H51: 0 | I51: 1 | J51: 0
A52: AllLocal authorityResidential Special School3 | B52: All | C52: Local authority | D52: Residential Special School | E52: 3 | F52: 2 | G52: 0 | H52: 0 | I52: 0 | J52: 0
A53: AllLocal authorityResidential Special School4 | B53: All | C53: Local authority | D53: Residential Special School | E53: 4 | F53: 5 | G53: 4 | H53: 0 | I53: 1 | J53: 0
A54: AllLocal authoritySecure children's home1 | B54: All | C54: Local authority | D54: Secure children's home | E54: 1 | F54: 1 | G54: 0 | H54: 1 | I54: 0 | J54: 0
A55: AllLocal authoritySecure children's home2 | B55: All | C55: Local authority | D55: Secure children's home | E55: 2 | F55: 0 | G55: 4 | H55: 0 | I55: 0 | J55: 0
A56: AllLocal authoritySecure children's home3 | B56: All | C56: Local authority | D56: Secure children's home | E56: 3 | F56: 0 | G56: 0 | H56: 1 | I56: 0 | J56: 0
A57: AllLocal authoritySecure children's home4 | B57: All | C57: Local authority | D57: Secure children's home | E57: 4 | F57: 1 | G57: 4 | H57: 2 | I57: 0 | J57: 0
A58: AllPrivate/ VoluntaryBoarding School1 | B58: All | C58: Private/ Voluntary | D58: Boarding School | E58: 1 | F58: 1 | G58: 0 | H58: 0 | I58: 0 | J58: 0
A59: AllPrivate/ VoluntaryBoarding School2 | B59: All | C59: Private/ Voluntary | D59: Boarding School | E59: 2 | F59: 0 | G59: 1 | H59: 0 | I59: 0 | J59: 0
A60: AllPrivate/ VoluntaryBoarding School4 | B60: All | C60: Private/ Voluntary | D60: Boarding School | E60: 4 | F60: 1 | G60: 1 | H60: 0 | I60: 0 | J60: 0
A61: AllPrivate/ VoluntaryChildren's Home1 | B61: All | C61: Private/ Voluntary | D61: Children's Home | E61: 1 | F61: 4 | G61: 27 | H61: 12 | I61: 0 | J61: 4
A62: AllPrivate/ VoluntaryChildren's Home2 | B62: All | C62: Private/ Voluntary | D62: Children's Home | E62: 2 | F62: 17 | G62: 123 | H62: 76 | I62: 0 | J62: 23
A63: AllPrivate/ VoluntaryChildren's Home3 | B63: All | C63: Private/ Voluntary | D63: Children's Home | E63: 3 | F63: 17 | G63: 62 | H63: 34 | I63: 0 | J63: 5
A64: AllPrivate/ VoluntaryChildren's Home4 | B64: All | C64: Private/ Voluntary | D64: Children's Home | E64: 4 | F64: 38 | G64: 212 | H64: 122 | I64: 0 | J64: 32
A65: AllPrivate/ VoluntaryFurther Education College with Residential Accommodation1 | B65: All | C65: Private/ Voluntary | D65: Further Education College with Residential Accommodation | E65: 1 | F65: 0 | G65: 0 | H65: 0 | I65: 1 | J65: 0
A66: AllPrivate/ VoluntaryFurther Education College with Residential Accommodation2 | B66: All | C66: Private/ Voluntary | D66: Further Education College with Residential Accommodation | E66: 2 | F66: 0 | G66: 0 | H66: 0 | I66: 1 | J66: 0
A67: AllPrivate/ VoluntaryFurther Education College with Residential Accommodation4 | B67: All | C67: Private/ Voluntary | D67: Further Education College with Residential Accommodation | E67: 4 | F67: 0 | G67: 0 | H67: 0 | I67: 2 | J67: 0
A68: AllPrivate/ VoluntaryIndependent Fostering Provider2 | B68: All | C68: Private/ Voluntary | D68: Independent Fostering Provider | E68: 2 | F68: 1 | G68: 0 | H68: 0 | I68: 0 | J68: 0
A69: AllPrivate/ VoluntaryIndependent Fostering Provider3 | B69: All | C69: Private/ Voluntary | D69: Independent Fostering Provider | E69: 3 | F69: 1 | G69: 2 | H69: 1 | I69: 0 | J69: 0
A70: AllPrivate/ VoluntaryIndependent Fostering Provider4 | B70: All | C70: Private/ Voluntary | D70: Independent Fostering Provider | E70: 4 | F70: 2 | G70: 2 | H70: 1 | I70: 0 | J70: 0
A71: AllPrivate/ VoluntaryResidential Family Centre1 | B71: All | C71: Private/ Voluntary | D71: Residential Family Centre | E71: 1 | F71: 0 | G71: 1 | H71: 0 | I71: 0 | J71: 0
A72: AllPrivate/ VoluntaryResidential Family Centre3 | B72: All | C72: Private/ Voluntary | D72: Residential Family Centre | E72: 3 | F72: 1 | G72: 1 | H72: 0 | I72: 0 | J72: 0
A73: AllPrivate/ VoluntaryResidential Family Centre4 | B73: All | C73: Private/ Voluntary | D73: Residential Family Centre | E73: 4 | F73: 1 | G73: 2 | H73: 0 | I73: 0 | J73: 0
A74: AllPrivate/ VoluntaryResidential special school (>295 days/year)1 | B74: All | C74: Private/ Voluntary | D74: Residential special school (>295 days/year) | E74: 1 | F74: 0 | G74: 2 | H74: 0 | I74: 0 | J74: 0
A75: AllPrivate/ VoluntaryResidential special school (>295 days/year)2 | B75: All | C75: Private/ Voluntary | D75: Residential special school (>295 days/year) | E75: 2 | F75: 0 | G75: 4 | H75: 3 | I75: 0 | J75: 2
A76: AllPrivate/ VoluntaryResidential special school (>295 days/year)3 | B76: All | C76: Private/ Voluntary | D76: Residential special school (>295 days/year) | E76: 3 | F76: 1 | G76: 3 | H76: 2 | I76: 0 | J76: 0
A77: AllPrivate/ VoluntaryResidential special school (>295 days/year)4 | B77: All | C77: Private/ Voluntary | D77: Residential special school (>295 days/year) | E77: 4 | F77: 1 | G77: 9 | H77: 5 | I77: 0 | J77: 2
A78: AllPrivate/ VoluntaryResidential Special School1 | B78: All | C78: Private/ Voluntary | D78: Residential Special School | E78: 1 | F78: 0 | G78: 1 | H78: 0 | I78: 0 | J78: 0
A79: AllPrivate/ VoluntaryResidential Special School2 | B79: All | C79: Private/ Voluntary | D79: Residential Special School | E79: 2 | F79: 1 | G79: 0 | H79: 0 | I79: 0 | J79: 0
A80: AllPrivate/ VoluntaryResidential Special School4 | B80: All | C80: Private/ Voluntary | D80: Residential Special School | E80: 4 | F80: 1 | G80: 1 | H80: 0 | I80: 0 | J80: 0
A81: Barking & DagenhamAllChildren's Home2 | B81: Barking & Dagenham | C81: All | D81: Children's Home | E81: 2 | F81: 0 | G81: 1 | H81: 0 | I81: 0 | J81: 0
A82: Barking & DagenhamAllChildren's Home4 | B82: Barking & Dagenham | C82: All | D82: Children's Home | E82: 4 | F82: 0 | G82: 1 | H82: 0 | I82: 0 | J82: 0
A83: Barking & DagenhamPrivate/ VoluntaryChildren's Home2 | B83: Barking & Dagenham | C83: Private/ Voluntary | D83: Children's Home | E83: 2 | F83: 0 | G83: 1 | H83: 0 | I83: 0 | J83: 0
A84: Barking & DagenhamPrivate/ VoluntaryChildren's Home4 | B84: Barking & Dagenham | C84: Private/ Voluntary | D84: Children's Home | E84: 4 | F84: 0 | G84: 1 | H84: 0 | I84: 0 | J84: 0
A85: BarnetAllChildren's Home2 | B85: Barnet | C85: All | D85: Children's Home | E85: 2 | F85: 0 | G85: 1 | H85: 0 | I85: 0 | J85: 0
A86: BarnetAllChildren's Home4 | B86: Barnet | C86: All | D86: Children's Home | E86: 4 | F86: 0 | G86: 1 | H86: 0 | I86: 0 | J86: 0
A87: BarnetPrivate/ VoluntaryChildren's Home2 | B87: Barnet | C87: Private/ Voluntary | D87: Children's Home | E87: 2 | F87: 0 | G87: 1 | H87: 0 | I87: 0 | J87: 0
A88: BarnetPrivate/ VoluntaryChildren's Home4 | B88: Barnet | C88: Private/ Voluntary | D88: Children's Home | E88: 4 | F88: 0 | G88: 1 | H88: 0 | I88: 0 | J88: 0
A89: BarnsleyAllChildren's Home3 | B89: Barnsley | C89: All | D89: Children's Home | E89: 3 | F89: 2 | G89: 2 | H89: 0 | I89: 0 | J89: 0
A90: BarnsleyAllChildren's Home4 | B90: Barnsley | C90: All | D90: Children's Home | E90: 4 | F90: 2 | G90: 2 | H90: 0 | I90: 0 | J90: 0
A91: BarnsleyPrivate/ VoluntaryChildren's Home3 | B91: Barnsley | C91: Private/ Voluntary | D91: Children's Home | E91: 3 | F91: 2 | G91: 2 | H91: 0 | I91: 0 | J91: 0
A92: BarnsleyPrivate/ VoluntaryChildren's Home4 | B92: Barnsley | C92: Private/ Voluntary | D92: Children's Home | E92: 4 | F92: 2 | G92: 2 | H92: 0 | I92: 0 | J92: 0
A93: BexleyAllChildren's Home2 | B93: Bexley | C93: All | D93: Children's Home | E93: 2 | F93: 0 | G93: 0 | H93: 1 | I93: 0 | J93: 0
A94: BexleyAllChildren's Home3 | B94: Bexley | C94: All | D94: Children's Home | E94: 3 | F94: 0 | G94: 0 | H94: 0 | I94: 0 | J94: 1
A95: BexleyAllChildren's Home4 | B95: Bexley | C95: All | D95: Children's Home | E95: 4 | F95: 0 | G95: 0 | H95: 1 | I95: 0 | J95: 1
A96: BexleyPrivate/ VoluntaryChildren's Home2 | B96: Bexley | C96: Private/ Voluntary | D96: Children's Home | E96: 2 | F96: 0 | G96: 0 | H96: 1 | I96: 0 | J96: 0
A97: BexleyPrivate/ VoluntaryChildren's Home3 | B97: Bexley | C97: Private/ Voluntary | D97: Children's Home | E97: 3 | F97: 0 | G97: 0 | H97: 0 | I97: 0 | J97: 1
A98: BexleyPrivate/ VoluntaryChildren's Home4 | B98: Bexley | C98: Private/ Voluntary | D98: Children's Home | E98: 4 | F98: 0 | G98: 0 | H98: 1 | I98: 0 | J98: 1
A99: BirminghamAllChildren's Home1 | B99: Birmingham | C99: All | D99: Children's Home | E99: 1 | F99: 1 | G99: 0 | H99: 1 | I99: 0 | J99: 0
A100: BirminghamAllChildren's Home2 | B100: Birmingham | C100: All | D100: Children's Home | E100: 2 | F100: 1 | G100: 4 | H100: 6 | I100: 0 | J100: 0
A101: BirminghamAllChildren's Home3 | B101: Birmingham | C101: All | D101: Children's Home | E101: 3 | F101: 1 | G101: 2 | H101: 0 | I101: 0 | J101: 0
A102: BirminghamAllChildren's Home4 | B102: Birmingham | C102: All | D102: Children's Home | E102: 4 | F102: 3 | G102: 6 | H102: 7 | I102: 0 | J102: 0
A103: BirminghamAllResidential Special School2 | B103: Birmingham | C103: All | D103: Residential Special School | E103: 2 | F103: 0 | G103: 0 | H103: 0 | I103: 1 | J103: 0
A104: BirminghamAllResidential Special School4 | B104: Birmingham | C104: All | D104: Residential Special School | E104: 4 | F104: 0 | G104: 0 | H104: 0 | I104: 1 | J104: 0
A105: BirminghamLocal authorityChildren's Home1 | B105: Birmingham | C105: Local authority | D105: Children's Home | E105: 1 | F105: 0 | G105: 0 | H105: 1 | I105: 0 | J105: 0
A106: BirminghamLocal authorityChildren's Home2 | B106: Birmingham | C106: Local authority | D106: Children's Home | E106: 2 | F106: 0 | G106: 1 | H106: 1 | I106: 0 | J106: 0
A107: BirminghamLocal authorityChildren's Home3 | B107: Birmingham | C107: Local authority | D107: Children's Home | E107: 3 | F107: 0 | G107: 1 | H107: 0 | I107: 0 | J107: 0
A108: BirminghamLocal authorityChildren's Home4 | B108: Birmingham | C108: Local authority | D108: Children's Home | E108: 4 | F108: 0 | G108: 2 | H108: 2 | I108: 0 | J108: 0
A109: BirminghamLocal authorityResidential Special School2 | B109: Birmingham | C109: Local authority | D109: Residential Special School | E109: 2 | F109: 0 | G109: 0 | H109: 0 | I109: 1 | J109: 0
A110: BirminghamLocal authorityResidential Special School4 | B110: Birmingham | C110: Local authority | D110: Residential Special School | E110: 4 | F110: 0 | G110: 0 | H110: 0 | I110: 1 | J110: 0
A111: BirminghamPrivate/ VoluntaryChildren's Home1 | B111: Birmingham | C111: Private/ Voluntary | D111: Children's Home | E111: 1 | F111: 1 | G111: 0 | H111: 0 | I111: 0 | J111: 0
A112: BirminghamPrivate/ VoluntaryChildren's Home2 | B112: Birmingham | C112: Private/ Voluntary | D112: Children's Home | E112: 2 | F112: 1 | G112: 3 | H112: 5 | I112: 0 | J112: 0
A113: BirminghamPrivate/ VoluntaryChildren's Home3 | B113: Birmingham | C113: Private/ Voluntary | D113: Children's Home | E113: 3 | F113: 1 | G113: 1 | H113: 0 | I113: 0 | J113: 0
A114: BirminghamPrivate/ VoluntaryChildren's Home4 | B114: Birmingham | C114: Private/ Voluntary | D114: Children's Home | E114: 4 | F114: 3 | G114: 4 | H114: 5 | I114: 0 | J114: 0
A115: Blackburn with DarwenAllChildren's Home2 | B115: Blackburn with Darwen | C115: All | D115: Children's Home | E115: 2 | F115: 1 | G115: 0 | H115: 0 | I115: 0 | J115: 0
A116: Blackburn with DarwenAllChildren's Home4 | B116: Blackburn with Darwen | C116: All | D116: Children's Home | E116: 4 | F116: 1 | G116: 0 | H116: 0 | I116: 0 | J116: 0
A117: Blackburn with DarwenPrivate/ VoluntaryChildren's Home2 | B117: Blackburn with Darwen | C117: Private/ Voluntary | D117: Children's Home | E117: 2 | F117: 1 | G117: 0 | H117: 0 | I117: 0 | J117: 0
A118: Blackburn with DarwenPrivate/ VoluntaryChildren's Home4 | B118: Blackburn with Darwen | C118: Private/ Voluntary | D118: Children's Home | E118: 4 | F118: 1 | G118: 0 | H118: 0 | I118: 0 | J118: 0
A119: BlackpoolAllChildren's Home1 | B119: Blackpool | C119: All | D119: Children's Home | E119: 1 | F119: 0 | G119: 0 | H119: 0 | I119: 0 | J119: 1
A120: BlackpoolAllChildren's Home3 | B120: Blackpool | C120: All | D120: Children's Home | E120: 3 | F120: 1 | G120: 0 | H120: 2 | I120: 0 | J120: 0
A121: BlackpoolAllChildren's Home4 | B121: Blackpool | C121: All | D121: Children's Home | E121: 4 | F121: 1 | G121: 0 | H121: 2 | I121: 0 | J121: 1
A122: BlackpoolLocal authorityChildren's Home3 | B122: Blackpool | C122: Local authority | D122: Children's Home | E122: 3 | F122: 0 | G122: 0 | H122: 1 | I122: 0 | J122: 0
A123: BlackpoolLocal authorityChildren's Home4 | B123: Blackpool | C123: Local authority | D123: Children's Home | E123: 4 | F123: 0 | G123: 0 | H123: 1 | I123: 0 | J123: 0
A124: BlackpoolPrivate/ VoluntaryChildren's Home1 | B124: Blackpool | C124: Private/ Voluntary | D124: Children's Home | E124: 1 | F124: 0 | G124: 0 | H124: 0 | I124: 0 | J124: 1
A125: BlackpoolPrivate/ VoluntaryChildren's Home3 | B125: Blackpool | C125: Private/ Voluntary | D125: Children's Home | E125: 3 | F125: 1 | G125: 0 | H125: 1 | I125: 0 | J125: 0
A126: BlackpoolPrivate/ VoluntaryChildren's Home4 | B126: Blackpool | C126: Private/ Voluntary | D126: Children's Home | E126: 4 | F126: 1 | G126: 0 | H126: 1 | I126: 0 | J126: 1
A127: BoltonAllChildren's Home2 | B127: Bolton | C127: All | D127: Children's Home | E127: 2 | F127: 0 | G127: 2 | H127: 0 | I127: 0 | J127: 0
A128: BoltonAllChildren's Home3 | B128: Bolton | C128: All | D128: Children's Home | E128: 3 | F128: 0 | G128: 2 | H128: 0 | I128: 0 | J128: 0
A129: BoltonAllChildren's Home4 | B129: Bolton | C129: All | D129: Children's Home | E129: 4 | F129: 0 | G129: 4 | H129: 0 | I129: 0 | J129: 0
A130: BoltonAllResidential special school (>295 days/year)3 | B130: Bolton | C130: All | D130: Residential special school (>295 days/year) | E130: 3 | F130: 0 | G130: 1 | H130: 0 | I130: 0 | J130: 0
A131: BoltonAllResidential special school (>295 days/year)4 | B131: Bolton | C131: All | D131: Residential special school (>295 days/year) | E131: 4 | F131: 0 | G131: 1 | H131: 0 | I131: 0 | J131: 0
A132: BoltonLocal authorityChildren's Home2 | B132: Bolton | C132: Local authority | D132: Children's Home | E132: 2 | F132: 0 | G132: 1 | H132: 0 | I132: 0 | J132: 0
A133: BoltonLocal authorityChildren's Home4 | B133: Bolton | C133: Local authority | D133: Children's Home | E133: 4 | F133: 0 | G133: 1 | H133: 0 | I133: 0 | J133: 0
A134: BoltonPrivate/ VoluntaryChildren's Home2 | B134: Bolton | C134: Private/ Voluntary | D134: Children's Home | E134: 2 | F134: 0 | G134: 1 | H134: 0 | I134: 0 | J134: 0
A135: BoltonPrivate/ VoluntaryChildren's Home3 | B135: Bolton | C135: Private/ Voluntary | D135: Children's Home | E135: 3 | F135: 0 | G135: 2 | H135: 0 | I135: 0 | J135: 0
A136: BoltonPrivate/ VoluntaryChildren's Home4 | B136: Bolton | C136: Private/ Voluntary | D136: Children's Home | E136: 4 | F136: 0 | G136: 3 | H136: 0 | I136: 0 | J136: 0
A137: BoltonPrivate/ VoluntaryResidential special school (>295 days/year)3 | B137: Bolton | C137: Private/ Voluntary | D137: Residential special school (>295 days/year) | E137: 3 | F137: 0 | G137: 1 | H137: 0 | I137: 0 | J137: 0
A138: BoltonPrivate/ VoluntaryResidential special school (>295 days/year)4 | B138: Bolton | C138: Private/ Voluntary | D138: Residential special school (>295 days/year) | E138: 4 | F138: 0 | G138: 1 | H138: 0 | I138: 0 | J138: 0
A139: BournemouthAllChildren's Home2 | B139: Bournemouth | C139: All | D139: Children's Home | E139: 2 | F139: 0 | G139: 0 | H139: 0 | I139: 0 | J139: 1
A140: BournemouthAllChildren's Home3 | B140: Bournemouth | C140: All | D140: Children's Home | E140: 3 | F140: 0 | G140: 0 | H140: 1 | I140: 0 | J140: 0
A141: BournemouthAllChildren's Home4 | B141: Bournemouth | C141: All | D141: Children's Home | E141: 4 | F141: 0 | G141: 0 | H141: 1 | I141: 0 | J141: 1
A142: BournemouthPrivate/ VoluntaryChildren's Home2 | B142: Bournemouth | C142: Private/ Voluntary | D142: Children's Home | E142: 2 | F142: 0 | G142: 0 | H142: 0 | I142: 0 | J142: 1
A143: BournemouthPrivate/ VoluntaryChildren's Home3 | B143: Bournemouth | C143: Private/ Voluntary | D143: Children's Home | E143: 3 | F143: 0 | G143: 0 | H143: 1 | I143: 0 | J143: 0
A144: BournemouthPrivate/ VoluntaryChildren's Home4 | B144: Bournemouth | C144: Private/ Voluntary | D144: Children's Home | E144: 4 | F144: 0 | G144: 0 | H144: 1 | I144: 0 | J144: 1
A145: Bracknell ForestAllChildren's Home3 | B145: Bracknell Forest | C145: All | D145: Children's Home | E145: 3 | F145: 0 | G145: 0 | H145: 1 | I145: 0 | J145: 0
A146: Bracknell ForestAllChildren's Home4 | B146: Bracknell Forest | C146: All | D146: Children's Home | E146: 4 | F146: 0 | G146: 0 | H146: 1 | I146: 0 | J146: 0
A147: Bracknell ForestPrivate/ VoluntaryChildren's Home3 | B147: Bracknell Forest | C147: Private/ Voluntary | D147: Children's Home | E147: 3 | F147: 0 | G147: 0 | H147: 1 | I147: 0 | J147: 0
A148: Bracknell ForestPrivate/ VoluntaryChildren's Home4 | B148: Bracknell Forest | C148: Private/ Voluntary | D148: Children's Home | E148: 4 | F148: 0 | G148: 0 | H148: 1 | I148: 0 | J148: 0
A149: BradfordAllChildren's Home2 | B149: Bradford | C149: All | D149: Children's Home | E149: 2 | F149: 0 | G149: 2 | H149: 0 | I149: 0 | J149: 0
A150: BradfordAllChildren's Home3 | B150: Bradford | C150: All | D150: Children's Home | E150: 3 | F150: 0 | G150: 1 | H150: 0 | I150: 0 | J150: 0
A151: BradfordAllChildren's Home4 | B151: Bradford | C151: All | D151: Children's Home | E151: 4 | F151: 0 | G151: 3 | H151: 0 | I151: 0 | J151: 0
A152: BradfordLocal authorityChildren's Home2 | B152: Bradford | C152: Local authority | D152: Children's Home | E152: 2 | F152: 0 | G152: 1 | H152: 0 | I152: 0 | J152: 0
A153: BradfordLocal authorityChildren's Home4 | B153: Bradford | C153: Local authority | D153: Children's Home | E153: 4 | F153: 0 | G153: 1 | H153: 0 | I153: 0 | J153: 0
A154: BradfordPrivate/ VoluntaryChildren's Home2 | B154: Bradford | C154: Private/ Voluntary | D154: Children's Home | E154: 2 | F154: 0 | G154: 1 | H154: 0 | I154: 0 | J154: 0
A155: BradfordPrivate/ VoluntaryChildren's Home3 | B155: Bradford | C155: Private/ Voluntary | D155: Children's Home | E155: 3 | F155: 0 | G155: 1 | H155: 0 | I155: 0 | J155: 0
A156: BradfordPrivate/ VoluntaryChildren's Home4 | B156: Bradford | C156: Private/ Voluntary | D156: Children's Home | E156: 4 | F156: 0 | G156: 2 | H156: 0 | I156: 0 | J156: 0
A157: BrentAllChildren's Home1 | B157: Brent | C157: All | D157: Children's Home | E157: 1 | F157: 0 | G157: 0 | H157: 1 | I157: 0 | J157: 0
A158: BrentAllChildren's Home2 | B158: Brent | C158: All | D158: Children's Home | E158: 2 | F158: 0 | G158: 0 | H158: 1 | I158: 0 | J158: 0
A159: BrentAllChildren's Home4 | B159: Brent | C159: All | D159: Children's Home | E159: 4 | F159: 0 | G159: 0 | H159: 2 | I159: 0 | J159: 0
A160: BrentPrivate/ VoluntaryChildren's Home1 | B160: Brent | C160: Private/ Voluntary | D160: Children's Home | E160: 1 | F160: 0 | G160: 0 | H160: 1 | I160: 0 | J160: 0
A161: BrentPrivate/ VoluntaryChildren's Home2 | B161: Brent | C161: Private/ Voluntary | D161: Children's Home | E161: 2 | F161: 0 | G161: 0 | H161: 1 | I161: 0 | J161: 0
A162: BrentPrivate/ VoluntaryChildren's Home4 | B162: Brent | C162: Private/ Voluntary | D162: Children's Home | E162: 4 | F162: 0 | G162: 0 | H162: 2 | I162: 0 | J162: 0
A163: Brighton & HoveAllChildren's Home3 | B163: Brighton & Hove | C163: All | D163: Children's Home | E163: 3 | F163: 2 | G163: 0 | H163: 0 | I163: 0 | J163: 0
A164: Brighton & HoveAllChildren's Home4 | B164: Brighton & Hove | C164: All | D164: Children's Home | E164: 4 | F164: 2 | G164: 0 | H164: 0 | I164: 0 | J164: 0
A165: Brighton & HoveAllResidential special school (>295 days/year)1 | B165: Brighton & Hove | C165: All | D165: Residential special school (>295 days/year) | E165: 1 | F165: 0 | G165: 1 | H165: 0 | I165: 0 | J165: 0
A166: Brighton & HoveAllResidential special school (>295 days/year)4 | B166: Brighton & Hove | C166: All | D166: Residential special school (>295 days/year) | E166: 4 | F166: 0 | G166: 1 | H166: 0 | I166: 0 | J166: 0
A167: Brighton & HoveLocal authorityChildren's Home3 | B167: Brighton & Hove | C167: Local authority | D167: Children's Home | E167: 3 | F167: 1 | G167: 0 | H167: 0 | I167: 0 | J167: 0
A168: Brighton & HoveLocal authorityChildren's Home4 | B168: Brighton & Hove | C168: Local authority | D168: Children's Home | E168: 4 | F168: 1 | G168: 0 | H168: 0 | I168: 0 | J168: 0
A169: Brighton & HovePrivate/ VoluntaryChildren's Home3 | B169: Brighton & Hove | C169: Private/ Voluntary | D169: Children's Home | E169: 3 | F169: 1 | G169: 0 | H169: 0 | I169: 0 | J169: 0
A170: Brighton & HovePrivate/ VoluntaryChildren's Home4 | B170: Brighton & Hove | C170: Private/ Voluntary | D170: Children's Home | E170: 4 | F170: 1 | G170: 0 | H170: 0 | I170: 0 | J170: 0
A171: Brighton & HovePrivate/ VoluntaryResidential special school (>295 days/year)1 | B171: Brighton & Hove | C171: Private/ Voluntary | D171: Residential special school (>295 days/year) | E171: 1 | F171: 0 | G171: 1 | H171: 0 | I171: 0 | J171: 0
A172: Brighton & HovePrivate/ VoluntaryResidential special school (>295 days/year)4 | B172: Brighton & Hove | C172: Private/ Voluntary | D172: Residential special school (>295 days/year) | E172: 4 | F172: 0 | G172: 1 | H172: 0 | I172: 0 | J172: 0
A173: BristolAllChildren's Home2 | B173: Bristol | C173: All | D173: Children's Home | E173: 2 | F173: 0 | G173: 1 | H173: 0 | I173: 0 | J173: 0
A174: BristolAllChildren's Home3 | B174: Bristol | C174: All | D174: Children's Home | E174: 3 | F174: 0 | G174: 3 | H174: 1 | I174: 0 | J174: 0
A175: BristolAllChildren's Home4 | B175: Bristol | C175: All | D175: Children's Home | E175: 4 | F175: 0 | G175: 4 | H175: 1 | I175: 0 | J175: 0
A176: BristolLocal authorityChildren's Home3 | B176: Bristol | C176: Local authority | D176: Children's Home | E176: 3 | F176: 0 | G176: 2 | H176: 0 | I176: 0 | J176: 0
A177: BristolLocal authorityChildren's Home4 | B177: Bristol | C177: Local authority | D177: Children's Home | E177: 4 | F177: 0 | G177: 2 | H177: 0 | I177: 0 | J177: 0
A178: BristolPrivate/ VoluntaryChildren's Home2 | B178: Bristol | C178: Private/ Voluntary | D178: Children's Home | E178: 2 | F178: 0 | G178: 1 | H178: 0 | I178: 0 | J178: 0
A179: BristolPrivate/ VoluntaryChildren's Home3 | B179: Bristol | C179: Private/ Voluntary | D179: Children's Home | E179: 3 | F179: 0 | G179: 1 | H179: 1 | I179: 0 | J179: 0
A180: BristolPrivate/ VoluntaryChildren's Home4 | B180: Bristol | C180: Private/ Voluntary | D180: Children's Home | E180: 4 | F180: 0 | G180: 2 | H180: 1 | I180: 0 | J180: 0
A181: BuckinghamshireAllChildren's Home1 | B181: Buckinghamshire | C181: All | D181: Children's Home | E181: 1 | F181: 0 | G181: 0 | H181: 2 | I181: 0 | J181: 0
A182: BuckinghamshireAllChildren's Home3 | B182: Buckinghamshire | C182: All | D182: Children's Home | E182: 3 | F182: 0 | G182: 1 | H182: 1 | I182: 0 | J182: 0
A183: BuckinghamshireAllChildren's Home4 | B183: Buckinghamshire | C183: All | D183: Children's Home | E183: 4 | F183: 0 | G183: 1 | H183: 3 | I183: 0 | J183: 0
A184: BuckinghamshirePrivate/ VoluntaryChildren's Home1 | B184: Buckinghamshire | C184: Private/ Voluntary | D184: Children's Home | E184: 1 | F184: 0 | G184: 0 | H184: 2 | I184: 0 | J184: 0
A185: BuckinghamshirePrivate/ VoluntaryChildren's Home3 | B185: Buckinghamshire | C185: Private/ Voluntary | D185: Children's Home | E185: 3 | F185: 0 | G185: 1 | H185: 1 | I185: 0 | J185: 0
A186: BuckinghamshirePrivate/ VoluntaryChildren's Home4 | B186: Buckinghamshire | C186: Private/ Voluntary | D186: Children's Home | E186: 4 | F186: 0 | G186: 1 | H186: 3 | I186: 0 | J186: 0
A187: BuryAllChildren's Home2 | B187: Bury | C187: All | D187: Children's Home | E187: 2 | F187: 0 | G187: 1 | H187: 0 | I187: 0 | J187: 0
A188: BuryAllChildren's Home4 | B188: Bury | C188: All | D188: Children's Home | E188: 4 | F188: 0 | G188: 1 | H188: 0 | I188: 0 | J188: 0
A189: BuryPrivate/ VoluntaryChildren's Home2 | B189: Bury | C189: Private/ Voluntary | D189: Children's Home | E189: 2 | F189: 0 | G189: 1 | H189: 0 | I189: 0 | J189: 0
A190: BuryPrivate/ VoluntaryChildren's Home4 | B190: Bury | C190: Private/ Voluntary | D190: Children's Home | E190: 4 | F190: 0 | G190: 1 | H190: 0 | I190: 0 | J190: 0
A191: CalderdaleAllChildren's Home1 | B191: Calderdale | C191: All | D191: Children's Home | E191: 1 | F191: 0 | G191: 1 | H191: 0 | I191: 0 | J191: 0
A192: CalderdaleAllChildren's Home2 | B192: Calderdale | C192: All | D192: Children's Home | E192: 2 | F192: 0 | G192: 2 | H192: 1 | I192: 0 | J192: 0
A193: CalderdaleAllChildren's Home4 | B193: Calderdale | C193: All | D193: Children's Home | E193: 4 | F193: 0 | G193: 3 | H193: 1 | I193: 0 | J193: 0
A194: CalderdaleLocal authorityChildren's Home1 | B194: Calderdale | C194: Local authority | D194: Children's Home | E194: 1 | F194: 0 | G194: 1 | H194: 0 | I194: 0 | J194: 0
A195: CalderdaleLocal authorityChildren's Home2 | B195: Calderdale | C195: Local authority | D195: Children's Home | E195: 2 | F195: 0 | G195: 0 | H195: 1 | I195: 0 | J195: 0
A196: CalderdaleLocal authorityChildren's Home4 | B196: Calderdale | C196: Local authority | D196: Children's Home | E196: 4 | F196: 0 | G196: 1 | H196: 1 | I196: 0 | J196: 0
A197: CalderdalePrivate/ VoluntaryChildren's Home2 | B197: Calderdale | C197: Private/ Voluntary | D197: Children's Home | E197: 2 | F197: 0 | G197: 2 | H197: 0 | I197: 0 | J197: 0
A198: CalderdalePrivate/ VoluntaryChildren's Home4 | B198: Calderdale | C198: Private/ Voluntary | D198: Children's Home | E198: 4 | F198: 0 | G198: 2 | H198: 0 | I198: 0 | J198: 0
A199: CambridgeshireAllChildren's Home1 | B199: Cambridgeshire | C199: All | D199: Children's Home | E199: 1 | F199: 0 | G199: 1 | H199: 0 | I199: 0 | J199: 0
A200: CambridgeshireAllChildren's Home2 | B200: Cambridgeshire | C200: All | D200: Children's Home | E200: 2 | F200: 0 | G200: 1 | H200: 1 | I200: 0 | J200: 1
... 890 more rows

Sheet Table 1
A1: =B2 -> Table 1: Number of children's homes inspections carried out between 1 April 2012 - 30 June 2012, by inspection type (provisional)¹
B2: =IF(ISERROR(VLOOKUP(D5,Ranges!F1:G12,2,0)), "Table 1: Number of "& Ranges!H1&" inspections carried out between "&D5&", by inspection type (provisional)"&CHAR(185),"Table 1: All "& Ranges!H1&" inspections carried out in "&D5&", by inspection type (provisional)"&CHAR(185)) -> Table 1: Number of children's homes inspections carried out between 1 April 2012 - 30 June 2012, by inspection type (provisional)¹
B5: Select period: | D5: 1 April 2012 - 30 June 2012
B6: =VLOOKUP(D5,Periods,2,0) -> 4
B7: Select local authority: | D7: All
B10: Provider type | D10: Total number inspected | H10: Full Inspection | L10: Interim Inspection
D11: All | E11: Local authority | F11: Health authority | G11: Private/ Voluntary | H11: All | I11: Local authority | J11: Health authority | K11: Private/ Voluntary | L11: All | M11: Local authority | N11: Health authority | O11: Private/ Voluntary
B13: Children's homes | D13: =H13+L13 -> 591 | E13: =I13+M13 -> 121 | F13: 5 | G13: 465 | H13: =SUM(H14:H16) -> 546 | I13: 120 | J13: 5 | K13: 421 | L13: 45 | M13: 1 | N13: 0 | O13: 44
A14: Children's home | B14: Children's homes | D14: 564 | E14: =I14+M14 -> 114 | F14: 5 | G14: 445 | H14: =IF(ISERROR(VLOOKUP($D$7&H$11&$H$10&$A14&$B$6,Table1_data,7,0)),0,VLOOKUP($D$7&H$11&$H$10&$A14&$B$6,Table1_data,7,0)) -> 522 | I14: 113 | J14: 5 | K14: 404 | L14: =IF(ISERROR(VLOOKUP($D$7&L$11&$L$10&$A14&$B$6,Table1_data,7,0)),0,VLOOKUP($D$7&L$11&$L$10&$A14&$B$6,Table1_data,7,0)) -> 42 | M14: 1 | N14: 0 | O14: 41
A15: Secure children's home | B15: Secure children's homes | D15: 8 | E15: 7 | F15: 0 | G15: 1 | H15: 7 | I15: 7 | J15: 0 | K15: 0 | L15: 1 | M15: 0 | N15: 0 | O15: 1
A16: Residential special school (>295 days/year) | B16: Residential special schools2 | D16: 19 | E16: 0 | F16: 0 | G16: 19 | H16: 17 | I16: 0 | J16: 0 | K16: 17 | L16: 2 | M16: 0 | N16: 0 | O16: 2
O19: Source: Ofsted inspections
B21: 1. These figures include those children's homes run by the local authority, and those that are run by health authorities, private or voluntary organisations located in the local authority area.
B22: 2. Residential special schools that care for pupils for more than 295 days per year must register as children's homes.

Sheet Table 2
B2: =IF(ISERROR(VLOOKUP(D5,Ranges!F1:G12,2,0)), "Table 2: Overall effectiveness of "& Ranges!H1&" at full inspections between "&D5&" (provisional)"&CHAR(185),"Table 2: Overall effectiveness of "& Ranges!H1&" at full inspections in "&D5&" (provisional)"&CHAR(185)) -> Table 2: Overall effectiveness of children's homes at full inspections between 1 April 2012 - 30 June 2012 (provisional)¹
B5: Select period: | D5: 1 April 2012 - 30 June 2012
B6: =VLOOKUP(D5,Periods,2,0) -> 4
B7: Select local authority: | D7: All
D8: 6 | E8: 6 | F8: 6 | G8: 6 | H8: 7 | I8: 7 | J8: 7 | K8: 7 | L8: 8 | M8: 8 | N8: 8 | O8: 8 | P8: 10 | Q8: 10 | R8: 10 | S8: 10
B9: Provider Type | C9: Total number inspected | D9: Overall effectiveness | T9: Outstanding | U9: Good | V9: Satisfactory | W9: Inadequate | X9: Total
D10: Outstanding | H10: Good | L10: Adequate | P10: Inadequate | U10: ="Children's Home ("&C14 &")" -> Children's Home (522)
D11: All | E11: Local authority | F11: Health authority | G11: Private/ Voluntary | H11: All | I11: Local authority | J11: Health authority | K11: Private/ Voluntary | L11: All | M11: Local authority | N11: Health authority | O11: Private/ Voluntary | P11: All | Q11: Local authority | R11: Health authority | S11: Private/ Voluntary
B13: ="Children's homes " -> Children's homes | C13: =SUM(D13,H13,L13,P13) -> 546 | D13: =SUM(D14:D16) -> 47 | E13: =SUM(E14:E16) -> 8 | F13: 0 | G13: 39 | H13: 284 | I13: 61 | J13: 2 | K13: 221 | L13: 172 | M13: 42 | N13: 3 | O13: 127 | P13: 43 | Q13: 9 | R13: 0 | S13: 34
A14: Children's home | B14: ="Children's homes" -> Children's homes | C14: =SUM(D14,H14,L14,P14) -> 522 | D14: =IF(ISERROR(VLOOKUP($D$7&D$11&$A14&$B$6,Table2_data,D$8,0)),0,VLOOKUP($D$7&D$11&$A14&$B$6,Table2_data,D$8,0)) -> 45 | E14: 7 | F14: 0 | G14: 38 | H14: 271 | I14: 57 | J14: 2 | K14: 212 | L14: 165 | M14: 40 | N14: 3 | O14: 122 | P14: 41 | Q14: 9 | R14: 0 | S14: 32
A15: Secure children's home | B15: ="Secure children's homes" -> Secure children's homes | C15: =SUM(D15,H15,L15,P15) -> 7 | D15: 1 | E15: 1 | F15: 0 | G15: 0 | H15: 4 | I15: 4 | J15: 0 | K15: 0 | L15: 2 | M15: 2 | N15: 0 | O15: 0 | P15: 0 | Q15: 0 | R15: 0 | S15: 0
A16: Residential special school (>295 days/year) | B16: Residential special schools2 | C16: =SUM(D16,H16,L16,P16) -> 17 | D16: 1 | E16: 0 | F16: 0 | G16: 1 | H16: 9 | I16: 0 | J16: 0 | K16: 9 | L16: 5 | M16: 0 | N16: 0 | O16: 5 | P16: 2 | Q16: 0 | R16: 0 | S16: 2
S19: Source: Ofsted inspections
B20: 1. These figures include those children's homes run by the local authority, and those that are run by health authorities, private or voluntary organisations located in the local authority area.
B21: 2. Residential special schools that care for pupils for more than 295 days per year must register as children's homes.

Sheet Table 3a
A1: =B2 -> Table 3a: Full inspection outcomes of children's homes (excluding secure children's homes and residential special schools caring for pupils for more than 295 days a year) inspected between 1 April 2012 - 30 June 2012 (provisional)¹ ²
B2: =IF(ISERROR(VLOOKUP(D5,Ranges!F1:G12,2,0)), "Table 3a: Full inspection outcomes of children's homes (excluding secure children's homes and residential special schools caring for pupils for more than 295 days a year) inspected between "&D5 & " (provisional)"&CHAR(185)&" "&CHAR(178),"Table 3a: Full inspection outcomes of children's homes (excluding secure children's homes and residential special schools caring for pupils for more than 295 days a year) inspected in "&D5 & " (provisional)"&CHAR(185)&" "&CHAR(178)) -> Table 3a: Full inspection outcomes of children's homes (excluding secure children's homes and residential special schools caring for pupils for more than 295 days a year) inspected between 1 April 2012 - 30 June 2012 (provisional)¹ ²
B4: Children's Home
B5: Select period: | D5: 1 April 2012 - 30 June 2012
B6: =VLOOKUP(D5,Periods,2,0) -> 4
B7: Select local authority: | D7: All | P7: =IF($D$7="All", "England",$D$7) -> England
G8: All
D9: All sectors1
D10: Total number inspected | G10: Outstanding | K10: Good | O10: Adequate | S10: Inadequate
G11: Number | H11: % | K11: Number | L11: % | O11: Number | P11: % | S11: Number | T11: %
G12: 7 | K12: 8 | O12: 9 | S12: 10
B13: Overall effectiveness | D13: =G13+K13+O13+S13 -> 522 | G13: =IF(ISERROR(VLOOKUP($D$7&G8&$B$4&SUBSTITUTE($B$13,"Overall care judgement - ","")&$B$6,Table3_data,G12,0))=TRUE,0,VLOOKUP($D$7&G8&$B$4&SUBSTITUTE($B$13,"Overall care judgement - ","")&$B$6,Table3_data,G12,0)) -> 45 | H13: =IF($D13=0,"",G13/$D13*100) -> 8.620689655 | K13: =IF(ISERROR(VLOOKUP($D$7&$G$8&$B$4&SUBSTITUTE($B$13,"Overall care judgement - ","")&$B$6,Table3_data,$K$12,0))=TRUE,0,VLOOKUP($D$7&$G$8&$B$4&SUBSTITUTE($B$13,"Overall care judgement - ","")&$B$6,Table3_data,$K$12,0)) -> 271 | L13: =IF($D13=0,"",K13/$D13*100) -> 51.91570881 | O13: =IF(ISERROR(VLOOKUP($D$7&$G$8&$B$4&SUBSTITUTE($B$13,"Overall care judgement - ","")&$B$6,Table3_data,O12,0))=TRUE,0,VLOOKUP($D$7&$G$8&$B$4&SUBSTITUTE($B$13,"Overall care judgement - ","")&$B$6,Table3_data,O12,0)) -> 165 | P13: =IF($D13=0,"",O13/$D13*100) -> 31.6091954 | S13: =IF(ISERROR(VLOOKUP($D$7&$G$8&$B$4&SUBSTITUTE($B$13,"Overall care judgement - ","")&$B$6,Table3_data,S12,0))=TRUE,0,VLOOKUP($D$7&$G$8&$B$4&SUBSTITUTE($B$13,"Overall care judgement - ","")&$B$6,Table3_data,S12,0)) -> 41 | T13: =IF($D13=0,"",S13/$D13*100) -> 7.85440613
B15: Outcomes for children and young people | D15: =G15+K15+O15+S15 -> 522 | G15: =IF(ISERROR(VLOOKUP($D$7&$G$8&$B$4&SUBSTITUTE(B15,"Overall care judgement - ","")&$B$6,Table3_data,$G$12,0))=TRUE,0,VLOOKUP($D$7&G8&$B$4&SUBSTITUTE(B15,"Overall care judgement - ","")&$B$6,Table3_data,$G$12,0)) -> 69 | H15: =IF($D15=0,"",G15/$D15*100) -> 13.2183908 | K15: =IF(ISERROR(VLOOKUP($D$7&$G$8&$B$4&SUBSTITUTE($B$15,"Overall care judgement - ","")&$B$6,Table3_data,$K$12,0))=TRUE,0,VLOOKUP($D$7&$G$8&$B$4&SUBSTITUTE($B$15,"Overall care judgement - ","")&$B$6,Table3_data,$K$12,0)) -> 272 | L15: =IF($D15=0,"",K15/$D15*100) -> 52.10727969 | O15: =IF(ISERROR(VLOOKUP($D$7&$G$8&$B$4&SUBSTITUTE($B$15,"Overall care judgement - ","")&$B$6,Table3_data,$O$12,0))=TRUE,0,VLOOKUP($D$7&$G$8&$B$4&SUBSTITUTE($B$15,"Overall care judgement - ","")&$B$6,Table3_data,$O$12,0)) -> 162 | P15: =IF($D15=0,"",O15/$D15*100) -> 31.03448276 | S15: =IF(ISERROR(VLOOKUP($D$7&$G$8&$B$4&SUBSTITUTE($B$15,"Overall care judgement - ","")&$B$6,Table3_data,S12,0))=TRUE,0,VLOOKUP($D$7&$G$8&$B$4&SUBSTITUTE($B$15,"Overall care judgement - ","")&$B$6,Table3_data,S12,0)) -> 19 | T15: =IF($D15=0,"",S15/$D15*100) -> 3.639846743
A17: Quality of service | B17: Quality of care | D17: 522 | G17: =IF(ISERROR(VLOOKUP($D$7&$G$8&$B$4&B17&$B$6,Table3_data,$G$12,0))=TRUE,0,VLOOKUP($D$7&G8&$B$4&B17&$B$6,Table3_data,$G$12,0)) -> 85 | H17: 16.2835249 | K17: =IF(ISERROR(VLOOKUP($D$7&$G$8&$B$4&SUBSTITUTE($B$17,"Overall care judgement - ","")&$B$6,Table3_data,$K$12,0))=TRUE,0,VLOOKUP($D$7&$G$8&$B$4&SUBSTITUTE($B$17,"Overall care judgement - ","")&$B$6,Table3_data,$K$12,0)) -> 283 | L17: 54.21455939 | O17: =IF(ISERROR(VLOOKUP($D$7&$G$8&$B$4&SUBSTITUTE($B$17,"Overall care judgement - ","")&$B$6,Table3_data,$O$12,0))=TRUE,0,VLOOKUP($D$7&$G$8&$B$4&SUBSTITUTE($B$17,"Overall care judgement - ","")&$B$6,Table3_data,$O$12,0)) -> 123 | P17: 23.56321839 | S17: =IF(ISERROR(VLOOKUP($D$7&$G$8&$B$4&SUBSTITUTE($B$17,"Overall care judgement - ","")&$B$6,Table3_data,S12,0))=TRUE,0,VLOOKUP($D$7&$G$8&$B$4&SUBSTITUTE($B$17,"Overall care judgement - ","")&$B$6,Table3_data,S12,0)) -> 31 | T17: 5.938697318
A19: The safety of children and young people | B19: Safeguarding children and young people | D19: 522 | G19: =IF(ISERROR(VLOOKUP($D$7&$G$8&$B$4&A19&$B$6,Table3_data,$G$12,0))=TRUE,0,VLOOKUP($D$7&G8&$B$4&A19&$B$6,Table3_data,$G$12,0)) -> 64 | H19: 12.2605364 | K19: =IF(ISERROR(VLOOKUP($D$7&$G$8&$B$4&SUBSTITUTE($A$19,"Overall care judgement - ","")&$B$6,Table3_data,$K$12,0))=TRUE,0,VLOOKUP($D$7&$G$8&$B$4&SUBSTITUTE($A$19,"Overall care judgement - ","")&$B$6,Table3_data,$K$12,0)) -> 276 | L19: 52.87356322 | O19: =IF(ISERROR(VLOOKUP($D$7&$G$8&$B$4&SUBSTITUTE($A$19,"Overall care judgement - ","")&$B$6,Table3_data,$O$12,0))=TRUE,0,VLOOKUP($D$7&$G$8&$B$4&SUBSTITUTE($A$19,"Overall care judgement - ","")&$B$6,Table3_data,$O$12,0)) -> 142 | P19: 27.20306513 | S19: =IF(ISERROR(VLOOKUP($D$7&$G$8&$B$4&SUBSTITUTE($A$19,"Overall care judgement - ","")&$B$6,Table3_data,S12,0))=TRUE,0,VLOOKUP($D$7&$G$8&$B$4&SUBSTITUTE($A$19,"Overall care judgement - ","")&$B$6,Table3_data,S12,0)) -> 40 | T19: 7.662835249
B21: Leadership and management | D21: 522 | G21: =IF(ISERROR(VLOOKUP($D$7&$G$8&$B$4&B21&$B$6,Table3_data,$G$12,0))=TRUE,0,VLOOKUP($D$7&G8&$B$4&B21&$B$6,Table3_data,$G$12,0)) -> 53 | H21: 10.1532567 | K21: =IF(ISERROR(VLOOKUP($D$7&$G$8&$B$4&SUBSTITUTE($B$21,"Overall care judgement - ","")&$B$6,Table3_data,$K$12,0))=TRUE,0,VLOOKUP($D$7&$G$8&$B$4&SUBSTITUTE($B$21,"Overall care judgement - ","")&$B$6,Table3_data,$K$12,0)) -> 250 | L21: 47.89272031 | O21: =IF(ISERROR(VLOOKUP($D$7&$G$8&$B$4&SUBSTITUTE($B$21,"Overall care judgement - ","")&$B$6,Table3_data,$O$12,0))=TRUE,0,VLOOKUP($D$7&$G$8&$B$4&SUBSTITUTE($B$21,"Overall care judgement - ","")&$B$6,Table3_data,$O$12,0)) -> 166 | P21: 31.80076628 | S21: =IF(ISERROR(VLOOKUP($D$7&$G$8&$B$4&SUBSTITUTE($B$21,"Overall care judgement - ","")&$B$6,Table3_data,S12,0))=TRUE,0,VLOOKUP($D$7&$G$8&$B$4&SUBSTITUTE($B$21,"Overall care judgement - ","")&$B$6,Table3_data,S12,0)) -> 53 | T21: 10.1532567
D23: Local authority
G24: 7 | K24: 8 | O24: 9 | S24: 10
B25: Overall effectiveness | D25: =G25+K25+O25+S25 -> 113 | G25: =IF(ISERROR(VLOOKUP($D$7&D23&$B$4&SUBSTITUTE($B$25,"Overall care judgement - ","")&$B$6,Table3_data,$G$24,0))=TRUE,0,VLOOKUP($D$7&D23&$B$4&SUBSTITUTE($B$25,"Overall care judgement - ","")&$B$6,Table3_data,$G$24,0)) -> 7 | H25: =IF($D25=0,"",G25/$D25*100) -> 6.194690265 | K25: =IF(ISERROR(VLOOKUP($D$7&D23&$B$4&SUBSTITUTE($B$25,"Overall care judgement - ","")&$B$6,Table3_data,$K$24,0))=TRUE,0,VLOOKUP($D$7&D23&$B$4&SUBSTITUTE($B$25,"Overall care judgement - ","")&$B$6,Table3_data,$K$24,0)) -> 57 | L25: =IF($D25=0,"",K25/$D25*100) -> 50.44247788 | O25: =IF(ISERROR(VLOOKUP($D$7&D23&$B$4&SUBSTITUTE($B$25,"Overall care judgement - ","")&$B$6,Table3_data,$O$24,0))=TRUE,0,VLOOKUP($D$7&D23&$B$4&SUBSTITUTE($B$25,"Overall care judgement - ","")&$B$6,Table3_data,$O$24,0)) -> 40 | P25: =IF($D25=0,"",O25/$D25*100) -> 35.39823009 | S25: =IF(ISERROR(VLOOKUP($D$7&D23&$B$4&SUBSTITUTE($B$25,"Overall care judgement - ","")&$B$6,Table3_data,$S$24,0))=TRUE,0,VLOOKUP($D$7&D23&$B$4&SUBSTITUTE($B$25,"Overall care judgement - ","")&$B$6,Table3_data,$S$24,0)) -> 9 | T25: =IF($D25=0,"",S25/$D25*100) -> 7.96460177
B27: Outcomes for children and young people | D27: =G27+K27+O27+S27 -> 113 | G27: =IF(ISERROR(VLOOKUP($D$7&$D$23&$B$4&SUBSTITUTE(B27,"Overall care judgement - ","")&$B$6,Table3_data,$G$24,0))=TRUE,0,VLOOKUP($D$7&$D$23&$B$4&SUBSTITUTE(B27,"Overall care judgement - ","")&$B$6,Table3_data,$G$24,0)) -> 12 | H27: =IF($D27=0,"",G27/$D27*100) -> 10.61946903 | K27: =IF(ISERROR(VLOOKUP($D$7&$D$23&$B$4&SUBSTITUTE(B27,"Overall care judgement - ","")&$B$6,Table3_data,$K$24,0))=TRUE,0,VLOOKUP($D$7&$D$23&$B$4&SUBSTITUTE(B27,"Overall care judgement - ","")&$B$6,Table3_data,$K$24,0)) -> 57 | L27: =IF($D27=0,"",K27/$D27*100) -> 50.44247788 | O27: =IF(ISERROR(VLOOKUP($D$7&$D$23&$B$4&SUBSTITUTE(B27,"Overall care judgement - ","")&$B$6,Table3_data,$O$24,0))=TRUE,0,VLOOKUP($D$7&$D$23&$B$4&SUBSTITUTE(B27,"Overall care judgement - ","")&$B$6,Table3_data,$O$24,0)) -> 42 | P27: =IF($D27=0,"",O27/$D27*100) -> 37.16814159 | S27: =IF(ISERROR(VLOOKUP($D$7&$D$23&$B$4&SUBSTITUTE(B27,"Overall care judgement - ","")&$B$6,Table3_data,$S$24,0))=TRUE,0,VLOOKUP($D$7&$D$23&$B$4&SUBSTITUTE(B27,"Overall care judgement - ","")&$B$6,Table3_data,$S$24,0)) -> 2 | T27: =IF($D27=0,"",S27/$D27*100) -> 1.769911504
B29: Quality of care | D29: 113 | G29: =IF(ISERROR(VLOOKUP($D$7&$D$23&$B$4&SUBSTITUTE(B29,"Overall care judgement - ","")&$B$6,Table3_data,$G$24,0))=TRUE,0,VLOOKUP($D$7&$D$23&$B$4&SUBSTITUTE(B29,"Overall care judgement - ","")&$B$6,Table3_data,$G$24,0)) -> 19 | H29: 16.81415929 | K29: =IF(ISERROR(VLOOKUP($D$7&$D$23&$B$4&SUBSTITUTE(B29,"Overall care judgement - ","")&$B$6,Table3_data,$K$24,0))=TRUE,0,VLOOKUP($D$7&$D$23&$B$4&SUBSTITUTE(B29,"Overall care judgement - ","")&$B$6,Table3_data,$K$24,0)) -> 59 | L29: 52.21238938 | O29: =IF(ISERROR(VLOOKUP($D$7&$D$23&$B$4&SUBSTITUTE(B29,"Overall care judgement - ","")&$B$6,Table3_data,$O$24,0))=TRUE,0,VLOOKUP($D$7&$D$23&$B$4&SUBSTITUTE(B29,"Overall care judgement - ","")&$B$6,Table3_data,$O$24,0)) -> 29 | P29: 25.66371681 | S29: =IF(ISERROR(VLOOKUP($D$7&$D$23&$B$4&SUBSTITUTE(B29,"Overall care judgement - ","")&$B$6,Table3_data,$S$24,0))=TRUE,0,VLOOKUP($D$7&$D$23&$B$4&SUBSTITUTE(B29,"Overall care judgement - ","")&$B$6,Table3_data,$S$24,0)) -> 6 | T29: 5.309734513
A31: The safety of children and young people | B31: Safeguarding children and young people | D31: 113 | G31: =IF(ISERROR(VLOOKUP($D$7&$D$23&$B$4&SUBSTITUTE(A31,"Overall care judgement - ","")&$B$6,Table3_data,$G$24,0))=TRUE,0,VLOOKUP($D$7&$D$23&$B$4&SUBSTITUTE(A31,"Overall care judgement - ","")&$B$6,Table3_data,$G$24,0)) -> 12 | H31: 10.61946903 | K31: =IF(ISERROR(VLOOKUP($D$7&$D$23&$B$4&SUBSTITUTE(A31,"Overall care judgement - ","")&$B$6,Table3_data,$K$24,0))=TRUE,0,VLOOKUP($D$7&$D$23&$B$4&SUBSTITUTE(A31,"Overall care judgement - ","")&$B$6,Table3_data,$K$24,0)) -> 56 | L31: 49.55752212 | O31: =IF(ISERROR(VLOOKUP($D$7&$D$23&$B$4&SUBSTITUTE(A31,"Overall care judgement - ","")&$B$6,Table3_data,$O$24,0))=TRUE,0,VLOOKUP($D$7&$D$23&$B$4&SUBSTITUTE(A31,"Overall care judgement - ","")&$B$6,Table3_data,$O$24,0)) -> 35 | P31: 30.97345133 | S31: =IF(ISERROR(VLOOKUP($D$7&$D$23&$B$4&SUBSTITUTE(A31,"Overall care judgement - ","")&$B$6,Table3_data,$S$24,0))=TRUE,0,VLOOKUP($D$7&$D$23&$B$4&SUBSTITUTE(A31,"Overall care judgement - ","")&$B$6,Table3_data,$S$24,0)) -> 10 | T31: 8.849557522
B33: Leadership and management | D33: 113 | G33: =IF(ISERROR(VLOOKUP($D$7&$D$23&$B$4&SUBSTITUTE(B33,"Overall care judgement - ","")&$B$6,Table3_data,$G$24,0))=TRUE,0,VLOOKUP($D$7&$D$23&$B$4&SUBSTITUTE(B33,"Overall care judgement - ","")&$B$6,Table3_data,$G$24,0)) -> 8 | H33: 7.079646018 | K33: =IF(ISERROR(VLOOKUP($D$7&$D$23&$B$4&SUBSTITUTE(B33,"Overall care judgement - ","")&$B$6,Table3_data,$K$24,0))=TRUE,0,VLOOKUP($D$7&$D$23&$B$4&SUBSTITUTE(B33,"Overall care judgement - ","")&$B$6,Table3_data,$K$24,0)) -> 58 | L33: 51.32743363 | O33: =IF(ISERROR(VLOOKUP($D$7&$D$23&$B$4&SUBSTITUTE(B33,"Overall care judgement - ","")&$B$6,Table3_data,$O$24,0))=TRUE,0,VLOOKUP($D$7&$D$23&$B$4&SUBSTITUTE(B33,"Overall care judgement - ","")&$B$6,Table3_data,$O$24,0)) -> 36 | P33: 31.85840708 | S33: =IF(ISERROR(VLOOKUP($D$7&$D$23&$B$4&SUBSTITUTE(B33,"Overall care judgement - ","")&$B$6,Table3_data,$S$24,0))=TRUE,0,VLOOKUP($D$7&$D$23&$B$4&SUBSTITUTE(B33,"Overall care judgement - ","")&$B$6,Table3_data,$S$24,0)) -> 11 | T33: 9.734513274
C35: Health authority
G36: 7 | K36: 8 | O36: 9 | S36: 10
B37: Overall effectiveness | D37: =G37+K37+O37+S37 -> 5 | G37: =IF(ISERROR(VLOOKUP($D$7&C$35&$B$4&SUBSTITUTE($B$37,"Overall care judgement - ","")&$B$6,Table3_data,$G$36,0))=TRUE,0,VLOOKUP($D$7&$C$35&$B$4&SUBSTITUTE($B$37,"Overall care judgement - ","")&$B$6,Table3_data,$G$36,0)) -> 0 | H37: =IF($D37=0,"",G37/$D37*100) -> 0 | K37: =IF(ISERROR(VLOOKUP($D$7&C$35&$B$4&SUBSTITUTE($B$37,"Overall care judgement - ","")&$B$6,Table3_data,$K$36,0))=TRUE,0,VLOOKUP($D$7&$C$35&$B$4&SUBSTITUTE($B$37,"Overall care judgement - ","")&$B$6,Table3_data,$K$36,0)) -> 2 | L37: =IF($D37=0,"",K37/$D37*100) -> 40 | O37: =IF(ISERROR(VLOOKUP($D$7&C$35&$B$4&SUBSTITUTE($B$37,"Overall care judgement - ","")&$B$6,Table3_data,$O$36,0))=TRUE,0,VLOOKUP($D$7&$C$35&$B$4&SUBSTITUTE($B$37,"Overall care judgement - ","")&$B$6,Table3_data,$O$36,0)) -> 3 | P37: =IF($D37=0,"",O37/$D37*100) -> 60 | S37: =IF(ISERROR(VLOOKUP($D$7&C$35&$B$4&SUBSTITUTE($B$37,"Overall care judgement - ","")&$B$6,Table3_data,$S$36,0))=TRUE,0,VLOOKUP($D$7&$C$35&$B$4&SUBSTITUTE($B$37,"Overall care judgement - ","")&$B$6,Table3_data,$S$36,0)) -> 0 | T37: =IF($D37=0,"",S37/$D37*100) -> 0
B39: Outcomes for children and young people | D39: =G39+K39+O39+S39 -> 5 | G39: =IF(ISERROR(VLOOKUP($D$7&C$35&$B$4&SUBSTITUTE($B$39,"Overall care judgement - ","")&$B$6,Table3_data,$G$36,0))=TRUE,0,VLOOKUP($D$7&$C$35&$B$4&SUBSTITUTE($B$39,"Overall care judgement - ","")&$B$6,Table3_data,$G$36,0)) -> 1 | H39: =IF($D39=0,"",G39/$D39*100) -> 20 | K39: =IF(ISERROR(VLOOKUP($D$7&C$35&$B$4&SUBSTITUTE($B$39,"Overall care judgement - ","")&$B$6,Table3_data,$K$36,0))=TRUE,0,VLOOKUP($D$7&$C$35&$B$4&SUBSTITUTE($B$39,"Overall care judgement - ","")&$B$6,Table3_data,$K$36,0)) -> 4 | L39: =IF($D39=0,"",K39/$D39*100) -> 80 | O39: =IF(ISERROR(VLOOKUP($D$7&C$35&$B$4&SUBSTITUTE($B$39,"Overall care judgement - ","")&$B$6,Table3_data,$O$36,0))=TRUE,0,VLOOKUP($D$7&$C$35&$B$4&SUBSTITUTE($B$39,"Overall care judgement - ","")&$B$6,Table3_data,$O$36,0)) -> 0 | P39: =IF($D39=0,"",O39/$D39*100) -> 0 | S39: =IF(ISERROR(VLOOKUP($D$7&C$35&$B$4&SUBSTITUTE($B$39,"Overall care judgement - ","")&$B$6,Table3_data,$S$36,0))=TRUE,0,VLOOKUP($D$7&$C$35&$B$4&SUBSTITUTE($B$39,"Overall care judgement - ","")&$B$6,Table3_data,$S$36,0)) -> 0 | T39: =IF($D39=0,"",S39/$D39*100) -> 0
B41: Quality of care | D41: 5 | G41: =IF(ISERROR(VLOOKUP($D$7&C$35&$B$4&SUBSTITUTE($B$41,"Overall care judgement - ","")&$B$6,Table3_data,$G$36,0))=TRUE,0,VLOOKUP($D$7&$C$35&$B$4&SUBSTITUTE($B$41,"Overall care judgement - ","")&$B$6,Table3_data,$G$36,0)) -> 1 | H41: 20 | K41: =IF(ISERROR(VLOOKUP($D$7&C$35&$B$4&SUBSTITUTE($B$41,"Overall care judgement - ","")&$B$6,Table3_data,$K$36,0))=TRUE,0,VLOOKUP($D$7&$C$35&$B$4&SUBSTITUTE($B$41,"Overall care judgement - ","")&$B$6,Table3_data,$K$36,0)) -> 2 | L41: 40 | O41: =IF(ISERROR(VLOOKUP($D$7&C$35&$B$4&SUBSTITUTE($B$41,"Overall care judgement - ","")&$B$6,Table3_data,$O$36,0))=TRUE,0,VLOOKUP($D$7&$C$35&$B$4&SUBSTITUTE($B$41,"Overall care judgement - ","")&$B$6,Table3_data,$O$36,0)) -> 2 | P41: 40 | S41: =IF(ISERROR(VLOOKUP($D$7&C$35&$B$4&SUBSTITUTE($B$41,"Overall care judgement - ","")&$B$6,Table3_data,$S$36,0))=TRUE,0,VLOOKUP($D$7&$C$35&$B$4&SUBSTITUTE($B$41,"Overall care judgement - ","")&$B$6,Table3_data,$S$36,0)) -> 0 | T41: 0
A43: The safety of children and young people | B43: Safeguarding children and young people | D43: 5 | G43: =IF(ISERROR(VLOOKUP($D$7&C$35&$B$4&SUBSTITUTE($A$43,"Overall care judgement - ","")&$B$6,Table3_data,$G$36,0))=TRUE,0,VLOOKUP($D$7&$C$35&$B$4&SUBSTITUTE($A$43,"Overall care judgement - ","")&$B$6,Table3_data,$G$36,0)) -> 0 | H43: 0 | K43: =IF(ISERROR(VLOOKUP($D$7&C$35&$B$4&SUBSTITUTE($A$43,"Overall care judgement - ","")&$B$6,Table3_data,$K$36,0))=TRUE,0,VLOOKUP($D$7&$C$35&$B$4&SUBSTITUTE($A$43,"Overall care judgement - ","")&$B$6,Table3_data,$K$36,0)) -> 2 | L43: 40 | O43: =IF(ISERROR(VLOOKUP($D$7&C$35&$B$4&SUBSTITUTE($A$43,"Overall care judgement - ","")&$B$6,Table3_data,$O$36,0))=TRUE,0,VLOOKUP($D$7&$C$35&$B$4&SUBSTITUTE($A$43,"Overall care judgement - ","")&$B$6,Table3_data,$O$36,0)) -> 3 | P43: 60 | S43: =IF(ISERROR(VLOOKUP($D$7&C$35&$B$4&SUBSTITUTE($A$43,"Overall care judgement - ","")&$B$6,Table3_data,$S$36,0))=TRUE,0,VLOOKUP($D$7&$C$35&$B$4&SUBSTITUTE($A$43,"Overall care judgement - ","")&$B$6,Table3_data,$S$36,0)) -> 0 | T43: 0
B45: Leadership and management | D45: 5 | G45: =IF(ISERROR(VLOOKUP($D$7&C$35&$B$4&SUBSTITUTE($B$45,"Overall care judgement - ","")&$B$6,Table3_data,$G$36,0))=TRUE,0,VLOOKUP($D$7&$C$35&$B$4&SUBSTITUTE($B$45,"Overall care judgement - ","")&$B$6,Table3_data,$G$36,0)) -> 0 | H45: 0 | K45: =IF(ISERROR(VLOOKUP($D$7&C$35&$B$4&SUBSTITUTE($B$45,"Overall care judgement - ","")&$B$6,Table3_data,$K$36,0))=TRUE,0,VLOOKUP($D$7&$C$35&$B$4&SUBSTITUTE($B$45,"Overall care judgement - ","")&$B$6,Table3_data,$K$36,0)) -> 1 | L45: 20 | O45: =IF(ISERROR(VLOOKUP($D$7&C$35&$B$4&SUBSTITUTE($B$45,"Overall care judgement - ","")&$B$6,Table3_data,$O$36,0))=TRUE,0,VLOOKUP($D$7&$C$35&$B$4&SUBSTITUTE($B$45,"Overall care judgement - ","")&$B$6,Table3_data,$O$36,0)) -> 2 | P45: 40 | S45: =IF(ISERROR(VLOOKUP($D$7&C$35&$B$4&SUBSTITUTE($B$45,"Overall care judgement - ","")&$B$6,Table3_data,$S$36,0))=TRUE,0,VLOOKUP($D$7&$C$35&$B$4&SUBSTITUTE($B$45,"Overall care judgement - ","")&$B$6,Table3_data,$S$36,0)) -> 2 | T45: 40
C47: Private/ voluntary
G48: 7 | K48: 8 | O48: 9 | S48: 10
B49: Overall effectiveness | D49: =G49+K49+O49+S49 -> 404 | G49: =IF(ISERROR(VLOOKUP($D$7&C$47&$B$4&SUBSTITUTE($B$49,"Overall care judgement - ","")&$B$6,Table3_data,$G$48,0))=TRUE,0,VLOOKUP($D$7&$C$47&$B$4&SUBSTITUTE($B$49,"Overall care judgement - ","")&$B$6,Table3_data,$G$48,0)) -> 38 | H49: =IF($D49=0,"",G49/$D49*100) -> 9.405940594 | K49: =IF(ISERROR(VLOOKUP($D$7&C$47&$B$4&SUBSTITUTE($B$49,"Overall care judgement - ","")&$B$6,Table3_data,$K$48,0))=TRUE,0,VLOOKUP($D$7&$C$47&$B$4&SUBSTITUTE($B$49,"Overall care judgement - ","")&$B$6,Table3_data,$K$48,0)) -> 212 | L49: =IF($D49=0,"",K49/$D49*100) -> 52.47524752 | O49: =IF(ISERROR(VLOOKUP($D$7&C$47&$B$4&SUBSTITUTE($B$49,"Overall care judgement - ","")&$B$6,Table3_data,$O$48,0))=TRUE,0,VLOOKUP($D$7&$C$47&$B$4&SUBSTITUTE($B$49,"Overall care judgement - ","")&$B$6,Table3_data,$O$48,0)) -> 122 | P49: =IF($D49=0,"",O49/$D49*100) -> 30.1980198 | S49: =IF(ISERROR(VLOOKUP($D$7&C$47&$B$4&SUBSTITUTE($B$49,"Overall care judgement - ","")&$B$6,Table3_data,$S$48,0))=TRUE,0,VLOOKUP($D$7&$C$47&$B$4&SUBSTITUTE($B$49,"Overall care judgement - ","")&$B$6,Table3_data,$S$48,0)) -> 32 | T49: =IF($D49=0,"",S49/$D49*100) -> 7.920792079
B51: Outcomes for children and young people | D51: =G51+K51+O51+S51 -> 404 | G51: =IF(ISERROR(VLOOKUP($D$7&C$47&$B$4&SUBSTITUTE($B$51,"Overall care judgement - ","")&$B$6,Table3_data,$G$48,0))=TRUE,0,VLOOKUP($D$7&$C$47&$B$4&SUBSTITUTE($B$51,"Overall care judgement - ","")&$B$6,Table3_data,$G$48,0)) -> 56 | H51: =IF($D51=0,"",G51/$D51*100) -> 13.86138614 | K51: =IF(ISERROR(VLOOKUP($D$7&C$47&$B$4&SUBSTITUTE($B$51,"Overall care judgement - ","")&$B$6,Table3_data,$K$48,0))=TRUE,0,VLOOKUP($D$7&$C$47&$B$4&SUBSTITUTE($B$51,"Overall care judgement - ","")&$B$6,Table3_data,$K$48,0)) -> 211 | L51: =IF($D51=0,"",K51/$D51*100) -> 52.22772277 | O51: =IF(ISERROR(VLOOKUP($D$7&C$47&$B$4&SUBSTITUTE($B$51,"Overall care judgement - ","")&$B$6,Table3_data,$O$48,0))=TRUE,0,VLOOKUP($D$7&$C$47&$B$4&SUBSTITUTE($B$51,"Overall care judgement - ","")&$B$6,Table3_data,$O$48,0)) -> 120 | P51: =IF($D51=0,"",O51/$D51*100) -> 29.7029703 | S51: =IF(ISERROR(VLOOKUP($D$7&C$47&$B$4&SUBSTITUTE($B$51,"Overall care judgement - ","")&$B$6,Table3_data,$S$48,0))=TRUE,0,VLOOKUP($D$7&$C$47&$B$4&SUBSTITUTE($B$51,"Overall care judgement - ","")&$B$6,Table3_data,$S$48,0)) -> 17 | T51: =IF($D51=0,"",S51/$D51*100) -> 4.207920792
B53: Quality of care | D53: 404 | G53: =IF(ISERROR(VLOOKUP($D$7&C$47&$B$4&SUBSTITUTE($B$53,"Overall care judgement - ","")&$B$6,Table3_data,$G$48,0))=TRUE,0,VLOOKUP($D$7&$C$47&$B$4&SUBSTITUTE($B$53,"Overall care judgement - ","")&$B$6,Table3_data,$G$48,0)) -> 65 | H53: 16.08910891 | K53: =IF(ISERROR(VLOOKUP($D$7&C$47&$B$4&SUBSTITUTE($B$53,"Overall care judgement - ","")&$B$6,Table3_data,$K$48,0))=TRUE,0,VLOOKUP($D$7&$C$47&$B$4&SUBSTITUTE($B$53,"Overall care judgement - ","")&$B$6,Table3_data,$K$48,0)) -> 222 | L53: 54.95049505 | O53: =IF(ISERROR(VLOOKUP($D$7&C$47&$B$4&SUBSTITUTE($B$53,"Overall care judgement - ","")&$B$6,Table3_data,$O$48,0))=TRUE,0,VLOOKUP($D$7&$C$47&$B$4&SUBSTITUTE($B$53,"Overall care judgement - ","")&$B$6,Table3_data,$O$48,0)) -> 92 | P53: 22.77227723 | S53: =IF(ISERROR(VLOOKUP($D$7&C$47&$B$4&SUBSTITUTE($B$53,"Overall care judgement - ","")&$B$6,Table3_data,$S$48,0))=TRUE,0,VLOOKUP($D$7&$C$47&$B$4&SUBSTITUTE($B$53,"Overall care judgement - ","")&$B$6,Table3_data,$S$48,0)) -> 25 | T53: 6.188118812
A55: The safety of children and young people | B55: Safeguarding children and young people | D55: 404 | G55: =IF(ISERROR(VLOOKUP($D$7&C$47&$B$4&SUBSTITUTE($A$55,"Overall care judgement - ","")&$B$6,Table3_data,$G$48,0))=TRUE,0,VLOOKUP($D$7&$C$47&$B$4&SUBSTITUTE($A$55,"Overall care judgement - ","")&$B$6,Table3_data,$G$48,0)) -> 52 | H55: 12.87128713 | K55: =IF(ISERROR(VLOOKUP($D$7&C$47&$B$4&SUBSTITUTE($A$55,"Overall care judgement - ","")&$B$6,Table3_data,$K$48,0))=TRUE,0,VLOOKUP($D$7&$C$47&$B$4&SUBSTITUTE($A$55,"Overall care judgement - ","")&$B$6,Table3_data,$K$48,0)) -> 218 | L55: 53.96039604 | O55: =IF(ISERROR(VLOOKUP($D$7&C$47&$B$4&SUBSTITUTE($A$55,"Overall care judgement - ","")&$B$6,Table3_data,$O$48,0))=TRUE,0,VLOOKUP($D$7&$C$47&$B$4&SUBSTITUTE($A$55,"Overall care judgement - ","")&$B$6,Table3_data,$O$48,0)) -> 104 | P55: 25.74257426 | S55: =IF(ISERROR(VLOOKUP($D$7&C$47&$B$4&SUBSTITUTE($A$55,"Overall care judgement - ","")&$B$6,Table3_data,$S$48,0))=TRUE,0,VLOOKUP($D$7&$C$47&$B$4&SUBSTITUTE($A$55,"Overall care judgement - ","")&$B$6,Table3_data,$S$48,0)) -> 30 | T55: 7.425742574
B57: Leadership and management | D57: 404 | G57: =IF(ISERROR(VLOOKUP($D$7&C$47&$B$4&SUBSTITUTE($B$57,"Overall care judgement - ","")&$B$6,Table3_data,$G$48,0))=TRUE,0,VLOOKUP($D$7&$C$47&$B$4&SUBSTITUTE($B$57,"Overall care judgement - ","")&$B$6,Table3_data,$G$48,0)) -> 45 | H57: 11.13861386 | K57: =IF(ISERROR(VLOOKUP($D$7&C$47&$B$4&SUBSTITUTE($B$57,"Overall care judgement - ","")&$B$6,Table3_data,$K$48,0))=TRUE,0,VLOOKUP($D$7&$C$47&$B$4&SUBSTITUTE($B$57,"Overall care judgement - ","")&$B$6,Table3_data,$K$48,0)) -> 191 | L57: 47.27722772 | O57: =IF(ISERROR(VLOOKUP($D$7&C$47&$B$4&SUBSTITUTE($B$57,"Overall care judgement - ","")&$B$6,Table3_data,$O$48,0))=TRUE,0,VLOOKUP($D$7&$C$47&$B$4&SUBSTITUTE($B$57,"Overall care judgement - ","")&$B$6,Table3_data,$O$48,0)) -> 128 | P57: 31.68316832 | S57: =IF(ISERROR(VLOOKUP($D$7&C$47&$B$4&SUBSTITUTE($B$57,"Overall care judgement - ","")&$B$6,Table3_data,$S$48,0))=TRUE,0,VLOOKUP($D$7&$C$47&$B$4&SUBSTITUTE($B$57,"Overall care judgement - ","")&$B$6,Table3_data,$S$48,0)) -> 40 | T57: 9.900990099
S59: Source: Ofsted inspections
B61: 1. These figures include those children's homes run by the local authority, and those that are run by health authorities, private or voluntary organisations located in the local authority area.
B62: 2. Residential special schools that care for pupils for more than 295 days per year must register as children's homes.

Sheet Table 3b
A1: =B2 -> Table 3b: Full inspection outcomes of secure children's homes inspected between 1 April 2012 - 30 June 2012 (provisional)¹
B2: =IF(ISERROR(VLOOKUP(D4,Ranges!F1:G12,2,0)), "Table 3b: Full inspection outcomes of secure children's homes inspected between "&D4 & " (provisional)"&CHAR(185),"Table 3b: Full inspection outcomes of secure children's homes inspected in "&D4 & " (provisional)"&CHAR(185)) -> Table 3b: Full inspection outcomes of secure children's homes inspected between 1 April 2012 - 30 June 2012 (provisional)¹
B3: Secure children's home
B4: Select period: | D4: 1 April 2012 - 30 June 2012
B5: =VLOOKUP(D4,Periods,2,0) -> 4
B6: Select local authority: | D6: All | T6: =IF($D$6="All", "England",$D$6) -> England
G7: all
D8: All sectors
D9: Total number inspected | G9: Outstanding | K9: Good | O9: Adequate | S9: Inadequate
G10: Number | H10: % | K10: Number | L10: % | O10: Number | P10: % | S10: Number | T10: %
G11: 7 | K11: 8 | O11: 9 | S11: 10
B12: Overall effectiveness | D12: =G12+K12+O12+S12 -> 7 | G12: =IF(ISERROR(VLOOKUP($D$6&G7&$B$3&SUBSTITUTE($B$12,"Overall care judgement - ","")&$B$5,Table3_data,$G$11,0))=TRUE,0,VLOOKUP($D$6&G7&$B$3&SUBSTITUTE($B$12,"Overall care judgement - ","")&$B$5,Table3_data,$G$11,0)) -> 1 | H12: =IF($D12=0,"",G12/$D12*100) -> 14.28571429 | K12: =IF(ISERROR(VLOOKUP($D$6&$G$7&$B$3&SUBSTITUTE($B$12,"Overall care judgement - ","")&$B$5,Table3_data,$K$11,0))=TRUE,0,VLOOKUP($D$6&$G$7&$B$3&SUBSTITUTE($B$12,"Overall care judgement - ","")&$B$5,Table3_data,$K$11,0)) -> 4 | L12: =IF($D12=0,"",K12/$D12*100) -> 57.14285714 | O12: =IF(ISERROR(VLOOKUP($D$6&$G$7&$B$3&SUBSTITUTE($B$12,"Overall care judgement - ","")&$B$5,Table3_data,$O$11,0))=TRUE,0,VLOOKUP($D$6&$G$7&$B$3&SUBSTITUTE($B$12,"Overall care judgement - ","")&$B$5,Table3_data,$O$11,0)) -> 2 | P12: =IF($D12=0,"",O12/$D12*100) -> 28.57142857 | S12: =IF(ISERROR(VLOOKUP($D$6&$G$7&$B$3&SUBSTITUTE($B$12,"Overall care judgement - ","")&$B$5,Table3_data,$S$11,0))=TRUE,0,VLOOKUP($D$6&$G$7&$B$3&SUBSTITUTE($B$12,"Overall care judgement - ","")&$B$5,Table3_data,$S$11,0)) -> 0 | T12: =IF($D12=0,"",S12/$D12*100) -> 0
B14: Outcomes for children and young people | D14: =G14+K14+O14+S14 -> 7 | G14: =IF(ISERROR(VLOOKUP($D$6&G7&$B$3&B14&$B$5,Table3_data,$G$11,0))=TRUE,0,VLOOKUP($D$6&G7&$B$3&B14&$B$5,Table3_data,$G$11,0)) -> 1 | H14: =IF($D14=0,"",G14/$D14*100) -> 14.28571429 | K14: =IF(ISERROR(VLOOKUP($D$6&$G$7&$B$3&SUBSTITUTE($B$14,"Overall care judgement - ","")&$B$5,Table3_data,$K$11,0))=TRUE,0,VLOOKUP($D$6&$G$7&$B$3&SUBSTITUTE($B$14,"Overall care judgement - ","")&$B$5,Table3_data,$K$11,0)) -> 6 | L14: =IF($D14=0,"",K14/$D14*100) -> 85.71428571 | O14: =IF(ISERROR(VLOOKUP($D$6&$G$7&$B$3&SUBSTITUTE($B$14,"Overall care judgement - ","")&$B$5,Table3_data,$O$11,0))=TRUE,0,VLOOKUP($D$6&$G$7&$B$3&SUBSTITUTE($B$14,"Overall care judgement - ","")&$B$5,Table3_data,$O$11,0)) -> 0 | P14: =IF($D14=0,"",O14/$D14*100) -> 0 | S14: =IF(ISERROR(VLOOKUP($D$6&$G$7&$B$3&SUBSTITUTE($B$14,"Overall care judgement - ","")&$B$5,Table3_data,$S$11,0))=TRUE,0,VLOOKUP($D$6&$G$7&$B$3&SUBSTITUTE($B$14,"Overall care judgement - ","")&$B$5,Table3_data,$S$11,0)) -> 0 | T14: =IF($D14=0,"",S14/$D14*100) -> 0
A16: Quality of service | B16: Quality of care | D16: 7 | G16: =IF(ISERROR(VLOOKUP($D$6&G7&$B$3&B16&$B$5,Table3_data,$G$11,0))=TRUE,0,VLOOKUP($D$6&G7&$B$3&B16&$B$5,Table3_data,$G$11,0)) -> 1 | H16: 14.28571429 | K16: =IF(ISERROR(VLOOKUP($D$6&$G$7&$B$3&SUBSTITUTE($B$12,"Overall care judgement - ","")&$B$5,Table3_data,$K$11,0))=TRUE,0,VLOOKUP($D$6&$G$7&$B$3&SUBSTITUTE($B$12,"Overall care judgement - ","")&$B$5,Table3_data,$K$11,0)) -> 4 | L16: 57.14285714 | O16: =IF(ISERROR(VLOOKUP($D$6&$G$7&$B$3&SUBSTITUTE($B$16,"Overall care judgement - ","")&$B$5,Table3_data,$O$11,0))=TRUE,0,VLOOKUP($D$6&$G$7&$B$3&SUBSTITUTE($B$16,"Overall care judgement - ","")&$B$5,Table3_data,$O$11,0)) -> 2 | P16: 28.57142857 | S16: =IF(ISERROR(VLOOKUP($D$6&$G$7&$B$3&SUBSTITUTE($B$16,"Overall care judgement - ","")&$B$5,Table3_data,$S$11,0))=TRUE,0,VLOOKUP($D$6&$G$7&$B$3&SUBSTITUTE($B$16,"Overall care judgement - ","")&$B$5,Table3_data,$S$11,0)) -> 0 | T16: 0
A18: The safety of children and young people | B18: Safeguarding children and young people | D18: 7 | G18: =IF(ISERROR(VLOOKUP($D$6&G7&$B$3&A18&$B$5,Table3_data,$G$11,0))=TRUE,0,VLOOKUP($D$6&G7&$B$3&A18&$B$5,Table3_data,$G$11,0)) -> 1 | H18: 14.28571429 | K18: =IF(ISERROR(VLOOKUP($D$6&$G$7&$B$3&SUBSTITUTE($B$12,"Overall care judgement - ","")&$B$5,Table3_data,$K$11,0))=TRUE,0,VLOOKUP($D$6&$G$7&$B$3&SUBSTITUTE($B$12,"Overall care judgement - ","")&$B$5,Table3_data,$K$11,0)) -> 4 | L18: 57.14285714 | O18: =IF(ISERROR(VLOOKUP($D$6&$G$7&$B$3&SUBSTITUTE($A$18,"Overall care judgement - ","")&$B$5,Table3_data,$O$11,0))=TRUE,0,VLOOKUP($D$6&$G$7&$B$3&SUBSTITUTE($A$18,"Overall care judgement - ","")&$B$5,Table3_data,$O$11,0)) -> 2 | P18: 28.57142857 | S18: =IF(ISERROR(VLOOKUP($D$6&$G$7&$B$3&SUBSTITUTE($A$18,"Overall care judgement - ","")&$B$5,Table3_data,$S$11,0))=TRUE,0,VLOOKUP($D$6&$G$7&$B$3&SUBSTITUTE($A$18,"Overall care judgement - ","")&$B$5,Table3_data,$S$11,0)) -> 0 | T18: 0
B20: Leadership and management | D20: 7 | G20: =IF(ISERROR(VLOOKUP($D$6&G7&$B$3&B20&$B$5,Table3_data,$G$11,0))=TRUE,0,VLOOKUP($D$6&G7&$B$3&B20&$B$5,Table3_data,$G$11,0)) -> 1 | H20: 14.28571429 | K20: =IF(ISERROR(VLOOKUP($D$6&$G$7&$B$3&SUBSTITUTE($B$12,"Overall care judgement - ","")&$B$5,Table3_data,$K$11,0))=TRUE,0,VLOOKUP($D$6&$G$7&$B$3&SUBSTITUTE($B$12,"Overall care judgement - ","")&$B$5,Table3_data,$K$11,0)) -> 4 | L20: 57.14285714 | O20: =IF(ISERROR(VLOOKUP($D$6&$G$7&$B$3&SUBSTITUTE($B$20,"Overall care judgement - ","")&$B$5,Table3_data,$O$11,0))=TRUE,0,VLOOKUP($D$6&$G$7&$B$3&SUBSTITUTE($B$20,"Overall care judgement - ","")&$B$5,Table3_data,$O$11,0)) -> 2 | P20: 28.57142857 | S20: =IF(ISERROR(VLOOKUP($D$6&$G$7&$B$3&SUBSTITUTE($B$20,"Overall care judgement - ","")&$B$5,Table3_data,$S$11,0))=TRUE,0,VLOOKUP($D$6&$G$7&$B$3&SUBSTITUTE($B$20,"Overall care judgement - ","")&$B$5,Table3_data,$S$11,0)) -> 0 | T20: 0
D22: Local authority
G23: 7 | H23: 7 | K23: 8 | L23: 8 | O23: 9 | P23: 9 | S23: 10 | T23: 10
B24: Overall effectiveness | D24: =G24+K24+O24+S24 -> 7 | G24: =IF(ISERROR(VLOOKUP($D$6&$D$22&$B$3&SUBSTITUTE($B$24,"Overall care judgement - ","")&$B$5,Table3_data,$G$23,0))=TRUE,0,VLOOKUP($D$6&$D$22&$B$3&SUBSTITUTE($B$24,"Overall care judgement - ","")&$B$5,Table3_data,$G$23,0)) -> 1 | H24: =IF($D24=0,"",G24/$D24*100) -> 14.28571429 | K24: =IF(ISERROR(VLOOKUP($D$6&$D$22&$B$3&SUBSTITUTE($B$24,"Overall care judgement - ","")&$B$5,Table3_data,$K$23,0))=TRUE,0,VLOOKUP($D$6&$D$22&$B$3&SUBSTITUTE($B$24,"Overall care judgement - ","")&$B$5,Table3_data,$K$23,0)) -> 4 | L24: =IF($D24=0,"",K24/$D24*100) -> 57.14285714 | O24: =IF(ISERROR(VLOOKUP($D$6&$D$22&$B$3&SUBSTITUTE($B$24,"Overall care judgement - ","")&$B$5,Table3_data,$O$23,0))=TRUE,0,VLOOKUP($D$6&$D$22&$B$3&SUBSTITUTE($B$24,"Overall care judgement - ","")&$B$5,Table3_data,$O$23,0)) -> 2 | P24: =IF($D24=0,"",O24/$D24*100) -> 28.57142857 | S24: =IF(ISERROR(VLOOKUP($D$6&$D$22&$B$3&SUBSTITUTE($B$24,"Overall care judgement - ","")&$B$5,Table3_data,$S$23,0))=TRUE,0,VLOOKUP($D$6&$D$22&$B$3&SUBSTITUTE($B$24,"Overall care judgement - ","")&$B$5,Table3_data,$S$23,0)) -> 0 | T24: =IF($D24=0,"",S24/$D24*100) -> 0
B26: Outcomes for children and young people | D26: =G26+K26+O26+S26 -> 7 | G26: =IF(ISERROR(VLOOKUP($D$6&$D$22&$B$3&SUBSTITUTE($B$26,"Overall care judgement - ","")&$B$5,Table3_data,$G$23,0))=TRUE,0,VLOOKUP($D$6&$D$22&$B$3&SUBSTITUTE($B$26,"Overall care judgement - ","")&$B$5,Table3_data,$G$23,0)) -> 1 | H26: =IF($D26=0,"",G26/$D26*100) -> 14.28571429 | K26: =IF(ISERROR(VLOOKUP($D$6&$D$22&$B$3&SUBSTITUTE($B$26,"Overall care judgement - ","")&$B$5,Table3_data,$K$23,0))=TRUE,0,VLOOKUP($D$6&$D$22&$B$3&SUBSTITUTE($B$26,"Overall care judgement - ","")&$B$5,Table3_data,$K$23,0)) -> 6 | L26: =IF($D26=0,"",K26/$D26*100) -> 85.71428571 | O26: =IF(ISERROR(VLOOKUP($D$6&$D$22&$B$3&SUBSTITUTE($B$26,"Overall care judgement - ","")&$B$5,Table3_data,$O$23,0))=TRUE,0,VLOOKUP($D$6&$D$22&$B$3&SUBSTITUTE($B$26,"Overall care judgement - ","")&$B$5,Table3_data,$O$23,0)) -> 0 | P26: =IF($D26=0,"",O26/$D26*100) -> 0 | S26: =IF(ISERROR(VLOOKUP($D$6&$D$22&$B$3&SUBSTITUTE($B$26,"Overall care judgement - ","")&$B$5,Table3_data,$S$23,0))=TRUE,0,VLOOKUP($D$6&$D$22&$B$3&SUBSTITUTE($B$26,"Overall care judgement - ","")&$B$5,Table3_data,$S$23,0)) -> 0 | T26: =IF($D26=0,"",S26/$D26*100) -> 0
B28: Quality of care | D28: 7 | G28: =IF(ISERROR(VLOOKUP($D$6&$D$22&$B$3&SUBSTITUTE($B$28,"Overall care judgement - ","")&$B$5,Table3_data,$G$23,0))=TRUE,0,VLOOKUP($D$6&$D$22&$B$3&SUBSTITUTE($B$28,"Overall care judgement - ","")&$B$5,Table3_data,$G$23,0)) -> 1 | H28: 14.28571429 | K28: =IF(ISERROR(VLOOKUP($D$6&$D$22&$B$3&SUBSTITUTE($B$28,"Overall care judgement - ","")&$B$5,Table3_data,$K$23,0))=TRUE,0,VLOOKUP($D$6&$D$22&$B$3&SUBSTITUTE($B$28,"Overall care judgement - ","")&$B$5,Table3_data,$K$23,0)) -> 4 | L28: 57.14285714 | O28: =IF(ISERROR(VLOOKUP($D$6&$D$22&$B$3&SUBSTITUTE($B$28,"Overall care judgement - ","")&$B$5,Table3_data,$O$23,0))=TRUE,0,VLOOKUP($D$6&$D$22&$B$3&SUBSTITUTE($B$28,"Overall care judgement - ","")&$B$5,Table3_data,$O$23,0)) -> 2 | P28: 28.57142857 | S28: =IF(ISERROR(VLOOKUP($D$6&$D$22&$B$3&SUBSTITUTE($B$28,"Overall care judgement - ","")&$B$5,Table3_data,$S$23,0))=TRUE,0,VLOOKUP($D$6&$D$22&$B$3&SUBSTITUTE($B$28,"Overall care judgement - ","")&$B$5,Table3_data,$S$23,0)) -> 0 | T28: 0
A30: The safety of children and young people | B30: Safeguarding children and young people | D30: 7 | G30: =IF(ISERROR(VLOOKUP($D$6&$D$22&$B$3&SUBSTITUTE($A$30,"Overall care judgement - ","")&$B$5,Table3_data,$G$23,0))=TRUE,0,VLOOKUP($D$6&$D$22&$B$3&SUBSTITUTE($A$30,"Overall care judgement - ","")&$B$5,Table3_data,$G$23,0)) -> 1 | H30: 14.28571429 | K30: =IF(ISERROR(VLOOKUP($D$6&$D$22&$B$3&SUBSTITUTE($A$30,"Overall care judgement - ","")&$B$5,Table3_data,$K$23,0))=TRUE,0,VLOOKUP($D$6&$D$22&$B$3&SUBSTITUTE($A$30,"Overall care judgement - ","")&$B$5,Table3_data,$K$23,0)) -> 4 | L30: 57.14285714 | O30: =IF(ISERROR(VLOOKUP($D$6&$D$22&$B$3&SUBSTITUTE($A$30,"Overall care judgement - ","")&$B$5,Table3_data,$O$23,0))=TRUE,0,VLOOKUP($D$6&$D$22&$B$3&SUBSTITUTE($A$30,"Overall care judgement - ","")&$B$5,Table3_data,$O$23,0)) -> 2 | P30: 28.57142857 | S30: =IF(ISERROR(VLOOKUP($D$6&$D$22&$B$3&SUBSTITUTE($A$30,"Overall care judgement - ","")&$B$5,Table3_data,$S$23,0))=TRUE,0,VLOOKUP($D$6&$D$22&$B$3&SUBSTITUTE($A$30,"Overall care judgement - ","")&$B$5,Table3_data,$S$23,0)) -> 0 | T30: 0
B32: Leadership and management | D32: 7 | G32: =IF(ISERROR(VLOOKUP($D$6&$D$22&$B$3&SUBSTITUTE($B$32,"Overall care judgement - ","")&$B$5,Table3_data,$G$23,0))=TRUE,0,VLOOKUP($D$6&$D$22&$B$3&SUBSTITUTE($B$32,"Overall care judgement - ","")&$B$5,Table3_data,$G$23,0)) -> 1 | H32: 14.28571429 | K32: =IF(ISERROR(VLOOKUP($D$6&$D$22&$B$3&SUBSTITUTE($B$32,"Overall care judgement - ","")&$B$5,Table3_data,$K$23,0))=TRUE,0,VLOOKUP($D$6&$D$22&$B$3&SUBSTITUTE($B$32,"Overall care judgement - ","")&$B$5,Table3_data,$K$23,0)) -> 4 | L32: 57.14285714 | O32: =IF(ISERROR(VLOOKUP($D$6&$D$22&$B$3&SUBSTITUTE($B$32,"Overall care judgement - ","")&$B$5,Table3_data,$O$23,0))=TRUE,0,VLOOKUP($D$6&$D$22&$B$3&SUBSTITUTE($B$32,"Overall care judgement - ","")&$B$5,Table3_data,$O$23,0)) -> 2 | P32: 28.57142857 | S32: =IF(ISERROR(VLOOKUP($D$6&$D$22&$B$3&SUBSTITUTE($B$32,"Overall care judgement - ","")&$B$5,Table3_data,$S$23,0))=TRUE,0,VLOOKUP($D$6&$D$22&$B$3&SUBSTITUTE($B$32,"Overall care judgement - ","")&$B$5,Table3_data,$S$23,0)) -> 0 | T32: 0
D33: Health authority
H34: 7 | L34: 8 | P34: 9 | T34: 10
B35: Overall effectiveness | D35: =G35+K35+O35+S35 -> 0 | G35: =IF(ISERROR(VLOOKUP($D$6&$D$33&$B$3&SUBSTITUTE($B$35,"Overall care judgement - ","")&$B$5,Table3_data,G34,0))=TRUE,0,VLOOKUP($D$6&$D$33&$B$3&SUBSTITUTE($B$35,"Overall care judgement - ","")&$B$5,Table3_data,G34,0)) -> 0 | H35: =IF($D35=0,"",G35/$D35*100) ->  | J35: =IF(ISERROR(VLOOKUP($D$6&$D$33&$B$3&SUBSTITUTE($B$35,"Overall care judgement - ","")&$B$5,Table3_data,J34,0))=TRUE,0,VLOOKUP($D$6&$D$33&$B$3&SUBSTITUTE($B$35,"Overall care judgement - ","")&$B$5,Table3_data,J34,0)) -> 0 | K35: =IF(ISERROR(VLOOKUP($D$6&$D$33&$B$3&SUBSTITUTE($B$35,"Overall care judgement - ","")&$B$5,Table3_data,K34,0))=TRUE,0,VLOOKUP($D$6&$D$33&$B$3&SUBSTITUTE($B$35,"Overall care judgement - ","")&$B$5,Table3_data,K34,0)) -> 0 | L35: =IF($D35=0,"",K35/$D35*100) ->  | N35: =IF(ISERROR(VLOOKUP($D$6&$D$33&$B$3&SUBSTITUTE($B$35,"Overall care judgement - ","")&$B$5,Table3_data,N34,0))=TRUE,0,VLOOKUP($D$6&$D$33&$B$3&SUBSTITUTE($B$35,"Overall care judgement - ","")&$B$5,Table3_data,N34,0)) -> 0 | O35: =IF(ISERROR(VLOOKUP($D$6&$D$33&$B$3&SUBSTITUTE($B$35,"Overall care judgement - ","")&$B$5,Table3_data,O34,0))=TRUE,0,VLOOKUP($D$6&$D$33&$B$3&SUBSTITUTE($B$35,"Overall care judgement - ","")&$B$5,Table3_data,O34,0)) -> 0 | P35: =IF($D35=0,"",O35/$D35*100) ->  | R35: =IF(ISERROR(VLOOKUP($D$6&$D$33&$B$3&SUBSTITUTE($B$35,"Overall care judgement - ","")&$B$5,Table3_data,R34,0))=TRUE,0,VLOOKUP($D$6&$D$33&$B$3&SUBSTITUTE($B$35,"Overall care judgement - ","")&$B$5,Table3_data,R34,0)) -> 0 | S35: =IF(ISERROR(VLOOKUP($D$6&$D$33&$B$3&SUBSTITUTE($B$35,"Overall care judgement - ","")&$B$5,Table3_data,S34,0))=TRUE,0,VLOOKUP($D$6&$D$33&$B$3&SUBSTITUTE($B$35,"Overall care judgement - ","")&$B$5,Table3_data,S34,0)) -> 0 | T35: =IF($D35=0,"",S35/$D35*100) -> 
B37: Outcomes for children and young people | D37: =G37+K37+O37+S37 -> 0 | G37: =IF(ISERROR(VLOOKUP($D$6&$D$33&$B$3&SUBSTITUTE($B$37,"Overall care judgement - ","")&$B$5,Table3_data,G34,0))=TRUE,0,VLOOKUP($D$6&$D$33&$B$3&SUBSTITUTE($B$37,"Overall care judgement - ","")&$B$5,Table3_data,G34,0)) -> 0 | H37: =IF($D37=0,"",G37/$D37*100) ->  | J37: =IF(ISERROR(VLOOKUP($D$6&$D$33&$B$3&SUBSTITUTE($B$37,"Overall care judgement - ","")&$B$5,Table3_data,J34,0))=TRUE,0,VLOOKUP($D$6&$D$33&$B$3&SUBSTITUTE($B$37,"Overall care judgement - ","")&$B$5,Table3_data,J34,0)) -> 0 | K37: =IF(ISERROR(VLOOKUP($D$6&$D$33&$B$3&SUBSTITUTE($B$37,"Overall care judgement - ","")&$B$5,Table3_data,K34,0))=TRUE,0,VLOOKUP($D$6&$D$33&$B$3&SUBSTITUTE($B$37,"Overall care judgement - ","")&$B$5,Table3_data,K34,0)) -> 0 | L37: =IF($D37=0,"",K37/$D37*100) ->  | N37: =IF(ISERROR(VLOOKUP($D$6&$D$33&$B$3&SUBSTITUTE($B$37,"Overall care judgement - ","")&$B$5,Table3_data,N34,0))=TRUE,0,VLOOKUP($D$6&$D$33&$B$3&SUBSTITUTE($B$37,"Overall care judgement - ","")&$B$5,Table3_data,N34,0)) -> 0 | O37: =IF(ISERROR(VLOOKUP($D$6&$D$33&$B$3&SUBSTITUTE($B$37,"Overall care judgement - ","")&$B$5,Table3_data,O34,0))=TRUE,0,VLOOKUP($D$6&$D$33&$B$3&SUBSTITUTE($B$37,"Overall care judgement - ","")&$B$5,Table3_data,O34,0)) -> 0 | P37: =IF($D37=0,"",O37/$D37*100) ->  | R37: =IF(ISERROR(VLOOKUP($D$6&$D$33&$B$3&SUBSTITUTE($B$37,"Overall care judgement - ","")&$B$5,Table3_data,R34,0))=TRUE,0,VLOOKUP($D$6&$D$33&$B$3&SUBSTITUTE($B$37,"Overall care judgement - ","")&$B$5,Table3_data,R34,0)) -> 0 | S37: =IF(ISERROR(VLOOKUP($D$6&$D$33&$B$3&SUBSTITUTE($B$37,"Overall care judgement - ","")&$B$5,Table3_data,S34,0))=TRUE,0,VLOOKUP($D$6&$D$33&$B$3&SUBSTITUTE($B$37,"Overall care judgement - ","")&$B$5,Table3_data,S34,0)) -> 0 | T37: =IF($D37=0,"",S37/$D37*100) -> 
B39: Quality of care | D39: 0 | G39: =IF(ISERROR(VLOOKUP($D$6&$D$33&$B$3&SUBSTITUTE($B$39,"Overall care judgement - ","")&$B$5,Table3_data,G34,0))=TRUE,0,VLOOKUP($D$6&$D$33&$B$3&SUBSTITUTE($B$39,"Overall care judgement - ","")&$B$5,Table3_data,G34,0)) -> 0 | J39: =IF(ISERROR(VLOOKUP($D$6&$D$33&$B$3&SUBSTITUTE($B$39,"Overall care judgement - ","")&$B$5,Table3_data,J34,0))=TRUE,0,VLOOKUP($D$6&$D$33&$B$3&SUBSTITUTE($B$39,"Overall care judgement - ","")&$B$5,Table3_data,J34,0)) -> 0 | K39: =IF(ISERROR(VLOOKUP($D$6&$D$33&$B$3&SUBSTITUTE($B$39,"Overall care judgement - ","")&$B$5,Table3_data,K34,0))=TRUE,0,VLOOKUP($D$6&$D$33&$B$3&SUBSTITUTE($B$39,"Overall care judgement - ","")&$B$5,Table3_data,K34,0)) -> 0 | N39: =IF(ISERROR(VLOOKUP($D$6&$D$33&$B$3&SUBSTITUTE($B$39,"Overall care judgement - ","")&$B$5,Table3_data,N34,0))=TRUE,0,VLOOKUP($D$6&$D$33&$B$3&SUBSTITUTE($B$39,"Overall care judgement - ","")&$B$5,Table3_data,N34,0)) -> 0 | O39: =IF(ISERROR(VLOOKUP($D$6&$D$33&$B$3&SUBSTITUTE($B$39,"Overall care judgement - ","")&$B$5,Table3_data,O34,0))=TRUE,0,VLOOKUP($D$6&$D$33&$B$3&SUBSTITUTE($B$39,"Overall care judgement - ","")&$B$5,Table3_data,O34,0)) -> 0 | R39: =IF(ISERROR(VLOOKUP($D$6&$D$33&$B$3&SUBSTITUTE($B$39,"Overall care judgement - ","")&$B$5,Table3_data,R34,0))=TRUE,0,VLOOKUP($D$6&$D$33&$B$3&SUBSTITUTE($B$39,"Overall care judgement - ","")&$B$5,Table3_data,R34,0)) -> 0 | S39: =IF(ISERROR(VLOOKUP($D$6&$D$33&$B$3&SUBSTITUTE($B$39,"Overall care judgement - ","")&$B$5,Table3_data,S34,0))=TRUE,0,VLOOKUP($D$6&$D$33&$B$3&SUBSTITUTE($B$39,"Overall care judgement - ","")&$B$5,Table3_data,S34,0)) -> 0
B41: Safeguarding children and young people | D41: 0 | G41: =IF(ISERROR(VLOOKUP($D$6&$D$33&$B$3&SUBSTITUTE($B$35,"Overall care judgement - ","")&$B$5,Table3_data,G34,0))=TRUE,0,VLOOKUP($D$6&$D$33&$B$3&SUBSTITUTE($B$35,"Overall care judgement - ","")&$B$5,Table3_data,G34,0)) -> 0 | J41: =IF(ISERROR(VLOOKUP($D$6&$D$33&$B$3&SUBSTITUTE($B$35,"Overall care judgement - ","")&$B$5,Table3_data,J34,0))=TRUE,0,VLOOKUP($D$6&$D$33&$B$3&SUBSTITUTE($B$35,"Overall care judgement - ","")&$B$5,Table3_data,J34,0)) -> 0 | K41: =IF(ISERROR(VLOOKUP($D$6&$D$33&$B$3&SUBSTITUTE($B$35,"Overall care judgement - ","")&$B$5,Table3_data,K34,0))=TRUE,0,VLOOKUP($D$6&$D$33&$B$3&SUBSTITUTE($B$35,"Overall care judgement - ","")&$B$5,Table3_data,K34,0)) -> 0 | N41: =IF(ISERROR(VLOOKUP($D$6&$D$33&$B$3&SUBSTITUTE($B$35,"Overall care judgement - ","")&$B$5,Table3_data,N34,0))=TRUE,0,VLOOKUP($D$6&$D$33&$B$3&SUBSTITUTE($B$35,"Overall care judgement - ","")&$B$5,Table3_data,N34,0)) -> 0 | O41: =IF(ISERROR(VLOOKUP($D$6&$D$33&$B$3&SUBSTITUTE($B$35,"Overall care judgement - ","")&$B$5,Table3_data,O34,0))=TRUE,0,VLOOKUP($D$6&$D$33&$B$3&SUBSTITUTE($B$35,"Overall care judgement - ","")&$B$5,Table3_data,O34,0)) -> 0 | R41: =IF(ISERROR(VLOOKUP($D$6&$D$33&$B$3&SUBSTITUTE($B$35,"Overall care judgement - ","")&$B$5,Table3_data,R34,0))=TRUE,0,VLOOKUP($D$6&$D$33&$B$3&SUBSTITUTE($B$35,"Overall care judgement - ","")&$B$5,Table3_data,R34,0)) -> 0 | S41: =IF(ISERROR(VLOOKUP($D$6&$D$33&$B$3&SUBSTITUTE($B$35,"Overall care judgement - ","")&$B$5,Table3_data,S34,0))=TRUE,0,VLOOKUP($D$6&$D$33&$B$3&SUBSTITUTE($B$35,"Overall care judgement - ","")&$B$5,Table3_data,S34,0)) -> 0
B43: Leadership and management | D43: 0 | G43: =IF(ISERROR(VLOOKUP($D$6&$D$33&$B$3&SUBSTITUTE($B$35,"Overall care judgement - ","")&$B$5,Table3_data,G34,0))=TRUE,0,VLOOKUP($D$6&$D$33&$B$3&SUBSTITUTE($B$35,"Overall care judgement - ","")&$B$5,Table3_data,G34,0)) -> 0 | J43: =IF(ISERROR(VLOOKUP($D$6&$D$33&$B$3&SUBSTITUTE($B$35,"Overall care judgement - ","")&$B$5,Table3_data,J34,0))=TRUE,0,VLOOKUP($D$6&$D$33&$B$3&SUBSTITUTE($B$35,"Overall care judgement - ","")&$B$5,Table3_data,J34,0)) -> 0 | K43: =IF(ISERROR(VLOOKUP($D$6&$D$33&$B$3&SUBSTITUTE($B$35,"Overall care judgement - ","")&$B$5,Table3_data,K34,0))=TRUE,0,VLOOKUP($D$6&$D$33&$B$3&SUBSTITUTE($B$35,"Overall care judgement - ","")&$B$5,Table3_data,K34,0)) -> 0 | N43: =IF(ISERROR(VLOOKUP($D$6&$D$33&$B$3&SUBSTITUTE($B$35,"Overall care judgement - ","")&$B$5,Table3_data,N34,0))=TRUE,0,VLOOKUP($D$6&$D$33&$B$3&SUBSTITUTE($B$35,"Overall care judgement - ","")&$B$5,Table3_data,N34,0)) -> 0 | O43: =IF(ISERROR(VLOOKUP($D$6&$D$33&$B$3&SUBSTITUTE($B$35,"Overall care judgement - ","")&$B$5,Table3_data,O34,0))=TRUE,0,VLOOKUP($D$6&$D$33&$B$3&SUBSTITUTE($B$35,"Overall care judgement - ","")&$B$5,Table3_data,O34,0)) -> 0 | R43: =IF(ISERROR(VLOOKUP($D$6&$D$33&$B$3&SUBSTITUTE($B$35,"Overall care judgement - ","")&$B$5,Table3_data,R34,0))=TRUE,0,VLOOKUP($D$6&$D$33&$B$3&SUBSTITUTE($B$35,"Overall care judgement - ","")&$B$5,Table3_data,R34,0)) -> 0 | S43: =IF(ISERROR(VLOOKUP($D$6&$D$33&$B$3&SUBSTITUTE($B$43,"Overall care judgement - ","")&$B$5,Table3_data,S34,0))=TRUE,0,VLOOKUP($D$6&$D$33&$B$3&SUBSTITUTE($B$43,"Overall care judgement - ","")&$B$5,Table3_data,S34,0)) -> 0
L44: =IF($D44<31,"",K44/$D44*100) ->  | P44: =IF($D44<31,"",O44/$D44*100) -> 
D45: Private/ voluntary
H46: 7 | L46: 8 | P46: 9 | T46: 10
B47: Overall effectiveness | D47: =G47+K47+O47+S47 -> 0 | G47: =IF(ISERROR(VLOOKUP($D$6&$D$45&$B$3&SUBSTITUTE($B$47,"Overall care judgement - ","")&$B$5,Table3_data,G46,0))=TRUE,0,VLOOKUP($D$6&$D$22&$B$3&SUBSTITUTE($B$24,"Overall care judgement - ","")&$B$5,Table3_data,G23,0)) -> 0 | H47: =IF($D47=0,"",G47/$D47*100) ->  | J47: 0 | K47: 0 | L47: =IF($D47=0,"",K47/$D47*100) ->  | N47: 0 | O47: 0 | P47: =IF($D47=0,"",O47/$D47*100) ->  | R47: 0 | S47: 0 | T47: =IF($D47=0,"",S47/$D47*100) -> 
B49: Outcomes for children and young people | D49: =G49+K49+O49+S49 -> 0 | G49: =IF(ISERROR(VLOOKUP($D$6&$D$45&$B$3&SUBSTITUTE($B$49,"Overall care judgement - ","")&$B$5,Table3_data,G46,0))=TRUE,0,VLOOKUP($D$6&$D$22&$B$3&SUBSTITUTE($B$24,"Overall care judgement - ","")&$B$5,Table3_data,G25,0)) -> 0 | H49: =IF($D49=0,"",G49/$D49*100) ->  | K49: =IF(ISERROR(VLOOKUP($D$6&$D$45&$B$3&SUBSTITUTE($B$49,"Overall care judgement - ","")&$B$5,Table3_data,K46,0))=TRUE,0,VLOOKUP($D$6&$D$22&$B$3&SUBSTITUTE($B$24,"Overall care judgement - ","")&$B$5,Table3_data,K25,0)) -> 0 | L49: =IF($D49=0,"",K49/$D49*100) ->  | O49: =IF(ISERROR(VLOOKUP($D$6&$D$45&$B$3&SUBSTITUTE($B$49,"Overall care judgement - ","")&$B$5,Table3_data,O46,0))=TRUE,0,VLOOKUP($D$6&$D$22&$B$3&SUBSTITUTE($B$24,"Overall care judgement - ","")&$B$5,Table3_data,O25,0)) -> 0 | P49: =IF($D49=0,"",O49/$D49*100) ->  | S49: =IF(ISERROR(VLOOKUP($D$6&$D$45&$B$3&SUBSTITUTE($B$49,"Overall care judgement - ","")&$B$5,Table3_data,S46,0))=TRUE,0,VLOOKUP($D$6&$D$22&$B$3&SUBSTITUTE($B$24,"Overall care judgement - ","")&$B$5,Table3_data,S25,0)) -> 0 | T49: =IF($D49=0,"",S49/$D49*100) -> 
B51: Quality of care | D51: 0 | G51: =IF(ISERROR(VLOOKUP($D$6&$D$45&$B$3&SUBSTITUTE($B$51,"Overall care judgement - ","")&$B$5,Table3_data,G46,0))=TRUE,0,VLOOKUP($D$6&$D$22&$B$3&SUBSTITUTE($B$24,"Overall care judgement - ","")&$B$5,Table3_data,G27,0)) -> 0 | K51: =IF(ISERROR(VLOOKUP($D$6&$D$45&$B$3&SUBSTITUTE($B$51,"Overall care judgement - ","")&$B$5,Table3_data,K46,0))=TRUE,0,VLOOKUP($D$6&$D$22&$B$3&SUBSTITUTE($B$24,"Overall care judgement - ","")&$B$5,Table3_data,K27,0)) -> 0 | O51: =IF(ISERROR(VLOOKUP($D$6&$D$45&$B$3&SUBSTITUTE($B$51,"Overall care judgement - ","")&$B$5,Table3_data,O46,0))=TRUE,0,VLOOKUP($D$6&$D$22&$B$3&SUBSTITUTE($B$24,"Overall care judgement - ","")&$B$5,Table3_data,O27,0)) -> 0 | S51: =IF(ISERROR(VLOOKUP($D$6&$D$45&$B$3&SUBSTITUTE($B$51,"Overall care judgement - ","")&$B$5,Table3_data,S46,0))=TRUE,0,VLOOKUP($D$6&$D$22&$B$3&SUBSTITUTE($B$24,"Overall care judgement - ","")&$B$5,Table3_data,S27,0)) -> 0
B53: Safeguarding children and young people | D53: 0 | G53: =IF(ISERROR(VLOOKUP($D$6&$D$45&$B$3&SUBSTITUTE($B$53,"Overall care judgement - ","")&$B$5,Table3_data,G46,0))=TRUE,0,VLOOKUP($D$6&$D$22&$B$3&SUBSTITUTE($B$24,"Overall care judgement - ","")&$B$5,Table3_data,G29,0)) -> 0 | K53: =IF(ISERROR(VLOOKUP($D$6&$D$45&$B$3&SUBSTITUTE($B$53,"Overall care judgement - ","")&$B$5,Table3_data,K46,0))=TRUE,0,VLOOKUP($D$6&$D$22&$B$3&SUBSTITUTE($B$24,"Overall care judgement - ","")&$B$5,Table3_data,K29,0)) -> 0 | O53: =IF(ISERROR(VLOOKUP($D$6&$D$45&$B$3&SUBSTITUTE($B$53,"Overall care judgement - ","")&$B$5,Table3_data,O46,0))=TRUE,0,VLOOKUP($D$6&$D$22&$B$3&SUBSTITUTE($B$24,"Overall care judgement - ","")&$B$5,Table3_data,O29,0)) -> 0 | S53: =IF(ISERROR(VLOOKUP($D$6&$D$45&$B$3&SUBSTITUTE($B$53,"Overall care judgement - ","")&$B$5,Table3_data,S46,0))=TRUE,0,VLOOKUP($D$6&$D$22&$B$3&SUBSTITUTE($B$24,"Overall care judgement - ","")&$B$5,Table3_data,S29,0)) -> 0
B55: Leadership and management | D55: 0 | G55: =IF(ISERROR(VLOOKUP($D$6&$D$45&$B$3&SUBSTITUTE($B$55,"Overall care judgement - ","")&$B$5,Table3_data,G46,0))=TRUE,0,VLOOKUP($D$6&$D$22&$B$3&SUBSTITUTE($B$24,"Overall care judgement - ","")&$B$5,Table3_data,G31,0)) -> 0 | K55: =IF(ISERROR(VLOOKUP($D$6&$D$45&$B$3&SUBSTITUTE($B$55,"Overall care judgement - ","")&$B$5,Table3_data,K46,0))=TRUE,0,VLOOKUP($D$6&$D$22&$B$3&SUBSTITUTE($B$24,"Overall care judgement - ","")&$B$5,Table3_data,K31,0)) -> 0 | O55: =IF(ISERROR(VLOOKUP($D$6&$D$45&$B$3&SUBSTITUTE($B$55,"Overall care judgement - ","")&$B$5,Table3_data,O46,0))=TRUE,0,VLOOKUP($D$6&$D$22&$B$3&SUBSTITUTE($B$24,"Overall care judgement - ","")&$B$5,Table3_data,O31,0)) -> 0 | S55: =IF(ISERROR(VLOOKUP($D$6&$D$45&$B$3&SUBSTITUTE($B$55,"Overall care judgement - ","")&$B$5,Table3_data,S46,0))=TRUE,0,VLOOKUP($D$6&$D$22&$B$3&SUBSTITUTE($B$24,"Overall care judgement - ","")&$B$5,Table3_data,S31,0)) -> 0
U57: Source: Ofsted inspections
B59: 1. These figures include those children's homes run by the local authority, and those that are run by health authorities, private or voluntary organisations located in the local authority area.

Sheet Table 3c
B2: =IF(ISERROR(VLOOKUP(D5,Ranges!F1:G12,2,0)), "Table 3c: Full inspection outcomes of residential special schools caring for pupils for more than 295 days per year inspected between "&D5 & " (provisional)"&CHAR(185)&" "&CHAR(178),"Table 3c: Full inspection outcomes of residential special schools caring for pupils for more than 295 days per year inspected in "&D5 & " (provisional)"&CHAR(185)&" "&CHAR(178)) -> Table 3c: Full inspection outcomes of residential special schools caring for pupils for more than 295 days per year inspected between 1 April 2012 - 30 June 2012 (provisional)¹ ²
B4: Residential special school (>295 days/year)
B5: Select period: | D5: 1 April 2012 - 30 June 2012
B6: =VLOOKUP(D5,Periods,2,0) -> 4
B7: Select local authority: | D7: All | T7: =IF($D$7="All", "England",$D$7) -> England
G8: all
D9: All sectors
D10: Total number inspected | G10: Outstanding | K10: Good | O10: Adequate | S10: Inadequate
G11: Number | H11: % | K11: Number | L11: % | O11: Number | P11: % | S11: Number | T11: %
G12: 7 | K12: 8 | O12: 9 | S12: 10
B13: Overall effectiveness | D13: =G13+K13+O13+S13 -> 17 | G13: =IF(ISERROR(VLOOKUP($D$7&G8&$B$4&SUBSTITUTE($B$13,"Overall care judgement - ","")&$B$6,Table3_data,G12,0))=TRUE,0,VLOOKUP($D$7&G8&$B$4&SUBSTITUTE($B$13,"Overall care judgement - ","")&$B$6,Table3_data,G12,0)) -> 1 | H13: =IF($D13=0,"",G13/$D13*100) -> 5.882352941 | K13: =IF(ISERROR(VLOOKUP($D$7&G8&$B$4&SUBSTITUTE($B$13,"Overall care judgement - ","")&$B$6,Table3_data,K12,0))=TRUE,0,VLOOKUP($D$7&G8&$B$4&SUBSTITUTE($B$13,"Overall care judgement - ","")&$B$6,Table3_data,K12,0)) -> 9 | L13: =IF($D13=0,"",K13/$D13*100) -> 52.94117647 | O13: =IF(ISERROR(VLOOKUP($D$7&G8&$B$4&SUBSTITUTE($B$13,"Overall care judgement - ","")&$B$6,Table3_data,O12,0))=TRUE,0,VLOOKUP($D$7&G8&$B$4&SUBSTITUTE($B$13,"Overall care judgement - ","")&$B$6,Table3_data,O12,0)) -> 5 | P13: =IF($D13=0,"",O13/$D13*100) -> 29.41176471 | S13: =IF(ISERROR(VLOOKUP($D$7&G8&$B$4&SUBSTITUTE($B$13,"Overall care judgement - ","")&$B$6,Table3_data,S12,0))=TRUE,0,VLOOKUP($D$7&G8&$B$4&SUBSTITUTE($B$13,"Overall care judgement - ","")&$B$6,Table3_data,S12,0)) -> 2 | T13: =IF($D13=0,"",S13/$D13*100) -> 11.76470588
B15: Outcomes for children and young people | D15: =G15+K15+O15+S15 -> 17 | G15: =IF(ISERROR(VLOOKUP($D$7&G8&$B$4&SUBSTITUTE($B$15,"Overall care judgement - ","")&$B$6,Table3_data,G12,0))=TRUE,0,VLOOKUP($D$7&G8&$B$4&SUBSTITUTE($B$15,"Overall care judgement - ","")&$B$6,Table3_data,G12,0)) -> 2 | H15: =IF($D15=0,"",G15/$D15*100) -> 11.76470588 | K15: =IF(ISERROR(VLOOKUP($D$7&G8&$B$4&SUBSTITUTE($B$15,"Overall care judgement - ","")&$B$6,Table3_data,K12,0))=TRUE,0,VLOOKUP($D$7&G8&$B$4&SUBSTITUTE($B$15,"Overall care judgement - ","")&$B$6,Table3_data,K12,0)) -> 12 | L15: =IF($D15=0,"",K15/$D15*100) -> 70.58823529 | O15: =IF(ISERROR(VLOOKUP($D$7&G8&$B$4&SUBSTITUTE($B$15,"Overall care judgement - ","")&$B$6,Table3_data,O12,0))=TRUE,0,VLOOKUP($D$7&G8&$B$4&SUBSTITUTE($B$15,"Overall care judgement - ","")&$B$6,Table3_data,O12,0)) -> 1 | P15: =IF($D15=0,"",O15/$D15*100) -> 5.882352941 | S15: =IF(ISERROR(VLOOKUP($D$7&G8&$B$4&SUBSTITUTE($B$15,"Overall care judgement - ","")&$B$6,Table3_data,S12,0))=TRUE,0,VLOOKUP($D$7&G8&$B$4&SUBSTITUTE($B$15,"Overall care judgement - ","")&$B$6,Table3_data,S12,0)) -> 2 | T15: =IF($D15=0,"",S15/$D15*100) -> 11.76470588
A17: Quality of service | B17: Quality of care | D17: =G17+K17+O17+S17 -> 17 | G17: =IF(ISERROR(VLOOKUP($D$7&$G$8&$B$4&SUBSTITUTE($B$17,"Overall care judgement - ","")&$B$6,Table3_data,G12,0))=TRUE,0,VLOOKUP($D$7&$G$8&$B$4&SUBSTITUTE($B$17,"Overall care judgement - ","")&$B$6,Table3_data,G12,0)) -> 3 | H17: 17.64705882 | K17: =IF(ISERROR(VLOOKUP($D$7&$G$8&$B$4&SUBSTITUTE($B$17,"Overall care judgement - ","")&$B$6,Table3_data,K12,0))=TRUE,0,VLOOKUP($D$7&$G$8&$B$4&SUBSTITUTE($B$17,"Overall care judgement - ","")&$B$6,Table3_data,K12,0)) -> 9 | L17: 52.94117647 | O17: =IF(ISERROR(VLOOKUP($D$7&$G$8&$B$4&SUBSTITUTE($B$17,"Overall care judgement - ","")&$B$6,Table3_data,O12,0))=TRUE,0,VLOOKUP($D$7&$G$8&$B$4&SUBSTITUTE($B$17,"Overall care judgement - ","")&$B$6,Table3_data,O12,0)) -> 3 | P17: 17.64705882 | S17: =IF(ISERROR(VLOOKUP($D$7&$G$8&$B$4&SUBSTITUTE($B$17,"Overall care judgement - ","")&$B$6,Table3_data,S12,0))=TRUE,0,VLOOKUP($D$7&$G$8&$B$4&SUBSTITUTE($B$17,"Overall care judgement - ","")&$B$6,Table3_data,S12,0)) -> 2 | T17: 11.76470588
A19: The safety of children and young people | B19: Safeguarding children and young people | D19: =G19+K19+O19+S19 -> 17 | G19: =IF(ISERROR(VLOOKUP($D$7&$G$8&$B$4&SUBSTITUTE($A$19,"Overall care judgement - ","")&$B$6,Table3_data,G12,0))=TRUE,0,VLOOKUP($D$7&$G$8&$B$4&SUBSTITUTE($A$19,"Overall care judgement - ","")&$B$6,Table3_data,G12,0)) -> 2 | H19: 11.76470588 | K19: =IF(ISERROR(VLOOKUP($D$7&$G$8&$B$4&SUBSTITUTE($A$19,"Overall care judgement - ","")&$B$6,Table3_data,K12,0))=TRUE,0,VLOOKUP($D$7&$G$8&$B$4&SUBSTITUTE($A$19,"Overall care judgement - ","")&$B$6,Table3_data,K12,0)) -> 9 | L19: 52.94117647 | O19: =IF(ISERROR(VLOOKUP($D$7&$G$8&$B$4&SUBSTITUTE($A$19,"Overall care judgement - ","")&$B$6,Table3_data,O12,0))=TRUE,0,VLOOKUP($D$7&$G$8&$B$4&SUBSTITUTE($A$19,"Overall care judgement - ","")&$B$6,Table3_data,O12,0)) -> 4 | P19: 23.52941176 | S19: =IF(ISERROR(VLOOKUP($D$7&$G$8&$B$4&SUBSTITUTE($A$19,"Overall care judgement - ","")&$B$6,Table3_data,S12,0))=TRUE,0,VLOOKUP($D$7&$G$8&$B$4&SUBSTITUTE($A$19,"Overall care judgement - ","")&$B$6,Table3_data,S12,0)) -> 2 | T19: 11.76470588
B21: Leadership and management | D21: =G21+K21+O21+S21 -> 17 | G21: =IF(ISERROR(VLOOKUP($D$7&$G$8&$B$4&SUBSTITUTE($B$21,"Overall care judgement - ","")&$B$6,Table3_data,G12,0))=TRUE,0,VLOOKUP($D$7&$G$8&$B$4&SUBSTITUTE($B$21,"Overall care judgement - ","")&$B$6,Table3_data,G12,0)) -> 1 | H21: 5.882352941 | K21: =IF(ISERROR(VLOOKUP($D$7&$G$8&$B$4&SUBSTITUTE($B$21,"Overall care judgement - ","")&$B$6,Table3_data,K12,0))=TRUE,0,VLOOKUP($D$7&$G$8&$B$4&SUBSTITUTE($B$21,"Overall care judgement - ","")&$B$6,Table3_data,K12,0)) -> 9 | L21: 52.94117647 | O21: =IF(ISERROR(VLOOKUP($D$7&$G$8&$B$4&SUBSTITUTE($B$21,"Overall care judgement - ","")&$B$6,Table3_data,O12,0))=TRUE,0,VLOOKUP($D$7&$G$8&$B$4&SUBSTITUTE($B$21,"Overall care judgement - ","")&$B$6,Table3_data,O12,0)) -> 5 | P21: 29.41176471 | S21: =IF(ISERROR(VLOOKUP($D$7&$G$8&$B$4&SUBSTITUTE($B$21,"Overall care judgement - ","")&$B$6,Table3_data,S12,0))=TRUE,0,VLOOKUP($D$7&$G$8&$B$4&SUBSTITUTE($B$21,"Overall care judgement - ","")&$B$6,Table3_data,S12,0)) -> 2 | T21: 11.76470588
D23: Local authority
G24: 6 | K24: 7 | O24: 8 | S24: 9
B25: Overall effectiveness | D25: =G25+K25+O25+S25 -> 0 | G25: =IF(ISERROR(VLOOKUP($D$7&D23&$B$4&SUBSTITUTE($B$25,"Overall care judgement - ","")&$B$6,Table3_data,G24,0))=TRUE,0,VLOOKUP($D$7&D23&$B$4&SUBSTITUTE($B$25,"Overall care judgement - ","")&$B$6,Table3_data,G24,0)) -> 0 | H25: =IF($D25=0,"",G25/$D25*100) ->  | K25: =IF(ISERROR(VLOOKUP($D$7&H23&$B$4&SUBSTITUTE($B$25,"Overall care judgement - ","")&$B$6,Table3_data,K24,0))=TRUE,0,VLOOKUP($D$7&H23&$B$4&SUBSTITUTE($B$25,"Overall care judgement - ","")&$B$6,Table3_data,K24,0)) -> 0 | L25: =IF($D25=0,"",K25/$D25*100) ->  | O25: =IF(ISERROR(VLOOKUP($D$7&L23&$B$4&SUBSTITUTE($B$25,"Overall care judgement - ","")&$B$6,Table3_data,O24,0))=TRUE,0,VLOOKUP($D$7&L23&$B$4&SUBSTITUTE($B$25,"Overall care judgement - ","")&$B$6,Table3_data,O24,0)) -> 0 | P25: =IF($D25=0,"",O25/$D25*100) ->  | R25: =IF(ISERROR(VLOOKUP($D$7&O23&$B$4&SUBSTITUTE($B$25,"Overall care judgement - ","")&$B$6,Table3_data,R24,0))=TRUE,0,VLOOKUP($D$7&O23&$B$4&SUBSTITUTE($B$25,"Overall care judgement - ","")&$B$6,Table3_data,R24,0)) -> 0 | S25: =IF(ISERROR(VLOOKUP($D$7&P23&$B$4&SUBSTITUTE($B$25,"Overall care judgement - ","")&$B$6,Table3_data,S24,0))=TRUE,0,VLOOKUP($D$7&P23&$B$4&SUBSTITUTE($B$25,"Overall care judgement - ","")&$B$6,Table3_data,S24,0)) -> 0 | T25: =IF($D25=0,"",S25/$D25*100) -> 
B27: Outcomes for children and young people | D27: =G27+K27+O27+S27 -> 0 | G27: =IF(ISERROR(VLOOKUP($D$7&D23&$B$4&SUBSTITUTE($B$27,"Overall care judgement - ","")&$B$6,Table3_data,G24,0))=TRUE,0,VLOOKUP($D$7&D23&$B$4&SUBSTITUTE($B$27,"Overall care judgement - ","")&$B$6,Table3_data,G24,0)) -> 0 | H27: =IF($D27=0,"",G27/$D27*100) ->  | K27: =IF(ISERROR(VLOOKUP($D$7&H23&$B$4&SUBSTITUTE($B$27,"Overall care judgement - ","")&$B$6,Table3_data,K24,0))=TRUE,0,VLOOKUP($D$7&H23&$B$4&SUBSTITUTE($B$27,"Overall care judgement - ","")&$B$6,Table3_data,K24,0)) -> 0 | L27: =IF($D27=0,"",K27/$D27*100) ->  | O27: =IF(ISERROR(VLOOKUP($D$7&L23&$B$4&SUBSTITUTE($B$27,"Overall care judgement - ","")&$B$6,Table3_data,O24,0))=TRUE,0,VLOOKUP($D$7&L23&$B$4&SUBSTITUTE($B$27,"Overall care judgement - ","")&$B$6,Table3_data,O24,0)) -> 0 | P27: =IF($D27=0,"",O27/$D27*100) ->  | S27: =IF(ISERROR(VLOOKUP($D$7&P23&$B$4&SUBSTITUTE($B$27,"Overall care judgement - ","")&$B$6,Table3_data,S24,0))=TRUE,0,VLOOKUP($D$7&P23&$B$4&SUBSTITUTE($B$27,"Overall care judgement - ","")&$B$6,Table3_data,S24,0)) -> 0 | T27: =IF($D27=0,"",S27/$D27*100) -> 
B29: Quality of care | D29: =G29+K29+O29+S29 -> 0 | G29: =IF(ISERROR(VLOOKUP($D$7&D23&$B$4&SUBSTITUTE($B$29,"Overall care judgement - ","")&$B$6,Table3_data,G24,0))=TRUE,0,VLOOKUP($D$7&D23&$B$4&SUBSTITUTE($B$29,"Overall care judgement - ","")&$B$6,Table3_data,G24,0)) -> 0 | K29: =IF(ISERROR(VLOOKUP($D$7&H23&$B$4&SUBSTITUTE($B$29,"Overall care judgement - ","")&$B$6,Table3_data,K24,0))=TRUE,0,VLOOKUP($D$7&H23&$B$4&SUBSTITUTE($B$29,"Overall care judgement - ","")&$B$6,Table3_data,K24,0)) -> 0 | O29: =IF(ISERROR(VLOOKUP($D$7&L23&$B$4&SUBSTITUTE($B$29,"Overall care judgement - ","")&$B$6,Table3_data,O24,0))=TRUE,0,VLOOKUP($D$7&L23&$B$4&SUBSTITUTE($B$29,"Overall care judgement - ","")&$B$6,Table3_data,O24,0)) -> 0 | S29: =IF(ISERROR(VLOOKUP($D$7&P23&$B$4&SUBSTITUTE($B$29,"Overall care judgement - ","")&$B$6,Table3_data,S24,0))=TRUE,0,VLOOKUP($D$7&P23&$B$4&SUBSTITUTE($B$29,"Overall care judgement - ","")&$B$6,Table3_data,S24,0)) -> 0
A31: The safety of children and young people | B31: Safeguarding children and young people | D31: =G31+K31+O31+S31 -> 0 | G31: =IF(ISERROR(VLOOKUP($D$7&$D$23&$B$4&SUBSTITUTE($A$31,"Overall care judgement - ","")&$B$6,Table3_data,G24,0))=TRUE,0,VLOOKUP($D$7&$D$23&$B$4&SUBSTITUTE($A$31,"Overall care judgement - ","")&$B$6,Table3_data,G24,0)) -> 0 | K31: =IF(ISERROR(VLOOKUP($D$7&$D$23&$B$4&SUBSTITUTE($A$31,"Overall care judgement - ","")&$B$6,Table3_data,K24,0))=TRUE,0,VLOOKUP($D$7&$D$23&$B$4&SUBSTITUTE($A$31,"Overall care judgement - ","")&$B$6,Table3_data,K24,0)) -> 0 | O31: =IF(ISERROR(VLOOKUP($D$7&$D$23&$B$4&SUBSTITUTE($A$31,"Overall care judgement - ","")&$B$6,Table3_data,O24,0))=TRUE,0,VLOOKUP($D$7&$D$23&$B$4&SUBSTITUTE($A$31,"Overall care judgement - ","")&$B$6,Table3_data,O24,0)) -> 0 | S31: =IF(ISERROR(VLOOKUP($D$7&$D$23&$B$4&SUBSTITUTE($A$31,"Overall care judgement - ","")&$B$6,Table3_data,S24,0))=TRUE,0,VLOOKUP($D$7&$D$23&$B$4&SUBSTITUTE($A$31,"Overall care judgement - ","")&$B$6,Table3_data,S24,0)) -> 0
B33: Leadership and management | D33: =G33+K33+O33+S33 -> 0 | G33: =IF(ISERROR(VLOOKUP($D$7&$D$23&$B$4&SUBSTITUTE($B$33,"Overall care judgement - ","")&$B$6,Table3_data,G24,0))=TRUE,0,VLOOKUP($D$7&$D$23&$B$4&SUBSTITUTE($B$33,"Overall care judgement - ","")&$B$6,Table3_data,G24,0)) -> 0 | K33: =IF(ISERROR(VLOOKUP($D$7&$D$23&$B$4&SUBSTITUTE($B$33,"Overall care judgement - ","")&$B$6,Table3_data,K24,0))=TRUE,0,VLOOKUP($D$7&$D$23&$B$4&SUBSTITUTE($B$33,"Overall care judgement - ","")&$B$6,Table3_data,K24,0)) -> 0 | O33: =IF(ISERROR(VLOOKUP($D$7&$D$23&$B$4&SUBSTITUTE($B$33,"Overall care judgement - ","")&$B$6,Table3_data,O24,0))=TRUE,0,VLOOKUP($D$7&$D$23&$B$4&SUBSTITUTE($B$33,"Overall care judgement - ","")&$B$6,Table3_data,O24,0)) -> 0 | S33: =IF(ISERROR(VLOOKUP($D$7&$D$23&$B$4&SUBSTITUTE($B$33,"Overall care judgement - ","")&$B$6,Table3_data,S24,0))=TRUE,0,VLOOKUP($D$7&$D$23&$B$4&SUBSTITUTE($B$33,"Overall care judgement - ","")&$B$6,Table3_data,S24,0)) -> 0
D36: Health authority
G37: 7 | K37: 8 | O37: 9 | S37: 10
B38: Overall effectiveness | D38: =G38+K38+O38+S38 -> 0 | G38: =IF(ISERROR(VLOOKUP($D$7&$D$36&$B$4&SUBSTITUTE($B$38,"Overall care judgement - ","")&$B$6,Table3_data,G37,0))=TRUE,0,VLOOKUP($D$7&$D$36&$B$4&SUBSTITUTE($B$38,"Overall care judgement - ","")&$B$6,Table3_data,G37,0)) -> 0 | H38: =IF($D38=0,"",G38/$D38*100) ->  | K38: =IF(ISERROR(VLOOKUP($D$7&$D$36&$B$4&SUBSTITUTE($B$38,"Overall care judgement - ","")&$B$6,Table3_data,K37,0))=TRUE,0,VLOOKUP($D$7&$D$36&$B$4&SUBSTITUTE($B$38,"Overall care judgement - ","")&$B$6,Table3_data,K37,0)) -> 0 | L38: =IF($D38=0,"",K38/$D38*100) ->  | O38: =IF(ISERROR(VLOOKUP($D$7&$D$36&$B$4&SUBSTITUTE($B$38,"Overall care judgement - ","")&$B$6,Table3_data,O37,0))=TRUE,0,VLOOKUP($D$7&$D$36&$B$4&SUBSTITUTE($B$38,"Overall care judgement - ","")&$B$6,Table3_data,O37,0)) -> 0 | P38: =IF($D38=0,"",O38/$D38*100) ->  | S38: =IF(ISERROR(VLOOKUP($D$7&$D$36&$B$4&SUBSTITUTE($B$38,"Overall care judgement - ","")&$B$6,Table3_data,S37,0))=TRUE,0,VLOOKUP($D$7&$D$36&$B$4&SUBSTITUTE($B$38,"Overall care judgement - ","")&$B$6,Table3_data,S37,0)) -> 0 | T38: =IF($D38=0,"",S38/$D38*100) -> 
B40: Outcomes for children and young people | D40: =G40+K40+O40+S40 -> 0 | G40: =IF(ISERROR(VLOOKUP($D$7&$D$36&$B$4&SUBSTITUTE($B$40,"Overall care judgement - ","")&$B$6,Table3_data,G37,0))=TRUE,0,VLOOKUP($D$7&$D$36&$B$4&SUBSTITUTE($B$40,"Overall care judgement - ","")&$B$6,Table3_data,G37,0)) -> 0 | H40: =IF($D40=0,"",G40/$D40*100) ->  | K40: =IF(ISERROR(VLOOKUP($D$7&$D$36&$B$4&SUBSTITUTE($B$40,"Overall care judgement - ","")&$B$6,Table3_data,K37,0))=TRUE,0,VLOOKUP($D$7&$D$36&$B$4&SUBSTITUTE($B$40,"Overall care judgement - ","")&$B$6,Table3_data,K37,0)) -> 0 | L40: =IF($D40=0,"",K40/$D40*100) ->  | O40: =IF(ISERROR(VLOOKUP($D$7&$D$36&$B$4&SUBSTITUTE($B$40,"Overall care judgement - ","")&$B$6,Table3_data,O37,0))=TRUE,0,VLOOKUP($D$7&$D$36&$B$4&SUBSTITUTE($B$40,"Overall care judgement - ","")&$B$6,Table3_data,O37,0)) -> 0 | P40: =IF($D15<100,"",O40/$D15*100) ->  | S40: =IF(ISERROR(VLOOKUP($D$7&$D$36&$B$4&SUBSTITUTE($B$40,"Overall care judgement - ","")&$B$6,Table3_data,S37,0))=TRUE,0,VLOOKUP($D$7&$D$36&$B$4&SUBSTITUTE($B$40,"Overall care judgement - ","")&$B$6,Table3_data,S37,0)) -> 0
B42: Quality of care | D42: =G42+K42+O42+S42 -> 0 | G42: =IF(ISERROR(VLOOKUP($D$7&$D$36&$B$4&SUBSTITUTE($B$42,"Overall care judgement - ","")&$B$6,Table3_data,G37,0))=TRUE,0,VLOOKUP($D$7&$D$36&$B$4&SUBSTITUTE($B$42,"Overall care judgement - ","")&$B$6,Table3_data,G37,0)) -> 0 | K42: =IF(ISERROR(VLOOKUP($D$7&$D$36&$B$4&SUBSTITUTE($B$42,"Overall care judgement - ","")&$B$6,Table3_data,K37,0))=TRUE,0,VLOOKUP($D$7&$D$36&$B$4&SUBSTITUTE($B$42,"Overall care judgement - ","")&$B$6,Table3_data,K37,0)) -> 0 | O42: =IF(ISERROR(VLOOKUP($D$7&$D$36&$B$4&SUBSTITUTE($B$42,"Overall care judgement - ","")&$B$6,Table3_data,O37,0))=TRUE,0,VLOOKUP($D$7&$D$36&$B$4&SUBSTITUTE($B$42,"Overall care judgement - ","")&$B$6,Table3_data,O37,0)) -> 0 | S42: =IF(ISERROR(VLOOKUP($D$7&$D$36&$B$4&SUBSTITUTE($B$42,"Overall care judgement - ","")&$B$6,Table3_data,S37,0))=TRUE,0,VLOOKUP($D$7&$D$36&$B$4&SUBSTITUTE($B$42,"Overall care judgement - ","")&$B$6,Table3_data,S37,0)) -> 0
A44: The safety of children and young people | B44: Safeguarding children and young people | D44: =G44+K44+O44+S44 -> 0 | G44: =IF(ISERROR(VLOOKUP($D$7&$D$36&$B$4&SUBSTITUTE($A$44,"Overall care judgement - ","")&$B$6,Table3_data,G37,0))=TRUE,0,VLOOKUP($D$7&$D$36&$B$4&SUBSTITUTE($A$44,"Overall care judgement - ","")&$B$6,Table3_data,G37,0)) -> 0 | K44: =IF(ISERROR(VLOOKUP($D$7&$D$36&$B$4&SUBSTITUTE($A$44,"Overall care judgement - ","")&$B$6,Table3_data,K37,0))=TRUE,0,VLOOKUP($D$7&$D$36&$B$4&SUBSTITUTE($A$44,"Overall care judgement - ","")&$B$6,Table3_data,K37,0)) -> 0 | O44: =IF(ISERROR(VLOOKUP($D$7&$D$36&$B$4&SUBSTITUTE($A$44,"Overall care judgement - ","")&$B$6,Table3_data,O37,0))=TRUE,0,VLOOKUP($D$7&$D$36&$B$4&SUBSTITUTE($A$44,"Overall care judgement - ","")&$B$6,Table3_data,O37,0)) -> 0 | S44: =IF(ISERROR(VLOOKUP($D$7&$D$36&$B$4&SUBSTITUTE($A$44,"Overall care judgement - ","")&$B$6,Table3_data,S37,0))=TRUE,0,VLOOKUP($D$7&$D$36&$B$4&SUBSTITUTE($A$44,"Overall care judgement - ","")&$B$6,Table3_data,S37,0)) -> 0
B46: Leadership and management | D46: =G46+K46+O46+S46 -> 0 | G46: =IF(ISERROR(VLOOKUP($D$7&$D$36&$B$4&SUBSTITUTE($B$46,"Overall care judgement - ","")&$B$6,Table3_data,G37,0))=TRUE,0,VLOOKUP($D$7&$D$36&$B$4&SUBSTITUTE($B$46,"Overall care judgement - ","")&$B$6,Table3_data,G37,0)) -> 0 | K46: =IF(ISERROR(VLOOKUP($D$7&$D$36&$B$4&SUBSTITUTE($B$46,"Overall care judgement - ","")&$B$6,Table3_data,K37,0))=TRUE,0,VLOOKUP($D$7&$D$36&$B$4&SUBSTITUTE($B$46,"Overall care judgement - ","")&$B$6,Table3_data,K37,0)) -> 0 | O46: =IF(ISERROR(VLOOKUP($D$7&$D$36&$B$4&SUBSTITUTE($B$46,"Overall care judgement - ","")&$B$6,Table3_data,O37,0))=TRUE,0,VLOOKUP($D$7&$D$36&$B$4&SUBSTITUTE($B$46,"Overall care judgement - ","")&$B$6,Table3_data,O37,0)) -> 0 | S46: =IF(ISERROR(VLOOKUP($D$7&$D$36&$B$4&SUBSTITUTE($B$46,"Overall care judgement - ","")&$B$6,Table3_data,S37,0))=TRUE,0,VLOOKUP($D$7&$D$36&$B$4&SUBSTITUTE($B$46,"Overall care judgement - ","")&$B$6,Table3_data,S37,0)) -> 0
D48: Private/ voluntary
G49: 7 | K49: 8 | O49: 9 | S49: 10
B50: Overall effectiveness | D50: =G50+K50+O50+S50 -> 17 | G50: =IF(ISERROR(VLOOKUP($D$7&$D$48&$B$4&SUBSTITUTE($B$50,"Overall care judgement - ","")&$B$6,Table3_data,G49,0))=TRUE,0,VLOOKUP($D$7&$D$48&$B$4&SUBSTITUTE($B$50,"Overall care judgement - ","")&$B$6,Table3_data,G49,0)) -> 1 | H50: =IF($D50=0,"",G50/$D50*100) -> 5.882352941 | K50: =IF(ISERROR(VLOOKUP($D$7&$D$48&$B$4&SUBSTITUTE($B$50,"Overall care judgement - ","")&$B$6,Table3_data,K49,0))=TRUE,0,VLOOKUP($D$7&$D$48&$B$4&SUBSTITUTE($B$50,"Overall care judgement - ","")&$B$6,Table3_data,K49,0)) -> 9 | L50: =IF($D50=0,"",K50/$D50*100) -> 52.94117647 | O50: =IF(ISERROR(VLOOKUP($D$7&$D$48&$B$4&SUBSTITUTE($B$50,"Overall care judgement - ","")&$B$6,Table3_data,O49,0))=TRUE,0,VLOOKUP($D$7&$D$48&$B$4&SUBSTITUTE($B$50,"Overall care judgement - ","")&$B$6,Table3_data,O49,0)) -> 5 | P50: =IF($D50=0,"",O50/$D50*100) -> 29.41176471 | S50: =IF(ISERROR(VLOOKUP($D$7&$D$48&$B$4&SUBSTITUTE($B$50,"Overall care judgement - ","")&$B$6,Table3_data,S49,0))=TRUE,0,VLOOKUP($D$7&$D$48&$B$4&SUBSTITUTE($B$50,"Overall care judgement - ","")&$B$6,Table3_data,S49,0)) -> 2 | T50: =IF($D50=0,"",S50/$D50*100) -> 11.76470588
B52: Outcomes for children and young people | D52: =G52+K52+O52+S52 -> 17 | G52: =IF(ISERROR(VLOOKUP($D$7&$D$48&$B$4&SUBSTITUTE($B$52,"Overall care judgement - ","")&$B$6,Table3_data,G49,0))=TRUE,0,VLOOKUP($D$7&$D$48&$B$4&SUBSTITUTE($B$52,"Overall care judgement - ","")&$B$6,Table3_data,G49,0)) -> 2 | H52: =IF($D52=0,"",G52/$D52*100) -> 11.76470588 | K52: =IF(ISERROR(VLOOKUP($D$7&$D$48&$B$4&SUBSTITUTE($B$52,"Overall care judgement - ","")&$B$6,Table3_data,K49,0))=TRUE,0,VLOOKUP($D$7&$D$48&$B$4&SUBSTITUTE($B$52,"Overall care judgement - ","")&$B$6,Table3_data,K49,0)) -> 12 | L52: =IF($D52=0,"",K52/$D52*100) -> 70.58823529 | O52: =IF(ISERROR(VLOOKUP($D$7&$D$48&$B$4&SUBSTITUTE($B$52,"Overall care judgement - ","")&$B$6,Table3_data,O49,0))=TRUE,0,VLOOKUP($D$7&$D$48&$B$4&SUBSTITUTE($B$52,"Overall care judgement - ","")&$B$6,Table3_data,O49,0)) -> 1 | P52: =IF($D52=0,"",O52/$D52*100) -> 5.882352941 | S52: =IF(ISERROR(VLOOKUP($D$7&$D$48&$B$4&SUBSTITUTE($B$52,"Overall care judgement - ","")&$B$6,Table3_data,S49,0))=TRUE,0,VLOOKUP($D$7&$D$48&$B$4&SUBSTITUTE($B$52,"Overall care judgement - ","")&$B$6,Table3_data,S49,0)) -> 2 | T52: =IF($D52=0,"",S52/$D52*100) -> 11.76470588
B54: Quality of care | D54: 17 | G54: =IF(ISERROR(VLOOKUP($D$7&$D$48&$B$4&SUBSTITUTE($B$54,"Overall care judgement - ","")&$B$6,Table3_data,G49,0))=TRUE,0,VLOOKUP($D$7&$D$48&$B$4&SUBSTITUTE($B$54,"Overall care judgement - ","")&$B$6,Table3_data,G49,0)) -> 3 | H54: 17.64705882 | K54: =IF(ISERROR(VLOOKUP($D$7&$D$48&$B$4&SUBSTITUTE($B$54,"Overall care judgement - ","")&$B$6,Table3_data,K49,0))=TRUE,0,VLOOKUP($D$7&$D$48&$B$4&SUBSTITUTE($B$54,"Overall care judgement - ","")&$B$6,Table3_data,K49,0)) -> 9 | L54: 52.94117647 | O54: =IF(ISERROR(VLOOKUP($D$7&$D$48&$B$4&SUBSTITUTE($B$54,"Overall care judgement - ","")&$B$6,Table3_data,O49,0))=TRUE,0,VLOOKUP($D$7&$D$48&$B$4&SUBSTITUTE($B$54,"Overall care judgement - ","")&$B$6,Table3_data,O49,0)) -> 3 | P54: 17.64705882 | S54: =IF(ISERROR(VLOOKUP($D$7&$D$48&$B$4&SUBSTITUTE($B$54,"Overall care judgement - ","")&$B$6,Table3_data,S49,0))=TRUE,0,VLOOKUP($D$7&$D$48&$B$4&SUBSTITUTE($B$54,"Overall care judgement - ","")&$B$6,Table3_data,S49,0)) -> 2 | T54: 11.76470588
A56: The safety of children and young people | B56: Safeguarding children and young people | D56: 17 | G56: =IF(ISERROR(VLOOKUP($D$7&$D$48&$B$4&SUBSTITUTE($A$56,"Overall care judgement - ","")&$B$6,Table3_data,G49,0))=TRUE,0,VLOOKUP($D$7&$D$48&$B$4&SUBSTITUTE($A$56,"Overall care judgement - ","")&$B$6,Table3_data,G49,0)) -> 2 | H56: 11.76470588 | K56: =IF(ISERROR(VLOOKUP($D$7&$D$48&$B$4&SUBSTITUTE($A$56,"Overall care judgement - ","")&$B$6,Table3_data,K49,0))=TRUE,0,VLOOKUP($D$7&$D$48&$B$4&SUBSTITUTE($A$56,"Overall care judgement - ","")&$B$6,Table3_data,K49,0)) -> 9 | L56: 52.94117647 | O56: =IF(ISERROR(VLOOKUP($D$7&$D$48&$B$4&SUBSTITUTE($A$56,"Overall care judgement - ","")&$B$6,Table3_data,O49,0))=TRUE,0,VLOOKUP($D$7&$D$48&$B$4&SUBSTITUTE($A$56,"Overall care judgement - ","")&$B$6,Table3_data,O49,0)) -> 4 | P56: 23.52941176 | S56: =IF(ISERROR(VLOOKUP($D$7&$D$48&$B$4&SUBSTITUTE($A$56,"Overall care judgement - ","")&$B$6,Table3_data,S49,0))=TRUE,0,VLOOKUP($D$7&$D$48&$B$4&SUBSTITUTE($A$56,"Overall care judgement - ","")&$B$6,Table3_data,S49,0)) -> 2 | T56: 11.76470588
B58: Leadership and management | D58: 17 | G58: =IF(ISERROR(VLOOKUP($D$7&$D$48&$B$4&SUBSTITUTE($B$58,"Overall care judgement - ","")&$B$6,Table3_data,G49,0))=TRUE,0,VLOOKUP($D$7&$D$48&$B$4&SUBSTITUTE($B$58,"Overall care judgement - ","")&$B$6,Table3_data,G49,0)) -> 1 | H58: 5.882352941 | K58: =IF(ISERROR(VLOOKUP($D$7&$D$48&$B$4&SUBSTITUTE($B$58,"Overall care judgement - ","")&$B$6,Table3_data,K49,0))=TRUE,0,VLOOKUP($D$7&$D$48&$B$4&SUBSTITUTE($B$58,"Overall care judgement - ","")&$B$6,Table3_data,K49,0)) -> 9 | L58: 52.94117647 | O58: =IF(ISERROR(VLOOKUP($D$7&$D$48&$B$4&SUBSTITUTE($B$58,"Overall care judgement - ","")&$B$6,Table3_data,O49,0))=TRUE,0,VLOOKUP($D$7&$D$48&$B$4&SUBSTITUTE($B$58,"Overall care judgement - ","")&$B$6,Table3_data,O49,0)) -> 5 | P58: 29.41176471 | S58: =IF(ISERROR(VLOOKUP($D$7&$D$48&$B$4&SUBSTITUTE($B$58,"Overall care judgement - ","")&$B$6,Table3_data,S49,0))=TRUE,0,VLOOKUP($D$7&$D$48&$B$4&SUBSTITUTE($B$58,"Overall care judgement - ","")&$B$6,Table3_data,S49,0)) -> 2 | T58: 11.76470588
T60: Source: Ofsted inspections
B62: 1. These figures include those children's homes run by the local authority, and those that are run by health authorities, private or voluntary organisations located in the local authority area.
B63: 2. Residential special schools that care for pupils for more than 295 days per year must register as children's homes.

Sheet Table 3d
A1: =B2 -> Table 3d: Interim inspection outcomes of children's homes inspected between 1 April 2012 - 30 June 2012 (provisional)¹ ² ³
B2: =IF(ISERROR(VLOOKUP(D5,Ranges!F1:G12,2,0)),"Table 3d: Interim inspection outcomes of children's homes inspected between "&D5&" (provisional)"&CHAR(185)&" "&CHAR(178)&" "&CHAR(179),"Table 3d: Interim inspection outcomes of children's homes inspected in "&D5&" (provisional)"&CHAR(185)&" "&CHAR(178)&" "&CHAR(179)) -> Table 3d: Interim inspection outcomes of children's homes inspected between 1 April 2012 - 30 June 2012 (provisional)¹ ² ³
B5: Select period: | D5: 1 April 2012 - 30 June 2012 | R5: =IF($D$5=Ranges!C1,"4",IF($D$5 = Ranges!C2, "1", IF($D$5 = Ranges!C3, "2", IF($D$5 = Ranges!C4, "3","Error")))) -> Error
B6: =VLOOKUP(D5,Periods,2,0) -> 4
B7: Select local authority: | D7: All | N7: =IF($D$7="All", "England",$D$7) -> England | R7: =IF($D$7="All", "England",$D$7) -> England
D9: All
D10: Total number inspected | F10: Good progress | J10: Satisfactory progress | N10: Inadequate progress | R10: Not judged4
F11: Number | G11: % | J11: Number | K11: % | N11: Number | O11: % | R11: Number | S11: %
B13: Children's home | D13: =SUM(D15,D17,D19) -> 45 | F13: =F15+F17+F19 -> 11 | G13: =IF($D13=0,"",F13/$D13*100) -> 24.44444444 | J13: =J15+J17+J19 -> 28 | K13: =IF($D13=0,"",J13/$D13*100) -> 62.22222222 | N13: =N15+N17+N19 -> 3 | O13: =IF($D13=0,"",N13/$D13*100) -> 6.666666667 | R13: =R15+R17+R19 -> 3 | S13: =IF($D13=0,"",R13/$D13*100) -> 6.666666667
A15: Children's home | B15: Children's home | D15: =F15+J15+N15+R15 -> 42 | F15: =IF(ISERROR(VLOOKUP($D$7&D9&$A15&$B$6,Table3d_data,6,FALSE))=TRUE,0,VLOOKUP($D$7&D9&$A15&$B$6,Table3d_data,6,FALSE)) -> 10 | G15: =IF($D15=0,"",F15/$D15*100) -> 23.80952381 | J15: =IF(ISERROR(VLOOKUP($D$7&D9&$A15&$B$6,Table3d_data,7,FALSE))=TRUE,0,VLOOKUP($D$7&D9&$A15&$B$6,Table3d_data,7,FALSE)) -> 26 | K15: =IF($D15=0,"",J15/$D15*100) -> 61.9047619 | N15: =IF(ISERROR(VLOOKUP($D$7&D9&$A15&$B$6,Table3d_data,8,FALSE))=TRUE,0,VLOOKUP($D$7&D9&$A15&$B$6,Table3d_data,8,FALSE)) -> 3 | O15: =IF($D15=0,"",N15/$D15*100) -> 7.142857143 | R15: =IF(ISERROR(VLOOKUP($D$7&D9&$A15&$B$6,Table3d_data,8,FALSE))=TRUE,0,VLOOKUP($D$7&D9&$A15&$B$6,Table3d_data,8,FALSE)) -> 3 | S15: =IF($D15=0,"",R15/$D15*100) -> 7.142857143
A17: Secure children's home | B17: Secure children's home | D17: =F17+J17+N17+R17 -> 1 | F17: =IF(ISERROR(VLOOKUP($D$7&D9&$A17&$B$6,Table3d_data,6,FALSE))=TRUE,0,VLOOKUP($D$7&D9&$A17&$B$6,Table3d_data,6,FALSE)) -> 0 | G17: =IF($D17=0,"",F17/$D17*100) -> 0 | J17: =IF(ISERROR(VLOOKUP($D$7&D9&$A17&$B$6,Table3d_data,7,FALSE))=TRUE,0,VLOOKUP($D$7&D9&$A17&$B$6,Table3d_data,7,FALSE)) -> 1 | K17: =IF($D17=0,"",J17/$D17*100) -> 100 | N17: =IF(ISERROR(VLOOKUP($D$7&$D$9&$A17&$B$6,Table3d_data,8,FALSE))=TRUE,0,VLOOKUP($D$7&$D$9&$A17&$B$6,Table3d_data,8,FALSE)) -> 0 | O17: =IF($D17=0,"",N17/$D17*100) -> 0 | R17: =IF(ISERROR(VLOOKUP($D$7&D9&$A17&$B$6,Table3d_data,8,FALSE))=TRUE,0,VLOOKUP($D$7&D9&$A17&$B$6,Table3d_data,8,FALSE)) -> 0 | S17: =IF($D17=0,"",R17/$D17*100) -> 0
A19: Residential special school (>295 days/year) | B19: Residential special school5 | D19: =F19+J19+N19+R19 -> 2 | F19: =IF(ISERROR(VLOOKUP($D$7&D9&$A19&$B$6,Table3d_data,6,FALSE))=TRUE,0,VLOOKUP($D$7&D9&$A19&$B$6,Table3d_data,6,FALSE)) -> 1 | G19: =IF($D19=0,"",F19/$D19*100) -> 50 | J19: =IF(ISERROR(VLOOKUP($D$7&D9&$A19&$B$6,Table3d_data,7,FALSE))=TRUE,0,VLOOKUP($D$7&D9&$A19&$B$6,Table3d_data,7,FALSE)) -> 1 | K19: =IF($D19=0,"",J19/$D19*100) -> 50 | N19: =IF(ISERROR(VLOOKUP($D$7&$D$9&$A19&$B$6,Table3d_data,8,FALSE))=TRUE,0,VLOOKUP($D$7&$D$9&$A19&$B$6,Table3d_data,8,FALSE)) -> 0 | O19: =IF($D19=0,"",N19/$D19*100) -> 0 | R19: =IF(ISERROR(VLOOKUP($D$7&D9&$A19&$B$6,Table3d_data,8,FALSE))=TRUE,0,VLOOKUP($D$7&D9&$A19&$B$6,Table3d_data,8,FALSE)) -> 0 | S19: =IF($D19=0,"",R19/$D19*100) -> 0
D21: Local authority
B23: Children's home | D23: =D25+D27+D29 -> 1 | F23: =F25+F27+F29 -> 0 | G23: =IF($D23=0,"",F23/$D23*100) -> 0 | J23: =J25+J27+J29 -> 1 | K23: =IF($D23=0,"",J23/$D23*100) -> 100 | N23: =N25+N27+N29 -> 0 | O23: =IF($D23=0,"",N23/$D23*100) -> 0 | R23: =R25+R27+R29 -> 0 | S23: =IF($D23=0,"",R23/$D23*100) -> 0
A25: Children's home | B25: Children's home | D25: =F25+J25+N25+R25 -> 1 | F25: =IF(ISERROR(VLOOKUP($D$7&$D$21&A25&$B$6,Table3d_data,6,FALSE))=TRUE,0,VLOOKUP($D$7&$D$21&A25&$B$6,Table3d_data,6,FALSE)) -> 0 | G25: =IF($D25=0,"",F25/$D25*100) -> 0 | J25: =IF(ISERROR(VLOOKUP($D$7&$D$21&A25&$B$6,Table3d_data,7,FALSE))=TRUE,0,VLOOKUP($D$7&$D$21&A25&$B$6,Table3d_data,7,FALSE)) -> 1 | K25: =IF($D25=0,"",J25/$D25*100) -> 100 | N25: =IF(ISERROR(VLOOKUP($D$7&$D$21&A25&$B$6,Table3d_data,8,FALSE))=TRUE,0,VLOOKUP($D$7&$D$21&A25&$B$6,Table3d_data,8,FALSE)) -> 0 | O25: =IF($D25=0,"",N25/$D25*100) -> 0 | R25: =IF(ISERROR(VLOOKUP($D$7&$D$21&A25&$B$6,Table3d_data,9,FALSE))=TRUE,0,VLOOKUP($D$7&$D$21&A25&$B$6,Table3d_data,9,FALSE)) -> 0 | S25: =IF($D25=0,"",R25/$D25*100) -> 0
A27: Secure children's home | B27: Secure children's home | D27: =F27+J27+N27+R27 -> 0 | F27: =IF(ISERROR(VLOOKUP($D$7&$D$21&A27&$B$6,Table3d_data,5,FALSE))=TRUE,0,VLOOKUP($D$7&$D$21&A27&$B$6,Table3d_data,5,FALSE)) -> 0 | G27: =IF($D27=0,"",F27/$D27*100) ->  | J27: =IF(ISERROR(VLOOKUP($D$7&$D$21&A27&$B$6,Table3d_data,7,FALSE))=TRUE,0,VLOOKUP($D$7&$D$21&A27&$B$6,Table3d_data,7,FALSE)) -> 0 | K27: =IF($D27=0,"",J27/$D27*100) ->  | N27: =IF(ISERROR(VLOOKUP($D$7&$A17&$B$6,Table3d_data,8,FALSE))=TRUE,0,VLOOKUP($D$7&$B17&$B$6,Table3d_data,8,FALSE)) -> 0 | O27: =IF($D27=0,"",N27/$D27*100) ->  | R27: =IF(ISERROR(VLOOKUP($D$7&$D$21&A27&$B$6,Table3d_data,9,FALSE))=TRUE,0,VLOOKUP($D$7&$D$21&A27&$B$6,Table3d_data,9,FALSE)) -> 0 | S27: =IF($D27=0,"",R27/$D27*100) -> 
A29: Residential special school (>295 days/year) | B29: Residential special school5 | D29: =F29+J29+N29+R29 -> 0 | F29: =IF(ISERROR(VLOOKUP($D$7&$D$21&A29&$B$6,Table3d_data,5,FALSE))=TRUE,0,VLOOKUP($D$7&$D$21&A29&$B$6,Table3d_data,5,FALSE)) -> 0 | G29: =IF($D29=0,"",F29/$D29*100) ->  | J29: =IF(ISERROR(VLOOKUP($D$7&$D$21&A29&$B$6,Table3d_data,7,FALSE))=TRUE,0,VLOOKUP($D$7&$D$21&A29&$B$6,Table3d_data,7,FALSE)) -> 0 | K29: =IF($D29=0,"",J29/$D29*100) ->  | N29: =IF(ISERROR(VLOOKUP($D$7&$A19&$B$6,Table3d_data,8,FALSE))=TRUE,0,VLOOKUP($D$7&$A19&$B$6,Table3d_data,8,FALSE)) -> 0 | O29: =IF($D29=0,"",N29/$D29*100) ->  | R29: =IF(ISERROR(VLOOKUP($D$7&$D$21&A29&$B$6,Table3d_data,9,FALSE))=TRUE,0,VLOOKUP($D$7&$D$21&A29&$B$6,Table3d_data,9,FALSE)) -> 0 | S29: =IF($D29=0,"",R29/$D29*100) -> 
D31: Health authority
B33: Children's home | D33: =D35+D37+D39 -> 0 | F33: =F35+F37+F39 -> 0 | G33: =IF($D33=0,"",F33/$D33*100) ->  | J33: =J35+J37+J39 -> 0 | K33: =IF($D33=0,"",J33/$D33*100) ->  | N33: =N35+N37+N39 -> 0 | O33: =IF($D33=0,"",N33/$D33*100) ->  | R33: =R35+R37+R39 -> 0 | S33: =IF($D33=0,"",R33/$D33*100) -> 
A35: Children's home | B35: Children's home | D35: =F35+J35+N35+R35 -> 0 | F35: =IF(ISERROR(VLOOKUP($D$7&$D$31&A35&$B$6,Table3d_data,6,FALSE))=TRUE,0,VLOOKUP($D$7&$D$31&A35&$B$6,Table3d_data,6,FALSE)) -> 0 | G35: =IF($D35=0,"",F35/$D35*100) ->  | J35: =IF(ISERROR(VLOOKUP($D$7&$D$31&A35&$B$6,Table3d_data,7,FALSE))=TRUE,0,VLOOKUP($D$7&$D$31&A35&$B$6,Table3d_data,7,FALSE)) -> 0 | K35: =IF($D15<100,"",J35/$D15*100) ->  | N35: =IF(ISERROR(VLOOKUP($D$7&$D$31&A35&$B$6,Table3d_data,8,FALSE))=TRUE,0,VLOOKUP($D$7&$D$31&A35&$B$6,Table3d_data,8,FALSE)) -> 0 | O35: =IF($D15<100,"",N35/$D15*100) ->  | R35: =IF(ISERROR(VLOOKUP($D$7&$D$31&A35&$B$6,Table3d_data,8,FALSE))=TRUE,0,VLOOKUP($D$7&$D$31&A35&$B$6,Table3d_data,8,FALSE)) -> 0 | S35: =IF($D15<100,"",R35/$D15*100) -> 
A37: Secure children's home | B37: Secure children's home | D37: =F37+J37+N37+R37 -> 0 | F37: =IF(ISERROR(VLOOKUP($D$7&$D$31&A37&$B$6,Table3d_data,6,FALSE))=TRUE,0,VLOOKUP($D$7&$D$31&A37&$B$6,Table3d_data,6,FALSE)) -> 0 | G37: =IF($D37=0,"",F37/$D37*100) ->  | J37: =IF(ISERROR(VLOOKUP($D$7&$D$31&A37&$B$6,Table3d_data,7,FALSE))=TRUE,0,VLOOKUP($D$7&$D$31&A37&$B$6,Table3d_data,7,FALSE)) -> 0 | K37: =IF($D17<31,"",J37/$D17*100) ->  | N37: =IF(ISERROR(VLOOKUP($D$7&$D$31&A37&$B$6,Table3d_data,8,FALSE))=TRUE,0,VLOOKUP($D$7&$D$31&A37&$B$6,Table3d_data,8,FALSE)) -> 0 | O37: =IF($D17<31,"",N37/$D17*100) ->  | R37: =IF(ISERROR(VLOOKUP($D$7&$D$31&A37&$B$6,Table3d_data,8,FALSE))=TRUE,0,VLOOKUP($D$7&$D$31&A37&$B$6,Table3d_data,8,FALSE)) -> 0 | S37: =IF($D17<31,"",R37/$D17*100) -> 
A39: Residential special school (>295 days/year) | B39: Residential special school5 | D39: =F39+J39+N39+R39 -> 0 | F39: =IF(ISERROR(VLOOKUP($D$7&$D$31&A39&$B$6,Table3d_data,6,FALSE))=TRUE,0,VLOOKUP($D$7&$D$31&A39&$B$6,Table3d_data,6,FALSE)) -> 0 | G39: =IF($D39=0,"",F39/$D39*100) ->  | J39: =IF(ISERROR(VLOOKUP($D$7&$D$31&A39&$B$6,Table3d_data,7,FALSE))=TRUE,0,VLOOKUP($D$7&$D$31&A39&$B$6,Table3d_data,7,FALSE)) -> 0 | N39: =IF(ISERROR(VLOOKUP($D$7&$D$31&A39&$B$6,Table3d_data,8,FALSE))=TRUE,0,VLOOKUP($D$7&$D$31&A39&$B$6,Table3d_data,8,FALSE)) -> 0 | R39: =IF(ISERROR(VLOOKUP($D$7&$D$31&A39&$B$6,Table3d_data,8,FALSE))=TRUE,0,VLOOKUP($D$7&$D$31&A39&$B$6,Table3d_data,8,FALSE)) -> 0
D41: Private/ voluntary
B43: Children's home | D43: =D45+D47+D49 -> 44 | F43: =F45+F47+F49 -> 11 | G43: =IF($D43=0,"",F43/$D43*100) -> 25 | J43: =J45+J47+J49 -> 27 | K43: =IF($D43=0,"",J43/$D43*100) -> 61.36363636 | N43: =N45+N47+N49 -> 3 | O43: =IF($D43=0,"",N43/$D43*100) -> 6.818181818 | R43: =R45+R47+R49 -> 3 | S43: =IF($D43=0,"",R43/$D43*100) -> 6.818181818
A45: Children's home | B45: Children's home | D45: =F45+J45+N45+R45 -> 41 | F45: =IF(ISERROR(VLOOKUP($D$7&$D$41&A45&$B$6,Table3d_data,6,FALSE))=TRUE,0,VLOOKUP($D$7&$D$41&A45&$B$6,Table3d_data,6,FALSE)) -> 10 | G45: =IF($D45=0,"",F45/$D45*100) -> 24.3902439 | J45: =IF(ISERROR(VLOOKUP($D$7&$D$41&A45&$B$6,Table3d_data,7,FALSE))=TRUE,0,VLOOKUP($D$7&$D$41&A45&$B$6,Table3d_data,7,FALSE)) -> 25 | K45: =IF($D45=0,"",J45/$D45*100) -> 60.97560976 | N45: =IF(ISERROR(VLOOKUP($D$7&$D$41&A45&$B$6,Table3d_data,8,FALSE))=TRUE,0,VLOOKUP($D$7&$D$41&A45&$B$6,Table3d_data,8,FALSE)) -> 3 | O45: =IF($D45=0,"",N45/$D45*100) -> 7.317073171 | R45: =IF(ISERROR(VLOOKUP($D$7&$D$41&A45&$B$6,Table3d_data,9,FALSE))=TRUE,0,VLOOKUP($D$7&$D$41&A45&$B$6,Table3d_data,9,FALSE)) -> 3 | S45: =IF($D45=0,"",R45/$D45*100) -> 7.317073171
A47: Secure children's home | B47: Secure children's home | D47: =F47+J47+N47+R47 -> 1 | F47: =IF(ISERROR(VLOOKUP($D$7&$D$41&A47&$B$6,Table3d_data,6,FALSE))=TRUE,0,VLOOKUP($D$7&$D$41&A47&$B$6,Table3d_data,6,FALSE)) -> 0 | G47: =IF($D47=0,"",F47/$D47*100) -> 0 | J47: =IF(ISERROR(VLOOKUP($D$7&$D$41&A47&$B$6,Table3d_data,7,FALSE))=TRUE,0,VLOOKUP($D$7&$D$41&A47&$B$6,Table3d_data,7,FALSE)) -> 1 | K47: =IF($D47=0,"",J47/$D47*100) -> 100 | N47: =IF(ISERROR(VLOOKUP($D$7&$D$41&A47&$B$6,Table3d_data,8,FALSE))=TRUE,0,VLOOKUP($D$7&$D$41&A47&$B$6,Table3d_data,8,FALSE)) -> 0 | O47: =IF($D47=0,"",N47/$D47*100) -> 0 | R47: =IF(ISERROR(VLOOKUP($D$7&$D$41&A47&$B$6,Table3d_data,9,FALSE))=TRUE,0,VLOOKUP($D$7&$D$41&A47&$B$6,Table3d_data,9,FALSE)) -> 0 | S47: =IF($D47=0,"",R47/$D47*100) -> 0
A49: Residential special school (>295 days/year) | B49: Residential special school5 | D49: =F49+J49+N49+R49 -> 2 | F49: =IF(ISERROR(VLOOKUP($D$7&$D$41&A49&$B$6,Table3d_data,6,FALSE))=TRUE,0,VLOOKUP($D$7&$D$41&A49&$B$6,Table3d_data,6,FALSE)) -> 1 | G49: =IF($D49=0,"",F49/$D49*100) -> 50 | J49: =IF(ISERROR(VLOOKUP($D$7&$D$41&A49&$B$6,Table3d_data,7,FALSE))=TRUE,0,VLOOKUP($D$7&$D$41&A49&$B$6,Table3d_data,7,FALSE)) -> 1 | K49: =IF($D49=0,"",J49/$D49*100) -> 50 | N49: =IF(ISERROR(VLOOKUP($D$7&$D$41&A49&$B$6,Table3d_data,8,FALSE))=TRUE,0,VLOOKUP($D$7&$D$41&A49&$B$6,Table3d_data,8,FALSE)) -> 0 | O49: =IF($D49=0,"",N49/$D49*100) -> 0 | R49: =IF(ISERROR(VLOOKUP($D$7&$D$41&A49&$B$6,Table3d_data,9,FALSE))=TRUE,0,VLOOKUP($D$7&$D$41&A49&$B$6,Table3d_data,9,FALSE)) -> 0 | S49: =IF($D49=0,"",R49/$D49*100) -> 0
R51: Source: Ofsted inspections
B53: 1. These figures include those children's homes run by the local authority, and those that are run by health authorities, private or voluntary organisations located in the local authority area.
B54: 2. Percentages are rounded and may not add to exactly 100.
B55: 3. At an interim inspection, progress is judged based on requirements and recommendations made following the last full inspection.
B56: 4. Children's homes not accomodating children at the time of the interim inspection received no judgement.
B57: 5. Residential special schools that care for pupils for more than 295 days per year must register as children's homes.

Sheet Table3d_data (hidden)
A1: Table 3d: lnterim inspection outcomes of children's homes providers between 01/04/2011 and 30/06/2011
A2: Lookup | B2: Local authority | C2: Sector | D2: Corporate Inspected Provision Type Group Name | E2: Month | F2: Good progress | G2: Satisfactory progres | H2: Inadequate progress | I2: Not judged
A3: AllAllChildren's Home1 | B3: All | C3: All | D3: Children's Home | E3: 1 | F3: 1 | G3: 3 | H3: 0 | I3: 0
A4: AllAllChildren's Home2 | B4: All | C4: All | D4: Children's Home | E4: 2 | F4: 7 | G4: 12 | H4: 0 | I4: 1
A5: AllAllChildren's Home3 | B5: All | C5: All | D5: Children's Home | E5: 3 | F5: 2 | G5: 11 | H5: 3 | I5: 2
A6: AllAllChildren's Home4 | B6: All | C6: All | D6: Children's Home | E6: 4 | F6: 10 | G6: 26 | H6: 3 | I6: 3
A7: AllAllResidential special school (>295 days/year)3 | B7: All | C7: All | D7: Residential special school (>295 days/year) | E7: 3 | F7: 1 | G7: 1 | H7: 0 | I7: 0
A8: AllAllResidential special school (>295 days/year)4 | B8: All | C8: All | D8: Residential special school (>295 days/year) | E8: 4 | F8: 1 | G8: 1 | H8: 0 | I8: 0
A9: AllAllSecure children's home2 | B9: All | C9: All | D9: Secure children's home | E9: 2 | F9: 0 | G9: 1 | H9: 0 | I9: 0
A10: AllAllSecure children's home4 | B10: All | C10: All | D10: Secure children's home | E10: 4 | F10: 0 | G10: 1 | H10: 0 | I10: 0
A11: AllLocal authorityChildren's Home2 | B11: All | C11: Local authority | D11: Children's Home | E11: 2 | F11: 0 | G11: 1 | H11: 0 | I11: 0
A12: AllLocal authorityChildren's Home4 | B12: All | C12: Local authority | D12: Children's Home | E12: 4 | F12: 0 | G12: 1 | H12: 0 | I12: 0
A13: AllPrivate/ VoluntaryChildren's Home1 | B13: All | C13: Private/ Voluntary | D13: Children's Home | E13: 1 | F13: 1 | G13: 3 | H13: 0 | I13: 0
A14: AllPrivate/ VoluntaryChildren's Home2 | B14: All | C14: Private/ Voluntary | D14: Children's Home | E14: 2 | F14: 7 | G14: 11 | H14: 0 | I14: 1
A15: AllPrivate/ VoluntaryChildren's Home3 | B15: All | C15: Private/ Voluntary | D15: Children's Home | E15: 3 | F15: 2 | G15: 11 | H15: 3 | I15: 2
A16: AllPrivate/ VoluntaryChildren's Home4 | B16: All | C16: Private/ Voluntary | D16: Children's Home | E16: 4 | F16: 10 | G16: 25 | H16: 3 | I16: 3
A17: AllPrivate/ VoluntaryResidential special school (>295 days/year)3 | B17: All | C17: Private/ Voluntary | D17: Residential special school (>295 days/year) | E17: 3 | F17: 1 | G17: 1 | H17: 0 | I17: 0
A18: AllPrivate/ VoluntaryResidential special school (>295 days/year)4 | B18: All | C18: Private/ Voluntary | D18: Residential special school (>295 days/year) | E18: 4 | F18: 1 | G18: 1 | H18: 0 | I18: 0
A19: AllPrivate/ VoluntarySecure children's home2 | B19: All | C19: Private/ Voluntary | D19: Secure children's home | E19: 2 | F19: 0 | G19: 1 | H19: 0 | I19: 0
A20: AllPrivate/ VoluntarySecure children's home4 | B20: All | C20: Private/ Voluntary | D20: Secure children's home | E20: 4 | F20: 0 | G20: 1 | H20: 0 | I20: 0
A21: BirminghamAllChildren's Home2 | B21: Birmingham | C21: All | D21: Children's Home | E21: 2 | F21: 0 | G21: 1 | H21: 0 | I21: 0
A22: BirminghamAllChildren's Home4 | B22: Birmingham | C22: All | D22: Children's Home | E22: 4 | F22: 0 | G22: 1 | H22: 0 | I22: 0
A23: BirminghamPrivate/ VoluntaryChildren's Home2 | B23: Birmingham | C23: Private/ Voluntary | D23: Children's Home | E23: 2 | F23: 0 | G23: 1 | H23: 0 | I23: 0
A24: BirminghamPrivate/ VoluntaryChildren's Home4 | B24: Birmingham | C24: Private/ Voluntary | D24: Children's Home | E24: 4 | F24: 0 | G24: 1 | H24: 0 | I24: 0
A25: BlackpoolAllChildren's Home1 | B25: Blackpool | C25: All | D25: Children's Home | E25: 1 | F25: 0 | G25: 1 | H25: 0 | I25: 0
A26: BlackpoolAllChildren's Home4 | B26: Blackpool | C26: All | D26: Children's Home | E26: 4 | F26: 0 | G26: 1 | H26: 0 | I26: 0
A27: BlackpoolPrivate/ VoluntaryChildren's Home1 | B27: Blackpool | C27: Private/ Voluntary | D27: Children's Home | E27: 1 | F27: 0 | G27: 1 | H27: 0 | I27: 0
A28: BlackpoolPrivate/ VoluntaryChildren's Home4 | B28: Blackpool | C28: Private/ Voluntary | D28: Children's Home | E28: 4 | F28: 0 | G28: 1 | H28: 0 | I28: 0
A29: Cheshire EastAllChildren's Home2 | B29: Cheshire East | C29: All | D29: Children's Home | E29: 2 | F29: 0 | G29: 1 | H29: 0 | I29: 0
A30: Cheshire EastAllChildren's Home4 | B30: Cheshire East | C30: All | D30: Children's Home | E30: 4 | F30: 0 | G30: 1 | H30: 0 | I30: 0
A31: Cheshire EastPrivate/ VoluntaryChildren's Home2 | B31: Cheshire East | C31: Private/ Voluntary | D31: Children's Home | E31: 2 | F31: 0 | G31: 1 | H31: 0 | I31: 0
A32: Cheshire EastPrivate/ VoluntaryChildren's Home4 | B32: Cheshire East | C32: Private/ Voluntary | D32: Children's Home | E32: 4 | F32: 0 | G32: 1 | H32: 0 | I32: 0
A33: DudleyAllChildren's Home2 | B33: Dudley | C33: All | D33: Children's Home | E33: 2 | F33: 0 | G33: 1 | H33: 0 | I33: 0
A34: DudleyAllChildren's Home4 | B34: Dudley | C34: All | D34: Children's Home | E34: 4 | F34: 0 | G34: 1 | H34: 0 | I34: 0
A35: DudleyPrivate/ VoluntaryChildren's Home2 | B35: Dudley | C35: Private/ Voluntary | D35: Children's Home | E35: 2 | F35: 0 | G35: 1 | H35: 0 | I35: 0
A36: DudleyPrivate/ VoluntaryChildren's Home4 | B36: Dudley | C36: Private/ Voluntary | D36: Children's Home | E36: 4 | F36: 0 | G36: 1 | H36: 0 | I36: 0
A37: HerefordshireAllChildren's Home2 | B37: Herefordshire | C37: All | D37: Children's Home | E37: 2 | F37: 0 | G37: 1 | H37: 0 | I37: 0
A38: HerefordshireAllChildren's Home4 | B38: Herefordshire | C38: All | D38: Children's Home | E38: 4 | F38: 0 | G38: 1 | H38: 0 | I38: 0
A39: HerefordshirePrivate/ VoluntaryChildren's Home2 | B39: Herefordshire | C39: Private/ Voluntary | D39: Children's Home | E39: 2 | F39: 0 | G39: 1 | H39: 0 | I39: 0
A40: HerefordshirePrivate/ VoluntaryChildren's Home4 | B40: Herefordshire | C40: Private/ Voluntary | D40: Children's Home | E40: 4 | F40: 0 | G40: 1 | H40: 0 | I40: 0
A41: HertfordshireAllChildren's Home3 | B41: Hertfordshire | C41: All | D41: Children's Home | E41: 3 | F41: 0 | G41: 1 | H41: 0 | I41: 0
A42: HertfordshireAllChildren's Home4 | B42: Hertfordshire | C42: All | D42: Children's Home | E42: 4 | F42: 0 | G42: 1 | H42: 0 | I42: 0
A43: HertfordshirePrivate/ VoluntaryChildren's Home3 | B43: Hertfordshire | C43: Private/ Voluntary | D43: Children's Home | E43: 3 | F43: 0 | G43: 1 | H43: 0 | I43: 0
A44: HertfordshirePrivate/ VoluntaryChildren's Home4 | B44: Hertfordshire | C44: Private/ Voluntary | D44: Children's Home | E44: 4 | F44: 0 | G44: 1 | H44: 0 | I44: 0
A45: Kingston upon HullAllChildren's Home1 | B45: Kingston upon Hull | C45: All | D45: Children's Home | E45: 1 | F45: 1 | G45: 0 | H45: 0 | I45: 0
A46: Kingston upon HullAllChildren's Home4 | B46: Kingston upon Hull | C46: All | D46: Children's Home | E46: 4 | F46: 1 | G46: 0 | H46: 0 | I46: 0
A47: Kingston upon HullPrivate/ VoluntaryChildren's Home1 | B47: Kingston upon Hull | C47: Private/ Voluntary | D47: Children's Home | E47: 1 | F47: 1 | G47: 0 | H47: 0 | I47: 0
A48: Kingston upon HullPrivate/ VoluntaryChildren's Home4 | B48: Kingston upon Hull | C48: Private/ Voluntary | D48: Children's Home | E48: 4 | F48: 1 | G48: 0 | H48: 0 | I48: 0
A49: KirkleesAllChildren's Home2 | B49: Kirklees | C49: All | D49: Children's Home | E49: 2 | F49: 1 | G49: 0 | H49: 0 | I49: 0
A50: KirkleesAllChildren's Home4 | B50: Kirklees | C50: All | D50: Children's Home | E50: 4 | F50: 1 | G50: 0 | H50: 0 | I50: 0
A51: KirkleesPrivate/ VoluntaryChildren's Home2 | B51: Kirklees | C51: Private/ Voluntary | D51: Children's Home | E51: 2 | F51: 1 | G51: 0 | H51: 0 | I51: 0
A52: KirkleesPrivate/ VoluntaryChildren's Home4 | B52: Kirklees | C52: Private/ Voluntary | D52: Children's Home | E52: 4 | F52: 1 | G52: 0 | H52: 0 | I52: 0
A53: LeedsAllChildren's Home3 | B53: Leeds | C53: All | D53: Children's Home | E53: 3 | F53: 1 | G53: 0 | H53: 0 | I53: 0
A54: LeedsAllChildren's Home4 | B54: Leeds | C54: All | D54: Children's Home | E54: 4 | F54: 1 | G54: 0 | H54: 0 | I54: 0
A55: LeedsPrivate/ VoluntaryChildren's Home3 | B55: Leeds | C55: Private/ Voluntary | D55: Children's Home | E55: 3 | F55: 1 | G55: 0 | H55: 0 | I55: 0
A56: LeedsPrivate/ VoluntaryChildren's Home4 | B56: Leeds | C56: Private/ Voluntary | D56: Children's Home | E56: 4 | F56: 1 | G56: 0 | H56: 0 | I56: 0
A57: LeicestershireAllChildren's Home3 | B57: Leicestershire | C57: All | D57: Children's Home | E57: 3 | F57: 0 | G57: 2 | H57: 0 | I57: 0
A58: LeicestershireAllChildren's Home4 | B58: Leicestershire | C58: All | D58: Children's Home | E58: 4 | F58: 0 | G58: 2 | H58: 0 | I58: 0
A59: LeicestershirePrivate/ VoluntaryChildren's Home3 | B59: Leicestershire | C59: Private/ Voluntary | D59: Children's Home | E59: 3 | F59: 0 | G59: 2 | H59: 0 | I59: 0
A60: LeicestershirePrivate/ VoluntaryChildren's Home4 | B60: Leicestershire | C60: Private/ Voluntary | D60: Children's Home | E60: 4 | F60: 0 | G60: 2 | H60: 0 | I60: 0
A61: LincolnshireAllChildren's Home2 | B61: Lincolnshire | C61: All | D61: Children's Home | E61: 2 | F61: 1 | G61: 0 | H61: 0 | I61: 0
A62: LincolnshireAllChildren's Home4 | B62: Lincolnshire | C62: All | D62: Children's Home | E62: 4 | F62: 1 | G62: 0 | H62: 0 | I62: 0
A63: LincolnshirePrivate/ VoluntaryChildren's Home2 | B63: Lincolnshire | C63: Private/ Voluntary | D63: Children's Home | E63: 2 | F63: 1 | G63: 0 | H63: 0 | I63: 0
A64: LincolnshirePrivate/ VoluntaryChildren's Home4 | B64: Lincolnshire | C64: Private/ Voluntary | D64: Children's Home | E64: 4 | F64: 1 | G64: 0 | H64: 0 | I64: 0
A65: LiverpoolAllChildren's Home2 | B65: Liverpool | C65: All | D65: Children's Home | E65: 2 | F65: 0 | G65: 1 | H65: 0 | I65: 0
A66: LiverpoolAllChildren's Home3 | B66: Liverpool | C66: All | D66: Children's Home | E66: 3 | F66: 0 | G66: 1 | H66: 0 | I66: 0
A67: LiverpoolAllChildren's Home4 | B67: Liverpool | C67: All | D67: Children's Home | E67: 4 | F67: 0 | G67: 2 | H67: 0 | I67: 0
A68: LiverpoolPrivate/ VoluntaryChildren's Home2 | B68: Liverpool | C68: Private/ Voluntary | D68: Children's Home | E68: 2 | F68: 0 | G68: 1 | H68: 0 | I68: 0
A69: LiverpoolPrivate/ VoluntaryChildren's Home3 | B69: Liverpool | C69: Private/ Voluntary | D69: Children's Home | E69: 3 | F69: 0 | G69: 1 | H69: 0 | I69: 0
A70: LiverpoolPrivate/ VoluntaryChildren's Home4 | B70: Liverpool | C70: Private/ Voluntary | D70: Children's Home | E70: 4 | F70: 0 | G70: 2 | H70: 0 | I70: 0
A71: ManchesterAllChildren's Home3 | B71: Manchester | C71: All | D71: Children's Home | E71: 3 | F71: 0 | G71: 1 | H71: 0 | I71: 0
A72: ManchesterAllChildren's Home4 | B72: Manchester | C72: All | D72: Children's Home | E72: 4 | F72: 0 | G72: 1 | H72: 0 | I72: 0
A73: ManchesterPrivate/ VoluntaryChildren's Home3 | B73: Manchester | C73: Private/ Voluntary | D73: Children's Home | E73: 3 | F73: 0 | G73: 1 | H73: 0 | I73: 0
A74: ManchesterPrivate/ VoluntaryChildren's Home4 | B74: Manchester | C74: Private/ Voluntary | D74: Children's Home | E74: 4 | F74: 0 | G74: 1 | H74: 0 | I74: 0
A75: MedwayAllChildren's Home2 | B75: Medway | C75: All | D75: Children's Home | E75: 2 | F75: 0 | G75: 1 | H75: 0 | I75: 0
A76: MedwayAllChildren's Home4 | B76: Medway | C76: All | D76: Children's Home | E76: 4 | F76: 0 | G76: 1 | H76: 0 | I76: 0
A77: MedwayPrivate/ VoluntaryChildren's Home2 | B77: Medway | C77: Private/ Voluntary | D77: Children's Home | E77: 2 | F77: 0 | G77: 1 | H77: 0 | I77: 0
A78: MedwayPrivate/ VoluntaryChildren's Home4 | B78: Medway | C78: Private/ Voluntary | D78: Children's Home | E78: 4 | F78: 0 | G78: 1 | H78: 0 | I78: 0
A79: NorfolkAllChildren's Home2 | B79: Norfolk | C79: All | D79: Children's Home | E79: 2 | F79: 2 | G79: 0 | H79: 0 | I79: 0
A80: NorfolkAllChildren's Home4 | B80: Norfolk | C80: All | D80: Children's Home | E80: 4 | F80: 2 | G80: 0 | H80: 0 | I80: 0
A81: NorfolkAllResidential special school (>295 days/year)3 | B81: Norfolk | C81: All | D81: Residential special school (>295 days/year) | E81: 3 | F81: 0 | G81: 1 | H81: 0 | I81: 0
A82: NorfolkAllResidential special school (>295 days/year)4 | B82: Norfolk | C82: All | D82: Residential special school (>295 days/year) | E82: 4 | F82: 0 | G82: 1 | H82: 0 | I82: 0
A83: NorfolkPrivate/ VoluntaryChildren's Home2 | B83: Norfolk | C83: Private/ Voluntary | D83: Children's Home | E83: 2 | F83: 2 | G83: 0 | H83: 0 | I83: 0
A84: NorfolkPrivate/ VoluntaryChildren's Home4 | B84: Norfolk | C84: Private/ Voluntary | D84: Children's Home | E84: 4 | F84: 2 | G84: 0 | H84: 0 | I84: 0
A85: NorfolkPrivate/ VoluntaryResidential special school (>295 days/year)3 | B85: Norfolk | C85: Private/ Voluntary | D85: Residential special school (>295 days/year) | E85: 3 | F85: 0 | G85: 1 | H85: 0 | I85: 0
A86: NorfolkPrivate/ VoluntaryResidential special school (>295 days/year)4 | B86: Norfolk | C86: Private/ Voluntary | D86: Residential special school (>295 days/year) | E86: 4 | F86: 0 | G86: 1 | H86: 0 | I86: 0
A87: SalfordAllChildren's Home3 | B87: Salford | C87: All | D87: Children's Home | E87: 3 | F87: 0 | G87: 1 | H87: 1 | I87: 0
A88: SalfordAllChildren's Home4 | B88: Salford | C88: All | D88: Children's Home | E88: 4 | F88: 0 | G88: 1 | H88: 1 | I88: 0
A89: SalfordPrivate/ VoluntaryChildren's Home3 | B89: Salford | C89: Private/ Voluntary | D89: Children's Home | E89: 3 | F89: 0 | G89: 1 | H89: 1 | I89: 0
A90: SalfordPrivate/ VoluntaryChildren's Home4 | B90: Salford | C90: Private/ Voluntary | D90: Children's Home | E90: 4 | F90: 0 | G90: 1 | H90: 1 | I90: 0
A91: SandwellAllChildren's Home1 | B91: Sandwell | C91: All | D91: Children's Home | E91: 1 | F91: 0 | G91: 2 | H91: 0 | I91: 0
A92: SandwellAllChildren's Home4 | B92: Sandwell | C92: All | D92: Children's Home | E92: 4 | F92: 0 | G92: 2 | H92: 0 | I92: 0
A93: SandwellPrivate/ VoluntaryChildren's Home1 | B93: Sandwell | C93: Private/ Voluntary | D93: Children's Home | E93: 1 | F93: 0 | G93: 2 | H93: 0 | I93: 0
A94: SandwellPrivate/ VoluntaryChildren's Home4 | B94: Sandwell | C94: Private/ Voluntary | D94: Children's Home | E94: 4 | F94: 0 | G94: 2 | H94: 0 | I94: 0
A95: SeftonAllChildren's Home2 | B95: Sefton | C95: All | D95: Children's Home | E95: 2 | F95: 1 | G95: 1 | H95: 0 | I95: 0
A96: SeftonAllChildren's Home3 | B96: Sefton | C96: All | D96: Children's Home | E96: 3 | F96: 0 | G96: 0 | H96: 0 | I96: 1
A97: SeftonAllChildren's Home4 | B97: Sefton | C97: All | D97: Children's Home | E97: 4 | F97: 1 | G97: 1 | H97: 0 | I97: 1
A98: SeftonPrivate/ VoluntaryChildren's Home2 | B98: Sefton | C98: Private/ Voluntary | D98: Children's Home | E98: 2 | F98: 1 | G98: 1 | H98: 0 | I98: 0
A99: SeftonPrivate/ VoluntaryChildren's Home3 | B99: Sefton | C99: Private/ Voluntary | D99: Children's Home | E99: 3 | F99: 0 | G99: 0 | H99: 0 | I99: 1
A100: SeftonPrivate/ VoluntaryChildren's Home4 | B100: Sefton | C100: Private/ Voluntary | D100: Children's Home | E100: 4 | F100: 1 | G100: 1 | H100: 0 | I100: 1
A101: ShropshireAllChildren's Home2 | B101: Shropshire | C101: All | D101: Children's Home | E101: 2 | F101: 0 | G101: 1 | H101: 0 | I101: 0
A102: ShropshireAllChildren's Home4 | B102: Shropshire | C102: All | D102: Children's Home | E102: 4 | F102: 0 | G102: 1 | H102: 0 | I102: 0
A103: ShropshirePrivate/ VoluntaryChildren's Home2 | B103: Shropshire | C103: Private/ Voluntary | D103: Children's Home | E103: 2 | F103: 0 | G103: 1 | H103: 0 | I103: 0
A104: ShropshirePrivate/ VoluntaryChildren's Home4 | B104: Shropshire | C104: Private/ Voluntary | D104: Children's Home | E104: 4 | F104: 0 | G104: 1 | H104: 0 | I104: 0
A105: St. HelensAllChildren's Home2 | B105: St. Helens | C105: All | D105: Children's Home | E105: 2 | F105: 0 | G105: 1 | H105: 0 | I105: 0
A106: St. HelensAllChildren's Home4 | B106: St. Helens | C106: All | D106: Children's Home | E106: 4 | F106: 0 | G106: 1 | H106: 0 | I106: 0
A107: St. HelensAllSecure children's home2 | B107: St. Helens | C107: All | D107: Secure children's home | E107: 2 | F107: 0 | G107: 1 | H107: 0 | I107: 0
A108: St. HelensAllSecure children's home4 | B108: St. Helens | C108: All | D108: Secure children's home | E108: 4 | F108: 0 | G108: 1 | H108: 0 | I108: 0
A109: St. HelensPrivate/ VoluntaryChildren's Home2 | B109: St. Helens | C109: Private/ Voluntary | D109: Children's Home | E109: 2 | F109: 0 | G109: 1 | H109: 0 | I109: 0
A110: St. HelensPrivate/ VoluntaryChildren's Home4 | B110: St. Helens | C110: Private/ Voluntary | D110: Children's Home | E110: 4 | F110: 0 | G110: 1 | H110: 0 | I110: 0
A111: St. HelensPrivate/ VoluntarySecure children's home2 | B111: St. Helens | C111: Private/ Voluntary | D111: Secure children's home | E111: 2 | F111: 0 | G111: 1 | H111: 0 | I111: 0
A112: St. HelensPrivate/ VoluntarySecure children's home4 | B112: St. Helens | C112: Private/ Voluntary | D112: Secure children's home | E112: 4 | F112: 0 | G112: 1 | H112: 0 | I112: 0
A113: StaffordshireAllChildren's Home3 | B113: Staffordshire | C113: All | D113: Children's Home | E113: 3 | F113: 1 | G113: 1 | H113: 0 | I113: 0
A114: StaffordshireAllChildren's Home4 | B114: Staffordshire | C114: All | D114: Children's Home | E114: 4 | F114: 1 | G114: 1 | H114: 0 | I114: 0
A115: StaffordshirePrivate/ VoluntaryChildren's Home3 | B115: Staffordshire | C115: Private/ Voluntary | D115: Children's Home | E115: 3 | F115: 1 | G115: 1 | H115: 0 | I115: 0
A116: StaffordshirePrivate/ VoluntaryChildren's Home4 | B116: Staffordshire | C116: Private/ Voluntary | D116: Children's Home | E116: 4 | F116: 1 | G116: 1 | H116: 0 | I116: 0
A117: StockportAllChildren's Home3 | B117: Stockport | C117: All | D117: Children's Home | E117: 3 | F117: 0 | G117: 1 | H117: 0 | I117: 0
A118: StockportAllChildren's Home4 | B118: Stockport | C118: All | D118: Children's Home | E118: 4 | F118: 0 | G118: 1 | H118: 0 | I118: 0
A119: StockportPrivate/ VoluntaryChildren's Home3 | B119: Stockport | C119: Private/ Voluntary | D119: Children's Home | E119: 3 | F119: 0 | G119: 1 | H119: 0 | I119: 0
A120: StockportPrivate/ VoluntaryChildren's Home4 | B120: Stockport | C120: Private/ Voluntary | D120: Children's Home | E120: 4 | F120: 0 | G120: 1 | H120: 0 | I120: 0
A121: Stoke-on-TrentAllChildren's Home2 | B121: Stoke-on-Trent | C121: All | D121: Children's Home | E121: 2 | F121: 1 | G121: 0 | H121: 0 | I121: 0
A122: Stoke-on-TrentAllChildren's Home4 | B122: Stoke-on-Trent | C122: All | D122: Children's Home | E122: 4 | F122: 1 | G122: 0 | H122: 0 | I122: 0
A123: Stoke-on-TrentPrivate/ VoluntaryChildren's Home2 | B123: Stoke-on-Trent | C123: Private/ Voluntary | D123: Children's Home | E123: 2 | F123: 1 | G123: 0 | H123: 0 | I123: 0
A124: Stoke-on-TrentPrivate/ VoluntaryChildren's Home4 | B124: Stoke-on-Trent | C124: Private/ Voluntary | D124: Children's Home | E124: 4 | F124: 1 | G124: 0 | H124: 0 | I124: 0
A125: SuffolkAllChildren's Home2 | B125: Suffolk | C125: All | D125: Children's Home | E125: 2 | F125: 0 | G125: 2 | H125: 0 | I125: 0
A126: SuffolkAllChildren's Home4 | B126: Suffolk | C126: All | D126: Children's Home | E126: 4 | F126: 0 | G126: 2 | H126: 0 | I126: 0
A127: SuffolkAllResidential special school (>295 days/year)3 | B127: Suffolk | C127: All | D127: Residential special school (>295 days/year) | E127: 3 | F127: 1 | G127: 0 | H127: 0 | I127: 0
A128: SuffolkAllResidential special school (>295 days/year)4 | B128: Suffolk | C128: All | D128: Residential special school (>295 days/year) | E128: 4 | F128: 1 | G128: 0 | H128: 0 | I128: 0
A129: SuffolkLocal authorityChildren's Home2 | B129: Suffolk | C129: Local authority | D129: Children's Home | E129: 2 | F129: 0 | G129: 1 | H129: 0 | I129: 0
A130: SuffolkLocal authorityChildren's Home4 | B130: Suffolk | C130: Local authority | D130: Children's Home | E130: 4 | F130: 0 | G130: 1 | H130: 0 | I130: 0
A131: SuffolkPrivate/ VoluntaryChildren's Home2 | B131: Suffolk | C131: Private/ Voluntary | D131: Children's Home | E131: 2 | F131: 0 | G131: 1 | H131: 0 | I131: 0
A132: SuffolkPrivate/ VoluntaryChildren's Home4 | B132: Suffolk | C132: Private/ Voluntary | D132: Children's Home | E132: 4 | F132: 0 | G132: 1 | H132: 0 | I132: 0
A133: SuffolkPrivate/ VoluntaryResidential special school (>295 days/year)3 | B133: Suffolk | C133: Private/ Voluntary | D133: Residential special school (>295 days/year) | E133: 3 | F133: 1 | G133: 0 | H133: 0 | I133: 0
A134: SuffolkPrivate/ VoluntaryResidential special school (>295 days/year)4 | B134: Suffolk | C134: Private/ Voluntary | D134: Residential special school (>295 days/year) | E134: 4 | F134: 1 | G134: 0 | H134: 0 | I134: 0
A135: SwindonAllChildren's Home3 | B135: Swindon | C135: All | D135: Children's Home | E135: 3 | F135: 0 | G135: 0 | H135: 0 | I135: 1
A136: SwindonAllChildren's Home4 | B136: Swindon | C136: All | D136: Children's Home | E136: 4 | F136: 0 | G136: 0 | H136: 0 | I136: 1
A137: SwindonPrivate/ VoluntaryChildren's Home3 | B137: Swindon | C137: Private/ Voluntary | D137: Children's Home | E137: 3 | F137: 0 | G137: 0 | H137: 0 | I137: 1
A138: SwindonPrivate/ VoluntaryChildren's Home4 | B138: Swindon | C138: Private/ Voluntary | D138: Children's Home | E138: 4 | F138: 0 | G138: 0 | H138: 0 | I138: 1
A139: TamesideAllChildren's Home3 | B139: Tameside | C139: All | D139: Children's Home | E139: 3 | F139: 0 | G139: 1 | H139: 1 | I139: 0
A140: TamesideAllChildren's Home4 | B140: Tameside | C140: All | D140: Children's Home | E140: 4 | F140: 0 | G140: 1 | H140: 1 | I140: 0
A141: TamesidePrivate/ VoluntaryChildren's Home3 | B141: Tameside | C141: Private/ Voluntary | D141: Children's Home | E141: 3 | F141: 0 | G141: 1 | H141: 1 | I141: 0
A142: TamesidePrivate/ VoluntaryChildren's Home4 | B142: Tameside | C142: Private/ Voluntary | D142: Children's Home | E142: 4 | F142: 0 | G142: 1 | H142: 1 | I142: 0
A143: Telford & WrekinAllChildren's Home2 | B143: Telford & Wrekin | C143: All | D143: Children's Home | E143: 2 | F143: 0 | G143: 1 | H143: 0 | I143: 0
A144: Telford & WrekinAllChildren's Home4 | B144: Telford & Wrekin | C144: All | D144: Children's Home | E144: 4 | F144: 0 | G144: 1 | H144: 0 | I144: 0
A145: Telford & WrekinPrivate/ VoluntaryChildren's Home2 | B145: Telford & Wrekin | C145: Private/ Voluntary | D145: Children's Home | E145: 2 | F145: 0 | G145: 1 | H145: 0 | I145: 0
A146: Telford & WrekinPrivate/ VoluntaryChildren's Home4 | B146: Telford & Wrekin | C146: Private/ Voluntary | D146: Children's Home | E146: 4 | F146: 0 | G146: 1 | H146: 0 | I146: 0
A147: WakefieldAllChildren's Home3 | B147: Wakefield | C147: All | D147: Children's Home | E147: 3 | F147: 0 | G147: 1 | H147: 0 | I147: 0
A148: WakefieldAllChildren's Home4 | B148: Wakefield | C148: All | D148: Children's Home | E148: 4 | F148: 0 | G148: 1 | H148: 0 | I148: 0
A149: WakefieldPrivate/ VoluntaryChildren's Home3 | B149: Wakefield | C149: Private/ Voluntary | D149: Children's Home | E149: 3 | F149: 0 | G149: 1 | H149: 0 | I149: 0
A150: WakefieldPrivate/ VoluntaryChildren's Home4 | B150: Wakefield | C150: Private/ Voluntary | D150: Children's Home | E150: 4 | F150: 0 | G150: 1 | H150: 0 | I150: 0
A151: WalsallAllChildren's Home3 | B151: Walsall | C151: All | D151: Children's Home | E151: 3 | F151: 0 | G151: 1 | H151: 0 | I151: 0
A152: WalsallAllChildren's Home4 | B152: Walsall | C152: All | D152: Children's Home | E152: 4 | F152: 0 | G152: 1 | H152: 0 | I152: 0
A153: WalsallPrivate/ VoluntaryChildren's Home3 | B153: Walsall | C153: Private/ Voluntary | D153: Children's Home | E153: 3 | F153: 0 | G153: 1 | H153: 0 | I153: 0
A154: WalsallPrivate/ VoluntaryChildren's Home4 | B154: Walsall | C154: Private/ Voluntary | D154: Children's Home | E154: 4 | F154: 0 | G154: 1 | H154: 0 | I154: 0
A155: Waltham ForestAllChildren's Home2 | B155: Waltham Forest | C155: All | D155: Children's Home | E155: 2 | F155: 0 | G155: 0 | H155: 0 | I155: 1
A156: Waltham ForestAllChildren's Home4 | B156: Waltham Forest | C156: All | D156: Children's Home | E156: 4 | F156: 0 | G156: 0 | H156: 0 | I156: 1
A157: Waltham ForestPrivate/ VoluntaryChildren's Home2 | B157: Waltham Forest | C157: Private/ Voluntary | D157: Children's Home | E157: 2 | F157: 0 | G157: 0 | H157: 0 | I157: 1
A158: Waltham ForestPrivate/ VoluntaryChildren's Home4 | B158: Waltham Forest | C158: Private/ Voluntary | D158: Children's Home | E158: 4 | F158: 0 | G158: 0 | H158: 0 | I158: 1
A159: WarringtonAllChildren's Home3 | B159: Warrington | C159: All | D159: Children's Home | E159: 3 | F159: 0 | G159: 0 | H159: 1 | I159: 0
A160: WarringtonAllChildren's Home4 | B160: Warrington | C160: All | D160: Children's Home | E160: 4 | F160: 0 | G160: 0 | H160: 1 | I160: 0
A161: WarringtonPrivate/ VoluntaryChildren's Home3 | B161: Warrington | C161: Private/ Voluntary | D161: Children's Home | E161: 3 | F161: 0 | G161: 0 | H161: 1 | I161: 0
A162: WarringtonPrivate/ VoluntaryChildren's Home4 | B162: Warrington | C162: Private/ Voluntary | D162: Children's Home | E162: 4 | F162: 0 | G162: 0 | H162: 1 | I162: 0
A163: WorcestershireAllChildren's Home2 | B163: Worcestershire | C163: All | D163: Children's Home | E163: 2 | F163: 1 | G163: 0 | H163: 0 | I163: 0
A164: WorcestershireAllChildren's Home4 | B164: Worcestershire | C164: All | D164: Children's Home | E164: 4 | F164: 1 | G164: 0 | H164: 0 | I164: 0
A165: WorcestershirePrivate/ VoluntaryChildren's Home2 | B165: Worcestershire | C165: Private/ Voluntary | D165: Children's Home | E165: 2 | F165: 1 | G165: 0 | H165: 0 | I165: 0
A166: WorcestershirePrivate/ VoluntaryChildren's Home4 | B166: Worcestershire | C166: Private/ Voluntary | D166: Children's Home | E166: 4 | F166: 1 | G166: 0 | H166: 0 | I166: 0

Sheet Table3_Data (hidden)
A1: Lookup | B1: Local authority | C1: Sector | D1: Corporate Inspected Provision Type Group Name | E1: Judgement | F1: Month | G1: Outstanding | H1: Good | I1: Adequate | J1: Inadequate | K1: Not judged
A2: AllAllChildren's HomeLeadership and Management1 | B2: All | C2: All | D2: Children's Home | E2: Leadership and Management | F2: 1 | G2: 3 | H2: 30 | I2: 19 | J2: 6 | K2: 0
A3: AllAllChildren's HomeLeadership and Management2 | B3: All | C3: All | D3: Children's Home | E3: Leadership and Management | F3: 2 | G3: 24 | H3: 141 | I3: 93 | J3: 37 | K3: 0
A4: AllAllChildren's HomeLeadership and Management3 | B4: All | C4: All | D4: Children's Home | E4: Leadership and Management | F4: 3 | G4: 26 | H4: 79 | I4: 54 | J4: 10 | K4: 0
A5: AllAllChildren's HomeLeadership and Management4 | B5: All | C5: All | D5: Children's Home | E5: Leadership and Management | F5: 4 | G5: 53 | H5: 250 | I5: 166 | J5: 53 | K5: 0
A6: AllAllChildren's HomeOutcomes for children and young people1 | B6: All | C6: All | D6: Children's Home | E6: Outcomes for children and young people | F6: 1 | G6: 5 | H6: 36 | I6: 14 | J6: 3 | K6: 0
A7: AllAllChildren's HomeOutcomes for children and young people2 | B7: All | C7: All | D7: Children's Home | E7: Outcomes for children and young people | F7: 2 | G7: 34 | H7: 153 | I7: 97 | J7: 11 | K7: 0
A8: AllAllChildren's HomeOutcomes for children and young people3 | B8: All | C8: All | D8: Children's Home | E8: Outcomes for children and young people | F8: 3 | G8: 30 | H8: 83 | I8: 51 | J8: 5 | K8: 0
A9: AllAllChildren's HomeOutcomes for children and young people4 | B9: All | C9: All | D9: Children's Home | E9: Outcomes for children and young people | F9: 4 | G9: 69 | H9: 272 | I9: 162 | J9: 19 | K9: 0
A10: AllAllChildren's HomeOverall effectiveness1 | B10: All | C10: All | D10: Children's Home | E10: Overall effectiveness | F10: 1 | G10: 4 | H10: 33 | I10: 15 | J10: 6 | K10: 0
A11: AllAllChildren's HomeOverall effectiveness2 | B11: All | C11: All | D11: Children's Home | E11: Overall effectiveness | F11: 2 | G11: 20 | H11: 154 | I11: 93 | J11: 28 | K11: 0
A12: AllAllChildren's HomeOverall effectiveness3 | B12: All | C12: All | D12: Children's Home | E12: Overall effectiveness | F12: 3 | G12: 21 | H12: 84 | I12: 57 | J12: 7 | K12: 0
A13: AllAllChildren's HomeOverall effectiveness4 | B13: All | C13: All | D13: Children's Home | E13: Overall effectiveness | F13: 4 | G13: 45 | H13: 271 | I13: 165 | J13: 41 | K13: 0
A14: AllAllChildren's HomeQuality of care1 | B14: All | C14: All | D14: Children's Home | E14: Quality of care | F14: 1 | G14: 8 | H14: 33 | I14: 13 | J14: 4 | K14: 0
A15: AllAllChildren's HomeQuality of care2 | B15: All | C15: All | D15: Children's Home | E15: Quality of care | F15: 2 | G15: 40 | H15: 164 | I15: 69 | J15: 22 | K15: 0
A16: AllAllChildren's HomeQuality of care3 | B16: All | C16: All | D16: Children's Home | E16: Quality of care | F16: 3 | G16: 37 | H16: 86 | I16: 41 | J16: 5 | K16: 0
A17: AllAllChildren's HomeQuality of care4 | B17: All | C17: All | D17: Children's Home | E17: Quality of care | F17: 4 | G17: 85 | H17: 283 | I17: 123 | J17: 31 | K17: 0
A18: AllAllChildren's HomeThe safety of children and young people1 | B18: All | C18: All | D18: Children's Home | E18: The safety of children and young people | F18: 1 | G18: 5 | H18: 33 | I18: 15 | J18: 5 | K18: 0
A19: AllAllChildren's HomeThe safety of children and young people2 | B19: All | C19: All | D19: Children's Home | E19: The safety of children and young people | F19: 2 | G19: 35 | H19: 157 | I19: 76 | J19: 27 | K19: 0
A20: AllAllChildren's HomeThe safety of children and young people3 | B20: All | C20: All | D20: Children's Home | E20: The safety of children and young people | F20: 3 | G20: 24 | H20: 86 | I20: 51 | J20: 8 | K20: 0
A21: AllAllChildren's HomeThe safety of children and young people4 | B21: All | C21: All | D21: Children's Home | E21: The safety of children and young people | F21: 4 | G21: 64 | H21: 276 | I21: 142 | J21: 40 | K21: 0
A22: AllHealth authorityChildren's HomeLeadership and Management2 | B22: All | C22: Health authority | D22: Children's Home | E22: Leadership and Management | F22: 2 | G22: 0 | H22: 0 | I22: 2 | J22: 2 | K22: 0
A23: AllHealth authorityChildren's HomeLeadership and Management3 | B23: All | C23: Health authority | D23: Children's Home | E23: Leadership and Management | F23: 3 | G23: 0 | H23: 1 | I23: 0 | J23: 0 | K23: 0
A24: AllHealth authorityChildren's HomeLeadership and Management4 | B24: All | C24: Health authority | D24: Children's Home | E24: Leadership and Management | F24: 4 | G24: 0 | H24: 1 | I24: 2 | J24: 2 | K24: 0
A25: AllHealth authorityChildren's HomeOutcomes for children and young people2 | B25: All | C25: Health authority | D25: Children's Home | E25: Outcomes for children and young people | F25: 2 | G25: 0 | H25: 4 | I25: 0 | J25: 0 | K25: 0
A26: AllHealth authorityChildren's HomeOutcomes for children and young people3 | B26: All | C26: Health authority | D26: Children's Home | E26: Outcomes for children and young people | F26: 3 | G26: 1 | H26: 0 | I26: 0 | J26: 0 | K26: 0
A27: AllHealth authorityChildren's HomeOutcomes for children and young people4 | B27: All | C27: Health authority | D27: Children's Home | E27: Outcomes for children and young people | F27: 4 | G27: 1 | H27: 4 | I27: 0 | J27: 0 | K27: 0
A28: AllHealth authorityChildren's HomeOverall effectiveness2 | B28: All | C28: Health authority | D28: Children's Home | E28: Overall effectiveness | F28: 2 | G28: 0 | H28: 1 | I28: 3 | J28: 0 | K28: 0
A29: AllHealth authorityChildren's HomeOverall effectiveness3 | B29: All | C29: Health authority | D29: Children's Home | E29: Overall effectiveness | F29: 3 | G29: 0 | H29: 1 | I29: 0 | J29: 0 | K29: 0
A30: AllHealth authorityChildren's HomeOverall effectiveness4 | B30: All | C30: Health authority | D30: Children's Home | E30: Overall effectiveness | F30: 4 | G30: 0 | H30: 2 | I30: 3 | J30: 0 | K30: 0
A31: AllHealth authorityChildren's HomeQuality of care2 | B31: All | C31: Health authority | D31: Children's Home | E31: Quality of care | F31: 2 | G31: 1 | H31: 1 | I31: 2 | J31: 0 | K31: 0
A32: AllHealth authorityChildren's HomeQuality of care3 | B32: All | C32: Health authority | D32: Children's Home | E32: Quality of care | F32: 3 | G32: 0 | H32: 1 | I32: 0 | J32: 0 | K32: 0
A33: AllHealth authorityChildren's HomeQuality of care4 | B33: All | C33: Health authority | D33: Children's Home | E33: Quality of care | F33: 4 | G33: 1 | H33: 2 | I33: 2 | J33: 0 | K33: 0
A34: AllHealth authorityChildren's HomeThe safety of children and young people2 | B34: All | C34: Health authority | D34: Children's Home | E34: The safety of children and young people | F34: 2 | G34: 0 | H34: 1 | I34: 3 | J34: 0 | K34: 0
A35: AllHealth authorityChildren's HomeThe safety of children and young people3 | B35: All | C35: Health authority | D35: Children's Home | E35: The safety of children and young people | F35: 3 | G35: 0 | H35: 1 | I35: 0 | J35: 0 | K35: 0
A36: AllHealth authorityChildren's HomeThe safety of children and young people4 | B36: All | C36: Health authority | D36: Children's Home | E36: The safety of children and young people | F36: 4 | G36: 0 | H36: 2 | I36: 3 | J36: 0 | K36: 0
A37: AllLocal authorityChildren's HomeLeadership and Management1 | B37: All | C37: Local authority | D37: Children's Home | E37: Leadership and Management | F37: 1 | G37: 0 | H37: 5 | I37: 4 | J37: 2 | K37: 0
A38: AllLocal authorityChildren's HomeLeadership and Management2 | B38: All | C38: Local authority | D38: Children's Home | E38: Leadership and Management | F38: 2 | G38: 3 | H38: 29 | I38: 13 | J38: 7 | K38: 0
A39: AllLocal authorityChildren's HomeLeadership and Management3 | B39: All | C39: Local authority | D39: Children's Home | E39: Leadership and Management | F39: 3 | G39: 5 | H39: 24 | I39: 19 | J39: 2 | K39: 0
A40: AllLocal authorityChildren's HomeLeadership and Management4 | B40: All | C40: Local authority | D40: Children's Home | E40: Leadership and Management | F40: 4 | G40: 8 | H40: 58 | I40: 36 | J40: 11 | K40: 0
A41: AllLocal authorityChildren's HomeOutcomes for children and young people1 | B41: All | C41: Local authority | D41: Children's Home | E41: Outcomes for children and young people | F41: 1 | G41: 0 | H41: 7 | I41: 3 | J41: 1 | K41: 0
A42: AllLocal authorityChildren's HomeOutcomes for children and young people2 | B42: All | C42: Local authority | D42: Children's Home | E42: Outcomes for children and young people | F42: 2 | G42: 8 | H42: 23 | I42: 20 | J42: 1 | K42: 0
A43: AllLocal authorityChildren's HomeOutcomes for children and young people3 | B43: All | C43: Local authority | D43: Children's Home | E43: Outcomes for children and young people | F43: 3 | G43: 4 | H43: 27 | I43: 19 | J43: 0 | K43: 0
A44: AllLocal authorityChildren's HomeOutcomes for children and young people4 | B44: All | C44: Local authority | D44: Children's Home | E44: Outcomes for children and young people | F44: 4 | G44: 12 | H44: 57 | I44: 42 | J44: 2 | K44: 0
A45: AllLocal authorityChildren's HomeOverall effectiveness1 | B45: All | C45: Local authority | D45: Children's Home | E45: Overall effectiveness | F45: 1 | G45: 0 | H45: 6 | I45: 3 | J45: 2 | K45: 0
A46: AllLocal authorityChildren's HomeOverall effectiveness2 | B46: All | C46: Local authority | D46: Children's Home | E46: Overall effectiveness | F46: 2 | G46: 3 | H46: 30 | I46: 14 | J46: 5 | K46: 0
A47: AllLocal authorityChildren's HomeOverall effectiveness3 | B47: All | C47: Local authority | D47: Children's Home | E47: Overall effectiveness | F47: 3 | G47: 4 | H47: 21 | I47: 23 | J47: 2 | K47: 0
A48: AllLocal authorityChildren's HomeOverall effectiveness4 | B48: All | C48: Local authority | D48: Children's Home | E48: Overall effectiveness | F48: 4 | G48: 7 | H48: 57 | I48: 40 | J48: 9 | K48: 0
A49: AllLocal authorityChildren's HomeQuality of care1 | B49: All | C49: Local authority | D49: Children's Home | E49: Quality of care | F49: 1 | G49: 1 | H49: 5 | I49: 3 | J49: 2 | K49: 0
A50: AllLocal authorityChildren's HomeQuality of care2 | B50: All | C50: Local authority | D50: Children's Home | E50: Quality of care | F50: 2 | G50: 8 | H50: 31 | I50: 10 | J50: 3 | K50: 0
A51: AllLocal authorityChildren's HomeQuality of care3 | B51: All | C51: Local authority | D51: Children's Home | E51: Quality of care | F51: 3 | G51: 10 | H51: 23 | I51: 16 | J51: 1 | K51: 0
A52: AllLocal authorityChildren's HomeQuality of care4 | B52: All | C52: Local authority | D52: Children's Home | E52: Quality of care | F52: 4 | G52: 19 | H52: 59 | I52: 29 | J52: 6 | K52: 0
A53: AllLocal authorityChildren's HomeThe safety of children and young people1 | B53: All | C53: Local authority | D53: Children's Home | E53: The safety of children and young people | F53: 1 | G53: 0 | H53: 6 | I53: 3 | J53: 2 | K53: 0
A54: AllLocal authorityChildren's HomeThe safety of children and young people2 | B54: All | C54: Local authority | D54: Children's Home | E54: The safety of children and young people | F54: 2 | G54: 8 | H54: 27 | I54: 12 | J54: 5 | K54: 0
A55: AllLocal authorityChildren's HomeThe safety of children and young people3 | B55: All | C55: Local authority | D55: Children's Home | E55: The safety of children and young people | F55: 3 | G55: 4 | H55: 23 | I55: 20 | J55: 3 | K55: 0
A56: AllLocal authorityChildren's HomeThe safety of children and young people4 | B56: All | C56: Local authority | D56: Children's Home | E56: The safety of children and young people | F56: 4 | G56: 12 | H56: 56 | I56: 35 | J56: 10 | K56: 0
A57: AllPrivate/ VoluntaryChildren's HomeLeadership and Management1 | B57: All | C57: Private/ Voluntary | D57: Children's Home | E57: Leadership and Management | F57: 1 | G57: 3 | H57: 25 | I57: 15 | J57: 4 | K57: 0
A58: AllPrivate/ VoluntaryChildren's HomeLeadership and Management2 | B58: All | C58: Private/ Voluntary | D58: Children's Home | E58: Leadership and Management | F58: 2 | G58: 21 | H58: 112 | I58: 78 | J58: 28 | K58: 0
A59: AllPrivate/ VoluntaryChildren's HomeLeadership and Management3 | B59: All | C59: Private/ Voluntary | D59: Children's Home | E59: Leadership and Management | F59: 3 | G59: 21 | H59: 54 | I59: 35 | J59: 8 | K59: 0
A60: AllPrivate/ VoluntaryChildren's HomeLeadership and Management4 | B60: All | C60: Private/ Voluntary | D60: Children's Home | E60: Leadership and Management | F60: 4 | G60: 45 | H60: 191 | I60: 128 | J60: 40 | K60: 0
A61: AllPrivate/ VoluntaryChildren's HomeOutcomes for children and young people1 | B61: All | C61: Private/ Voluntary | D61: Children's Home | E61: Outcomes for children and young people | F61: 1 | G61: 5 | H61: 29 | I61: 11 | J61: 2 | K61: 0
A62: AllPrivate/ VoluntaryChildren's HomeOutcomes for children and young people2 | B62: All | C62: Private/ Voluntary | D62: Children's Home | E62: Outcomes for children and young people | F62: 2 | G62: 26 | H62: 126 | I62: 77 | J62: 10 | K62: 0
A63: AllPrivate/ VoluntaryChildren's HomeOutcomes for children and young people3 | B63: All | C63: Private/ Voluntary | D63: Children's Home | E63: Outcomes for children and young people | F63: 3 | G63: 25 | H63: 56 | I63: 32 | J63: 5 | K63: 0
A64: AllPrivate/ VoluntaryChildren's HomeOutcomes for children and young people4 | B64: All | C64: Private/ Voluntary | D64: Children's Home | E64: Outcomes for children and young people | F64: 4 | G64: 56 | H64: 211 | I64: 120 | J64: 17 | K64: 0
A65: AllPrivate/ VoluntaryChildren's HomeOverall effectiveness1 | B65: All | C65: Private/ Voluntary | D65: Children's Home | E65: Overall effectiveness | F65: 1 | G65: 4 | H65: 27 | I65: 12 | J65: 4 | K65: 0
A66: AllPrivate/ VoluntaryChildren's HomeOverall effectiveness2 | B66: All | C66: Private/ Voluntary | D66: Children's Home | E66: Overall effectiveness | F66: 2 | G66: 17 | H66: 123 | I66: 76 | J66: 23 | K66: 0
A67: AllPrivate/ VoluntaryChildren's HomeOverall effectiveness3 | B67: All | C67: Private/ Voluntary | D67: Children's Home | E67: Overall effectiveness | F67: 3 | G67: 17 | H67: 62 | I67: 34 | J67: 5 | K67: 0
A68: AllPrivate/ VoluntaryChildren's HomeOverall effectiveness4 | B68: All | C68: Private/ Voluntary | D68: Children's Home | E68: Overall effectiveness | F68: 4 | G68: 38 | H68: 212 | I68: 122 | J68: 32 | K68: 0
A69: AllPrivate/ VoluntaryChildren's HomeQuality of care1 | B69: All | C69: Private/ Voluntary | D69: Children's Home | E69: Quality of care | F69: 1 | G69: 7 | H69: 28 | I69: 10 | J69: 2 | K69: 0
A70: AllPrivate/ VoluntaryChildren's HomeQuality of care2 | B70: All | C70: Private/ Voluntary | D70: Children's Home | E70: Quality of care | F70: 2 | G70: 31 | H70: 132 | I70: 57 | J70: 19 | K70: 0
A71: AllPrivate/ VoluntaryChildren's HomeQuality of care3 | B71: All | C71: Private/ Voluntary | D71: Children's Home | E71: Quality of care | F71: 3 | G71: 27 | H71: 62 | I71: 25 | J71: 4 | K71: 0
A72: AllPrivate/ VoluntaryChildren's HomeQuality of care4 | B72: All | C72: Private/ Voluntary | D72: Children's Home | E72: Quality of care | F72: 4 | G72: 65 | H72: 222 | I72: 92 | J72: 25 | K72: 0
A73: AllPrivate/ VoluntaryChildren's HomeThe safety of children and young people1 | B73: All | C73: Private/ Voluntary | D73: Children's Home | E73: The safety of children and young people | F73: 1 | G73: 5 | H73: 27 | I73: 12 | J73: 3 | K73: 0
A74: AllPrivate/ VoluntaryChildren's HomeThe safety of children and young people2 | B74: All | C74: Private/ Voluntary | D74: Children's Home | E74: The safety of children and young people | F74: 2 | G74: 27 | H74: 129 | I74: 61 | J74: 22 | K74: 0
A75: AllPrivate/ VoluntaryChildren's HomeThe safety of children and young people3 | B75: All | C75: Private/ Voluntary | D75: Children's Home | E75: The safety of children and young people | F75: 3 | G75: 20 | H75: 62 | I75: 31 | J75: 5 | K75: 0
A76: AllPrivate/ VoluntaryChildren's HomeThe safety of children and young people4 | B76: All | C76: Private/ Voluntary | D76: Children's Home | E76: The safety of children and young people | F76: 4 | G76: 52 | H76: 218 | I76: 104 | J76: 30 | K76: 0
A77: Barking & DagenhamAllChildren's HomeLeadership and Management2 | B77: Barking & Dagenham | C77: All | D77: Children's Home | E77: Leadership and Management | F77: 2 | G77: 0 | H77: 1 | I77: 0 | J77: 0 | K77: 0
A78: Barking & DagenhamAllChildren's HomeLeadership and Management4 | B78: Barking & Dagenham | C78: All | D78: Children's Home | E78: Leadership and Management | F78: 4 | G78: 0 | H78: 1 | I78: 0 | J78: 0 | K78: 0
A79: Barking & DagenhamAllChildren's HomeOutcomes for children and young people2 | B79: Barking & Dagenham | C79: All | D79: Children's Home | E79: Outcomes for children and young people | F79: 2 | G79: 1 | H79: 0 | I79: 0 | J79: 0 | K79: 0
A80: Barking & DagenhamAllChildren's HomeOutcomes for children and young people4 | B80: Barking & Dagenham | C80: All | D80: Children's Home | E80: Outcomes for children and young people | F80: 4 | G80: 1 | H80: 0 | I80: 0 | J80: 0 | K80: 0
A81: Barking & DagenhamAllChildren's HomeOverall effectiveness2 | B81: Barking & Dagenham | C81: All | D81: Children's Home | E81: Overall effectiveness | F81: 2 | G81: 0 | H81: 1 | I81: 0 | J81: 0 | K81: 0
A82: Barking & DagenhamAllChildren's HomeOverall effectiveness4 | B82: Barking & Dagenham | C82: All | D82: Children's Home | E82: Overall effectiveness | F82: 4 | G82: 0 | H82: 1 | I82: 0 | J82: 0 | K82: 0
A83: Barking & DagenhamAllChildren's HomeQuality of care2 | B83: Barking & Dagenham | C83: All | D83: Children's Home | E83: Quality of care | F83: 2 | G83: 0 | H83: 1 | I83: 0 | J83: 0 | K83: 0
A84: Barking & DagenhamAllChildren's HomeQuality of care4 | B84: Barking & Dagenham | C84: All | D84: Children's Home | E84: Quality of care | F84: 4 | G84: 0 | H84: 1 | I84: 0 | J84: 0 | K84: 0
A85: Barking & DagenhamAllChildren's HomeThe safety of children and young people2 | B85: Barking & Dagenham | C85: All | D85: Children's Home | E85: The safety of children and young people | F85: 2 | G85: 1 | H85: 0 | I85: 0 | J85: 0 | K85: 0
A86: Barking & DagenhamAllChildren's HomeThe safety of children and young people4 | B86: Barking & Dagenham | C86: All | D86: Children's Home | E86: The safety of children and young people | F86: 4 | G86: 1 | H86: 0 | I86: 0 | J86: 0 | K86: 0
A87: Barking & DagenhamChildren's HomeLeadership and Management2 | B87: Barking & Dagenham | C87: Private/ Voluntary | D87: Children's Home | E87: Leadership and Management | F87: 2 | G87: 0 | H87: 1 | I87: 0 | J87: 0 | K87: 0
A88: Barking & DagenhamChildren's HomeLeadership and Management4 | B88: Barking & Dagenham | C88: Private/ Voluntary | D88: Children's Home | E88: Leadership and Management | F88: 4 | G88: 0 | H88: 1 | I88: 0 | J88: 0 | K88: 0
A89: Barking & DagenhamChildren's HomeOutcomes for children and young people2 | B89: Barking & Dagenham | C89: Private/ Voluntary | D89: Children's Home | E89: Outcomes for children and young people | F89: 2 | G89: 1 | H89: 0 | I89: 0 | J89: 0 | K89: 0
A90: Barking & DagenhamChildren's HomeOutcomes for children and young people4 | B90: Barking & Dagenham | C90: Private/ Voluntary | D90: Children's Home | E90: Outcomes for children and young people | F90: 4 | G90: 1 | H90: 0 | I90: 0 | J90: 0 | K90: 0
A91: Barking & DagenhamChildren's HomeOverall effectiveness2 | B91: Barking & Dagenham | C91: Private/ Voluntary | D91: Children's Home | E91: Overall effectiveness | F91: 2 | G91: 0 | H91: 1 | I91: 0 | J91: 0 | K91: 0
A92: Barking & DagenhamChildren's HomeOverall effectiveness4 | B92: Barking & Dagenham | C92: Private/ Voluntary | D92: Children's Home | E92: Overall effectiveness | F92: 4 | G92: 0 | H92: 1 | I92: 0 | J92: 0 | K92: 0
A93: Barking & DagenhamChildren's HomeQuality of care2 | B93: Barking & Dagenham | C93: Private/ Voluntary | D93: Children's Home | E93: Quality of care | F93: 2 | G93: 0 | H93: 1 | I93: 0 | J93: 0 | K93: 0
A94: Barking & DagenhamChildren's HomeQuality of care4 | B94: Barking & Dagenham | C94: Private/ Voluntary | D94: Children's Home | E94: Quality of care | F94: 4 | G94: 0 | H94: 1 | I94: 0 | J94: 0 | K94: 0
A95: Barking & DagenhamChildren's HomeThe safety of children and young people2 | B95: Barking & Dagenham | C95: Private/ Voluntary | D95: Children's Home | E95: The safety of children and young people | F95: 2 | G95: 1 | H95: 0 | I95: 0 | J95: 0 | K95: 0
A96: Barking & DagenhamChildren's HomeThe safety of children and young people4 | B96: Barking & Dagenham | C96: Private/ Voluntary | D96: Children's Home | E96: The safety of children and young people | F96: 4 | G96: 1 | H96: 0 | I96: 0 | J96: 0 | K96: 0
A97: BarnetAllChildren's HomeLeadership and Management2 | B97: Barnet | C97: All | D97: Children's Home | E97: Leadership and Management | F97: 2 | G97: 0 | H97: 1 | I97: 0 | J97: 0 | K97: 0
A98: BarnetAllChildren's HomeLeadership and Management4 | B98: Barnet | C98: All | D98: Children's Home | E98: Leadership and Management | F98: 4 | G98: 0 | H98: 1 | I98: 0 | J98: 0 | K98: 0
A99: BarnetAllChildren's HomeOutcomes for children and young people2 | B99: Barnet | C99: All | D99: Children's Home | E99: Outcomes for children and young people | F99: 2 | G99: 0 | H99: 1 | I99: 0 | J99: 0 | K99: 0
A100: BarnetAllChildren's HomeOutcomes for children and young people4 | B100: Barnet | C100: All | D100: Children's Home | E100: Outcomes for children and young people | F100: 4 | G100: 0 | H100: 1 | I100: 0 | J100: 0 | K100: 0
A101: BarnetAllChildren's HomeOverall effectiveness2 | B101: Barnet | C101: All | D101: Children's Home | E101: Overall effectiveness | F101: 2 | G101: 0 | H101: 1 | I101: 0 | J101: 0 | K101: 0
A102: BarnetAllChildren's HomeOverall effectiveness4 | B102: Barnet | C102: All | D102: Children's Home | E102: Overall effectiveness | F102: 4 | G102: 0 | H102: 1 | I102: 0 | J102: 0 | K102: 0
A103: BarnetAllChildren's HomeQuality of care2 | B103: Barnet | C103: All | D103: Children's Home | E103: Quality of care | F103: 2 | G103: 0 | H103: 1 | I103: 0 | J103: 0 | K103: 0
A104: BarnetAllChildren's HomeQuality of care4 | B104: Barnet | C104: All | D104: Children's Home | E104: Quality of care | F104: 4 | G104: 0 | H104: 1 | I104: 0 | J104: 0 | K104: 0
A105: BarnetAllChildren's HomeThe safety of children and young people2 | B105: Barnet | C105: All | D105: Children's Home | E105: The safety of children and young people | F105: 2 | G105: 0 | H105: 1 | I105: 0 | J105: 0 | K105: 0
A106: BarnetAllChildren's HomeThe safety of children and young people4 | B106: Barnet | C106: All | D106: Children's Home | E106: The safety of children and young people | F106: 4 | G106: 0 | H106: 1 | I106: 0 | J106: 0 | K106: 0
A107: BarnetChildren's HomeLeadership and Management2 | B107: Barnet | C107: Private/ Voluntary | D107: Children's Home | E107: Leadership and Management | F107: 2 | G107: 0 | H107: 1 | I107: 0 | J107: 0 | K107: 0
A108: BarnetChildren's HomeLeadership and Management4 | B108: Barnet | C108: Private/ Voluntary | D108: Children's Home | E108: Leadership and Management | F108: 4 | G108: 0 | H108: 1 | I108: 0 | J108: 0 | K108: 0
A109: BarnetChildren's HomeOutcomes for children and young people2 | B109: Barnet | C109: Private/ Voluntary | D109: Children's Home | E109: Outcomes for children and young people | F109: 2 | G109: 0 | H109: 1 | I109: 0 | J109: 0 | K109: 0
A110: BarnetChildren's HomeOutcomes for children and young people4 | B110: Barnet | C110: Private/ Voluntary | D110: Children's Home | E110: Outcomes for children and young people | F110: 4 | G110: 0 | H110: 1 | I110: 0 | J110: 0 | K110: 0
A111: BarnetChildren's HomeOverall effectiveness2 | B111: Barnet | C111: Private/ Voluntary | D111: Children's Home | E111: Overall effectiveness | F111: 2 | G111: 0 | H111: 1 | I111: 0 | J111: 0 | K111: 0
A112: BarnetChildren's HomeOverall effectiveness4 | B112: Barnet | C112: Private/ Voluntary | D112: Children's Home | E112: Overall effectiveness | F112: 4 | G112: 0 | H112: 1 | I112: 0 | J112: 0 | K112: 0
A113: BarnetChildren's HomeQuality of care2 | B113: Barnet | C113: Private/ Voluntary | D113: Children's Home | E113: Quality of care | F113: 2 | G113: 0 | H113: 1 | I113: 0 | J113: 0 | K113: 0
A114: BarnetChildren's HomeQuality of care4 | B114: Barnet | C114: Private/ Voluntary | D114: Children's Home | E114: Quality of care | F114: 4 | G114: 0 | H114: 1 | I114: 0 | J114: 0 | K114: 0
A115: BarnetChildren's HomeThe safety of children and young people2 | B115: Barnet | C115: Private/ Voluntary | D115: Children's Home | E115: The safety of children and young people | F115: 2 | G115: 0 | H115: 1 | I115: 0 | J115: 0 | K115: 0
A116: BarnetChildren's HomeThe safety of children and young people4 | B116: Barnet | C116: Private/ Voluntary | D116: Children's Home | E116: The safety of children and young people | F116: 4 | G116: 0 | H116: 1 | I116: 0 | J116: 0 | K116: 0
A117: BarnsleyAllChildren's HomeLeadership and Management3 | B117: Barnsley | C117: All | D117: Children's Home | E117: Leadership and Management | F117: 3 | G117: 2 | H117: 2 | I117: 0 | J117: 0 | K117: 0
A118: BarnsleyAllChildren's HomeLeadership and Management4 | B118: Barnsley | C118: All | D118: Children's Home | E118: Leadership and Management | F118: 4 | G118: 2 | H118: 2 | I118: 0 | J118: 0 | K118: 0
A119: BarnsleyAllChildren's HomeOutcomes for children and young people3 | B119: Barnsley | C119: All | D119: Children's Home | E119: Outcomes for children and young people | F119: 3 | G119: 1 | H119: 3 | I119: 0 | J119: 0 | K119: 0
A120: BarnsleyAllChildren's HomeOutcomes for children and young people4 | B120: Barnsley | C120: All | D120: Children's Home | E120: Outcomes for children and young people | F120: 4 | G120: 1 | H120: 3 | I120: 0 | J120: 0 | K120: 0
A121: BarnsleyAllChildren's HomeOverall effectiveness3 | B121: Barnsley | C121: All | D121: Children's Home | E121: Overall effectiveness | F121: 3 | G121: 2 | H121: 2 | I121: 0 | J121: 0 | K121: 0
A122: BarnsleyAllChildren's HomeOverall effectiveness4 | B122: Barnsley | C122: All | D122: Children's Home | E122: Overall effectiveness | F122: 4 | G122: 2 | H122: 2 | I122: 0 | J122: 0 | K122: 0
A123: BarnsleyAllChildren's HomeQuality of care3 | B123: Barnsley | C123: All | D123: Children's Home | E123: Quality of care | F123: 3 | G123: 2 | H123: 2 | I123: 0 | J123: 0 | K123: 0
A124: BarnsleyAllChildren's HomeQuality of care4 | B124: Barnsley | C124: All | D124: Children's Home | E124: Quality of care | F124: 4 | G124: 2 | H124: 2 | I124: 0 | J124: 0 | K124: 0
A125: BarnsleyAllChildren's HomeThe safety of children and young people3 | B125: Barnsley | C125: All | D125: Children's Home | E125: The safety of children and young people | F125: 3 | G125: 1 | H125: 3 | I125: 0 | J125: 0 | K125: 0
A126: BarnsleyAllChildren's HomeThe safety of children and young people4 | B126: Barnsley | C126: All | D126: Children's Home | E126: The safety of children and young people | F126: 4 | G126: 1 | H126: 3 | I126: 0 | J126: 0 | K126: 0
A127: BarnsleyChildren's HomeLeadership and Management3 | B127: Barnsley | C127: Private/ Voluntary | D127: Children's Home | E127: Leadership and Management | F127: 3 | G127: 2 | H127: 2 | I127: 0 | J127: 0 | K127: 0
A128: BarnsleyChildren's HomeLeadership and Management4 | B128: Barnsley | C128: Private/ Voluntary | D128: Children's Home | E128: Leadership and Management | F128: 4 | G128: 2 | H128: 2 | I128: 0 | J128: 0 | K128: 0
A129: BarnsleyChildren's HomeOutcomes for children and young people3 | B129: Barnsley | C129: Private/ Voluntary | D129: Children's Home | E129: Outcomes for children and young people | F129: 3 | G129: 1 | H129: 3 | I129: 0 | J129: 0 | K129: 0
A130: BarnsleyChildren's HomeOutcomes for children and young people4 | B130: Barnsley | C130: Private/ Voluntary | D130: Children's Home | E130: Outcomes for children and young people | F130: 4 | G130: 1 | H130: 3 | I130: 0 | J130: 0 | K130: 0
A131: BarnsleyChildren's HomeOverall effectiveness3 | B131: Barnsley | C131: Private/ Voluntary | D131: Children's Home | E131: Overall effectiveness | F131: 3 | G131: 2 | H131: 2 | I131: 0 | J131: 0 | K131: 0
A132: BarnsleyChildren's HomeOverall effectiveness4 | B132: Barnsley | C132: Private/ Voluntary | D132: Children's Home | E132: Overall effectiveness | F132: 4 | G132: 2 | H132: 2 | I132: 0 | J132: 0 | K132: 0
A133: BarnsleyChildren's HomeQuality of care3 | B133: Barnsley | C133: Private/ Voluntary | D133: Children's Home | E133: Quality of care | F133: 3 | G133: 2 | H133: 2 | I133: 0 | J133: 0 | K133: 0
A134: BarnsleyChildren's HomeQuality of care4 | B134: Barnsley | C134: Private/ Voluntary | D134: Children's Home | E134: Quality of care | F134: 4 | G134: 2 | H134: 2 | I134: 0 | J134: 0 | K134: 0
A135: BarnsleyChildren's HomeThe safety of children and young people3 | B135: Barnsley | C135: Private/ Voluntary | D135: Children's Home | E135: The safety of children and young people | F135: 3 | G135: 1 | H135: 3 | I135: 0 | J135: 0 | K135: 0
A136: BarnsleyChildren's HomeThe safety of children and young people4 | B136: Barnsley | C136: Private/ Voluntary | D136: Children's Home | E136: The safety of children and young people | F136: 4 | G136: 1 | H136: 3 | I136: 0 | J136: 0 | K136: 0
A137: BexleyAllChildren's HomeLeadership and Management2 | B137: Bexley | C137: All | D137: Children's Home | E137: Leadership and Management | F137: 2 | G137: 0 | H137: 0 | I137: 1 | J137: 0 | K137: 0
A138: BexleyAllChildren's HomeLeadership and Management3 | B138: Bexley | C138: All | D138: Children's Home | E138: Leadership and Management | F138: 3 | G138: 0 | H138: 0 | I138: 0 | J138: 1 | K138: 0
A139: BexleyAllChildren's HomeLeadership and Management4 | B139: Bexley | C139: All | D139: Children's Home | E139: Leadership and Management | F139: 4 | G139: 0 | H139: 0 | I139: 1 | J139: 1 | K139: 0
A140: BexleyAllChildren's HomeOutcomes for children and young people2 | B140: Bexley | C140: All | D140: Children's Home | E140: Outcomes for children and young people | F140: 2 | G140: 0 | H140: 1 | I140: 0 | J140: 0 | K140: 0
A141: BexleyAllChildren's HomeOutcomes for children and young people3 | B141: Bexley | C141: All | D141: Children's Home | E141: Outcomes for children and young people | F141: 3 | G141: 0 | H141: 0 | I141: 0 | J141: 1 | K141: 0
A142: BexleyAllChildren's HomeOutcomes for children and young people4 | B142: Bexley | C142: All | D142: Children's Home | E142: Outcomes for children and young people | F142: 4 | G142: 0 | H142: 1 | I142: 0 | J142: 1 | K142: 0
A143: BexleyAllChildren's HomeOverall effectiveness2 | B143: Bexley | C143: All | D143: Children's Home | E143: Overall effectiveness | F143: 2 | G143: 0 | H143: 0 | I143: 1 | J143: 0 | K143: 0
A144: BexleyAllChildren's HomeOverall effectiveness3 | B144: Bexley | C144: All | D144: Children's Home | E144: Overall effectiveness | F144: 3 | G144: 0 | H144: 0 | I144: 0 | J144: 1 | K144: 0
A145: BexleyAllChildren's HomeOverall effectiveness4 | B145: Bexley | C145: All | D145: Children's Home | E145: Overall effectiveness | F145: 4 | G145: 0 | H145: 0 | I145: 1 | J145: 1 | K145: 0
A146: BexleyAllChildren's HomeQuality of care2 | B146: Bexley | C146: All | D146: Children's Home | E146: Quality of care | F146: 2 | G146: 0 | H146: 0 | I146: 1 | J146: 0 | K146: 0
A147: BexleyAllChildren's HomeQuality of care3 | B147: Bexley | C147: All | D147: Children's Home | E147: Quality of care | F147: 3 | G147: 0 | H147: 0 | I147: 0 | J147: 1 | K147: 0
A148: BexleyAllChildren's HomeQuality of care4 | B148: Bexley | C148: All | D148: Children's Home | E148: Quality of care | F148: 4 | G148: 0 | H148: 0 | I148: 1 | J148: 1 | K148: 0
A149: BexleyAllChildren's HomeThe safety of children and young people2 | B149: Bexley | C149: All | D149: Children's Home | E149: The safety of children and young people | F149: 2 | G149: 0 | H149: 1 | I149: 0 | J149: 0 | K149: 0
A150: BexleyAllChildren's HomeThe safety of children and young people3 | B150: Bexley | C150: All | D150: Children's Home | E150: The safety of children and young people | F150: 3 | G150: 0 | H150: 0 | I150: 0 | J150: 1 | K150: 0
A151: BexleyAllChildren's HomeThe safety of children and young people4 | B151: Bexley | C151: All | D151: Children's Home | E151: The safety of children and young people | F151: 4 | G151: 0 | H151: 1 | I151: 0 | J151: 1 | K151: 0
A152: BexleyChildren's HomeLeadership and Management2 | B152: Bexley | C152: Private/ Voluntary | D152: Children's Home | E152: Leadership and Management | F152: 2 | G152: 0 | H152: 0 | I152: 1 | J152: 0 | K152: 0
A153: BexleyChildren's HomeLeadership and Management3 | B153: Bexley | C153: Private/ Voluntary | D153: Children's Home | E153: Leadership and Management | F153: 3 | G153: 0 | H153: 0 | I153: 0 | J153: 1 | K153: 0
A154: BexleyChildren's HomeLeadership and Management4 | B154: Bexley | C154: Private/ Voluntary | D154: Children's Home | E154: Leadership and Management | F154: 4 | G154: 0 | H154: 0 | I154: 1 | J154: 1 | K154: 0
A155: BexleyChildren's HomeOutcomes for children and young people2 | B155: Bexley | C155: Private/ Voluntary | D155: Children's Home | E155: Outcomes for children and young people | F155: 2 | G155: 0 | H155: 1 | I155: 0 | J155: 0 | K155: 0
A156: BexleyChildren's HomeOutcomes for children and young people3 | B156: Bexley | C156: Private/ Voluntary | D156: Children's Home | E156: Outcomes for children and young people | F156: 3 | G156: 0 | H156: 0 | I156: 0 | J156: 1 | K156: 0
A157: BexleyChildren's HomeOutcomes for children and young people4 | B157: Bexley | C157: Private/ Voluntary | D157: Children's Home | E157: Outcomes for children and young people | F157: 4 | G157: 0 | H157: 1 | I157: 0 | J157: 1 | K157: 0
A158: BexleyChildren's HomeOverall effectiveness2 | B158: Bexley | C158: Private/ Voluntary | D158: Children's Home | E158: Overall effectiveness | F158: 2 | G158: 0 | H158: 0 | I158: 1 | J158: 0 | K158: 0
A159: BexleyChildren's HomeOverall effectiveness3 | B159: Bexley | C159: Private/ Voluntary | D159: Children's Home | E159: Overall effectiveness | F159: 3 | G159: 0 | H159: 0 | I159: 0 | J159: 1 | K159: 0
A160: BexleyChildren's HomeOverall effectiveness4 | B160: Bexley | C160: Private/ Voluntary | D160: Children's Home | E160: Overall effectiveness | F160: 4 | G160: 0 | H160: 0 | I160: 1 | J160: 1 | K160: 0
A161: BexleyChildren's HomeQuality of care2 | B161: Bexley | C161: Private/ Voluntary | D161: Children's Home | E161: Quality of care | F161: 2 | G161: 0 | H161: 0 | I161: 1 | J161: 0 | K161: 0
A162: BexleyChildren's HomeQuality of care3 | B162: Bexley | C162: Private/ Voluntary | D162: Children's Home | E162: Quality of care | F162: 3 | G162: 0 | H162: 0 | I162: 0 | J162: 1 | K162: 0
A163: BexleyChildren's HomeQuality of care4 | B163: Bexley | C163: Private/ Voluntary | D163: Children's Home | E163: Quality of care | F163: 4 | G163: 0 | H163: 0 | I163: 1 | J163: 1 | K163: 0
A164: BexleyChildren's HomeThe safety of children and young people2 | B164: Bexley | C164: Private/ Voluntary | D164: Children's Home | E164: The safety of children and young people | F164: 2 | G164: 0 | H164: 1 | I164: 0 | J164: 0 | K164: 0
A165: BexleyChildren's HomeThe safety of children and young people3 | B165: Bexley | C165: Private/ Voluntary | D165: Children's Home | E165: The safety of children and young people | F165: 3 | G165: 0 | H165: 0 | I165: 0 | J165: 1 | K165: 0
A166: BexleyChildren's HomeThe safety of children and young people4 | B166: Bexley | C166: Private/ Voluntary | D166: Children's Home | E166: The safety of children and young people | F166: 4 | G166: 0 | H166: 1 | I166: 0 | J166: 1 | K166: 0
A167: BirminghamAllChildren's HomeLeadership and Management1 | B167: Birmingham | C167: All | D167: Children's Home | E167: Leadership and Management | F167: 1 | G167: 1 | H167: 0 | I167: 1 | J167: 0 | K167: 0
A168: BirminghamAllChildren's HomeLeadership and Management2 | B168: Birmingham | C168: All | D168: Children's Home | E168: Leadership and Management | F168: 2 | G168: 1 | H168: 3 | I168: 7 | J168: 0 | K168: 0
A169: BirminghamAllChildren's HomeLeadership and Management3 | B169: Birmingham | C169: All | D169: Children's Home | E169: Leadership and Management | F169: 3 | G169: 1 | H169: 2 | I169: 0 | J169: 0 | K169: 0
A170: BirminghamAllChildren's HomeLeadership and Management4 | B170: Birmingham | C170: All | D170: Children's Home | E170: Leadership and Management | F170: 4 | G170: 3 | H170: 5 | I170: 8 | J170: 0 | K170: 0
A171: BirminghamAllChildren's HomeOutcomes for children and young people1 | B171: Birmingham | C171: All | D171: Children's Home | E171: Outcomes for children and young people | F171: 1 | G171: 1 | H171: 0 | I171: 1 | J171: 0 | K171: 0
A172: BirminghamAllChildren's HomeOutcomes for children and young people2 | B172: Birmingham | C172: All | D172: Children's Home | E172: Outcomes for children and young people | F172: 2 | G172: 2 | H172: 4 | I172: 5 | J172: 0 | K172: 0
A173: BirminghamAllChildren's HomeOutcomes for children and young people3 | B173: Birmingham | C173: All | D173: Children's Home | E173: Outcomes for children and young people | F173: 3 | G173: 2 | H173: 1 | I173: 0 | J173: 0 | K173: 0
A174: BirminghamAllChildren's HomeOutcomes for children and young people4 | B174: Birmingham | C174: All | D174: Children's Home | E174: Outcomes for children and young people | F174: 4 | G174: 5 | H174: 5 | I174: 6 | J174: 0 | K174: 0
A175: BirminghamAllChildren's HomeOverall effectiveness1 | B175: Birmingham | C175: All | D175: Children's Home | E175: Overall effectiveness | F175: 1 | G175: 1 | H175: 0 | I175: 1 | J175: 0 | K175: 0
A176: BirminghamAllChildren's HomeOverall effectiveness2 | B176: Birmingham | C176: All | D176: Children's Home | E176: Overall effectiveness | F176: 2 | G176: 1 | H176: 4 | I176: 6 | J176: 0 | K176: 0
A177: BirminghamAllChildren's HomeOverall effectiveness3 | B177: Birmingham | C177: All | D177: Children's Home | E177: Overall effectiveness | F177: 3 | G177: 1 | H177: 2 | I177: 0 | J177: 0 | K177: 0
A178: BirminghamAllChildren's HomeOverall effectiveness4 | B178: Birmingham | C178: All | D178: Children's Home | E178: Overall effectiveness | F178: 4 | G178: 3 | H178: 6 | I178: 7 | J178: 0 | K178: 0
A179: BirminghamAllChildren's HomeQuality of care1 | B179: Birmingham | C179: All | D179: Children's Home | E179: Quality of care | F179: 1 | G179: 1 | H179: 0 | I179: 1 | J179: 0 | K179: 0
A180: BirminghamAllChildren's HomeQuality of care2 | B180: Birmingham | C180: All | D180: Children's Home | E180: Quality of care | F180: 2 | G180: 1 | H180: 4 | I180: 6 | J180: 0 | K180: 0
A181: BirminghamAllChildren's HomeQuality of care3 | B181: Birmingham | C181: All | D181: Children's Home | E181: Quality of care | F181: 3 | G181: 1 | H181: 2 | I181: 0 | J181: 0 | K181: 0
A182: BirminghamAllChildren's HomeQuality of care4 | B182: Birmingham | C182: All | D182: Children's Home | E182: Quality of care | F182: 4 | G182: 3 | H182: 6 | I182: 7 | J182: 0 | K182: 0
A183: BirminghamAllChildren's HomeThe safety of children and young people1 | B183: Birmingham | C183: All | D183: Children's Home | E183: The safety of children and young people | F183: 1 | G183: 1 | H183: 0 | I183: 1 | J183: 0 | K183: 0
A184: BirminghamAllChildren's HomeThe safety of children and young people2 | B184: Birmingham | C184: All | D184: Children's Home | E184: The safety of children and young people | F184: 2 | G184: 1 | H184: 3 | I184: 7 | J184: 0 | K184: 0
A185: BirminghamAllChildren's HomeThe safety of children and young people3 | B185: Birmingham | C185: All | D185: Children's Home | E185: The safety of children and young people | F185: 3 | G185: 2 | H185: 1 | I185: 0 | J185: 0 | K185: 0
A186: BirminghamAllChildren's HomeThe safety of children and young people4 | B186: Birmingham | C186: All | D186: Children's Home | E186: The safety of children and young people | F186: 4 | G186: 4 | H186: 4 | I186: 8 | J186: 0 | K186: 0
A187: BirminghamChildren's HomeLeadership and Management1 | B187: Birmingham | C187: Local authority | D187: Children's Home | E187: Leadership and Management | F187: 1 | G187: 0 | H187: 0 | I187: 1 | J187: 0 | K187: 0
A188: BirminghamChildren's HomeLeadership and Management1 | B188: Birmingham | C188: Private/ Voluntary | D188: Children's Home | E188: Leadership and Management | F188: 1 | G188: 1 | H188: 0 | I188: 0 | J188: 0 | K188: 0
A189: BirminghamChildren's HomeLeadership and Management2 | B189: Birmingham | C189: Local authority | D189: Children's Home | E189: Leadership and Management | F189: 2 | G189: 0 | H189: 0 | I189: 2 | J189: 0 | K189: 0
A190: BirminghamChildren's HomeLeadership and Management2 | B190: Birmingham | C190: Private/ Voluntary | D190: Children's Home | E190: Leadership and Management | F190: 2 | G190: 1 | H190: 3 | I190: 5 | J190: 0 | K190: 0
A191: BirminghamChildren's HomeLeadership and Management3 | B191: Birmingham | C191: Local authority | D191: Children's Home | E191: Leadership and Management | F191: 3 | G191: 0 | H191: 1 | I191: 0 | J191: 0 | K191: 0
A192: BirminghamChildren's HomeLeadership and Management3 | B192: Birmingham | C192: Private/ Voluntary | D192: Children's Home | E192: Leadership and Management | F192: 3 | G192: 1 | H192: 1 | I192: 0 | J192: 0 | K192: 0
A193: BirminghamChildren's HomeLeadership and Management4 | B193: Birmingham | C193: Local authority | D193: Children's Home | E193: Leadership and Management | F193: 4 | G193: 0 | H193: 1 | I193: 3 | J193: 0 | K193: 0
A194: BirminghamChildren's HomeLeadership and Management4 | B194: Birmingham | C194: Private/ Voluntary | D194: Children's Home | E194: Leadership and Management | F194: 4 | G194: 3 | H194: 4 | I194: 5 | J194: 0 | K194: 0
A195: BirminghamChildren's HomeOutcomes for children and young people1 | B195: Birmingham | C195: Local authority | D195: Children's Home | E195: Outcomes for children and young people | F195: 1 | G195: 0 | H195: 0 | I195: 1 | J195: 0 | K195: 0
A196: BirminghamChildren's HomeOutcomes for children and young people1 | B196: Birmingham | C196: Private/ Voluntary | D196: Children's Home | E196: Outcomes for children and young people | F196: 1 | G196: 1 | H196: 0 | I196: 0 | J196: 0 | K196: 0
A197: BirminghamChildren's HomeOutcomes for children and young people2 | B197: Birmingham | C197: Local authority | D197: Children's Home | E197: Outcomes for children and young people | F197: 2 | G197: 0 | H197: 1 | I197: 1 | J197: 0 | K197: 0
A198: BirminghamChildren's HomeOutcomes for children and young people2 | B198: Birmingham | C198: Private/ Voluntary | D198: Children's Home | E198: Outcomes for children and young people | F198: 2 | G198: 2 | H198: 3 | I198: 4 | J198: 0 | K198: 0
A199: BirminghamChildren's HomeOutcomes for children and young people3 | B199: Birmingham | C199: Local authority | D199: Children's Home | E199: Outcomes for children and young people | F199: 3 | G199: 0 | H199: 1 | I199: 0 | J199: 0 | K199: 0
A200: BirminghamChildren's HomeOutcomes for children and young people3 | B200: Birmingham | C200: Private/ Voluntary | D200: Children's Home | E200: Outcomes for children and young people | F200: 3 | G200: 2 | H200: 0 | I200: 0 | J200: 0 | K200: 0
... 4376 more rows

Sheet Table 4
A1: =B2 -> Table 4: Overall effectiveness of children’s homes at full inspections between 1 April 2012 - 30 June 2012 by region and local authority (provisional)¹ ²
B2: =IF(ISERROR(VLOOKUP(D5,Ranges!F1:G12,2,0)), "Table 4: Overall effectiveness of children’s homes at full inspections between "&D5 & " by region and local authority (provisional)"&CHAR(185) &" "&CHAR(178),"Table 4: Overall effectiveness of children’s homes at full inspections in "&D5 & ", by region and local authority (provisional)"&CHAR(185)&" "&CHAR(178)) -> Table 4: Overall effectiveness of children’s homes at full inspections between 1 April 2012 - 30 June 2012 by region and local authority (provisional)¹ ²
B5: Select period: | D5: 1 April 2012 - 30 June 2012
B6: =VLOOKUP(D5,Periods,2,0) -> 4
B7: Select provider type: | D7: Children's home
B9: Select sector: | D9: All
D12: Total number inspected | F12: Outstanding | H12: Good | J12: Adequate | L12: Inadequate
F13: 6 | H13: 7 | J13: 8 | L13: 9
A14: England | B14: England | D14: =F14+H14+J14+L14 -> 522 | F14: =F16+F30+F55+F72+F83+F99+F112+F147+F168+F186 -> 45 | H14: =H16+H30+H55+H72+H83+H99+H112+H147+H168+H186 -> 271 | J14: =J16+J30+J55+J72+J83+J99+J112+J147+J168+J186 -> 165 | L14: =L16+L30+L55+L72+L83+L99+L112+L147+L168+L186 -> 41
A16: North East | B16: North East | D16: =F16+H16+J16+L16 -> 40 | F16: =SUM(F17:F28) -> 0 | H16: =SUM(H17:H28) -> 26 | J16: =SUM(J17:J28) -> 11 | L16: =SUM(L17:L28) -> 3
A17: Darlington | B17: Darlington | D17: 6 | F17: =IF(ISERROR(VLOOKUP($A17&$D$9&$D$7&$B$6,Table4_data,F$13,0)),0,VLOOKUP($A17&$D$9&$D$7&$B$6,Table4_data,F$13,0)) -> 0 | H17: =IF(ISERROR(VLOOKUP($A17&$D$9&$D$7&$B$6,Table4_data,H$13,0)),0,VLOOKUP($A17&$D$9&$D$7&$B$6,Table4_data,H$13,0)) -> 3 | J17: =IF(ISERROR(VLOOKUP($A17&$D$9&$D$7&$B$6,Table4_data,J$13,0)),0,VLOOKUP($A17&$D$9&$D$7&$B$6,Table4_data,J$13,0)) -> 2 | L17: =IF(ISERROR(VLOOKUP($A17&$D$9&$D$7&$B$6,Table4_data,L$13,0)),0,VLOOKUP($A17&$D$9&$D$7&$B$6,Table4_data,L$13,0)) -> 1
A18: Durham | B18: Durham | D18: 12 | F18: 0 | H18: 11 | J18: 0 | L18: 1
A19: Gateshead | B19: Gateshead | D19: 1 | F19: 0 | H19: 1 | J19: 0 | L19: 0
A20: Hartlepool | B20: Hartlepool | D20: 0 | F20: 0 | H20: 0 | J20: 0 | L20: 0
A21: Middlesbrough | B21: Middlesbrough | D21: 3 | F21: 0 | H21: 2 | J21: 1 | L21: 0
A22: Newcastle upon Tyne | B22: Newcastle upon Tyne | D22: 1 | F22: 0 | H22: 1 | J22: 0 | L22: 0
A23: North Tyneside | B23: North Tyneside | D23: 1 | F23: 0 | H23: 1 | J23: 0 | L23: 0
A24: Northumberland | B24: Northumberland | D24: 6 | F24: 0 | H24: 1 | J24: 4 | L24: 1
A25: Redcar and Cleveland | B25: Redcar & Cleveland | D25: 0 | F25: 0 | H25: 0 | J25: 0 | L25: 0
A26: South Tyneside | B26: South Tyneside | D26: 1 | F26: 0 | H26: 1 | J26: 0 | L26: 0
A27: Stockton-on-Tees | B27: Stockton-on-Tees | D27: 2 | F27: 0 | H27: 1 | J27: 1 | L27: 0
A28: Sunderland | B28: Sunderland | D28: 7 | F28: 0 | H28: 4 | J28: 3 | L28: 0
A30: North West | B30: North West | D30: 103 | F30: =SUM(F31:F53) -> 7 | H30: =SUM(H31:H53) -> 52 | J30: =SUM(J31:J53) -> 35 | L30: =SUM(L31:L53) -> 9
A31: Blackburn with Darwen | B31: Blackburn with Darwen | D31: 1 | F31: =IF(ISERROR(VLOOKUP($A31&$D$9&$D$7&$B$6,Table4_data,F$13,0)),0,VLOOKUP($A31&$D$9&$D$7&$B$6,Table4_data,F$13,0)) -> 1 | H31: =IF(ISERROR(VLOOKUP($A31&$D$9&$D$7&$B$6,Table4_data,H$13,0)),0,VLOOKUP($A31&$D$9&$D$7&$B$6,Table4_data,H$13,0)) -> 0 | J31: =IF(ISERROR(VLOOKUP($A31&$D$9&$D$7&$B$6,Table4_data,J$13,0)),0,VLOOKUP($A31&$D$9&$D$7&$B$6,Table4_data,J$13,0)) -> 0 | L31: =IF(ISERROR(VLOOKUP($A31&$D$9&$D$7&$B$6,Table4_data,L$13,0)),0,VLOOKUP($A31&$D$9&$D$7&$B$6,Table4_data,L$13,0)) -> 0
A32: Blackpool | B32: Blackpool | D32: 4 | F32: 1 | H32: 0 | J32: 2 | L32: 1
A33: Bolton | B33: Bolton | D33: 4 | F33: 0 | H33: 4 | J33: 0 | L33: 0
A34: Bury | B34: Bury | D34: 1 | F34: 0 | H34: 1 | J34: 0 | L34: 0
A35: Cheshire East | B35: Cheshire East | D35: 0 | F35: 0 | H35: 0 | J35: 0 | L35: 0
A36: Cheshire West and Chester | B36: Cheshire West and Chester | D36: 0 | F36: 0 | H36: 0 | J36: 0 | L36: 0
A37: Cumbria | B37: Cumbria | D37: 3 | F37: 0 | H37: 0 | J37: 3 | L37: 0
A38: Halton | B38: Halton | D38: 2 | F38: 0 | H38: 1 | J38: 1 | L38: 0
A39: Knowsley | B39: Knowsley | D39: 3 | F39: 0 | H39: 2 | J39: 1 | L39: 0
A40: Lancashire | B40: Lancashire | D40: 16 | F40: 0 | H40: 11 | J40: 3 | L40: 2
A41: Liverpool | B41: Liverpool | D41: 4 | F41: 1 | H41: 1 | J41: 1 | L41: 1
A42: Manchester | B42: Manchester | D42: 7 | F42: 0 | H42: 4 | J42: 2 | L42: 1
A43: Oldham | B43: Oldham | D43: 2 | F43: 1 | H43: 0 | J43: 0 | L43: 1
A44: Rochdale | B44: Rochdale | D44: 14 | F44: 1 | H44: 7 | J44: 4 | L44: 2
A45: Salford | B45: Salford | D45: 6 | F45: 0 | H45: 3 | J45: 3 | L45: 0
A46: Sefton | B46: Sefton | D46: 5 | F46: 0 | H46: 2 | J46: 3 | L46: 0
A47: St. Helens | B47: St. Helens | D47: 6 | F47: 0 | H47: 3 | J47: 3 | L47: 0
A48: Stockport | B48: Stockport | D48: 8 | F48: 0 | H48: 4 | J48: 4 | L48: 0
A49: Tameside | B49: Tameside | D49: 3 | F49: 1 | H49: 2 | J49: 0 | L49: 0
A50: Trafford | B50: Trafford | D50: 2 | F50: 0 | H50: 1 | J50: 1 | L50: 0
A51: Warrington | B51: Warrington | D51: 5 | F51: 1 | H51: 2 | J51: 1 | L51: 1
A52: Wigan | B52: Wigan | D52: 4 | F52: 0 | H52: 1 | J52: 3 | L52: 0
A53: Wirral | B53: Wirral | D53: 3 | F53: 0 | H53: 3 | J53: 0 | L53: 0
A55: Yorkshire and the Humber | B55: Yorkshire and The Humber | D55: 48 | F55: =SUM(F56:F70) -> 2 | H55: =SUM(H56:H70) -> 22 | J55: =SUM(J56:J70) -> 22 | L55: =SUM(L56:L70) -> 2
A56: Barnsley | B56: Barnsley | D56: 4 | F56: =IF(ISERROR(VLOOKUP($A56&$D$9&$D$7&$B$6,Table4_data,F$13,0)),0,VLOOKUP($A56&$D$9&$D$7&$B$6,Table4_data,F$13,0)) -> 2 | H56: =IF(ISERROR(VLOOKUP($A56&$D$9&$D$7&$B$6,Table4_data,H$13,0)),0,VLOOKUP($A56&$D$9&$D$7&$B$6,Table4_data,H$13,0)) -> 2 | J56: =IF(ISERROR(VLOOKUP($A56&$D$9&$D$7&$B$6,Table4_data,J$13,0)),0,VLOOKUP($A56&$D$9&$D$7&$B$6,Table4_data,J$13,0)) -> 0 | L56: =IF(ISERROR(VLOOKUP($A56&$D$9&$D$7&$B$6,Table4_data,L$13,0)),0,VLOOKUP($A56&$D$9&$D$7&$B$6,Table4_data,L$13,0)) -> 0
A57: Bradford | B57: Bradford | D57: 3 | F57: 0 | H57: 3 | J57: 0 | L57: 0
A58: Calderdale | B58: Calderdale | D58: 4 | F58: 0 | H58: 3 | J58: 1 | L58: 0
A59: Doncaster | B59: Doncaster | D59: 3 | F59: 0 | H59: 1 | J59: 2 | L59: 0
A60: East Riding of Yorkshire | B60: East Riding of Yorkshire | D60: 6 | F60: 0 | H60: 2 | J60: 4 | L60: 0
A61: Kingston upon Hull | B61: Kingston upon Hull | D61: 2 | F61: 0 | H61: 1 | J61: 1 | L61: 0
A62: Kirklees | B62: Kirklees | D62: 5 | F62: 0 | H62: 2 | J62: 2 | L62: 1
A63: Leeds | B63: Leeds | D63: 9 | F63: 0 | H63: 2 | J63: 6 | L63: 1
A64: North East Lincolnshire | B64: North East Lincolnshire | D64: 2 | F64: 0 | H64: 1 | J64: 1 | L64: 0
A65: North Lincolnshire | B65: North Lincolnshire | D65: 1 | F65: 0 | H65: 1 | J65: 0 | L65: 0
A66: North Yorkshire | B66: North Yorkshire | D66: 2 | F66: 0 | H66: 0 | J66: 2 | L66: 0
A67: Rotherham | B67: Rotherham | D67: 1 | F67: 0 | H67: 1 | J67: 0 | L67: 0
A68: Sheffield | B68: Sheffield | D68: 4 | F68: 0 | H68: 1 | J68: 3 | L68: 0
A69: Wakefield | B69: Wakefield | D69: 2 | F69: 0 | H69: 2 | J69: 0 | L69: 0
A70: York | B70: York | D70: 0 | F70: 0 | H70: 0 | J70: 0 | L70: 0
A72: East Midlands | B72: East Midlands | D72: 44 | F72: =SUM(F73:F81) -> 6 | H72: =SUM(H73:H81) -> 22 | J72: =SUM(J73:J81) -> 9 | L72: =SUM(L73:L81) -> 7
A73: Derby city | B73: Derby city | D73: 3 | F73: =IF(ISERROR(VLOOKUP($A73&$D$9&$D$7&$B$6,Table4_data,F$13,0)),0,VLOOKUP($A73&$D$9&$D$7&$B$6,Table4_data,F$13,0)) -> 0 | H73: =IF(ISERROR(VLOOKUP($A73&$D$9&$D$7&$B$6,Table4_data,H$13,0)),0,VLOOKUP($A73&$D$9&$D$7&$B$6,Table4_data,H$13,0)) -> 0 | J73: =IF(ISERROR(VLOOKUP($A73&$D$9&$D$7&$B$6,Table4_data,J$13,0)),0,VLOOKUP($A73&$D$9&$D$7&$B$6,Table4_data,J$13,0)) -> 1 | L73: =IF(ISERROR(VLOOKUP($A73&$D$9&$D$7&$B$6,Table4_data,L$13,0)),0,VLOOKUP($A73&$D$9&$D$7&$B$6,Table4_data,L$13,0)) -> 2
A74: Derbyshire | B74: Derbyshire | D74: 7 | F74: 0 | H74: 6 | J74: 0 | L74: 1
A75: Leicester | B75: Leicester City | D75: 0 | F75: 0 | H75: 0 | J75: 0 | L75: 0
A76: Leicestershire | B76: Leicestershire | D76: 11 | F76: 2 | H76: 6 | J76: 3 | L76: 0
A77: Lincolnshire | B77: Lincolnshire | D77: 9 | F77: 2 | H77: 5 | J77: 2 | L77: 0
A78: Northamptonshire | B78: Northamptonshire | D78: 5 | F78: 0 | H78: 4 | J78: 1 | L78: 0
A79: Nottingham City | B79: Nottingham City | D79: =F79+H79+J79+L79 -> 1 | F79: 1 | H79: 0 | J79: 0 | L79: 0
A80: Nottinghamshire | B80: Nottinghamshire | D80: 8 | F80: 1 | H80: 1 | J80: 2 | L80: 4
A81: Rutland | B81: Rutland | D81: 0 | F81: 0 | H81: 0 | J81: 0 | L81: 0
A83: West Midlands | B83: West Midlands | D83: 93 | F83: =SUM(F84:F97) -> 12 | H83: =SUM(H84:H97) -> 53 | J83: =SUM(J84:J97) -> 24 | L83: =SUM(L84:L97) -> 4
A84: Birmingham | B84: Birmingham | D84: 16 | F84: =IF(ISERROR(VLOOKUP($A84&$D$9&$D$7&$B$6,Table4_data,F$13,0)),0,VLOOKUP($A84&$D$9&$D$7&$B$6,Table4_data,F$13,0)) -> 3 | H84: =IF(ISERROR(VLOOKUP($A84&$D$9&$D$7&$B$6,Table4_data,H$13,0)),0,VLOOKUP($A84&$D$9&$D$7&$B$6,Table4_data,H$13,0)) -> 6 | J84: =IF(ISERROR(VLOOKUP($A84&$D$9&$D$7&$B$6,Table4_data,J$13,0)),0,VLOOKUP($A84&$D$9&$D$7&$B$6,Table4_data,J$13,0)) -> 7 | L84: =IF(ISERROR(VLOOKUP($A84&$D$9&$D$7&$B$6,Table4_data,L$13,0)),0,VLOOKUP($A84&$D$9&$D$7&$B$6,Table4_data,L$13,0)) -> 0
A85: Coventry | B85: Coventry | D85: 0 | F85: 0 | H85: 0 | J85: 0 | L85: 0
A86: Dudley | B86: Dudley | D86: 3 | F86: 0 | H86: 0 | J86: 2 | L86: 1
A87: Herefordshire | B87: Herefordshire | D87: 5 | F87: 0 | H87: 4 | J87: 1 | L87: 0
A88: Sandwell | B88: Sandwell | D88: 4 | F88: 0 | H88: 0 | J88: 3 | L88: 1
A89: Shropshire | B89: Shropshire | D89: 23 | F89: 4 | H89: 15 | J89: 3 | L89: 1
A90: Solihull | B90: Solihull | D90: 2 | F90: 0 | H90: 2 | J90: 0 | L90: 0
A91: Staffordshire | B91: Staffordshire | D91: 19 | F91: 1 | H91: 12 | J91: 5 | L91: 1
A92: Stoke-on-Trent | B92: Stoke-on-Trent | D92: 7 | F92: 1 | H92: 6 | J92: 0 | L92: 0
A93: Telford & Wrekin | B93: Telford & Wrekin | D93: 7 | F93: 2 | H93: 4 | J93: 1 | L93: 0
A94: Walsall | B94: Walsall | D94: 1 | F94: 0 | H94: 0 | J94: 1 | L94: 0
A95: Warwickshire | B95: Warwickshire | D95: 0 | F95: 0 | H95: 0 | J95: 0 | L95: 0
A96: Wolverhampton | B96: Wolverhampton | D96: 4 | F96: 0 | H96: 3 | J96: 1 | L96: 0
A97: Worcestershire | B97: Worcestershire | D97: 2 | F97: 1 | H97: 1 | J97: 0 | L97: 0
A99: East of England | B99: East of England | D99: 26 | F99: =SUM(F100:F110) -> 3 | H99: =SUM(H100:H110) -> 11 | J99: =SUM(J100:J110) -> 8 | L99: =SUM(L100:L110) -> 4
A100: Bedford Borough | B100: Bedford Borough | D100: 0 | F100: =IF(ISERROR(VLOOKUP($A100&$D$9&$D$7&$B$6,Table4_data,F$13,0)),0,VLOOKUP($A100&$D$9&$D$7&$B$6,Table4_data,F$13,0)) -> 0 | H100: =IF(ISERROR(VLOOKUP($A100&$D$9&$D$7&$B$6,Table4_data,H$13,0)),0,VLOOKUP($A100&$D$9&$D$7&$B$6,Table4_data,H$13,0)) -> 0 | J100: =IF(ISERROR(VLOOKUP($A100&$D$9&$D$7&$B$6,Table4_data,J$13,0)),0,VLOOKUP($A100&$D$9&$D$7&$B$6,Table4_data,J$13,0)) -> 0 | L100: =IF(ISERROR(VLOOKUP($A100&$D$9&$D$7&$B$6,Table4_data,L$13,0)),0,VLOOKUP($A100&$D$9&$D$7&$B$6,Table4_data,L$13,0)) -> 0
A101: Cambridgeshire | B101: Cambridgeshire | D101: 5 | F101: 0 | H101: 3 | J101: 1 | L101: 1
A102: Central Bedfordshire | B102: Central Bedfordshire | D102: 1 | F102: 0 | H102: 0 | J102: 0 | L102: 1
A103: Essex | B103: Essex | D103: 4 | F103: 1 | H103: 1 | J103: 1 | L103: 1
A104: Hertfordshire | B104: Hertfordshire | D104: 2 | F104: 0 | H104: 0 | J104: 1 | L104: 1
A105: Luton | B105: Luton | D105: 1 | F105: 0 | H105: 1 | J105: 0 | L105: 0
A106: Norfolk | B106: Norfolk | D106: 10 | F106: 2 | H106: 5 | J106: 3 | L106: 0
A107: Peterborough | B107: Peterborough | D107: 2 | F107: 0 | H107: 1 | J107: 1 | L107: 0
A108: Southend-on-sea | B108: Southend | D108: 0 | F108: 0 | H108: 0 | J108: 0 | L108: 0
A109: Suffolk | B109: Suffolk | D109: 1 | F109: 0 | H109: 0 | J109: 1 | L109: 0
A110: Thurrock | B110: Thurrock | D110: 0 | F110: 0 | H110: 0 | J110: 0 | L110: 0
A112: London | B112: London | D112: 37 | F112: =SUM(F113:F145) -> 1 | H112: =SUM(H113:H145) -> 16 | J112: =SUM(J113:J145) -> 17 | L112: =SUM(L113:L145) -> 3
A113: Barking & Dagenham | B113: Barking & Dagenham | D113: 1 | F113: =IF(ISERROR(VLOOKUP($A113&$D$9&$D$7&$B$6,Table4_data,F$13,0)),0,VLOOKUP($A113&$D$9&$D$7&$B$6,Table4_data,F$13,0)) -> 0 | H113: =IF(ISERROR(VLOOKUP($A113&$D$9&$D$7&$B$6,Table4_data,H$13,0)),0,VLOOKUP($A113&$D$9&$D$7&$B$6,Table4_data,H$13,0)) -> 1 | J113: =IF(ISERROR(VLOOKUP($A113&$D$9&$D$7&$B$6,Table4_data,J$13,0)),0,VLOOKUP($A113&$D$9&$D$7&$B$6,Table4_data,J$13,0)) -> 0 | L113: =IF(ISERROR(VLOOKUP($A113&$D$9&$D$7&$B$6,Table4_data,L$13,0)),0,VLOOKUP($A113&$D$9&$D$7&$B$6,Table4_data,L$13,0)) -> 0
A114: Barnet | B114: Barnet | D114: 1 | F114: 0 | H114: 1 | J114: 0 | L114: 0
A115: Bexley | B115: Bexley | D115: 2 | F115: 0 | H115: 0 | J115: 1 | L115: 1
A116: Brent | B116: Brent | D116: 2 | F116: 0 | H116: 0 | J116: 2 | L116: 0
A117: Bromley | B117: Bromley | D117: 0 | F117: 0 | H117: 0 | J117: 0 | L117: 0
A118: Camden | B118: Camden | D118: 0 | F118: 0 | H118: 0 | J118: 0 | L118: 0
A119: City of London | B119: City of London | D119: 0 | F119: 0 | H119: 0 | J119: 0 | L119: 0
A120: Croydon | B120: Croydon | D120: 3 | F120: 0 | H120: 0 | J120: 2 | L120: 1
A121: Ealing | B121: Ealing | D121: 2 | F121: 0 | H121: 0 | J121: 2 | L121: 0
A122: Enfield | B122: Enfield | D122: 2 | F122: 0 | H122: 2 | J122: 0 | L122: 0
A123: Greenwich | B123: Greenwich | D123: 2 | F123: 1 | H123: 1 | J123: 0 | L123: 0
A124: Hackney | B124: Hackney | D124: 0 | F124: 0 | H124: 0 | J124: 0 | L124: 0
A125: Hammersmith & Fulham | B125: Hammersmith & Fulham | D125: 0 | F125: 0 | H125: 0 | J125: 0 | L125: 0
A126: Haringey | B126: Haringey | D126: 2 | F126: 0 | H126: 0 | J126: 2 | L126: 0
A127: Harrow | B127: Harrow | D127: 1 | F127: 0 | H127: 1 | J127: 0 | L127: 0
A128: Havering | B128: Havering | D128: 0 | F128: 0 | H128: 0 | J128: 0 | L128: 0
A129: Hillingdon | B129: Hillingdon | D129: 2 | F129: 0 | H129: 1 | J129: 1 | L129: 0
A130: Hounslow | B130: Hounslow | D130: 1 | F130: 0 | H130: 1 | J130: 0 | L130: 0
A131: Islington | B131: Islington | D131: 0 | F131: 0 | H131: 0 | J131: 0 | L131: 0
A132: Kensington and Chelsea | B132: Kensington and Chelsea | D132: 0 | F132: 0 | H132: 0 | J132: 0 | L132: 0
A133: Kingston upon Thames | B133: Kingston upon Thames | D133: 0 | F133: 0 | H133: 0 | J133: 0 | L133: 0
A134: Lambeth | B134: Lambeth | D134: 0 | F134: 0 | H134: 0 | J134: 0 | L134: 0
A135: Lewisham | B135: Lewisham | D135: 1 | F135: 0 | H135: 1 | J135: 0 | L135: 0
A136: Merton | B136: Merton | D136: 2 | F136: 0 | H136: 1 | J136: 1 | L136: 0
A137: Newham | B137: Newham | D137: 4 | F137: 0 | H137: 1 | J137: 3 | L137: 0
A138: Redbridge | B138: Redbridge | D138: 3 | F138: 0 | H138: 2 | J138: 1 | L138: 0
A139: Richmond upon Thames | B139: Richmond upon Thames | D139: 0 | F139: 0 | H139: 0 | J139: 0 | L139: 0
A140: Southwark | B140: Southwark | D140: 1 | F140: 0 | H140: 1 | J140: 0 | L140: 0
A141: Sutton | B141: Sutton | D141: 0 | F141: 0 | H141: 0 | J141: 0 | L141: 0
A142: Tower Hamlets | B142: Tower Hamlets | D142: 1 | F142: 0 | H142: 1 | J142: 0 | L142: 0
A143: Waltham Forest | B143: Waltham Forest | D143: =F143+H143+J143+L143 -> 3 | F143: 0 | H143: 1 | J143: 1 | L143: 1
A144: Wandsworth | B144: Wandsworth | D144: 1 | F144: 0 | H144: 0 | J144: 1 | L144: 0
A145: Westminster | B145: Westminster | D145: 0 | F145: 0 | H145: 0 | J145: 0 | L145: 0
A147: South East | B147: South East | D147: 74 | F147: =SUM(F148:F166) -> 12 | H147: =SUM(H148:H166) -> 42 | J147: =SUM(J148:J166) -> 17 | L147: =SUM(L148:L166) -> 3
A148: Bracknell Forest | B148: Bracknell Forest | D148: 1 | F148: =IF(ISERROR(VLOOKUP($A148&$D$9&$D$7&$B$6,Table4_data,F$13,0)),0,VLOOKUP($A148&$D$9&$D$7&$B$6,Table4_data,F$13,0)) -> 0 | H148: =IF(ISERROR(VLOOKUP($A148&$D$9&$D$7&$B$6,Table4_data,H$13,0)),0,VLOOKUP($A148&$D$9&$D$7&$B$6,Table4_data,H$13,0)) -> 0 | J148: =IF(ISERROR(VLOOKUP($A148&$D$9&$D$7&$B$6,Table4_data,J$13,0)),0,VLOOKUP($A148&$D$9&$D$7&$B$6,Table4_data,J$13,0)) -> 1 | L148: =IF(ISERROR(VLOOKUP($A148&$D$9&$D$7&$B$6,Table4_data,L$13,0)),0,VLOOKUP($A148&$D$9&$D$7&$B$6,Table4_data,L$13,0)) -> 0
A149: Brighton & Hove | B149: Brighton & Hove | D149: 2 | F149: 2 | H149: 0 | J149: 0 | L149: 0
A150: Buckinghamshire | B150: Buckinghamshire | D150: 4 | F150: 0 | H150: 1 | J150: 3 | L150: 0
A151: East Sussex | B151: East Sussex | D151: 5 | F151: 0 | H151: 5 | J151: 0 | L151: 0
A152: Hampshire | B152: Hampshire | D152: 8 | F152: 3 | H152: 4 | J152: 1 | L152: 0
A153: Isle of Wight | B153: Isle of Wight | D153: 1 | F153: 0 | H153: 1 | J153: 0 | L153: 0
A154: Kent | B154: Kent | D154: 18 | F154: 2 | H154: 12 | J154: 3 | L154: 1
A155: Medway | B155: Medway | D155: 0 | F155: 0 | H155: 0 | J155: 0 | L155: 0
A156: Milton Keynes | B156: Milton Keynes | D156: 2 | F156: 0 | H156: 2 | J156: 0 | L156: 0
A157: Oxfordshire | B157: Oxfordshire | D157: 6 | F157: 3 | H157: 3 | J157: 0 | L157: 0
A158: Portsmouth | B158: Portsmouth | D158: 1 | F158: 0 | H158: 0 | J158: 1 | L158: 0
A159: Reading | B159: Reading | D159: 1 | F159: 0 | H159: 0 | J159: 1 | L159: 0
A160: Slough | B160: Slough | D160: 1 | F160: 0 | H160: 1 | J160: 0 | L160: 0
A161: Southampton | B161: Southampton | D161: 5 | F161: 1 | H161: 1 | J161: 1 | L161: 2
A162: Surrey | B162: Surrey | D162: 5 | F162: 0 | H162: 3 | J162: 2 | L162: 0
A163: West Berkshire | B163: West Berkshire | D163: 1 | F163: 0 | H163: 1 | J163: 0 | L163: 0
A164: West Sussex | B164: West Sussex | D164: 12 | F164: 1 | H164: 8 | J164: 3 | L164: 0
A165: Windsor and Maidenhead | B165: Windsor and Maidenhead | D165: 0 | F165: 0 | H165: 0 | J165: 0 | L165: 0
A166: Wokingham | B166: Wokingham | D166: 1 | F166: 0 | H166: 0 | J166: 1 | L166: 0
A168: South West | B168: South West | D168: 57 | F168: =SUM(F169:F184) -> 2 | H168: =SUM(H169:H184) -> 27 | J168: =SUM(J169:J184) -> 22 | L168: =SUM(L169:L184) -> 6
A169: Bath & North East Somerset | B169: Bath & North East Somerset | D169: 0 | F169: =IF(ISERROR(VLOOKUP($A169&$D$9&$D$7&$B$6,Table4_data,F$13,0)),0,VLOOKUP($A169&$D$9&$D$7&$B$6,Table4_data,F$13,0)) -> 0 | H169: =IF(ISERROR(VLOOKUP($A169&$D$9&$D$7&$B$6,Table4_data,H$13,0)),0,VLOOKUP($A169&$D$9&$D$7&$B$6,Table4_data,H$13,0)) -> 0 | J169: =IF(ISERROR(VLOOKUP($A169&$D$9&$D$7&$B$6,Table4_data,J$13,0)),0,VLOOKUP($A169&$D$9&$D$7&$B$6,Table4_data,J$13,0)) -> 0 | L169: =IF(ISERROR(VLOOKUP($A169&$D$9&$D$7&$B$6,Table4_data,L$13,0)),0,VLOOKUP($A169&$D$9&$D$7&$B$6,Table4_data,L$13,0)) -> 0
A170: Bournemouth | B170: Bournemouth | D170: 2 | F170: 0 | H170: 0 | J170: 1 | L170: 1
A171: Bristol | B171: Bristol | D171: 5 | F171: 0 | H171: 4 | J171: 1 | L171: 0
A172: Cornwall | B172: Cornwall | D172: 7 | F172: 0 | H172: 2 | J172: 3 | L172: 2
A173: Devon | B173: Devon | D173: 9 | F173: 0 | H173: 5 | J173: 4 | L173: 0
A174: Dorset | B174: Dorset | D174: 1 | F174: 0 | H174: 0 | J174: 1 | L174: 0
A175: Gloucestershire | B175: Gloucestershire | D175: 4 | F175: 0 | H175: 2 | J175: 1 | L175: 1
A176: Isles Of Scilly | B176: Isles Of Scilly | D176: 0 | F176: 0 | H176: 0 | J176: 0 | L176: 0
A177: North Somerset | B177: North Somerset | D177: 2 | F177: 0 | H177: 1 | J177: 1 | L177: 0
A178: Plymouth | B178: Plymouth | D178: 1 | F178: 0 | H178: 1 | J178: 0 | L178: 0
A179: Poole | B179: Poole | D179: 0 | F179: 0 | H179: 0 | J179: 0 | L179: 0
A180: Somerset | B180: Somerset | D180: 21 | F180: 1 | H180: 9 | J180: 9 | L180: 2
A181: South Gloucestershire | B181: South Gloucestershire | D181: 0 | F181: 0 | H181: 0 | J181: 0 | L181: 0
A182: Swindon | B182: Swindon | D182: 1 | F182: 0 | H182: 1 | J182: 0 | L182: 0
A183: Torbay | B183: Torbay | D183: 2 | F183: 0 | H183: 1 | J183: 1 | L183: 0
A184: Wiltshire | B184: Wiltshire | D184: 2 | F184: 1 | H184: 1 | J184: 0 | L184: 0
A186: nr | B186: Region not recorded | D186: 0 | F186: =SUM(F187) -> 0 | H186: =SUM(H187) -> 0 | J186: =SUM(J187) -> 0 | L186: =SUM(L187) -> 0
A187: LA not recorded | B187: Local authority not recorded | D187: 0 | F187: =IF(ISERROR(VLOOKUP($A187&$D$9&$D$7&$B$6,Table4_data,F$13,0)),0,VLOOKUP($A187&$D$9&$D$7&$B$6,Table4_data,F$13,0)) -> 0 | H187: =IF(ISERROR(VLOOKUP($A187&$D$9&$D$7&$B$6,Table4_data,H$13,0)),0,VLOOKUP($A187&$D$9&$D$7&$B$6,Table4_data,H$13,0)) -> 0 | J187: =IF(ISERROR(VLOOKUP($A187&$D$9&$D$7&$B$6,Table4_data,J$13,0)),0,VLOOKUP($A187&$D$9&$D$7&$B$6,Table4_data,J$13,0)) -> 0 | L187: =IF(ISERROR(VLOOKUP($A187&$D$9&$D$7&$B$6,Table4_data,L$13,0)),0,VLOOKUP($A187&$D$9&$D$7&$B$6,Table4_data,L$13,0)) -> 0
L189: Source: Ofsted inspections
B191: 1. These figures include those children's homes run by the local authority, and those that are run by health authorities, private or voluntary organisations located in the local authority area.
B192: 2. Residential special schools that care for pupils for more than 295 days per year must register as children's homes and are separately designated in the drop-down list as 'residential special school (ch)'.

Sheet Table4_Data (hidden)
A1: Table 4: overall care outcome of children's social care providers inspected between 01/04/2011 and 30/06/2011 by region and local authority (provisional)
A2: Lookup | B2: Local authority | C2: Sector | D2: Corporate Inspected Provision Type Group Name | E2: Month | F2: Outstanding | G2: Good | H2: Adequate | I2: Inadequate
A3: Barking & DagenhamAllChildren's Home2 | B3: Barking & Dagenham | C3: All | D3: Children's Home | E3: 2 | F3: 0 | G3: 1 | H3: 0 | I3: 0
A4: Barking & DagenhamAllChildren's Home4 | B4: Barking & Dagenham | C4: All | D4: Children's Home | E4: 4 | F4: 0 | G4: 1 | H4: 0 | I4: 0
A5: Barking & DagenhamPrivate/ VoluntaryChildren's Home2 | B5: Barking & Dagenham | C5: Private/ Voluntary | D5: Children's Home | E5: 2 | F5: 0 | G5: 1 | H5: 0 | I5: 0
A6: Barking & DagenhamPrivate/ VoluntaryChildren's Home4 | B6: Barking & Dagenham | C6: Private/ Voluntary | D6: Children's Home | E6: 4 | F6: 0 | G6: 1 | H6: 0 | I6: 0
A7: BarnetAllChildren's Home2 | B7: Barnet | C7: All | D7: Children's Home | E7: 2 | F7: 0 | G7: 1 | H7: 0 | I7: 0
A8: BarnetAllChildren's Home4 | B8: Barnet | C8: All | D8: Children's Home | E8: 4 | F8: 0 | G8: 1 | H8: 0 | I8: 0
A9: BarnetPrivate/ VoluntaryChildren's Home2 | B9: Barnet | C9: Private/ Voluntary | D9: Children's Home | E9: 2 | F9: 0 | G9: 1 | H9: 0 | I9: 0
A10: BarnetPrivate/ VoluntaryChildren's Home4 | B10: Barnet | C10: Private/ Voluntary | D10: Children's Home | E10: 4 | F10: 0 | G10: 1 | H10: 0 | I10: 0
A11: BarnsleyAllChildren's Home3 | B11: Barnsley | C11: All | D11: Children's Home | E11: 3 | F11: 2 | G11: 2 | H11: 0 | I11: 0
A12: BarnsleyAllChildren's Home4 | B12: Barnsley | C12: All | D12: Children's Home | E12: 4 | F12: 2 | G12: 2 | H12: 0 | I12: 0
A13: BarnsleyPrivate/ VoluntaryChildren's Home3 | B13: Barnsley | C13: Private/ Voluntary | D13: Children's Home | E13: 3 | F13: 2 | G13: 2 | H13: 0 | I13: 0
A14: BarnsleyPrivate/ VoluntaryChildren's Home4 | B14: Barnsley | C14: Private/ Voluntary | D14: Children's Home | E14: 4 | F14: 2 | G14: 2 | H14: 0 | I14: 0
A15: BexleyAllChildren's Home2 | B15: Bexley | C15: All | D15: Children's Home | E15: 2 | F15: 0 | G15: 0 | H15: 1 | I15: 0
A16: BexleyAllChildren's Home3 | B16: Bexley | C16: All | D16: Children's Home | E16: 3 | F16: 0 | G16: 0 | H16: 0 | I16: 1
A17: BexleyAllChildren's Home4 | B17: Bexley | C17: All | D17: Children's Home | E17: 4 | F17: 0 | G17: 0 | H17: 1 | I17: 1
A18: BexleyPrivate/ VoluntaryChildren's Home2 | B18: Bexley | C18: Private/ Voluntary | D18: Children's Home | E18: 2 | F18: 0 | G18: 0 | H18: 1 | I18: 0
A19: BexleyPrivate/ VoluntaryChildren's Home3 | B19: Bexley | C19: Private/ Voluntary | D19: Children's Home | E19: 3 | F19: 0 | G19: 0 | H19: 0 | I19: 1
A20: BexleyPrivate/ VoluntaryChildren's Home4 | B20: Bexley | C20: Private/ Voluntary | D20: Children's Home | E20: 4 | F20: 0 | G20: 0 | H20: 1 | I20: 1
A21: BirminghamAllChildren's Home1 | B21: Birmingham | C21: All | D21: Children's Home | E21: 1 | F21: 1 | G21: 0 | H21: 1 | I21: 0
A22: BirminghamAllChildren's Home2 | B22: Birmingham | C22: All | D22: Children's Home | E22: 2 | F22: 1 | G22: 4 | H22: 6 | I22: 0
A23: BirminghamAllChildren's Home3 | B23: Birmingham | C23: All | D23: Children's Home | E23: 3 | F23: 1 | G23: 2 | H23: 0 | I23: 0
A24: BirminghamAllChildren's Home4 | B24: Birmingham | C24: All | D24: Children's Home | E24: 4 | F24: 3 | G24: 6 | H24: 7 | I24: 0
A25: BirminghamAllResidential Special School2 | B25: Birmingham | C25: All | D25: Residential Special School | E25: 2 | F25: 0 | G25: 0 | H25: 0 | I25: 0
A26: BirminghamAllResidential Special School4 | B26: Birmingham | C26: All | D26: Residential Special School | E26: 4 | F26: 0 | G26: 0 | H26: 0 | I26: 0
A27: BirminghamLocal authorityChildren's Home1 | B27: Birmingham | C27: Local authority | D27: Children's Home | E27: 1 | F27: 0 | G27: 0 | H27: 1 | I27: 0
A28: BirminghamLocal authorityChildren's Home2 | B28: Birmingham | C28: Local authority | D28: Children's Home | E28: 2 | F28: 0 | G28: 1 | H28: 1 | I28: 0
A29: BirminghamLocal authorityChildren's Home3 | B29: Birmingham | C29: Local authority | D29: Children's Home | E29: 3 | F29: 0 | G29: 1 | H29: 0 | I29: 0
A30: BirminghamLocal authorityChildren's Home4 | B30: Birmingham | C30: Local authority | D30: Children's Home | E30: 4 | F30: 0 | G30: 2 | H30: 2 | I30: 0
A31: BirminghamLocal authorityResidential Special School2 | B31: Birmingham | C31: Local authority | D31: Residential Special School | E31: 2 | F31: 0 | G31: 0 | H31: 0 | I31: 0
A32: BirminghamLocal authorityResidential Special School4 | B32: Birmingham | C32: Local authority | D32: Residential Special School | E32: 4 | F32: 0 | G32: 0 | H32: 0 | I32: 0
A33: BirminghamPrivate/ VoluntaryChildren's Home1 | B33: Birmingham | C33: Private/ Voluntary | D33: Children's Home | E33: 1 | F33: 1 | G33: 0 | H33: 0 | I33: 0
A34: BirminghamPrivate/ VoluntaryChildren's Home2 | B34: Birmingham | C34: Private/ Voluntary | D34: Children's Home | E34: 2 | F34: 1 | G34: 3 | H34: 5 | I34: 0
A35: BirminghamPrivate/ VoluntaryChildren's Home3 | B35: Birmingham | C35: Private/ Voluntary | D35: Children's Home | E35: 3 | F35: 1 | G35: 1 | H35: 0 | I35: 0
A36: BirminghamPrivate/ VoluntaryChildren's Home4 | B36: Birmingham | C36: Private/ Voluntary | D36: Children's Home | E36: 4 | F36: 3 | G36: 4 | H36: 5 | I36: 0
A37: Blackburn with DarwenAllChildren's Home2 | B37: Blackburn with Darwen | C37: All | D37: Children's Home | E37: 2 | F37: 1 | G37: 0 | H37: 0 | I37: 0
A38: Blackburn with DarwenAllChildren's Home4 | B38: Blackburn with Darwen | C38: All | D38: Children's Home | E38: 4 | F38: 1 | G38: 0 | H38: 0 | I38: 0
A39: Blackburn with DarwenPrivate/ VoluntaryChildren's Home2 | B39: Blackburn with Darwen | C39: Private/ Voluntary | D39: Children's Home | E39: 2 | F39: 1 | G39: 0 | H39: 0 | I39: 0
A40: Blackburn with DarwenPrivate/ VoluntaryChildren's Home4 | B40: Blackburn with Darwen | C40: Private/ Voluntary | D40: Children's Home | E40: 4 | F40: 1 | G40: 0 | H40: 0 | I40: 0
A41: BlackpoolAllChildren's Home1 | B41: Blackpool | C41: All | D41: Children's Home | E41: 1 | F41: 0 | G41: 0 | H41: 0 | I41: 1
A42: BlackpoolAllChildren's Home3 | B42: Blackpool | C42: All | D42: Children's Home | E42: 3 | F42: 1 | G42: 0 | H42: 2 | I42: 0
A43: BlackpoolAllChildren's Home4 | B43: Blackpool | C43: All | D43: Children's Home | E43: 4 | F43: 1 | G43: 0 | H43: 2 | I43: 1
A44: BlackpoolLocal authorityChildren's Home3 | B44: Blackpool | C44: Local authority | D44: Children's Home | E44: 3 | F44: 0 | G44: 0 | H44: 1 | I44: 0
A45: BlackpoolLocal authorityChildren's Home4 | B45: Blackpool | C45: Local authority | D45: Children's Home | E45: 4 | F45: 0 | G45: 0 | H45: 1 | I45: 0
A46: BlackpoolPrivate/ VoluntaryChildren's Home1 | B46: Blackpool | C46: Private/ Voluntary | D46: Children's Home | E46: 1 | F46: 0 | G46: 0 | H46: 0 | I46: 1
A47: BlackpoolPrivate/ VoluntaryChildren's Home3 | B47: Blackpool | C47: Private/ Voluntary | D47: Children's Home | E47: 3 | F47: 1 | G47: 0 | H47: 1 | I47: 0
A48: BlackpoolPrivate/ VoluntaryChildren's Home4 | B48: Blackpool | C48: Private/ Voluntary | D48: Children's Home | E48: 4 | F48: 1 | G48: 0 | H48: 1 | I48: 1
A49: BoltonAllChildren's Home2 | B49: Bolton | C49: All | D49: Children's Home | E49: 2 | F49: 0 | G49: 2 | H49: 0 | I49: 0
A50: BoltonAllChildren's Home3 | B50: Bolton | C50: All | D50: Children's Home | E50: 3 | F50: 0 | G50: 2 | H50: 0 | I50: 0
A51: BoltonAllChildren's Home4 | B51: Bolton | C51: All | D51: Children's Home | E51: 4 | F51: 0 | G51: 4 | H51: 0 | I51: 0
A52: BoltonAllResidential special school (>295 days/year)3 | B52: Bolton | C52: All | D52: Residential special school (>295 days/year) | E52: 3 | F52: 0 | G52: 1 | H52: 0 | I52: 0
A53: BoltonAllResidential special school (>295 days/year)4 | B53: Bolton | C53: All | D53: Residential special school (>295 days/year) | E53: 4 | F53: 0 | G53: 1 | H53: 0 | I53: 0
A54: BoltonLocal authorityChildren's Home2 | B54: Bolton | C54: Local authority | D54: Children's Home | E54: 2 | F54: 0 | G54: 1 | H54: 0 | I54: 0
A55: BoltonLocal authorityChildren's Home4 | B55: Bolton | C55: Local authority | D55: Children's Home | E55: 4 | F55: 0 | G55: 1 | H55: 0 | I55: 0
A56: BoltonPrivate/ VoluntaryChildren's Home2 | B56: Bolton | C56: Private/ Voluntary | D56: Children's Home | E56: 2 | F56: 0 | G56: 1 | H56: 0 | I56: 0
A57: BoltonPrivate/ VoluntaryChildren's Home3 | B57: Bolton | C57: Private/ Voluntary | D57: Children's Home | E57: 3 | F57: 0 | G57: 2 | H57: 0 | I57: 0
A58: BoltonPrivate/ VoluntaryChildren's Home4 | B58: Bolton | C58: Private/ Voluntary | D58: Children's Home | E58: 4 | F58: 0 | G58: 3 | H58: 0 | I58: 0
A59: BoltonPrivate/ VoluntaryResidential special school (>295 days/year)3 | B59: Bolton | C59: Private/ Voluntary | D59: Residential special school (>295 days/year) | E59: 3 | F59: 0 | G59: 1 | H59: 0 | I59: 0
A60: BoltonPrivate/ VoluntaryResidential special school (>295 days/year)4 | B60: Bolton | C60: Private/ Voluntary | D60: Residential special school (>295 days/year) | E60: 4 | F60: 0 | G60: 1 | H60: 0 | I60: 0
A61: BournemouthAllChildren's Home2 | B61: Bournemouth | C61: All | D61: Children's Home | E61: 2 | F61: 0 | G61: 0 | H61: 0 | I61: 1
A62: BournemouthAllChildren's Home3 | B62: Bournemouth | C62: All | D62: Children's Home | E62: 3 | F62: 0 | G62: 0 | H62: 1 | I62: 0
A63: BournemouthAllChildren's Home4 | B63: Bournemouth | C63: All | D63: Children's Home | E63: 4 | F63: 0 | G63: 0 | H63: 1 | I63: 1
A64: BournemouthPrivate/ VoluntaryChildren's Home2 | B64: Bournemouth | C64: Private/ Voluntary | D64: Children's Home | E64: 2 | F64: 0 | G64: 0 | H64: 0 | I64: 1
A65: BournemouthPrivate/ VoluntaryChildren's Home3 | B65: Bournemouth | C65: Private/ Voluntary | D65: Children's Home | E65: 3 | F65: 0 | G65: 0 | H65: 1 | I65: 0
A66: BournemouthPrivate/ VoluntaryChildren's Home4 | B66: Bournemouth | C66: Private/ Voluntary | D66: Children's Home | E66: 4 | F66: 0 | G66: 0 | H66: 1 | I66: 1
A67: Bracknell ForestAllChildren's Home3 | B67: Bracknell Forest | C67: All | D67: Children's Home | E67: 3 | F67: 0 | G67: 0 | H67: 1 | I67: 0
A68: Bracknell ForestAllChildren's Home4 | B68: Bracknell Forest | C68: All | D68: Children's Home | E68: 4 | F68: 0 | G68: 0 | H68: 1 | I68: 0
A69: Bracknell ForestPrivate/ VoluntaryChildren's Home3 | B69: Bracknell Forest | C69: Private/ Voluntary | D69: Children's Home | E69: 3 | F69: 0 | G69: 0 | H69: 1 | I69: 0
A70: Bracknell ForestPrivate/ VoluntaryChildren's Home4 | B70: Bracknell Forest | C70: Private/ Voluntary | D70: Children's Home | E70: 4 | F70: 0 | G70: 0 | H70: 1 | I70: 0
A71: BradfordAllChildren's Home2 | B71: Bradford | C71: All | D71: Children's Home | E71: 2 | F71: 0 | G71: 2 | H71: 0 | I71: 0
A72: BradfordAllChildren's Home3 | B72: Bradford | C72: All | D72: Children's Home | E72: 3 | F72: 0 | G72: 1 | H72: 0 | I72: 0
A73: BradfordAllChildren's Home4 | B73: Bradford | C73: All | D73: Children's Home | E73: 4 | F73: 0 | G73: 3 | H73: 0 | I73: 0
A74: BradfordLocal authorityChildren's Home2 | B74: Bradford | C74: Local authority | D74: Children's Home | E74: 2 | F74: 0 | G74: 1 | H74: 0 | I74: 0
A75: BradfordLocal authorityChildren's Home4 | B75: Bradford | C75: Local authority | D75: Children's Home | E75: 4 | F75: 0 | G75: 1 | H75: 0 | I75: 0
A76: BradfordPrivate/ VoluntaryChildren's Home2 | B76: Bradford | C76: Private/ Voluntary | D76: Children's Home | E76: 2 | F76: 0 | G76: 1 | H76: 0 | I76: 0
A77: BradfordPrivate/ VoluntaryChildren's Home3 | B77: Bradford | C77: Private/ Voluntary | D77: Children's Home | E77: 3 | F77: 0 | G77: 1 | H77: 0 | I77: 0
A78: BradfordPrivate/ VoluntaryChildren's Home4 | B78: Bradford | C78: Private/ Voluntary | D78: Children's Home | E78: 4 | F78: 0 | G78: 2 | H78: 0 | I78: 0
A79: BrentAllChildren's Home1 | B79: Brent | C79: All | D79: Children's Home | E79: 1 | F79: 0 | G79: 0 | H79: 1 | I79: 0
A80: BrentAllChildren's Home2 | B80: Brent | C80: All | D80: Children's Home | E80: 2 | F80: 0 | G80: 0 | H80: 1 | I80: 0
A81: BrentAllChildren's Home4 | B81: Brent | C81: All | D81: Children's Home | E81: 4 | F81: 0 | G81: 0 | H81: 2 | I81: 0
A82: BrentPrivate/ VoluntaryChildren's Home1 | B82: Brent | C82: Private/ Voluntary | D82: Children's Home | E82: 1 | F82: 0 | G82: 0 | H82: 1 | I82: 0
A83: BrentPrivate/ VoluntaryChildren's Home2 | B83: Brent | C83: Private/ Voluntary | D83: Children's Home | E83: 2 | F83: 0 | G83: 0 | H83: 1 | I83: 0
A84: BrentPrivate/ VoluntaryChildren's Home4 | B84: Brent | C84: Private/ Voluntary | D84: Children's Home | E84: 4 | F84: 0 | G84: 0 | H84: 2 | I84: 0
A85: Brighton and HoveAllChildren's Home3 | B85: Brighton and Hove | C85: All | D85: Children's Home | E85: 3 | F85: 2 | G85: 0 | H85: 0 | I85: 0
A86: Brighton & HoveAllChildren's Home4 | B86: Brighton & Hove | C86: All | D86: Children's Home | E86: 4 | F86: 2 | G86: 0 | H86: 0 | I86: 0
A87: Brighton & HoveAllResidential special school (>295 days/year)1 | B87: Brighton & Hove | C87: All | D87: Residential special school (>295 days/year) | E87: 1 | F87: 0 | G87: 1 | H87: 0 | I87: 0
A88: Brighton & HoveAllResidential special school (>295 days/year)4 | B88: Brighton & Hove | C88: All | D88: Residential special school (>295 days/year) | E88: 4 | F88: 0 | G88: 1 | H88: 0 | I88: 0
A89: Brighton and HoveLocal authorityChildren's Home3 | B89: Brighton and Hove | C89: Local authority | D89: Children's Home | E89: 3 | F89: 1 | G89: 0 | H89: 0 | I89: 0
A90: Brighton & HoveLocal authorityChildren's Home4 | B90: Brighton & Hove | C90: Local authority | D90: Children's Home | E90: 4 | F90: 1 | G90: 0 | H90: 0 | I90: 0
A91: Brighton and HovePrivate/ VoluntaryChildren's Home3 | B91: Brighton and Hove | C91: Private/ Voluntary | D91: Children's Home | E91: 3 | F91: 1 | G91: 0 | H91: 0 | I91: 0
A92: Brighton & HovePrivate/ VoluntaryChildren's Home4 | B92: Brighton & Hove | C92: Private/ Voluntary | D92: Children's Home | E92: 4 | F92: 1 | G92: 0 | H92: 0 | I92: 0
A93: Brighton & HovePrivate/ VoluntaryResidential special school (>295 days/year)1 | B93: Brighton & Hove | C93: Private/ Voluntary | D93: Residential special school (>295 days/year) | E93: 1 | F93: 0 | G93: 1 | H93: 0 | I93: 0
A94: Brighton & HovePrivate/ VoluntaryResidential special school (>295 days/year)4 | B94: Brighton & Hove | C94: Private/ Voluntary | D94: Residential special school (>295 days/year) | E94: 4 | F94: 0 | G94: 1 | H94: 0 | I94: 0
A95: BristolAllChildren's Home2 | B95: Bristol | C95: All | D95: Children's Home | E95: 2 | F95: 0 | G95: 1 | H95: 0 | I95: 0
A96: BristolAllChildren's Home3 | B96: Bristol | C96: All | D96: Children's Home | E96: 3 | F96: 0 | G96: 3 | H96: 1 | I96: 0
A97: BristolAllChildren's Home4 | B97: Bristol | C97: All | D97: Children's Home | E97: 4 | F97: 0 | G97: 4 | H97: 1 | I97: 0
A98: BristolLocal authorityChildren's Home3 | B98: Bristol | C98: Local authority | D98: Children's Home | E98: 3 | F98: 0 | G98: 2 | H98: 0 | I98: 0
A99: BristolLocal authorityChildren's Home4 | B99: Bristol | C99: Local authority | D99: Children's Home | E99: 4 | F99: 0 | G99: 2 | H99: 0 | I99: 0
A100: BristolPrivate/ VoluntaryChildren's Home2 | B100: Bristol | C100: Private/ Voluntary | D100: Children's Home | E100: 2 | F100: 0 | G100: 1 | H100: 0 | I100: 0
A101: BristolPrivate/ VoluntaryChildren's Home3 | B101: Bristol | C101: Private/ Voluntary | D101: Children's Home | E101: 3 | F101: 0 | G101: 1 | H101: 1 | I101: 0
A102: BristolPrivate/ VoluntaryChildren's Home4 | B102: Bristol | C102: Private/ Voluntary | D102: Children's Home | E102: 4 | F102: 0 | G102: 2 | H102: 1 | I102: 0
A103: BuckinghamshireAllChildren's Home1 | B103: Buckinghamshire | C103: All | D103: Children's Home | E103: 1 | F103: 0 | G103: 0 | H103: 2 | I103: 0
A104: BuckinghamshireAllChildren's Home3 | B104: Buckinghamshire | C104: All | D104: Children's Home | E104: 3 | F104: 0 | G104: 1 | H104: 1 | I104: 0
A105: BuckinghamshireAllChildren's Home4 | B105: Buckinghamshire | C105: All | D105: Children's Home | E105: 4 | F105: 0 | G105: 1 | H105: 3 | I105: 0
A106: BuckinghamshirePrivate/ VoluntaryChildren's Home1 | B106: Buckinghamshire | C106: Private/ Voluntary | D106: Children's Home | E106: 1 | F106: 0 | G106: 0 | H106: 2 | I106: 0
A107: BuckinghamshirePrivate/ VoluntaryChildren's Home3 | B107: Buckinghamshire | C107: Private/ Voluntary | D107: Children's Home | E107: 3 | F107: 0 | G107: 1 | H107: 1 | I107: 0
A108: BuckinghamshirePrivate/ VoluntaryChildren's Home4 | B108: Buckinghamshire | C108: Private/ Voluntary | D108: Children's Home | E108: 4 | F108: 0 | G108: 1 | H108: 3 | I108: 0
A109: BuryAllChildren's Home2 | B109: Bury | C109: All | D109: Children's Home | E109: 2 | F109: 0 | G109: 1 | H109: 0 | I109: 0
A110: BuryAllChildren's Home4 | B110: Bury | C110: All | D110: Children's Home | E110: 4 | F110: 0 | G110: 1 | H110: 0 | I110: 0
A111: BuryPrivate/ VoluntaryChildren's Home2 | B111: Bury | C111: Private/ Voluntary | D111: Children's Home | E111: 2 | F111: 0 | G111: 1 | H111: 0 | I111: 0
A112: BuryPrivate/ VoluntaryChildren's Home4 | B112: Bury | C112: Private/ Voluntary | D112: Children's Home | E112: 4 | F112: 0 | G112: 1 | H112: 0 | I112: 0
A113: CalderdaleAllChildren's Home1 | B113: Calderdale | C113: All | D113: Children's Home | E113: 1 | F113: 0 | G113: 1 | H113: 0 | I113: 0
A114: CalderdaleAllChildren's Home2 | B114: Calderdale | C114: All | D114: Children's Home | E114: 2 | F114: 0 | G114: 2 | H114: 1 | I114: 0
A115: CalderdaleAllChildren's Home4 | B115: Calderdale | C115: All | D115: Children's Home | E115: 4 | F115: 0 | G115: 3 | H115: 1 | I115: 0
A116: CalderdaleLocal authorityChildren's Home1 | B116: Calderdale | C116: Local authority | D116: Children's Home | E116: 1 | F116: 0 | G116: 1 | H116: 0 | I116: 0
A117: CalderdaleLocal authorityChildren's Home2 | B117: Calderdale | C117: Local authority | D117: Children's Home | E117: 2 | F117: 0 | G117: 0 | H117: 1 | I117: 0
A118: CalderdaleLocal authorityChildren's Home4 | B118: Calderdale | C118: Local authority | D118: Children's Home | E118: 4 | F118: 0 | G118: 1 | H118: 1 | I118: 0
A119: CalderdalePrivate/ VoluntaryChildren's Home2 | B119: Calderdale | C119: Private/ Voluntary | D119: Children's Home | E119: 2 | F119: 0 | G119: 2 | H119: 0 | I119: 0
A120: CalderdalePrivate/ VoluntaryChildren's Home4 | B120: Calderdale | C120: Private/ Voluntary | D120: Children's Home | E120: 4 | F120: 0 | G120: 2 | H120: 0 | I120: 0
A121: CambridgeshireAllChildren's Home1 | B121: Cambridgeshire | C121: All | D121: Children's Home | E121: 1 | F121: 0 | G121: 1 | H121: 0 | I121: 0
A122: CambridgeshireAllChildren's Home2 | B122: Cambridgeshire | C122: All | D122: Children's Home | E122: 2 | F122: 0 | G122: 1 | H122: 1 | I122: 1
A123: CambridgeshireAllChildren's Home3 | B123: Cambridgeshire | C123: All | D123: Children's Home | E123: 3 | F123: 0 | G123: 1 | H123: 0 | I123: 0
A124: CambridgeshireAllChildren's Home4 | B124: Cambridgeshire | C124: All | D124: Children's Home | E124: 4 | F124: 0 | G124: 3 | H124: 1 | I124: 1
A125: CambridgeshireAllResidential special school (>295 days/year)2 | B125: Cambridgeshire | C125: All | D125: Residential special school (>295 days/year) | E125: 2 | F125: 0 | G125: 1 | H125: 0 | I125: 0
A126: CambridgeshireAllResidential special school (>295 days/year)4 | B126: Cambridgeshire | C126: All | D126: Residential special school (>295 days/year) | E126: 4 | F126: 0 | G126: 1 | H126: 0 | I126: 0
A127: CambridgeshireLocal authorityChildren's Home1 | B127: Cambridgeshire | C127: Local authority | D127: Children's Home | E127: 1 | F127: 0 | G127: 1 | H127: 0 | I127: 0
A128: CambridgeshireLocal authorityChildren's Home2 | B128: Cambridgeshire | C128: Local authority | D128: Children's Home | E128: 2 | F128: 0 | G128: 0 | H128: 0 | I128: 1
A129: CambridgeshireLocal authorityChildren's Home4 | B129: Cambridgeshire | C129: Local authority | D129: Children's Home | E129: 4 | F129: 0 | G129: 1 | H129: 0 | I129: 1
A130: CambridgeshirePrivate/ VoluntaryChildren's Home2 | B130: Cambridgeshire | C130: Private/ Voluntary | D130: Children's Home | E130: 2 | F130: 0 | G130: 1 | H130: 1 | I130: 0
A131: CambridgeshirePrivate/ VoluntaryChildren's Home3 | B131: Cambridgeshire | C131: Private/ Voluntary | D131: Children's Home | E131: 3 | F131: 0 | G131: 1 | H131: 0 | I131: 0
A132: CambridgeshirePrivate/ VoluntaryChildren's Home4 | B132: Cambridgeshire | C132: Private/ Voluntary | D132: Children's Home | E132: 4 | F132: 0 | G132: 2 | H132: 1 | I132: 0
A133: CambridgeshirePrivate/ VoluntaryResidential special school (>295 days/year)2 | B133: Cambridgeshire | C133: Private/ Voluntary | D133: Residential special school (>295 days/year) | E133: 2 | F133: 0 | G133: 1 | H133: 0 | I133: 0
A134: CambridgeshirePrivate/ VoluntaryResidential special school (>295 days/year)4 | B134: Cambridgeshire | C134: Private/ Voluntary | D134: Residential special school (>295 days/year) | E134: 4 | F134: 0 | G134: 1 | H134: 0 | I134: 0
A135: Central BedfordshireAllChildren's Home2 | B135: Central Bedfordshire | C135: All | D135: Children's Home | E135: 2 | F135: 0 | G135: 0 | H135: 0 | I135: 1
A136: Central BedfordshireAllChildren's Home4 | B136: Central Bedfordshire | C136: All | D136: Children's Home | E136: 4 | F136: 0 | G136: 0 | H136: 0 | I136: 1
A137: Central BedfordshirePrivate/ VoluntaryChildren's Home2 | B137: Central Bedfordshire | C137: Private/ Voluntary | D137: Children's Home | E137: 2 | F137: 0 | G137: 0 | H137: 0 | I137: 1
A138: Central BedfordshirePrivate/ VoluntaryChildren's Home4 | B138: Central Bedfordshire | C138: Private/ Voluntary | D138: Children's Home | E138: 4 | F138: 0 | G138: 0 | H138: 0 | I138: 1
A139: Cheshire West and ChesterAllIndependent Fostering Provider3 | B139: Cheshire West and Chester | C139: All | D139: Independent Fostering Provider | E139: 3 | F139: 0 | G139: 1 | H139: 0 | I139: 0
A140: Cheshire West and ChesterAllIndependent Fostering Provider4 | B140: Cheshire West and Chester | C140: All | D140: Independent Fostering Provider | E140: 4 | F140: 0 | G140: 1 | H140: 0 | I140: 0
A141: Cheshire West and ChesterAllResidential Special School3 | B141: Cheshire West and Chester | C141: All | D141: Residential Special School | E141: 3 | F141: 1 | G141: 0 | H141: 0 | I141: 0
A142: Cheshire West and ChesterAllResidential Special School4 | B142: Cheshire West and Chester | C142: All | D142: Residential Special School | E142: 4 | F142: 1 | G142: 0 | H142: 0 | I142: 0
A143: Cheshire West and ChesterLocal authorityResidential Special School3 | B143: Cheshire West and Chester | C143: Local authority | D143: Residential Special School | E143: 3 | F143: 1 | G143: 0 | H143: 0 | I143: 0
A144: Cheshire West and ChesterLocal authorityResidential Special School4 | B144: Cheshire West and Chester | C144: Local authority | D144: Residential Special School | E144: 4 | F144: 1 | G144: 0 | H144: 0 | I144: 0
A145: Cheshire West and ChesterPrivate/ VoluntaryIndependent Fostering Provider3 | B145: Cheshire West and Chester | C145: Private/ Voluntary | D145: Independent Fostering Provider | E145: 3 | F145: 0 | G145: 1 | H145: 0 | I145: 0
A146: Cheshire West and ChesterPrivate/ VoluntaryIndependent Fostering Provider4 | B146: Cheshire West and Chester | C146: Private/ Voluntary | D146: Independent Fostering Provider | E146: 4 | F146: 0 | G146: 1 | H146: 0 | I146: 0
A147: CornwallAllChildren's Home1 | B147: Cornwall | C147: All | D147: Children's Home | E147: 1 | F147: 0 | G147: 0 | H147: 0 | I147: 1
A148: CornwallAllChildren's Home2 | B148: Cornwall | C148: All | D148: Children's Home | E148: 2 | F148: 0 | G148: 2 | H148: 2 | I148: 1
A149: CornwallAllChildren's Home3 | B149: Cornwall | C149: All | D149: Children's Home | E149: 3 | F149: 0 | G149: 0 | H149: 1 | I149: 0
A150: CornwallAllChildren's Home4 | B150: Cornwall | C150: All | D150: Children's Home | E150: 4 | F150: 0 | G150: 2 | H150: 3 | I150: 2
A151: CornwallHealth authorityChildren's Home2 | B151: Cornwall | C151: Health authority | D151: Children's Home | E151: 2 | F151: 0 | G151: 0 | H151: 1 | I151: 0
A152: CornwallHealth authorityChildren's Home4 | B152: Cornwall | C152: Health authority | D152: Children's Home | E152: 4 | F152: 0 | G152: 0 | H152: 1 | I152: 0
A153: CornwallLocal authorityChildren's Home1 | B153: Cornwall | C153: Local authority | D153: Children's Home | E153: 1 | F153: 0 | G153: 0 | H153: 0 | I153: 1
A154: CornwallLocal authorityChildren's Home2 | B154: Cornwall | C154: Local authority | D154: Children's Home | E154: 2 | F154: 0 | G154: 1 | H154: 1 | I154: 0
A155: CornwallLocal authorityChildren's Home4 | B155: Cornwall | C155: Local authority | D155: Children's Home | E155: 4 | F155: 0 | G155: 1 | H155: 1 | I155: 1
A156: CornwallPrivate/ VoluntaryChildren's Home2 | B156: Cornwall | C156: Private/ Voluntary | D156: Children's Home | E156: 2 | F156: 0 | G156: 1 | H156: 0 | I156: 1
A157: CornwallPrivate/ VoluntaryChildren's Home3 | B157: Cornwall | C157: Private/ Voluntary | D157: Children's Home | E157: 3 | F157: 0 | G157: 0 | H157: 1 | I157: 0
A158: CornwallPrivate/ VoluntaryChildren's Home4 | B158: Cornwall | C158: Private/ Voluntary | D158: Children's Home | E158: 4 | F158: 0 | G158: 1 | H158: 1 | I158: 1
A159: CroydonAllChildren's Home1 | B159: Croydon | C159: All | D159: Children's Home | E159: 1 | F159: 0 | G159: 0 | H159: 1 | I159: 0
A160: CroydonAllChildren's Home2 | B160: Croydon | C160: All | D160: Children's Home | E160: 2 | F160: 0 | G160: 0 | H160: 1 | I160: 1
A161: CroydonAllChildren's Home4 | B161: Croydon | C161: All | D161: Children's Home | E161: 4 | F161: 0 | G161: 0 | H161: 2 | I161: 1
A162: CroydonAllIndependent Fostering Provider3 | B162: Croydon | C162: All | D162: Independent Fostering Provider | E162: 3 | F162: 1 | G162: 0 | H162: 0 | I162: 0
A163: CroydonAllIndependent Fostering Provider4 | B163: Croydon | C163: All | D163: Independent Fostering Provider | E163: 4 | F163: 1 | G163: 0 | H163: 0 | I163: 0
A164: CroydonPrivate/ VoluntaryChildren's Home1 | B164: Croydon | C164: Private/ Voluntary | D164: Children's Home | E164: 1 | F164: 0 | G164: 0 | H164: 1 | I164: 0
A165: CroydonPrivate/ VoluntaryChildren's Home2 | B165: Croydon | C165: Private/ Voluntary | D165: Children's Home | E165: 2 | F165: 0 | G165: 0 | H165: 1 | I165: 1
A166: CroydonPrivate/ VoluntaryChildren's Home4 | B166: Croydon | C166: Private/ Voluntary | D166: Children's Home | E166: 4 | F166: 0 | G166: 0 | H166: 2 | I166: 1
A167: CroydonPrivate/ VoluntaryIndependent Fostering Provider3 | B167: Croydon | C167: Private/ Voluntary | D167: Independent Fostering Provider | E167: 3 | F167: 1 | G167: 0 | H167: 0 | I167: 0
A168: CroydonPrivate/ VoluntaryIndependent Fostering Provider4 | B168: Croydon | C168: Private/ Voluntary | D168: Independent Fostering Provider | E168: 4 | F168: 1 | G168: 0 | H168: 0 | I168: 0
A169: CumbriaAllChildren's Home2 | B169: Cumbria | C169: All | D169: Children's Home | E169: 2 | F169: 0 | G169: 0 | H169: 1 | I169: 0
A170: CumbriaAllChildren's Home3 | B170: Cumbria | C170: All | D170: Children's Home | E170: 3 | F170: 0 | G170: 0 | H170: 2 | I170: 0
A171: CumbriaAllChildren's Home4 | B171: Cumbria | C171: All | D171: Children's Home | E171: 4 | F171: 0 | G171: 0 | H171: 3 | I171: 0
A172: CumbriaAllResidential special school (>295 days/year)2 | B172: Cumbria | C172: All | D172: Residential special school (>295 days/year) | E172: 2 | F172: 0 | G172: 0 | H172: 1 | I172: 1
A173: CumbriaAllResidential special school (>295 days/year)4 | B173: Cumbria | C173: All | D173: Residential special school (>295 days/year) | E173: 4 | F173: 0 | G173: 0 | H173: 1 | I173: 1
A174: CumbriaHealth authorityChildren's Home2 | B174: Cumbria | C174: Health authority | D174: Children's Home | E174: 2 | F174: 0 | G174: 0 | H174: 1 | I174: 0
A175: CumbriaHealth authorityChildren's Home4 | B175: Cumbria | C175: Health authority | D175: Children's Home | E175: 4 | F175: 0 | G175: 0 | H175: 1 | I175: 0
A176: CumbriaLocal authorityChildren's Home3 | B176: Cumbria | C176: Local authority | D176: Children's Home | E176: 3 | F176: 0 | G176: 0 | H176: 1 | I176: 0
A177: CumbriaLocal authorityChildren's Home4 | B177: Cumbria | C177: Local authority | D177: Children's Home | E177: 4 | F177: 0 | G177: 0 | H177: 1 | I177: 0
A178: CumbriaPrivate/ VoluntaryChildren's Home3 | B178: Cumbria | C178: Private/ Voluntary | D178: Children's Home | E178: 3 | F178: 0 | G178: 0 | H178: 1 | I178: 0
A179: CumbriaPrivate/ VoluntaryChildren's Home4 | B179: Cumbria | C179: Private/ Voluntary | D179: Children's Home | E179: 4 | F179: 0 | G179: 0 | H179: 1 | I179: 0
A180: CumbriaPrivate/ VoluntaryResidential special school (>295 days/year)2 | B180: Cumbria | C180: Private/ Voluntary | D180: Residential special school (>295 days/year) | E180: 2 | F180: 0 | G180: 0 | H180: 1 | I180: 1
A181: CumbriaPrivate/ VoluntaryResidential special school (>295 days/year)4 | B181: Cumbria | C181: Private/ Voluntary | D181: Residential special school (>295 days/year) | E181: 4 | F181: 0 | G181: 0 | H181: 1 | I181: 1
A182: DarlingtonAllChildren's Home2 | B182: Darlington | C182: All | D182: Children's Home | E182: 2 | F182: 0 | G182: 2 | H182: 1 | I182: 0
A183: DarlingtonAllChildren's Home3 | B183: Darlington | C183: All | D183: Children's Home | E183: 3 | F183: 0 | G183: 1 | H183: 1 | I183: 1
A184: DarlingtonAllChildren's Home4 | B184: Darlington | C184: All | D184: Children's Home | E184: 4 | F184: 0 | G184: 3 | H184: 2 | I184: 1
A185: DarlingtonAllResidential special school (>295 days/year)3 | B185: Darlington | C185: All | D185: Residential special school (>295 days/year) | E185: 3 | F185: 0 | G185: 0 | H185: 1 | I185: 0
A186: DarlingtonAllResidential special school (>295 days/year)4 | B186: Darlington | C186: All | D186: Residential special school (>295 days/year) | E186: 4 | F186: 0 | G186: 0 | H186: 1 | I186: 0
A187: DarlingtonLocal authorityChildren's Home2 | B187: Darlington | C187: Local authority | D187: Children's Home | E187: 2 | F187: 0 | G187: 2 | H187: 0 | I187: 0
A188: DarlingtonLocal authorityChildren's Home4 | B188: Darlington | C188: Local authority | D188: Children's Home | E188: 4 | F188: 0 | G188: 2 | H188: 0 | I188: 0
A189: DarlingtonPrivate/ VoluntaryChildren's Home2 | B189: Darlington | C189: Private/ Voluntary | D189: Children's Home | E189: 2 | F189: 0 | G189: 0 | H189: 1 | I189: 0
A190: DarlingtonPrivate/ VoluntaryChildren's Home3 | B190: Darlington | C190: Private/ Voluntary | D190: Children's Home | E190: 3 | F190: 0 | G190: 1 | H190: 1 | I190: 1
A191: DarlingtonPrivate/ VoluntaryChildren's Home4 | B191: Darlington | C191: Private/ Voluntary | D191: Children's Home | E191: 4 | F191: 0 | G191: 1 | H191: 2 | I191: 1
A192: DarlingtonPrivate/ VoluntaryResidential special school (>295 days/year)3 | B192: Darlington | C192: Private/ Voluntary | D192: Residential special school (>295 days/year) | E192: 3 | F192: 0 | G192: 0 | H192: 1 | I192: 0
A193: DarlingtonPrivate/ VoluntaryResidential special school (>295 days/year)4 | B193: Darlington | C193: Private/ Voluntary | D193: Residential special school (>295 days/year) | E193: 4 | F193: 0 | G193: 0 | H193: 1 | I193: 0
A194: DerbyAllChildren's Home2 | B194: Derby | C194: All | D194: Children's Home | E194: 2 | F194: 0 | G194: 0 | H194: 1 | I194: 1
A195: DerbyAllChildren's Home3 | B195: Derby | C195: All | D195: Children's Home | E195: 3 | F195: 0 | G195: 0 | H195: 0 | I195: 1
A196: Derby cityAllChildren's Home4 | B196: Derby city | C196: All | D196: Children's Home | E196: 4 | F196: 0 | G196: 0 | H196: 1 | I196: 2
A197: DerbyLocal authorityChildren's Home2 | B197: Derby | C197: Local authority | D197: Children's Home | E197: 2 | F197: 0 | G197: 0 | H197: 1 | I197: 1
A198: DerbyLocal authorityChildren's Home3 | B198: Derby | C198: Local authority | D198: Children's Home | E198: 3 | F198: 0 | G198: 0 | H198: 0 | I198: 1
A199: Derby cityLocal authorityChildren's Home4 | B199: Derby city | C199: Local authority | D199: Children's Home | E199: 4 | F199: 0 | G199: 0 | H199: 1 | I199: 2
A200: DerbyshireAllChildren's Home2 | B200: Derbyshire | C200: All | D200: Children's Home | E200: 2 | F200: 0 | G200: 2 | H200: 0 | I200: 1
... 812 more rows

Sheet Chart3&4Data (hidden)
B2: LA | I2: Calculations
C3: Outstanding | D3: Good | E3: Satisfactory | F3: Inadequate | G3: Total inspected | I3: 7 | J3: 57 | K3: 40 | L3: 9
B4: ="1 April 2012 - 30 June 2012" -> 1 April 2012 - 30 June 2012 | C4: 8 | D4: 61 | E4: 42 | F4: 9 | G4: =SUM(C4:F4) -> 120 | I4: 1 | J4: 4 | K4: 2 | L4: 0 | M4: =SUM(I3:L4) -> 120
B5: ="1 January 2012 - 31 March 2012" -> 1 January 2012 - 31 March 2012 | C5: 7 | D5: 13 | E5: 5 | F5: 1 | G5: =SUM(C5:F5) -> 26 | I5: 0 | J5: 0 | K5: 0 | L5: 0
B6: 1 October 2011 - 31 December 2011 | C6: 79 | D6: 114 | E6: 24 | F6: 1 | G6: =SUM(C6:F6) -> 218
B7: 1 July 2011 - 30 September 2011 | C7: 48 | D7: 110 | E7: 30 | F7: 5 | G7: =SUM(C7:F7) -> 193
B8: 1 April 2011 - 30 June 2011 | C8: 21 | D8: 55 | E8: 29 | F8: 3 | G8: =SUM(C8:F8) -> 108
C11: Outstanding | D11: Good | E11: Satisfactory | F11: Inadequate | G11: Total inspected
B12: =+"1 April 2012 - 30 June 2012" & " (" &G4 &")" -> 1 April 2012 - 30 June 2012 (120) | C12: =IF($G4=0,"0",C4/$G4*100) -> 6.666666667 | D12: =IF($G4=0,"0",D4/$G4*100) -> 50.83333333 | E12: =IF($G4=0,"0",E4/$G4*100) -> 35 | F12: =IF($G4=0,"0",F4/$G4*100) -> 7.5 | G12: =IF($G4=0,"0",G4/$G4*100) -> 100
B14: =+"1 January 2012 - 31 March 2012" & " (" &G5 &")" -> 1 January 2012 - 31 March 2012 (26) | C14: =IF($G5=0,"0",C5/$G5*100) -> 26.92307692 | D14: 50 | E14: 19.23076923 | F14: 3.846153846 | G14: 100
B15: =+"1 October 2011 - 31 December 2011" & " (" &G6 &")" -> 1 October 2011 - 31 December 2011 (218) | C15: 36.23853211 | D15: 52.29357798 | E15: 11.00917431 | F15: 0.4587155963 | G15: 100
B16: =+"1 July 2011 - 30 September 2011" & " (" &G7 &")" -> 1 July 2011 - 30 September 2011 (193) | C16: 24.87046632 | D16: 56.99481865 | E16: 15.54404145 | F16: 2.590673575 | G16: 100
B17: =+"1 April 2011 - 30 June 2011" & " (" &G8 & ")" -> 1 April 2011 - 30 June 2011 (108) | C17: 19.44444444 | D17: 50.92592593 | E17: 26.85185185 | F17: 2.777777778 | G17: 100
B23: Health authority/private/voluntary
C24: Outstanding | D24: Good | E24: Satisfactory | F24: Inadequate | G24: Total inspected | I24: 0 | J24: 38 | K24: 2 | L24: 212 | M24: 3 | N24: 122 | O24: 0 | P24: 32
B25: ="1 April 2012 - 30 June 2012" -> 1 April 2012 - 30 June 2012 | C25: 39 | D25: 223 | E25: 130 | F25: 34 | G25: =SUM(C25:F25) -> 426 | I25: 0 | J25: 0 | K25: 0 | L25: 0 | M25: 0 | N25: 0 | O25: 0 | P25: 0
B26: ="1 January 2012 - 31 March 2012" -> 1 January 2012 - 31 March 2012 | C26: 7 | D26: 45 | E26: 23 | F26: 8 | G26: =SUM(C26:F26) -> 83 | I26: 0 | J26: 1 | K26: 0 | L26: 9 | M26: 0 | N26: 5 | O26: 0 | P26: 2
B27: 1 October 2011 - 31 December 2011 | C27: 178 | D27: 298 | E27: 77 | F27: 10 | G27: =SUM(C27:F27) -> 563 | P27: =SUM(I24:P26) -> 426
B28: 1 July 2011 - 30 September 2011 | C28: 115 | D28: 248 | E28: 82 | F28: 6 | G28: =SUM(C28:F28) -> 451
B29: 1 April 2011 - 30 June 2011 | C29: 63 | D29: 201 | E29: 74 | F29: 10 | G29: =SUM(C29:F29) -> 348
C32: Outstanding | D32: Good | E32: Satisfactory | F32: Inadequate | G32: Total inspected
B33: =+"1 April 2012 - 30 June 2012" & " (" &G25 &")" -> 1 April 2012 - 30 June 2012 (426) | C33: =IF($G25=0,"0",C25/$G25*100) -> 9.154929577 | D33: =IF($G25=0,"0",D25/$G25*100) -> 52.34741784 | E33: =IF($G25=0,"0",E25/$G25*100) -> 30.51643192 | F33: =IF($G25=0,"0",F25/$G25*100) -> 7.981220657 | G33: =IF($G25=0,"0",G25/$G25*100) -> 100
B35: =+"1 January 2012 - 31 March 2012" & " (" &G26 &")" -> 1 January 2012 - 31 March 2012 (83) | C35: =IF($G26=0,"0",C26/$G26*100) -> 8.43373494 | D35: 54.21686747 | E35: 27.71084337 | F35: 9.638554217 | G35: 100
B36: =+"1 October 2011 - 31 December 2011" & " (" &G27 &")" -> 1 October 2011 - 31 December 2011 (563) | C36: 31.61634103 | D36: 52.93072824 | E36: 13.67673179 | F36: 1.776198934 | G36: 100
B37: =+"1 July 2011 - 30 September 2011" & " (" &G28 &")" -> 1 July 2011 - 30 September 2011 (451) | C37: 25.49889135 | D37: 54.98891353 | E37: 18.18181818 | F37: 1.33037694 | G37: 100
B38: =+"1 April 2011 - 30 June 2011" & " (" &G29 & ")" -> 1 April 2011 - 30 June 2011 (348) | C38: 18.10344828 | D38: 57.75862069 | E38: 21.26436782 | F38: 2.873563218 | G38: 100

Sheet Chart1&2Data (hidden)
H1: Calculations
B2: Outstanding | C2: Good | D2: Satisfactory | E2: Inadequate | F2: Total | H2: 47 | I2: 284 | J2: 172 | K2: 43
A3: 1 April 2012 - 30 June 2012 | B3: =H2+H3 -> 47 | C3: =I2+I3 -> 284 | D3: =J2+J3 -> 172 | E3: =K2+K3 -> 43 | F3: =SUM(B3:E3) -> 546
A4: 1 April 2011 - 31 March 2012 | B4: =SUM(L4,B24) -> 518 | C4: =SUM(M4,C24) -> 1084 | D4: =SUM(N4,D24) -> 344 | E4: =SUM(O4,E24) -> 44 | F4: =SUM(B4:E4) -> 1990 | H4: 82 | I4: 249 | J4: 100 | K4: 13 | L4: =SUM(B25:B27) -> 504 | M4: =SUM(C25:C27) -> 1026 | N4: =SUM(D25:D27) -> 316 | O4: =SUM(E25:E27) -> 35
L5: 237 | M5: 391 | N5: 100 | O5: 11
A6: 1 April 2010 - 31 March 2011 | B6: 697 | C6: 2329 | D6: 988 | E6: 167 | F6: =SUM(B6:E6) -> 4181 | H6: 12 | I6: 56 | J6: 26 | K6: 9
A7: 1 April 2009 - 31 March 2010 | B7: 405 | C7: 2075 | D7: 1020 | E7: 255 | F7: =SUM(B7:E7) -> 3755 | H7: 257 | I7: 412 | J7: 101 | K7: 11
A8: 1 April 2008 - 31 March 2009 | B8: 290 | C8: 1896 | D8: 1187 | E8: 333 | F8: =SUM(B8:E8) -> 3706 | H8: 163 | I8: 358 | J8: 112 | K8: 11
A9: 1 April 2007 - 31 March 2008 | B9: 289 | C9: 1997 | D9: 1098 | E9: 368 | F9: =SUM(B9:E9) -> 3752 | H9: 84 | I9: 256 | J9: 103 | K9: 13
B11: Outstanding | C11: Good | D11: Satisfactory | E11: Inadequate | F11: Total
A12: ="1 April 2012 - 30 June 2012 ("&F3 &")" -> 1 April 2012 - 30 June 2012 (546) | B12: =IF($F3=0,"0",B3/$F3*100) -> 8.608058608 | C12: =IF($F3=0,"0",C3/$F3*100) -> 52.01465201 | D12: =IF($F3=0,"0",D3/$F3*100) -> 31.5018315 | E12: =IF($F3=0,"0",E3/$F3*100) -> 7.875457875 | F12: =IF($F3=0,"0",F3/$F3*100) -> 100
A14: ="1 April 2011 - 31 March 2012 ("&F4 &")" -> 1 April 2011 - 31 March 2012 (1990) | B14: =IF($F4=0,"0",B4/$F4*100) -> 26.03015075 | C14: =IF($F4=0,"0",C4/$F4*100) -> 54.47236181 | D14: =IF($F4=0,"0",D4/$F4*100) -> 17.28643216 | E14: =IF($F4=0,"0",E4/$F4*100) -> 2.211055276 | F14: =IF($F4=0,"0",F4/$F4*100) -> 100
A16: ="1 April 2010 - 31 March 2011 ("&F6 &")" -> 1 April 2010 - 31 March 2011 (4181) | B16: =IF($F6=0,"0",B6/$F6*100) -> 16.67065295 | C16: 55.70437694 | D16: 23.63071036 | E16: 3.994259746 | F16: 100
A17: ="1 April 2009 - 31 March 2010 ("&F7 &")" -> 1 April 2009 - 31 March 2010 (3755) | B17: 10.78561917 | C17: 55.25965379 | D17: 27.16378162 | E17: 6.790945406 | F17: 100
A18: ="1 April 2008 - 31 March 2009 ("&F8 &")" -> 1 April 2008 - 31 March 2009 (3706) | B18: 7.825148408 | C18: 51.16028063 | D18: 32.02914193 | E18: 8.985429034 | F18: 100
A19: ="1 April 2007 - 31 March 2008 ("&F9 &")" -> 1 April 2007 - 31 March 2008 (3752) | B19: 7.702558635 | C19: 53.2249467 | D19: 29.26439232 | E19: 9.808102345 | F19: 100
H20: 1 | I20: 2 | J20: 3 | K20: 0
H21: 141 | I21: 314 | J21: 98 | K21: 9
B22: Outstanding | C22: Good | D22: Satisfactory | E22: Inadequate | F22: Total | H22: 83 | I22: 251 | J22: 103 | K22: 13
A23: 1 April 2012 - 30 June 2012 | B23: =B3 -> 47 | C23: =C3 -> 284 | D23: =D3 -> 172 | E23: =E3 -> 43 | F23: =F3 -> 546 | H23: 712 | I23: 228 | J23: 377 | K23: 97
A24: 1 January 2012 - 31 March 2012 | B24: =SUM(J35:J37) -> 14 | C24: =SUM(K35:K37) -> 58 | D24: =SUM(L35:L37) -> 28 | E24: =SUM(M35:M37) -> 9 | F24: =SUM(B24:E24) -> 109 | H24: ) | I24: =SUM(I22:I23) -> 479 | J24: =SUM(J22:J23) -> 480 | K24: =SUM(K22:K23) -> 110
A25: 1 October 2011 - 31 December 2011 | B25: =H7 -> 257 | C25: 412 | D25: 101 | E25: 11 | F25: =SUM(B25:E25) -> 781
A26: 1 July 2011 - 30 September 2011 | B26: 163 | C26: 358 | D26: 112 | E26: 11 | F26: =SUM(B26:E26) -> 644
A27: 1 April 2011 - 30 June 2011 | B27: 84 | C27: 256 | D27: 103 | E27: 13 | F27: =SUM(B27:E27) -> 456 | H27: =SUM(B25:B27) -> 504 | I27: =SUM(C25:C27) -> 1026 | J27: =SUM(D25:D27) -> 316 | K27: =SUM(E25:E27) -> 35
A29: 1 January 2011 - 31 March 2011 | B29: 279 | C29: 881 | D29: 394 | E29: 46 | F29: =SUM(B29:E29) -> 1600 | H29: =SUM(R16:R17) -> 0 | I29: =SUM(S16:S17) -> 0 | J29: =SUM(T16:T17) -> 0 | K29: =SUM(U16:U17) -> 0
A30: 1 October 2010 - 31 December 2010 | B30: 198 | C30: 648 | D30: 247 | E30: 38 | F30: 1131 | H30: =SUM(N29:N30) -> 0 | I30: =SUM(O29:O30) -> 0 | J30: =SUM(P29:P30) -> 0 | K30: =SUM(Q16:Q17) -> 0
A31: 1 July 2010 - 30 September 2010 | B31: 143 | C31: 454 | D31: 177 | E31: 47 | F31: 821
A32: 1 April 2010 - 30 June 2010 | B32: 77 | C32: 346 | D32: 170 | E32: 36 | F32: 629
A33: 1 January 2010 - 31 March 2010 | B33: 155 | C33: 726 | D33: 340 | E33: 73 | F33: 1294
A34: 1 October 2009 - 31 December 2009 | B34: 126 | C34: 619 | D34: 287 | E34: 76 | F34: 1108
A35: 1 July 2009 - 30 September 2009 | B35: 95 | C35: 481 | D35: 263 | E35: 52 | F35: 891 | H35: Children's homes | I35: 86 | J35: 12 | K35: 54 | L35: 26 | M35: 9
A36: 1 April 2009 - 30 June 2009 | B36: 62 | C36: 404 | D36: 208 | E36: 72 | F36: 746 | H36: Secure children's homes | I36: 2 | J36: 0 | K36: 2 | L36: 0 | M36: 0
A37: 1 January 2009 - 31 March 2009 | B37: 106 | C37: 617 | D37: 366 | E37: 97 | F37: 1186 | H37: RSS | I37: 6 | J37: 2 | K37: 2 | L37: 2 | M37: 0
A38: 1 October 2008 - 31 December 2008 | B38: 87 | C38: 582 | D38: 400 | E38: 101 | F38: 1170
A39: 1 July 2008 - 30 September 2008 | B39: 72 | C39: 456 | D39: 298 | E39: 80 | F39: 906 | H39: 82 | I39: 249 | J39: 100 | K39: 13 | L39: 140 | M39: 308 | N39: 98 | O39: 9
A40: 1 April 2008 - 30 June 2008 | B40: 46 | C40: 384 | D40: 225 | E40: 77 | F40: 732 | H40: 1 | I40: 2 | J40: 3 | K40: 0 | L40: 1 | M40: 6 | N40: 0 | O40: 0
A41: 1 January 2008 - 31 March 2008 | B41: 103 | C41: 657 | D41: 342 | E41: 97 | F41: 1199
A42: 1 October 2007 - 31 December 2007 | B42: 88 | C42: 579 | D42: 279 | E42: 93 | F42: 1039
A43: 1 July 2007 - 30 September 2007 | B43: 68 | C43: 484 | D43: 249 | E43: 103 | F43: 904 | H43: 228 | I43: 374 | J43: 96 | K43: 10 | L43: 10
A44: 1 April 2007 - 30 June 2007 | B44: 49 | C44: 399 | D44: 293 | E44: 103 | F44: 844 | H44: 0 | I44: 3 | J44: 1 | K44: 0 | L44: 0
H45: 21 | I45: 18 | J45: 1 | K45: 0
